{"text_format":"1","workbook":"xlsx","n_sheets":26,"sheets":["intro","structure","instructions","footnote instructions","Parameters","footnotes_list","Parameter_mapping","Parameters_SDMX_Converter","Transcoding","Table_A","Table_B","Table_C","Table_D","Table_E","Table_F","Table_G","Table_H","Table_I","Grazed biomass v1","Crop residues v1","Sand and gravel v1","Clay v1","Limestone v1","Table G Estimation tool","Annex to Table G tool","Check Report"],"not_rendered":{"charts":0,"images":1,"macros":1,"external_links":1,"defined_names":13,"comments":2,"pivot_tables":0},"unopened":[],"bounds":{"document_bytes":16777216,"sheet_cells":100000,"rows_first":2000,"rows_last":500,"rows_between":2000,"halvings":0,"cell_chars":16384,"cell_head_chars":4096},"cells_cut":0,"cells_raw":0,"read":"whole","date_system":"1900"}

{"sheet":"intro","index":0,"n_rows":22,"n_cols":19,"rows_kept":22,"cut":false,"hidden":false,"merged":[[17,1,17,14],[18,1,18,14],[19,1,19,14],[20,1,20,14],[21,1,21,14],[24,2,24,14],[25,2,25,14],[26,2,26,14],[22,2,22,14],[23,2,23,14],[13,1,13,14],[12,1,12,14],[1,1,1,14],[4,1,4,14],[6,1,6,14],[11,1,11,14],[7,8,7,9],[8,1,8,14],[9,8,9,11],[3,0,3,14],[10,1,10,14],[9,1,9,7],[5,1,5,14],[2,1,2,14]]}
[null,null,null,null,null,null,null,null,null,null,null,null,null,null,null,null,"NO","NO","NO"]
[null,"Economy-wide material flow accounts (EW-MFA)"]
[null,"2020 EW-MFA questionnaire"]
["INTRODUCTION"]
[null,"version 25 August 2020"]
[null,"This is Eurostat's electronic questionnaire for the 2020 data collection on economy-wide material flow accounts (EW-MFA). It includes a number of sheets – an overview is provided in sheet 'structure'. Reporting Tables A, B, and D are based on Regulation (EU) No. 691/2011."]
[]
[null,"Please specify your country by selecting from the drop-down list:",null,null,null,null,null,{"$f":"IF(I8=\"\",\"\",LOOKUP(I8,Parameters!B31:C69))","v":""}]
[]
[null,"Deadline for returning back the 2020 EW-MFA questionnaire is:",null,null,null,null,null,null,"31 December 2020"]
[]
[null,"The sheet 'instructions' provides you with detailed information on filling in the questionnaire. Please address any questions to the following e-mail address:"]
[null,"ESTAT-MFA@ec.europa.eu"]
[null,"This electronic questionnaire shall be submitted to Eurostat using the EDAMIS reporting system (Electronic Data files Administration and Management Information System).\nPlease ensure that the following EDAMIS parameters are entered:"]
[null,"Domain: ENVPFLAC"]
[null,"Data set: ENVPFLAC_MFA_A"]
[null,"Year: 2018 (which is the most recent legally mandatory reference year). Eurostat greatly appreciates receiving EW-MFA data starting from 2000 ranging up to 2019."]
[null,"The eDAMIS system has been installed in all National Statistical Institutes and your local eDAMIS coordinator will give you a user-id and password."]
[null,"Should you have any questions regarding data transmission, please contact your local eDAMIS coordinator or the Eurostat eDAMIS helpdesk at:"]
[null,"estat-support-edamis@ec.europa.eu"]
[null,"or call +352 4301 33213."]
[null,"Please provide the primary contact person for EW-MFA in your country (institution, unit, name, email, telephone):"]

{"sheet":"structure","index":1,"n_rows":39,"n_cols":6,"rows_kept":39,"cut":false,"hidden":false,"merged":[[32,5,38,5],[1,0,1,6],[3,0,3,6],[32,3,32,4],[33,3,33,4],[35,3,35,4],[36,3,36,4],[38,3,38,4],[34,3,34,4],[37,3,37,4],[9,1,9,2],[2,0,2,6]]}
[]
[{"$f":"intro!B2","v":"Economy-wide material flow accounts (EW-MFA)"}]
[{"$f":"intro!B3","v":"2020 EW-MFA questionnaire"}]
["Table of contents"]
[]
[null,{"$f":"\"Overview of the \"&intro!K3&\" electronic questionnaire EW-MFA\"","v":"Overview of the  electronic questionnaire EW-MFA"}]
[null,null,null,null,"Number of decimals shown in data tables","0 Decimal"]
[null,null,null,null,"Calculation Method (based on number of decimals)","ROUND(SUM(V))"]
[]
[null,"Sheet",null,"Title","Content","Status"]
[null,1,"intro","EW-MFA questionnaire - Introduction","General information about the EW-MFA questionnaire","to be filled out (please select country and provide primary contact person)"]
[null,{"$f":"B11+1","v":2},"structure","Table of content of the EW-MFA questionnaire","Overview of this electronic EXCELworkbook","for information"]
[null,{"$f":"B12+1","v":3},"instructions ","Instructions for completing the EW-MFA questionnaire and overview of the checking rules","Instructions on how to use and fill in the questionnaire","for information"]
[null,{"$f":"B13+1","v":4},"footnote instructions","Instructions for reporting of the footnotes ","Provides instructions for SDMX compliant reporting of footnotes  ","for information"]
[null,{"$f":"B14+1","v":5},"footnotes_list","List of footnotes","Please insert footnote texts for each footnote symbol you use in tables A to I","for information"]
[null,6,"Table_A","Domestic extraction (DE)","Table A records material flows from the environment into the economy in a detailed breakdown by type of material","to be filled out"]
[null,7,"Table_B","Imports - total imports (intra- and extra-EU imports)","The physical trade tables (Tables B to E) record the imports and exports of products in thousand tonnes and grouped by materials. Table B accounts for total imports","to be filled out"]
[null,8,"Table_C","Imports - extra-EU imports","The physical trade tables (Tables B to E) record the imports and exports of products in thousand tonnes and grouped by materials. Table C accounts for extra-EU imports","to be filled out"]
[null,9,"Table_D","Exports - total exports (intra- and extra-EU exports)","The physical trade tables (Tables B to E) record the imports and exports of products in thousand tonnes and grouped by materials. Table D accounts for total exports","to be filled out"]
[null,10,"Table_E","Exports - extra-EU exports","The physical trade tables (Tables B to E) record the imports and exports of products in thousand tonnes and grouped by materials. Table E accounts for extra-EU exports","to be filled out"]
[null,11,"Table_F","Domestic processed output (DPO)","Table F records material flows from the economy to the domestic environment (e.g. emissions to air, water and soil)","to be filled out"]
[null,12,"Table_G","Balancing items","Table G reports some memorandum items which are necessary to have the full material balance related to a national economy","to be filled out"]
[null,13,"Table_H","Indicators","Table H presents the EW-MFA derived indicators which are automatically calculated from Table A to G","to be filled out"]
[null,14,"Table_I","Material flow accounts in raw material equivalents (RME) ","Table I records material flow accounts in raw material equivalents (MFA-RME). Some items are calculated automatically based on data reported in Table A and Table I","to be filled out"]
[null,15,"Grazed biomass v1","Compilation tool for \"grazed biomass\"","This tool helps to estimate the item MF.1.2.2.2 Grazed biomass in Table A","to be used for estimation or crosschecking purposes"]
[null,16,"Crop residues v1","Compilation tool for \"crop residues\"","This tool helps to estimate the item MF.1.2.1 Crop residues (used) in Table A","to be used for estimation or crosschecking purposes"]
[null,17,"Sand and gravel v1","Compilation tool for \"sand and gravel\"","This tool helps to estimate the item MF.3.8 Sand and gravel in Table A","to be used for estimation or crosschecking purposes"]
[null,18,"Clay v1","Compilation tool for \"clay\"","This tool helps to estimate \"clay\" within the item MF.3.7 Clays and kaolin in Table A","to be used for estimation or crosschecking purposes"]
[null,19,"Limestone v1","Compilation tool for \"limestone\"","This tool helps to estimate \"limestone\" within the item MF.3.6 Limestone and gypsum in Table A","to be used for estimation or crosschecking purposes"]
[null,20,"Table G Estimation tool","Compilation tool for Balancing items","This tool helps to estimate the Balancing items to be reported in Table G","to be used for estimation or crosschecking purposes"]
[null,21,"Annex to Table G tool","Annex to the Compilation tool for Balancing items","Provides coefficients used in the compilation tool","for information"]
[null,22,"Check Report","Check Report","The Check Report informs about data problems such as empty cells, consistency and plausibility","to be checked before returning the questionnaire"]
[null,23,"Annex 1","Correspondences between EW-MFA classification for biomass and various Eurostat statistics, such as e.g. agricultural crop statistics, forestry statistics, fishery statistics",null,"to be used for compilation purposes;\n\nthe annexes are provided in a separate EXCEL file"]
[null,24,"Annex 2","Correspondence table between the EW-MFA classification for metal ores, non-metallic minerals and fossil energy materials with codes of Eurostat's energy statistics/balances, PRODCOM and CPA"]
[null,25,"Annex 3","Correspondence table between EW-MFA classification for non-metallic minerals and CPA, PRODCOM, BGS and USGS"]
[null,26,"Annex 4","Correspondence between Combined Nomenclature 2019 and EW-MFA classification for imports and exports"]
[null,27,"Annex 5","Correspondence between Combined Nomenclature 2019 and EW-MFA classification for stages of manufacturing"]
[null,28,"Annex 6","Conversion factors for imports and exports - Combined Nomenclature, 2017"]
[null,29,"Annex 7","Complete version of the Combined Nomenclature 2020 including the 2,4, 6 and 8 digits codes, valid from 1988"]

{"sheet":"instructions","index":2,"n_rows":74,"n_cols":3,"rows_kept":74,"cut":false,"hidden":false,"merged":[[73,1,73,15],[12,1,12,15],[41,1,41,15],[49,1,49,13],[51,1,51,13],[48,1,48,15],[4,1,4,14],[5,1,5,14],[23,1,23,15],[24,1,24,15],[7,1,7,15],[13,1,13,15],[15,1,15,15],[22,1,22,15],[20,1,20,15]]}
[]
[]
[]
[]
[null,{"$f":"intro!B2","v":"Economy-wide material flow accounts (EW-MFA)"}]
[null,{"$f":"intro!B3","v":"2020 EW-MFA questionnaire"}]
[]
[null,"Instructions for completing the EW-MFA questionnaire and overview of the checking rules"]
[]
[null,"1. Instructions for completing the EW-MFA questionnaire"]
[null,"The following technical instructions relate to the handling of the electronic EXCEL questionnaire."]
[null,"Theoretical and conceptual foundations of economy-wide material flow accounts (EW-MFA) next to detailed compilation guidelines for filling this questionnaire can be found in:"]
[null,"Economy-wide material flow accounts handbook – 2018 edition'"]
[null,"Note: a new classification of materials was introduced with the 2018 handbook (see Annex A of the handbook). The data sheets of this questionnaire were adjusted accordingly, i.e. the row codes and row labels were changed. "]
[null,"Additional guidelines related to Table I (Material flow accounts in raw material equivalents (RME)) can be found here:"]
[null,"Handbook for estimating raw material equivalents (RME) - of imports and exports and RME - based  indicators for countries - based on Eurostat's EU RME model, October 2019"]
[null,"Please note the following issues:"]
[null,"1) Eurostat introduced a separate sheet 'footnote instructions'."]
[null,"2) Pre-defined footnotes 'n' ('not to be published') and 's' ('Eurostat estimate') are to be set exclusively by Eurostat."]
[null,"3) Built-in checking tools have been aligned to the validation rules agreed by the Working Group as far as feasible."]
[null,"4) The questionnaire is an Excel file with embbeded macros. Should you have problems opening the file and enabling the macros, please check your local Excel settings related to macros. "]
[null,"1.A) Getting started"]
[null,"1. Please select your country code from the drop-down menu in the first sheet 'intro'. Do not forget to provide the primary contact person for EW-MFA in your country."]
[null,"2. Complete the data sheets and please do not change the format of the questionnaire (i.e. add/delete rows or columns) since Eurostat uses automated routines for data validation."]
[null,"3. Each data sheet offers the time range from year 1990 until 2020. According to Regulation (EU) No. 691/2011 reporting data for reference years 2014-2018 is mandatory. If you have data available beyond this time range, please report it. Eurostat appreciates receiving data starting from reference year 2000."]
[null,"1.B) How to correctly report figures and symbols?"]
[null,"4. Figures have to be reported in the white cells of the data sheets."]
[null,"5. Please report exact figures; you may report as much decimals as you want. Do not report rounded or truncated values."]
[null,"6. Please report positive figures. Negative figures are only accepted for the following items:"]
[null,"    - in Table A for item MF.1.3 MEMO 'Net increment of timber stock'; "]
[null,"    - in Table H for items H.6 'Physical trade balance (PTB)' and H.8 'Net additions to stock (NAS)';"]
[null,"    - in Table I for item 'Raw material consumption (RMC)'."]
[null,"7. Please report real zero ('0') if there are no extractions or physical trade for the respective material class."]
[null,"8. Please report colon (':') for data not available, i.e. if the quantity extracted is not known. Note that in such case the superior sub-total or total cannot be derived."]
[null,"    'Not available' (:) symbol is not allowed for mandatory years highlighted in red font, except for the following items:"]
[null,"       - Table A (Domestic extraction): 'Straw' (MF.1.2.1.1) and 'Other crop residues' (MF.1.2.1.2);"]
[null,"       - Tables B (Imports) and D (Exports): adjustment items for residence principle (MF.4.2.3, MF.4.2.3.1, MF.4.2.3.2, MF.4.2.3.3)."]
[null,"9. Missing values (empty cells) for the mandatory years are not allowed. "]
[]
[null,"2. The built-in checking tool"]
[null,"There is a checking tool built into the questionnaire, please use it! To reduce the validation time, Eurostat appreciates receiving error-free questionnaires."]
[null,"The tool checks empty cells, valid/invalid symbols, erroneous reporting of footnotes, inconsistencies, plausibility issues and identifies incorrect use of confidentiality flags. \nThe detailed validation rules for EW-MFA - as agreed by the ESS - are published in the 'EW-MFA validation rules 2020'."]
[null,"2.A) How to use the checking tool?"]
[null,"The checking macro runs automatically upon closing the questionnaire, i.e. over all data sheets. This is intended to force the checks to be done."]
[null,"The tool can also be run manually:"]
[null," - to check individual data sheets by pressing the 'Check' button at the top of each data sheet."]
[null," - to check the whole questionnaire by pressing the 'Check the whole questionnaire' button in the 'intro' sheet' or 'structure' sheet'."]
[null,"2.B) What is checked and how are errors/warnings displayed?"]
[null,"Errors and warnings are visualised in the data sheets through cells highlighted in different colours. In addition, by hovering the mouse over the highlighted cell a comment appears with detailed explanation of the detected problem."]
[null,"Eurostat kindly asks you to address each highlighted cell. If correctly done, after the next check the highlight will disappear from the concerned cell. In case of plausibility warnings (orange cells) there are two options: If the implausibility is caused by an error, please correct it. If the value is correct, please add a footnote explaining the detected implausibility."]
[null,"The checking tool produces an error report which you find in the sheet 'Check Report'. It provides a list of all cells [with hyperlinks] for which errors or other issues were detected."]
[null,"The below list explains in detail the checks performed and how the error messages are displayed."]
[]
[null,"Symbols check: verifies if the symbols used in the questionnaire are valid. The problematic cells are highlighted in red."]
[]
[null,"Footnote check: verifies if footnotes are reported correctly. It also verifies that a 'free text' footnote symbol has an associated text in the sheet 'footnotes_list'. Otherwise, the cell is highlighted in red."]
[]
[null,"Consistency check: verifies the sum of components which has to equal the corresponding total or subtotal. For example, the sum of MF.1.1.1 to  MF.1.1.A should be equal to the value"]
[null,"reported in MF.1.1, and MF.1.1 + MF.1.2 + MF.1.3 + MF.1.4 should be equal to MF.1 . In case of inconsistency, the cell corresponding to the total or subtotal is highlighted in blue."]
[]
[null,"Confidentiality check: verifies that certain rules related to confidentiality are applied:"]
[null,null,"- Avoid confidentiality at MF-1- digit level;"]
[null,null,"- Cells with zero or 'not available' cannot be confidential;"]
[null,null,"- Ensure that the figure flagged as confidential cannot be derived through calculation."]
[null,"         If the above criteria are not followed, cells are highlighted in purple."]
[]
[null,"Plausibility check:  concerns 'big changes' between consecutive years. 'Big changes' have been defined as follows:"]
[null,"    - For domestic extraction (Table A) value must not vary more than 30% from one year to the next if it represents more than 20% of the superior material category, class or group of that year."]
[null,"    - For imports and exports (Table B and D) value must not vary more than 50% from one year to the next if they represent more than 20% of the superior material category, class or group of that year."]
[null,"      If the annual change is higher than the above described threshold, the cell is highlighted in green if an explaining freetext footnote or a pre-defined b)-footnote is added. "]
[null,"      If the annual change is higher than the above described threshold and any explanation is missing the cell is highlighted in orange."]
[null,"      In this latter case please add a free text footnote explaining the detected implausible high change."]
[null,"In case there are both, consistency and plausibility issues, the cell is highlighted in orange and the value appears in blue."]
[null,"Mandatory cells check: The dataset must include all mandatory characteristics for the five mandatory reference years. In the EW-MFA questionnaire, these are highlighted in red font. \nCells with missing data except for the items specified above under point 1.B.8 will be highlighted in darker colours and for non mandatory cells in lighter colours. "]

{"sheet":"footnote instructions","index":3,"n_rows":65,"n_cols":10,"rows_kept":65,"cut":false,"hidden":false,"merged":[[4,1,4,13],[5,1,5,13],[7,1,7,13],[8,1,8,13],[9,1,9,13],[16,1,16,13],[17,1,18,13],[20,1,20,13],[21,1,21,13],[10,1,10,13],[12,1,12,13],[13,1,13,13],[14,1,14,13],[15,1,15,13],[22,1,22,13],[23,1,23,13],[24,2,24,4],[24,5,24,12],[32,1,32,13],[28,2,28,4],[28,5,28,12],[29,2,29,4],[29,5,29,12],[31,1,31,13],[25,2,25,4],[25,5,25,12],[26,2,26,4],[26,5,26,12],[27,2,27,4],[27,5,27,12],[33,1,33,13],[34,1,34,13],[35,1,35,13],[37,1,37,13],[38,1,38,13],[39,1,39,13],[40,1,40,13],[41,1,41,13],[49,2,49,13],[50,1,50,13],[46,2,46,4],[46,5,46,12],[47,2,47,4],[47,5,47,12],[48,2,48,4],[48,5,48,12],[42,1,42,13],[43,1,43,13],[44,2,44,13],[45,2,45,4],[45,5,45,12],[51,2,51,13],[52,1,52,2],[52,3,52,12],[53,3,53,5],[53,6,53,8],[53,9,53,12],[56,3,56,5],[56,6,56,8],[56,9,56,12],[57,3,57,5],[57,6,57,8],[57,9,57,12],[54,3,54,5],[54,6,54,8],[54,9,54,12],[55,3,55,5],[55,6,55,8],[55,9,55,12],[60,3,60,5],[60,6,60,8],[60,9,60,12],[61,3,61,5],[61,6,61,8],[61,9,61,12],[58,3,58,5],[58,6,58,8],[58,9,58,12],[59,3,59,5],[59,6,59,8],[59,9,59,12],[64,3,64,5],[64,6,64,8],[64,9,64,12],[62,3,62,5],[62,6,62,8],[62,9,62,12],[63,3,63,5],[63,6,63,8],[63,9,63,12]]}
[]
[]
[]
[]
[null,{"$f":"intro!B2","v":"Economy-wide material flow accounts (EW-MFA)"}]
[null,{"$f":"intro!B3","v":"2020 EW-MFA questionnaire"}]
[]
[null,"Instructions for SDMX compliant reporting of footnotes in the EXCEL questionnaire"]
[]
[null,"Eurostat introduces a revised way of reporting footnotes in EXCEL questionnaires. This new footnote syntax is introduced for all EXCEL questionnaires used in the domain of environmental economic accounts. It must be used for all EDAMIS domains. "]
[null,"Please note that Eurostat introduced a centralised 'footnote_list' sheet."]
[]
[null,"How to report footnotes?"]
[null,"In this questionnaire reporting of footnotes includes two components: \t"]
[null,"(1) a footnote symbol reported in the data sheet next to a reported value, and"]
[null,"(2) a footnote content associated with the symbol, displayed in the sheet entitled 'footnote_list'"]
[null,"Footnote symbols are reported in the so-called footnote-symbol-cell, i.e. yellow cells next to the white value cells. "]
[null,"There are two types of footnote symbols – letters with a closing bracket for pre-defined footnotes (e.g. ‘p)’) and numbers with a closing bracket for 'free text' footnotes (e.g. ‘2)’)."]
[]
[]
[null,"Pre-defined footnotes with standard meanings"]
[null,"So called 'pre-defined footnotes' are footnotes with standard meanings. "]
[null,"The following table shows the letter-symbols, labels and meanings of 'pre-defined footnotes' that users may employ in this questionnaire."]
[]
[null,"Symbol ","Label ",null,null,"Meaning "]
[null,"b)","Break in time series",null,null,"Break occurring when there is a change in the standards for defining and observing a variable over time."]
[null,"c)","Confidential",null,null,"Confidential data are data which are subject to confidentiality clauses."]
[null,"d)","Secondary confidentiality",null,null,"Secondary confidentiality' is used to hiding non-confidential values in order to prevent third parties to indirectly deduce values flagged with c)-flag).\nPlease note that this footnote converts into confidential (c) when published in Eurostat’s online database."]
[null,"e)","Estimated data",null,null,"The particular value yielded by an estimator in a given set of circumstances."]
[null,"p)","Provisional ",null,null,"The provider considers that the data will be revised."]
[]
[null,"Free text' footnotes"]
[null,"A 'free text' footnote is used for any meaning beyond the pre-defined footnotes. "]
[null,"The symbol for 'free text' footnotes are numbers followed by a closing bracket (e.g. '1)')."]
[null,"The content of 'free text' footnotes must be specified by the user in the sheet 'footnote_list'."]
[null,"Note that one and only one 'free text' footnote symbol can be associated to a reported value (data point). "]
[]
[null,"Specific order of footnote symbols must be respected!"]
[null,"It is possible to associate more than one footnote to a value-cell (data point). "]
[null,"In case of multiple footnote symbols, a specific order must be followed!\t"]
[null,"1st position - First must come the 'free text' footnote symbol. The first position is always reserved for this! You must put a bracket even if you do not have any 'free text' footnote in case of further pre-defined footnote symbols should follow."]
[null,"2nd position - Secondly, footnote symbol for confidentiality: this can be c) or d). The second position is always reserved for one and only one footnote symbol expressing confidentiality. You must put a bracket without letter if you do not have to express any confidentiality in case further pre-defined footnote symbols should follow.  "]
[null,"3rd and more position - Finally, the third and possibly fourth, fifth and sixth positions are reserved for other pre-defined footnote symbols, namely b), e), and p). "]
[null,"The following table summarises the specific order for reporting footnote symbols:"]
[]
[null,"Position ","Footnote type ",null,null,"What to do if  'empty'"]
[null,"1st","free text', number followed by right bracket: e.g. ‘1)’ (Note: only one is possible!)",null,null,"A right bracket without number must be set in case pre-defined symbols should follow."]
[null,"2nd","Confidentiality related predefined footnote symbol: c) or d)     (only one!)",null,null,"A right bracket without letter must be set in case further pre-defined symbols should follow."]
[null,"3rd and more","Other pre-defined footnote symbols: b)e)p)",null,null,"No brackets to be set."]
[]
[null,"Examples (use cases) for footnote reporting"]
[]
[null,"Example",null,"Meaning"]
[null,"No. ","Symbols","1st position 'free text'",null,null,"2nd position confidentiality",null,null,"3rd & more position"]
[null,1,"1)","Free text' footnote is given in separate sheet ",null,null,"empty ",null,null,"empty"]
[null,2,"1)d)","Free text' footnote is given in separate sheet ",null,null,"Secondary' confidentiality",null,null,"empty"]
[null,3,"1)c)p)","Free text' footnote is given in separate sheet",null,null,"Primary' confidentiality'",null,null,"Provisional value"]
[null,4,"1)c)b)p)","Free text' footnote is given in separate sheet",null,null,"Primary' confidentiality",null,null,"Break in series and provisional value"]
[null,5,"1))b)","Free text' footnote is given in separate sheet",null,null,"empty",null,null,"Break in series"]
[null,6,"))b)p)","empty",null,null,"empty",null,null,"Break in series and provisional value"]
[null,7,")c)p)","empty",null,null,"Primary' confidentiality",null,null,"Provisional value"]
[null,8,")d)b)p)","empty",null,null,"Secondary' confidentiality",null,null,"Break in series and provisional value"]
[null,9,")d)","empty",null,null,"Secondary' confidentiality",null,null,"empty"]
[null,10,"))b)","empty",null,null,"empty",null,null,"Break in series"]
[null,11,"))b)p)","empty",null,null,"empty",null,null,"Break in series and provisional value"]

{"sheet":"Parameters","index":4,"n_rows":226,"n_cols":48,"rows_kept":226,"cut":false,"hidden":true,"merged":[[31,4,31,6],[31,10,31,12],[2,1,2,2],[29,4,29,7],[29,9,29,12],[30,4,30,6],[30,10,30,12],[35,4,35,6],[35,10,35,12],[32,4,32,6],[32,10,32,12],[33,4,33,6],[33,10,33,12],[34,4,34,6],[34,10,34,12]]}
[]
[null,null,null,null,null,null,null,null,null,null,null,null,null,null,null,null,null,null,null,null,null,null,null,null,null,null,null,null,null,null,null,null,null,null,null,null,null,"Ratio for Rules",0.2,"IF YOU MOVE THIS",null,null,null,null,null,"SAMPLE FOR RULE Comparing Table I and H but not used"]
[null,"General Parameters",null,null,"Table","Eurobase","Unit","Sheet","Label","Unit Label","CLLine","Flag Row","Struct Row","Of Which","Nr of decimals for consistency check","Indicators","Eurobase","Label","Type","Line","Parent","Growth","Elephant","Share","2ndConf","3rdConf","Mandatory","Equation","Formula (Must be TRUE)","Line to Flag",null,"Code","Label","Semantic","Request Value","Disable Plausibility","Eurostat","Min Ratio for Rules",1,"YOU HAVE TO CHECK THE EQUATION RULES",null,null,null,null,null,"Data is higher than 20% of table H \"H.4 Direct material input (DMI)\" indicator","ABS(SUM(Table_I!#14)-SUM(Table_H!#7))<=Parameters!AG3*ABS(SUM(Table_H!#7))",14]
[null,"Questionnaire Starting Year",1990,null,"A","DE","THS_T","Table_A","DOMESTIC EXTRACTION","1000 Metric tonnes",1,69,16,null,"5 Decimals","MF.1 ","MF1","Biomass",0,4,68,0.3,68,0.2,0,0,"X","Sum of raw, semi and finished product does not equal total imports or exports","ROUNDDOWN(SUM(#78),1)=ROUNDDOWN(SUM(#75:#77),1)",75,null,"b","Break in series","Standard","No","Yes","No","Max Ratio for Rules",8,null,null,null,null,null,null,"Data is higher than 20% of table H \"H.5 Domestic material consumption (DMC)\" indicator","ABS(SUM(Table_I!#24)-SUM(Table_H!#8))<=Parameters!AG3*ABS(SUM(Table_H!#8))",24]
[null,"Questionnaire End Year",2020,null,"B","IMP","THS_T","Table_B","Imports - total trade (intra + extra EU-28 trade)","1000 Metric tonnes",2,79,17,null,"5 Decimals","MF.1.1 ","MF11","Crops (excluding fodder crops)",0,5,4,0.3,4,0.2,4,4,"X","Sum of raw, semi and finished product does not equal total imports or exports","ROUNDDOWN(SUM(#78),1)=ROUNDDOWN(SUM(#75:#77),1)",76,null,"c","Confidential","Confidentiality","Yes","No","No"]
[null,"Number of Tables",9,null,"C","IMP_XEU","THS_T","Table_C","Imports - extra-EU28 trade","1000 Metric tonnes",2,79,18,"B","5 Decimals","MF.1.1.1 ","MF111","Cereals",0,6,5,0.3,4,0.2,5,5,"X","Sum of raw, semi and finished product does not equal total imports or exports","ROUNDDOWN(SUM(#78),1)=ROUNDDOWN(SUM(#75:#77),1)",77,null,"d","Secondary confidentiality","Confidentiality","Yes","No","No"]
[null,"Number of Equations",{"$f":"COUNTA(AB:AB)-1","v":13},null,"D","EXP","THS_T","Table_D","Exports - total trade (intra + extra EU-28 trade)","1000 Metric tonnes",2,79,19,null,"5 Decimals","MF.1.1.2 ","MF112","Roots, tubers",0,7,5,0.3,4,0.2,5,5,"X","Data should have a value between 100-800% \nof table B \"Total Imports - total trade (intra + extra EU-28 trade)\" indicator","OR(SUM(Table_B!#78)=0, SUM(Table_I!#9)=0, AND(SUM(Table_I!#9) >= Parameters!AM3*SUM(Table_B!#78),  SUM(Table_I!#9) <= Parameters!AM4*SUM(Table_B!#78)))",9,null,"e","Estimated data","Standard","Yes","No","No"]
[null,"Number of Indicators",{"$f":"G27+H27","v":223},null,"E","EXP_XEU","THS_T","Table_E","Exports - extra-EU28 trade","1000 Metric tonnes",2,79,20,"D","5 Decimals","MF.1.1.3 ","MF113","Sugar crops",0,8,5,0.3,4,0.2,5,5,"X","Data should have a value between 100-800% of table B \"MF.1 Biomass\" indicator","OR(SUM(Table_B!#4)=0, SUM(Table_I!#10)=0, AND(SUM(Table_I!#10) >= Parameters!AM3*SUM(Table_B!#4),  SUM(Table_I!#10) <= Parameters!AM4*SUM(Table_B!#4)))",10,null,"n","Not Publishable","Confidentiality","Yes","No","Yes"]
[null,"Start Row",4,null,"F","DPO","THS_T","Table_F","Domestic processed output","1000 Metric tonnes",3,41,21,null,"5 Decimals","MF.1.1.4 ","MF114","Pulses",0,9,5,0.3,4,0.2,5,5,"X","Data should have a value between 100-800% of table B  \"MF.2 Metal ores (gross ores)\" indicator","OR(SUM(Table_B!#34)=0, SUM(Table_I!#11)=0, AND(SUM(Table_I!#11) >= Parameters!AM3*SUM(Table_B!#34),  SUM(Table_I!#11) <= Parameters!AM4*SUM(Table_B!#34)))",11,null,"p","Provisional","Standard","Yes","No","No"]
[null,"Start Column",6,null,"G","BI","THS_T","Table_G","Selected balancing items","1000 Metric tonnes",4,17,22,null,"5 Decimals","MF.1.1.5 ","MF115","Nuts",0,10,5,0.3,4,0.2,5,5,"X","Data should have a value between 100-800% of table B \"MF.3 Non-metallic minerals\" indicator","OR(SUM(Table_B!#47)=0, SUM(Table_I!#12)=0, AND(SUM(Table_I!#12) >= Parameters!AM3*SUM(Table_B!#47),  SUM(Table_I!#12) <= Parameters!AM4*SUM(Table_B!#47)))",12,null,"s","Eurostat estimate","Eurostat","Yes","No","Yes"]
[null,"Reference Column",2,null,"H","DE","THS_T","Table_H","Indicators","1000 Metric tonnes",5,12,23,null,"5 Decimals","MF.1.1.6 ","MF116","Oil-bearing crops",0,11,5,0.3,4,0.2,5,5,"X","Data should have a value between 100-800% of table B \"MF.4 Fossil energy materials/carriers\" indicator","OR(SUM(Table_B!#59)=0, SUM(Table_I!#13)=0, AND(SUM(Table_I!#13) >= Parameters!AM3*SUM(Table_B!#59),  SUM(Table_I!#13) <= Parameters!AM4*SUM(Table_B!#59)))",13]
[null,"Label Column",3,null,"I","RME","THS_T","Table_I","Material flow accounts in raw material equivalents (RME) ","1000 Metric tonnes",6,29,24,null,"5 Decimals","MF.1.1.7 ","MF117","Vegetables",0,12,5,0.3,4,0.2,5,5,"X","Data should have a value between 100-800% of table D \"Total Exports - total trade (intra + extra EU-28 trade)\" indicator","OR(SUM(Table_D!#78)=0, SUM(Table_I!#19)=0, AND(SUM(Table_I!#19) >= Parameters!AM3*SUM(Table_D!#78),  SUM(Table_I!#19) <= Parameters!AM4*SUM(Table_D!#78)))",19]
[null,"Plausibility Year Start",2014,null,null,null,null,null,null,null,null,null,null,null,null,"MF.1.1.8 ","MF118","Fruits",0,13,5,0.3,4,0.2,5,5,"X","Data should have a value between 100-800% of table D \"MF.1 Biomass\" indicator","OR(SUM(Table_D!#4)=0, SUM(Table_I!#20)=0, AND(SUM(Table_I!#20) >= Parameters!AM3*SUM(Table_D!#4),  SUM(Table_I!#20) <= Parameters!AM4*SUM(Table_D!#4)))",20]
[null,"Plausibility Year End",2018,null,null,null,null,null,null,null,null,null,null,null,null,"MF.1.1.9 ","MF119","Fibres",0,14,5,0.3,4,0.2,5,5,"X","Data should have a value between 100-800% of table D \"MF.2 Metal ores (gross ores)\" indicator","OR(SUM(Table_D!#34)=0, SUM(Table_I!#21)=0, AND(SUM(Table_I!#21) >= Parameters!AM3*SUM(Table_D!#34),  SUM(Table_I!#21) <= Parameters!AM4*SUM(Table_D!#34)))",21]
[null,"Item can have many NA subitems","X",null,null,null,null,null,null,null,null,null,null,null,null,"MF.1.1.A ","MF1110","Other crops n.e.c.",0,15,5,0.3,4,0.2,5,5,"X","Data should have a value between 100-800% of table D \"MF.3 Non-metallic minerals\" indicator","OR(SUM(Table_D!#47)=0, SUM(Table_I!#22)=0, AND(SUM(Table_I!#22) >= Parameters!AM3*SUM(Table_D!#47),  SUM(Table_I!#22) <= Parameters!AM4*SUM(Table_D!#47)))",22]
[null,"Number of Fixed Flags",{"$f":"COUNTA(AF:AF)-1","v":7},null,null,null,null,null,null,null,null,null,null,null,null,"MF.1.2 ","MF12","Crop residues (used), fodder crops and grazed biomass",0,16,4,0.3,4,0.2,4,4,"X","Data should have a value between 100-800% of table D \"MF.4 Fossil energy materials/carriers\" indicator","OR(SUM(Table_D!#59)=0, SUM(Table_I!#23)=0, AND(SUM(Table_I!#23) >= Parameters!AM3*SUM(Table_D!#59),  SUM(Table_I!#23) <= Parameters!AM4*SUM(Table_D!#59)))",23]
[null,"Number of Footnotes",99,null,null,null,null,null,null,null,null,null,null,null,null,"MF.1.2.1 ","MF121","Crop residues (used)",0,17,16,0.3,4,0.2,16,16,"X"]
[null,"Number of Check Types/Colors",35,null,null,null,null,null,null,null,null,null,null,null,null,"MF.1.2.1.1 ","MF1211","Straw",0,18,17,0.3,4,0.2,17,17]
[null,"Number of CodeList",6,null,null,null,null,null,null,null,null,null,null,null,null,"MF.1.2.1.2 ","MF1212","Other crop residues (sugar and fodder beet leaves, other)",0,19,17,0.3,4,0.2,17,17]
[null,"Disable Plausibility on Footnotes","Yes",null,null,null,null,null,null,null,null,null,null,null,null,"MF.1.2.2 ","MF122","Fodder crops and grazed biomass",0,20,16,0.3,4,0.2,16,16,"X"]
[null,"Flags and Footnotes Coding System","SDMX Flags",null,"CodeList","Label","Start Items","Nb Items","UseHi","Start Eq.","Nb Equat.",null,null,null,null,"MF.1.2.2.1 ","MF1221","Fodder crops (incl. biomass harvest from grassland)",0,21,20,0.3,4,0.2,20,20,"X"]
[null,"Accept use of Eurostat flags",null,null,1,"Product A",0,65,"X",0,0,null,null,null,null,"MF.1.2.2.2 ","MF1222","Grazed biomass",0,22,20,0.3,4,0.2,20,20,"X"]
[null,null,null,null,2,"Product BCDE",{"$f":"G22+H22","v":65},75,"X",{"$f":"J22+K22","v":0},3,null,null,null,null,"MF.1.3 ","MF13","Wood",0,23,4,0.3,4,0.2,4,4,"X"]
[null,null,null,null,3,"Product F",{"$f":"G23+H23","v":140},37,"X",{"$f":"J23+K23","v":3},0,null,null,null,null,"MF.1.3.1 ","MF131","Timber (Industrial roundwood)",0,24,23,0.3,4,0.2,23,23,"X"]
[null,null,null,null,4,"Balancing Items",{"$f":"G24+H24","v":177},13,"X",3,0,null,null,null,null,"MF.1.3.2 ","MF132","Wood fuel and other extraction",0,25,23,0.3,4,0.2,23,23,"X"]
[null,null,null,null,5,"Indicator H",{"$f":"G25+H25","v":190},8,null,3,0,null,null,null,null,"MF.1.3 MEMO",null,"Net increment of timber stock",1,26,-1,0.3,4,0.2,-1,-1]
[null,null,null,null,6,"Indicator I",198,25,"X",3,10,null,null,null,null,"MF.1.4 ","MF14","Wild fish catch, aquatic plants/animals, hunting and gathering",0,27,4,0.3,4,0.2,4,4,"X"]
[null,null,null,null,null,null,null,null,null,null,null,null,null,null,null,"MF.1.4.1 ","MF141","Wild fish catch",0,28,27,0.3,4,0.2,27,27,"X"]
[null,null,null,null,null,null,null,null,null,null,null,null,null,null,null,"MF.1.4.2 ","MF142","All other aquatic animals and plants",0,29,27,0.3,4,0.2,27,27,"X"]
[null,"Country","Code",null,"File Export Parameters",null,null,null,null,"Type",null,null,null,null,null,"MF.1.4.3 ","MF143","Hunting and gathering",0,30,27,0.3,4,0.2,27,27,"X"]
[null,"Albania ","AL ",null,"Flat File separator",null,null,"<TAB>"," -> Type <TAB> for tabulation",0,"Positive only",null,null,null,null,"MF.2 ","MF2","Metal ores (gross ores)",0,31,68,0.3,68,0.2,0,0,"X"]
[null,"Austria","AT",null,"File Extension",null,null,".txt"," -> Do not forget the \".\"",1,"Any value",null,null,null,null,"MF.2.1 ","MF21","Iron",0,32,31,0.3,31,0.2,31,31,"X"]
[null,"Belgium","BE",null,"Text Footnotes Separator",null,null,"|",null,2,"Year",null,null,null,null,"MF.2.2 ","MF22","Non-ferrous metal",0,33,31,0.3,31,0.2,31,31,"X"]
[null,"Bosnia ","BA",null,"Add Empty Lines",null,null,"X"," -> X to activate, empty otherwise",3,"Frozen",null,null,null,null,"MF.2.2.1 ","MF221","Copper",5,34,33,0.3,31,0.2,33,33,"X"]
[null,"Bulgaria","BG",null,"Add M flag",null,null,"X"," -> X to activate, empty otherwise",4,"Percent",null,null,null,null,"MF.2.2.1 MEMO ",null,"Copper ores - metal content",0,35,34,0,31,0.2,-1,-1]
[null,"Croatia","HR",null,"Round Values",null,null,null," -> X to activate, empty otherwise",5,"Of which Total: Ind > Sum(SubInd)",null,null,null,null,"MF.2.2.2 ","MF222","Nickel",5,36,33,0.3,31,0.2,33,33,"X"]
[null,"Cyprus","CY",null,null,null,null,null,null,null,null,null,null,null,null,"MF.2.2.2 MEMO ",null,"Nickel - metal content",0,37,36,0,31,0.2,-1,-1]
[null,"Czechia","CZ",null,"Decimal",null,null,null,null,null,null,null,null,null,null,"MF.2.2.3 ","MF223","Lead",5,38,33,0.3,31,0.2,33,33,"X"]
[null,"Denmark","DK",null,"0 Decimal",null,null,null,null,null,null,null,null,null,null,"MF.2.2.3 MEMO",null,"Lead - metal content",0,39,38,0,31,0.2,-1,-1]
[null,"Estonia","EE",null,"1 Decimal",null,null,null,null,null,null,null,null,null,null,"MF.2.2.4 ","MF224","Zinc",5,40,33,0.3,31,0.2,33,33,"X"]
[null,"Finland","FI",null,"2 Decimals",null,null,null,null,null,null,null,null,null,null,"MF.2.2.4 MEMO",null,"Zinc - metal content",0,41,40,0,31,0.2,-1,-1]
[null,"France","FR",null,"3 Decimals",null,null,null,null,null,null,null,null,null,null,"MF.2.2.5 ","MF225","Tin",5,42,33,0.3,31,0.2,33,33,"X"]
[null,"Germany","DE",null,"4 Decimals",null,null,null,null,null,null,null,null,null,null,"MF.2.2.5 MEMO",null,"Tin - metal content",0,43,42,0,31,0.2,-1,-1]
[null,"Greece","EL",null,"5 Decimals",null,"Colors","Description of checks","Text displayed in comment","Display comment yes or no","Detailed description of the checks",null,null,null,null,"MF.2.2.6 ","MF226","Gold, silver, platinum and other precious metals",0,44,33,0.3,31,0.2,33,33,"X"]
[null,"Hungary","HU",null,null,null,123.456,"Default Value",null,null,null,null,null,null,null,"MF.2.2.7 ","MF227","Bauxite and other aluminium",0,45,33,0.3,31,0.2,33,33,"X"]
[null,"Iceland","IS",null,"Calculation",null,123.456,"Illegal Symbol","[@1]",null,null,null,null,null,null,"MF.2.2.8 ","MF228","Uranium and thorium",0,46,33,0.3,31,0.2,33,33,"X"]
[null,"Ireland","IE",null,"SUM(ROUND(V))",null,123.456,"Consistency (Total <> Subtotal)","Reported total or sub-total does not equal sum of sub-items; the calculated sum of sub-items  = @1","X","This consistency error is highlighted when all sub-items are reported and  the reported total or sub-total does not equal the sum of the sub-items and it calculates the correct total or sub-total based on the reported figures. ",null,null,null,null,"MF.2.2.9 ","MF229","Other n.e.c.",0,47,33,0.3,31,0.2,33,33,"X"]
[null,"Italy","IT",null,"ROUND(SUM(V))",null,123.456,"Consistency (sub-items)","The reported total or sub-total cannot be calculated as one item is 'not available'","X","This consistency error is highlighted when the total or the sub-total is reported and it is equal with the sum of the reported sub-items and one of the sub-items is 'not available'. ",null,null,null,null,"MF.3 ","MF3","Non metalic minerals",0,48,68,0.3,68,0.2,0,0,"X"]
[null,"Kosovo (under United Nations Security Council Resolution 1244/99)","XK",null,null,null,123.456,"Consistency (sub-items)","Calculated value = @1",null,"not used ",null,null,null,null,"MF.3.1 ","MF31","Marble, granite, sandstone, porphyry, basalt, other ornamental or building stone (excluding slate)",0,49,48,0.3,48,0.2,48,48,"X"]
[null,"Latvia","LV",null,null,null,123.456,"Consistency (Total <= SubTotal)","The reported total or sub-total cannot be calculated as more of sub-items are indicated as 'not available'.","X","This consistency error is highlighted when the total or the sub-total is reported and it is smaller or equal with the sum of the sub-items and several sub-items are 'not available'. ",null,null,null,null,"MF.3.2 ","MF32","Chalk and dolomite",0,50,48,0.3,48,0.2,48,48,"X"]
[null,"Liechtenstein","LI",null,null,null,123.456,"Consistency (Total > sum of sub-items)","The reported total is higher than the sum-of the sub-items and more of the sub-items are 'not available'","X","This consistency error is highlighted when the total or the sub-total is reported and it is bigger than the sum of the sub-items and several sub-items are 'not available'\nCurrently not activated; \nIn order to activate this check remove the x from cell C15 in this parameter sheet.  \n",null,null,null,null,"MF.3.3 ","MF33","Slate",0,51,48,0.3,48,0.2,48,48,"X"]
[null,"Lithuania","LT",null,null,null,123.456,"Consistency (Equation)","@1","X","This consistency check is applied only for trade by stage of manufacturing and it verifies if the sum of the raw products, semi-manufactured products and finished products equal the total imports or exports.",null,null,null,null,"MF.3.4 ","MF34","Chemical and fertilizer minerals",0,52,48,0.3,48,0.2,48,48,"X"]
[null,"Luxembourg","LU",null,null,null,123.456,"Plausibility","Growth rate = @1 (Threshold +/-@2)","X",null,null,null,null,null,"MF.3.5 ","MF35","Salt",0,53,48,0.3,48,0.2,48,48,"X"]
[null,"Malta","MT",null,null,null,123.456,"Plausibility","Growth rate = @1 (Threshold +/-@2)","X",null,null,null,null,null,"MF.3.6 ","MF36","Limestone and gypsum",0,54,48,0.3,48,0.2,48,48,"X"]
[null,"Montenegro","ME",null,null,null,"c)10)","Default footnote",null,null,null,null,null,null,null,"MF.3.7 ","MF37","Clays and kaolin",0,55,48,0.3,48,0.2,48,48,"X"]
[null,"Netherlands","NL",null,null,null,"a)21)","Illegal footnote","No footnote description",null,null,null,null,null,null,"MF.3.8 ","MF38","Sand and gravel",0,56,48,0.3,48,0.2,48,48,"X"]
[null,"North Macedonia","MK ",null,null,null,"a)21)","Illegal footnote","Wrong footnote number",null,null,null,null,null,null,"MF.3.9 ","MF39","Other n.e.c",0,57,48,0.3,48,0.2,48,48,"X"]
[null,"Norway","NO",null,null,null,"a)21)","Illegal footnote","Wrong footnote letter",null,null,null,null,null,null,"MF.3.A ","MF310","Excavated earthen materials (including soil), only if used",0,58,0,0.3,-2,0.2,48,48]
[null,"Poland","PL",null,null,null,"a)21)","Illegal footnote","Wrong footnote ending [@1]",null,null,null,null,null,null,"MF.4 ","MF4","Fossil energy materials/carriers",0,59,68,0.3,68,0.2,0,0,"X"]
[null,"Portugal","PT",null,null,null,"a)21)","Illegal footnote","Flag '@1' is not allowed with 'Not Available' symbol",null,null,null,null,null,null,"MF.4.1 ","MF41","Coal and other solid energy materials/carriers",0,60,59,0.3,59,0.2,59,59,"X"]
[null,"Romania","RO",null,null,null,"a)21)","Illegal Footnote","@1","X","This check is done for all footnotes and depends on the error, one of the above five message (cell I56-I60) will be displayed.",null,null,null,null,"MF.4.1.1 ","MF411","Lignite (brown coal)",0,61,60,0.3,59,0.2,60,60,"X"]
[null,"Serbia","RS",null,null,null,"c)","Confidentiality error","Secondary confidentiality required under sector @1 (see footnote instructions sheet)","X","This confidentiality error is highlighted when only one sub-item (i.e. this highlighted one) is flagged confidential. In such a case it is recommended to flag additional sub-items (secondary confidentiality flag 'd') on the same hierarchical MF-level in order to enable displaying the total or sub-total. ",null,null,null,null,"MF.4.1.2 ","MF412","Hard coal",0,62,60,0.3,59,0.2,60,60,"X"]
[null,"Slovak Republic","SK",null,null,null,"c)","Confidentiality warning","Confidentiality not correctly applied (see footnote instructions sheet)","X","This confidentiality error is highlighted when a total or sub-total is flagged confidential although it should because one or two sub-items are flagged confidential. In such cases it is recommended to flag additional sub-items (secondary confidentiality) in order to enable displaying the total or sub-total. \nAlso this confidentiality error is highlighted when the c) flag is used for zero or 'not available' cells.   ",null,null,null,null,"MF.4.1.3 ","MF413","Oil shale and tar sands",0,63,60,0.3,59,0.2,60,60,"X"]
[null,"Slovenia","SI",null,null,null,"c)","Frozen line",null,null,null,null,null,null,null,"MF.4.1.4 ","MF414","Peat",0,64,60,0.3,59,0.2,60,60,"X"]
[null,"Spain","ES",null,null,"Only Font color will be used ==>",123.456,"Of Which","Value should be smaller than value (@2) in sheet '@1'","X",null,null,null,null,null,"MF.4.2 ","MF42","Liquid and gaseous energy materials/carriers",0,65,59,0.3,59,0.2,59,59,"X"]
[null,"Sweden","SE",null,null,null,123.456,"Plausibility with Footnote","Growth rate = @1 (Threshold +/-@2)","X",null,null,null,null,null,"MF.4.2.1 ","MF421","Crude oil, condensate and natural gas liquids (NGL)",0,66,65,0.3,59,0.2,65,65,"X"]
[null,"Switzerland","CH",null,null,null,123.456,"Plausibility with Footnote","Growth rate = @1 (Threshold +/-@2)","X",null,null,null,null,null,"MF.4.2.2 ","MF422","Natural gas",0,67,65,0.3,59,0.2,65,65,"X"]
[null,"Turkey","TR",null,null,null,123.456,"Mandatory Cell","Data is mandatory","X",null,null,null,null,null,"TOTAL ",null,"Total Extraction",0,68,0,0.3,-2,0.2,0,0,"X"]
[null,"United Kingdom","UK",null,null,null,123.456,"Consistency (Total <= SubTotal)","The reported value must be higher than its MEMO item.","X","For MEMO Items only (Linked to variable using the OfWhich parameter : Type=5)",null,null,null,null,"MF.1 ","MF1","Biomass and biomass products",0,4,78,0.5,78,0.2,0,0,"X"]
[null,null,null,null,null,null,"c)10)","Eurostat reserved flag","@1","X","Raised only is 'Accept Eurostat Flag Use' option is activated. Does not take the lead on Stadard Footnote Error (Act as Information). Use the Display message to add the message as cell Comment.",null,null,null,null,"MF.1.1 ","MF11","Crops, raw and processed",0,5,4,0.5,4,0.2,4,4,"X"]
[null,null,null,null,null,null,"a)21)","SDMX footnote syntax","@1) is not a valid ‘free-text’ footnote symbol ",null,"Occurs when a non numeric or extra numeric (<0 or >100) is used as ‘free-text’ footnote symbol on the first position of the SDMX format(1st position = ‘free-text’ footnote)",null,null,null,null,"MF.1.1.1 ","MF111","Cereals, raw and processed",0,6,5,0.5,4,0.2,5,5,"X"]
[null,null,null,null,null,null,"a)21)","SDMX footnote syntax","@1) is not a valid pre-defined footnote symbol expressing confidentiality ",null,"Occurs when a non-confidential pre-defined footnote symbol is used in second position of the SDMX format BUT PRE-DEFINED FOOTNOTE SYMBOL DOES EXIST",null,null,null,null,"MF.1.1.2 ","MF112","Roots, tubers, raw and processed",0,7,5,0.5,4,0.2,5,5,"X"]
[null,null,null,null,null,null,"a)21)","SDMX footnote syntax","@1) is not a valid pre-defined footnote symbol",null,"Occurs when a non-valid footnote symbol is used in second position of SDMX format AND pre-defined footnote symbol does not exist at all",null,null,null,null,"MF.1.1.3 ","MF113","Sugar crops, raw and processed",0,8,5,0.5,4,0.2,5,5,"X"]
[null,null,null,null,null,null,"a)21)","Illegal footnote","Wrong use of brackets (footnote separators)",null,"Occurs when flag is coditied like this: c))b)",null,null,null,null,"MF.1.1.4 ","MF114","Pulses, raw and processed",0,9,5,0.5,4,0.2,5,5,"X"]
[null,null,null,null,null,null,"a)21)","SDMX footnote syntax","@1) is not a valid pre-defined footnote symbol for the third (and more) position",null,"Occurs when a pre-defined footnote symbol expressing confidentiality is used in third position of SDMX format like ))c)",null,null,null,null,"MF.1.1.5 ","MF115","Nuts, raw and processed",0,10,5,0.5,4,0.2,5,5,"X"]
[null,null,null,null,null,null,"a)21)","SDMX footnote syntax","@1) is not a valid footnote symbol for the third (and more) position",null,"Occurs when the footnote symbol (letter or number) is not allowed for the third position of SDMX format",null,null,null,null,"MF.1.1.6 ","MF116","Oil-bearing crops, raw and processed",0,11,5,0.5,4,0.2,5,5,"X"]
[null,null,null,null,null,null,"a)21)","Illegal footnote","@1) is duplicated",null,"Occurs when a footnote symbol is used twice. (does not apply when an Excel formula is used)",null,null,null,null,"MF.1.1.7 ","MF117","Vegetables, raw and processed",0,12,5,0.5,4,0.2,5,5,"X"]
[null,null,null,null,null,null,"a)21)","Classical Flag syntax","@1) other confidential flag used (@2)",null,"Occurs when more than one confidential flag is used (c, d or n)",null,null,null,null,"MF.1.1.8 ","MF118","Fruits, raw and processed",0,13,5,0.5,4,0.2,5,5,"X"]
[null,null,null,null,null,null,"a)21)","Illegal footnote","@1) is a pre-defined footnote symbol that can be set by Eurostat only",null,"Occurs when a n) or s) footnote symbol is used directly by MS (and respective option/switch disabled)",null,null,null,null,"MF.1.1.9 ","MF119","Fibres, raw and processed",0,14,5,0.5,4,0.2,5,5,"X"]
[null,null,null,null,null,null,null,null,null,null,null,null,null,null,null,"MF.1.1.A ","MF1110","Other crops n.e.c., raw and processed",0,15,5,0.5,4,0.2,5,5,"X"]
[null,null,null,null,null,null,null,null,null,null,null,null,null,null,null,"MF.1.2 ","MF12","Crop residues and fodder crops",0,16,4,0.5,4,0.2,4,4,"X"]
[null,null,null,null,null,null,null,null,null,null,null,null,null,null,null,"MF.1.2.1 ","MF121","Crop residues (used), raw and processed",0,17,16,0.5,4,0.2,16,16,"X"]
[null,null,null,null,null,null,null,null,null,null,null,null,null,null,null,"MF.1.2.1.1 ","MF1211","Straw",0,18,17,0.5,4,0.2,17,17,"X"]
[null,null,null,null,null,null,null,null,null,null,null,null,null,null,null,"MF.1.2.1.2 ",null,"Other crop residues",3,19,17,0.5,4,0.2,17,17]
[null,null,null,null,null,null,null,null,null,null,null,null,null,null,null,"MF.1.2.2 ","MF122","Fodder crops",0,20,16,0.5,4,0.2,16,16,"X"]
[null,null,null,null,null,null,null,null,null,null,null,null,null,null,null,"MF.1.2.2.1 ","MF1221","Fodder crops",0,21,20,0.5,4,0.2,20,20,"X"]
[null,null,null,null,null,null,null,null,null,null,null,null,null,null,null,"MF.1.3 ","MF13","Wood and wood products",0,22,4,0.5,4,0.2,4,4,"X"]
[null,null,null,null,null,null,null,null,null,null,null,null,null,null,null,"MF.1.3.1 ","MF131","Timber, raw and processed",0,23,22,0.5,4,0.2,22,22,"X"]
[null,null,null,null,null,null,null,null,null,null,null,null,null,null,null,"MF.1.3.2 ","MF132","Wood fuel and other extraction, raw and processed",0,24,22,0.5,4,0.2,22,22,"X"]
[null,null,null,null,null,null,null,null,null,null,null,null,null,null,null,"MF.1.4 ","MF14","Fish capture and other aquatic animals and plants, raw and processed",0,25,4,0.5,4,0.2,4,4,"X"]
[null,null,null,null,null,null,null,null,null,null,null,null,null,null,null,"MF.1.4.1 ","MF141","Fish capture",0,26,25,0.5,4,0.2,25,25,"X"]
[null,null,null,null,null,null,null,null,null,null,null,null,null,null,null,"MF.1.4.2 ","MF142","All other aquatic animals and plants",0,27,25,0.5,4,0.2,25,25,"X"]
[null,null,null,null,null,null,null,null,null,null,null,null,null,null,null,"MF.1.5 ","MF15","Live animals other than in 1.4., and animal products",0,28,4,0.5,4,0.2,4,4,"X"]
[null,null,null,null,null,null,null,null,null,null,null,null,null,null,null,"MF.1.5.1 ","MF151","Live animals other than in 1.4.",0,29,28,0.5,4,0.2,28,28,"X"]
[null,null,null,null,null,null,null,null,null,null,null,null,null,null,null,"MF.1.5.2 ","MF152","Meat and meat preparations",0,30,28,0.5,4,0.2,28,28,"X"]
[null,null,null,null,null,null,null,null,null,null,null,null,null,null,null,"MF.1.5.3 ","MF153","Dairy products, birds eggs, and honey",0,31,28,0.5,4,0.2,28,28,"X"]
[null,null,null,null,null,null,null,null,null,null,null,null,null,null,null,"MF.1.5.4 ","MF154","Other products from animals (animal fibres, skins, furs, leather etc.)",0,32,28,0.5,4,0.2,28,28,"X"]
[null,null,null,null,null,null,null,null,null,null,null,null,null,null,null,"MF.1.6 ","MF16","Products mainly from biomass",0,33,4,0.5,4,0.2,4,4,"X"]
[null,null,null,null,null,null,null,null,null,null,null,null,null,null,null,"MF.2 ","MF2","Metal ores and concentrates, raw and processed",0,34,78,0.5,78,0.2,0,0,"X"]
[null,null,null,null,null,null,null,null,null,null,null,null,null,null,null,"MF.2.1 ","MF21","Iron ores and concentrates, iron and steel, raw and processed",0,35,34,0.5,34,0.2,34,34,"X"]
[null,null,null,null,null,null,null,null,null,null,null,null,null,null,null,"MF.2.2 ","MF22","Non-ferrous metal ores and concentrates, raw and processed",0,36,34,0.5,34,0.2,34,34,"X"]
[null,null,null,null,null,null,null,null,null,null,null,null,null,null,null,"MF.2.2.1 ","MF221","Copper",0,37,36,0.5,34,0.2,36,36,"X"]
[null,null,null,null,null,null,null,null,null,null,null,null,null,null,null,"MF.2.2.2 ","MF222","Nickel",0,38,36,0.5,34,0.2,36,36,"X"]
[null,null,null,null,null,null,null,null,null,null,null,null,null,null,null,"MF.2.2.3 ","MF223","Lead",0,39,36,0.5,34,0.2,36,36,"X"]
[null,null,null,null,null,null,null,null,null,null,null,null,null,null,null,"MF.2.2.4 ","MF224","Zinc",0,40,36,0.5,34,0.2,36,36,"X"]
[null,null,null,null,null,null,null,null,null,null,null,null,null,null,null,"MF.2.2.5 ","MF225","Tin",0,41,36,0.5,34,0.2,36,36,"X"]
[null,null,null,null,null,null,null,null,null,null,null,null,null,null,null,"MF.2.2.6 ","MF226","Gold, silver, platinum and other precious metal",0,42,36,0.5,34,0.2,36,36,"X"]
[null,null,null,null,null,null,null,null,null,null,null,null,null,null,null,"MF.2.2.7 ","MF227","Bauxite and other aluminium",0,43,36,0.5,34,0.2,36,36,"X"]
[null,null,null,null,null,null,null,null,null,null,null,null,null,null,null,"MF.2.2.8 ","MF228","Uranium and thorium",0,44,36,0.5,34,0.2,36,36,"X"]
[null,null,null,null,null,null,null,null,null,null,null,null,null,null,null,"MF.2.2.9 ","MF229","Other n.e.c.",0,45,36,0.5,34,0.2,36,36,"X"]
[null,null,null,null,null,null,null,null,null,null,null,null,null,null,null,"MF.2.3 ","MF23","Products mainly from metals",0,46,34,0.5,34,0.2,34,34,"X"]
[null,null,null,null,null,null,null,null,null,null,null,null,null,null,null,"MF.3 ","MF3","Non-metallic minerals, raw and processed",0,47,78,0.5,78,0.2,0,0,"X"]
[null,null,null,null,null,null,null,null,null,null,null,null,null,null,null,"MF.3.1 ","MF31","Marble, granite, sandstone, porphyry, basalt, other ornamental or building stone (excluding slate)",0,48,47,0.5,47,0.2,47,47,"X"]
[null,null,null,null,null,null,null,null,null,null,null,null,null,null,null,"MF.3.2 ","MF32","Chalk and dolomite",0,49,47,0.5,47,0.2,47,47,"X"]
[null,null,null,null,null,null,null,null,null,null,null,null,null,null,null,"MF.3.3 ","MF33","Slate",0,50,47,0.5,47,0.2,47,47,"X"]
[null,null,null,null,null,null,null,null,null,null,null,null,null,null,null,"MF.3.4 ","MF34","Chemical and fertilizer minerals",0,51,47,0.5,47,0.2,47,47,"X"]
[null,null,null,null,null,null,null,null,null,null,null,null,null,null,null,"MF.3.5 ","MF35","Salt",0,52,47,0.5,47,0.2,47,47,"X"]
[null,null,null,null,null,null,null,null,null,null,null,null,null,null,null,"MF.3.6 ","MF36","Limestone and gypsum",0,53,47,0.5,47,0.2,47,47,"X"]
[null,null,null,null,null,null,null,null,null,null,null,null,null,null,null,"MF.3.7 ","MF37","Clays and kaolin",0,54,47,0.5,47,0.2,47,47,"X"]
[null,null,null,null,null,null,null,null,null,null,null,null,null,null,null,"MF.3.8 ","MF38","Sand and gravel",0,55,47,0.5,47,0.2,47,47,"X"]
[null,null,null,null,null,null,null,null,null,null,null,null,null,null,null,"MF.3.9 ","MF39","Other n.e.c.",0,56,47,0.5,47,0.2,47,47,"X"]
[null,null,null,null,null,null,null,null,null,null,null,null,null,null,null,"MF.3.A ",null,"Excavated earthen materials (including soil), only if used",3,57,47,0.5,-2,0.2,47,47]
[null,null,null,null,null,null,null,null,null,null,null,null,null,null,null,"MF.3.B ","MF311","Products mainly from non metallic minerals",0,58,47,0.5,47,0.2,47,47,"X"]
[null,null,null,null,null,null,null,null,null,null,null,null,null,null,null,"MF.4 ","MF4","Fossil energy materials/carriers, raw and processed",0,59,78,0.5,78,0.2,0,0,"X"]
[null,null,null,null,null,null,null,null,null,null,null,null,null,null,null,"MF.4.1 ","MF41","Coal and other solid energy products, raw and processed",0,60,59,0.5,59,0.2,59,59,"X"]
[null,null,null,null,null,null,null,null,null,null,null,null,null,null,null,"MF.4.1.1 ","MF411","Lignite (brown coal)",0,61,60,0.5,59,0.2,60,60,"X"]
[null,null,null,null,null,null,null,null,null,null,null,null,null,null,null,"MF.4.1.2 ","MF412","Hard coal",0,62,60,0.5,59,0.2,60,60,"X"]
[null,null,null,null,null,null,null,null,null,null,null,null,null,null,null,"MF.4.1.3 ","MF413","Oil shale and tar sands",0,63,60,0.5,59,0.2,60,60,"X"]
[null,null,null,null,null,null,null,null,null,null,null,null,null,null,null,"MF.4.1.4 ","MF414","Peat",0,64,60,0.5,59,0.2,60,60,"X"]
[null,null,null,null,null,null,null,null,null,null,null,null,null,null,null,"MF.4.2 ","MF42","Liquid and gaseous energy products, raw and processed",0,65,59,0.5,59,0.2,59,59,"X"]
[null,null,null,null,null,null,null,null,null,null,null,null,null,null,null,"MF.4.2.1 ","MF421","Crude oil, condensate and natural gas liquids (NGL)",0,66,65,0.5,59,0.2,65,65,"X"]
[null,null,null,null,null,null,null,null,null,null,null,null,null,null,null,"MF.4.2.2 ","MF422","Natural gas",0,67,65,0.5,59,0.2,65,65,"X"]
[null,null,null,null,null,null,null,null,null,null,null,null,null,null,null,"MF.4.2.3 ","MF423","Adjustment for residence principle: Fuel bunkered by resident units abroad",0,68,65,0.5,59,0.2,65,65]
[null,null,null,null,null,null,null,null,null,null,null,null,null,null,null,"MF.4.2.3.1 ","MF4231","Fuel for land transport",0,69,68,0.5,59,0.2,68,68]
[null,null,null,null,null,null,null,null,null,null,null,null,null,null,null,"MF.4.2.3.2 ","MF4232","Fuel for water transport",0,70,68,0.5,59,0.2,68,68]
[null,null,null,null,null,null,null,null,null,null,null,null,null,null,null,"MF.4.2.3.3 ","MF4233","Fuel for air transport",0,71,68,0.5,59,0.2,68,68]
[null,null,null,null,null,null,null,null,null,null,null,null,null,null,null,"MF.4.3 ","MF43","Products mainly from fossil energy products",0,72,59,0.5,59,0.2,59,59,"X"]
[null,null,null,null,null,null,null,null,null,null,null,null,null,null,null,"MF.5 ","MF5","Other products",0,73,78,0.5,78,0.2,0,0,"X"]
[null,null,null,null,null,null,null,null,null,null,null,null,null,null,null,"MF.6 ","MF6","Waste imported for final treatment and disposal",0,74,78,0.5,78,0.2,0,0,"X"]
[null,null,null,null,null,null,null,null,null,null,null,null,null,null,null,null,"SM_RAW","Raw products",0,75,0,0.5,78,0.2,0,0]
[null,null,null,null,null,null,null,null,null,null,null,null,null,null,null,null,"SM_SFIN","Semi-manufactured products",0,76,0,0.5,78,0.2,0,0]
[null,null,null,null,null,null,null,null,null,null,null,null,null,null,null,null,"SM_FIN","Finished products",0,77,0,0.5,78,0.2,0,0]
[null,null,null,null,null,null,null,null,null,null,null,null,null,null,null,null,null,"total trade",0,78,0,0.5,78,0.2,0,0,"X"]
[null,null,null,null,null,null,null,null,null,null,null,null,null,null,null,"MF.7.1 ","MF_DPO_1","Emissions to air",0,4,43,0.3,43,0.2,0,0]
[null,null,null,null,null,null,null,null,null,null,null,null,null,null,null,"MF.7.1.1 ","MF_DPO_11","Carbon dioxide (CO2)",0,5,4,0.3,4,0.2,4,4]
[null,null,null,null,null,null,null,null,null,null,null,null,null,null,null,"MF.7.1.1.1 ","MF_DPO_111","Carbon dioxide (CO2) from biomass combustion",0,6,5,0.3,4,0.5,5,5]
[null,null,null,null,null,null,null,null,null,null,null,null,null,null,null,"MF.7.1.1.2 ","MF_DPO_112","Carbon dioxide (CO2) excluding biomass combustion",0,7,5,0.3,4,0.5,5,5]
[null,null,null,null,null,null,null,null,null,null,null,null,null,null,null,"MF.7.1.2 ","MF_DPO_12","Methane (CH4)",0,8,4,0.5,4,0.2,4,4]
[null,null,null,null,null,null,null,null,null,null,null,null,null,null,null,"MF.7.1.3 ","MF_DPO_13","Dinitrogen oxide (N2O)",0,9,4,0.5,4,0.2,4,4]
[null,null,null,null,null,null,null,null,null,null,null,null,null,null,null,"MF.7.1.4 ","MF_DPO_14","Nitrous oxides (NOx)",0,10,4,0.5,4,0.2,4,4]
[null,null,null,null,null,null,null,null,null,null,null,null,null,null,null,"MF.7.1.5 ","MF_DPO_15","Hydroflourcarbons (HFCs)",0,11,4,0.5,4,0.2,4,4]
[null,null,null,null,null,null,null,null,null,null,null,null,null,null,null,"MF.7.1.6 ","MF_DPO_16","Perflourocarbons (PFCs)",0,12,4,0.5,4,0.2,4,4]
[null,null,null,null,null,null,null,null,null,null,null,null,null,null,null,"MF.7.1.7 ","MF_DPO_17","Sulfur hexaflouride",0,13,4,0.5,4,0.2,4,4]
[null,null,null,null,null,null,null,null,null,null,null,null,null,null,null,"MF.7.1.8 ","MF_DPO_18","Carbon monoxide (CO)",0,14,4,0.5,4,0.2,4,4]
[null,null,null,null,null,null,null,null,null,null,null,null,null,null,null,"MF.7.1.9 ","MF_DPO_19","Non-methane volatile organic compounds (NMVOC)",0,15,4,0.5,4,0.2,4,4]
[null,null,null,null,null,null,null,null,null,null,null,null,null,null,null,"MF.7.1.A ","MF_DPO_110","Sulfur dioxide (SO2)",0,16,4,0.5,4,0.2,4,4]
[null,null,null,null,null,null,null,null,null,null,null,null,null,null,null,"MF.7.1.B ","MF_DPO_111","Ammonia (NH3)",0,17,4,0.5,4,0.2,4,4]
[null,null,null,null,null,null,null,null,null,null,null,null,null,null,null,"MF.7.1.C ","MF_DPO_112","Heavy metals",0,18,4,0.5,4,0.2,4,4]
[null,null,null,null,null,null,null,null,null,null,null,null,null,null,null,"MF.7.1.D ","MF_DPO_113","Persistent organic pollutantsPOPs",0,19,4,0.5,4,0.2,4,4]
[null,null,null,null,null,null,null,null,null,null,null,null,null,null,null,"MF.7.1.E ","MF_DPO_114","Particles (e.g PM10, Dust)",0,20,4,0.5,4,0.2,4,4]
[null,null,null,null,null,null,null,null,null,null,null,null,null,null,null,"MF.7.1.F ","MF_DPO_115","Other (e.g. Nitrogen trifluoride - NF3)",0,21,4,0.5,4,0.2,0,0]
[null,null,null,null,null,null,null,null,null,null,null,null,null,null,null,"MF.7.2 ","MF_DPO_2","Waste disposal",0,22,43,0.5,43,0.2,0,0]
[null,null,null,null,null,null,null,null,null,null,null,null,null,null,null,"MF.7.2.MEMO","MF_DPO_21","Disposal of municipal waste to the environment",0,23,0,0,22,0.2,22,22]
[null,null,null,null,null,null,null,null,null,null,null,null,null,null,null,"MF.7.3 ","MF_DPO_3","Emissions to water",0,24,43,0.5,43,0.2,0,0]
[null,null,null,null,null,null,null,null,null,null,null,null,null,null,null,"MF.7.3.1 ","MF_DPO_31","Nitrogen (N)",0,25,24,0,27,0.2,27,27]
[null,null,null,null,null,null,null,null,null,null,null,null,null,null,null,"MF.7.3.2 ","MF_DPO_32","Phosphorus (P)",0,26,24,0,27,0.2,27,27]
[null,null,null,null,null,null,null,null,null,null,null,null,null,null,null,"MF.7.3.3 ","MF_DPO_33","Heavy metals",0,27,24,0,27,0.2,27,27]
[null,null,null,null,null,null,null,null,null,null,null,null,null,null,null,"MF.7.3.4 ","MF_DPO_34","Other substances and (organic) materials",0,28,24,0,27,0.2,27,27]
[null,null,null,null,null,null,null,null,null,null,null,null,null,null,null,"MF.7.3.5 ","MF_DPO_35","Dumping of materials at sea",0,29,24,0,27,0.2,27,27]
[null,null,null,null,null,null,null,null,null,null,null,null,null,null,null,"MF.7.4 ","MF_DPO_4","Dissipative use of products",0,30,43,0.5,43,0.2,0,0]
[null,null,null,null,null,null,null,null,null,null,null,null,null,null,null,"MF.7.4.1 ","MF_DPO_41","Organic fertiliser (manure)",0,31,30,0,33,0.2,33,33]
[null,null,null,null,null,null,null,null,null,null,null,null,null,null,null,"MF.7.4.2 ","MF_DPO_42","Mineral fertiliser",0,32,30,0,33,0.2,33,33]
[null,null,null,null,null,null,null,null,null,null,null,null,null,null,null,"MF.7.4.3 ","MF_DPO_43","Sewage sludge",0,33,30,0,33,0.2,33,33]
[null,null,null,null,null,null,null,null,null,null,null,null,null,null,null,"MF.7.4.4 ","MF_DPO_44","Compost",0,34,30,0,33,0.2,33,33]
[null,null,null,null,null,null,null,null,null,null,null,null,null,null,null,"MF.7.4.5 ","MF_DPO_45","Pesticides",0,35,30,0,33,0.2,33,33]
[null,null,null,null,null,null,null,null,null,null,null,null,null,null,null,"MF.7.4.6 ","MF_DPO_46","Seeds",0,36,30,0,33,0.2,33,33]
[null,null,null,null,null,null,null,null,null,null,null,null,null,null,null,"MF.7.4.7 ","MF_DPO_47","Salt and other thawing materials spread on roads (incl grit)",0,37,30,0,33,0.2,33,33]
[null,null,null,null,null,null,null,null,null,null,null,null,null,null,null,"MF.7.4.8 ","MF_DPO_48","Solvents, laughing gas and other",0,38,30,0,33,0.2,33,33]
[null,null,null,null,null,null,null,null,null,null,null,null,null,null,null,"MF.7.5 ","MF_DPO_5","Dissipative losses (e.g abrasion from tires, friction products, buildings and infrastructure)",0,39,43,0.5,0,0.2,0,0]
[null,null,null,null,null,null,null,null,null,null,null,null,null,null,null,null,null,"Total domestic processed output",0,40,0,0.3,0,0.2,0,0]
[null,null,null,null,null,null,null,null,null,null,null,null,null,null,null,"MF.8.1 ","MF_BI_1","Balancing items: input side",0,4,0,0.3,-1,0.2,0,0]
[null,null,null,null,null,null,null,null,null,null,null,null,null,null,null,"MF.8.1.1 ","MF_BI_11","Oxygen for combustion processes",0,5,4,0.3,-1,0.2,4,4]
[null,null,null,null,null,null,null,null,null,null,null,null,null,null,null,"MF.8.1.2 ","MF_BI_12","Oxygen for respiration of humans and livestock; bacterial respiration from solid waste and wastewater",0,6,4,0.5,-1,0.2,4,4]
[null,null,null,null,null,null,null,null,null,null,null,null,null,null,null,"MF.8.1.3 ","MF_BI_13","Nitrogen for Haber-Bosch process",0,7,4,0.5,-1,0.2,4,4]
[null,null,null,null,null,null,null,null,null,null,null,null,null,null,null,"MF.8.1.4 ","MF_BI_14","Water requirements for the domestic production of exported beverages",0,8,4,0.5,-1,0.2,4,4]
[null,null,null,null,null,null,null,null,null,null,null,null,null,null,null,"MF.8.2 ","MF_BI_2","Balancing items: output side",0,9,0,0.3,0,0.2,0,0]
[null,null,null,null,null,null,null,null,null,null,null,null,null,null,null,"MF.8.2.1 ","MF_BI_21","Water vapour from combustion",1,10,9,0.3,9,0.2,9,9]
[null,null,null,null,null,null,null,null,null,null,null,null,null,null,null,"MF.8.2.1.1 ","MF_BI_211","Water vapour from moisture content of fuels",1,11,10,0.3,10,0.2,10,10]
[null,null,null,null,null,null,null,null,null,null,null,null,null,null,null,"MF.8.2.1.2 ","MF_BI_212","Water vapour from the oxidised hydrogen components of fuels",1,12,10,0.3,10,0.2,10,10]
[null,null,null,null,null,null,null,null,null,null,null,null,null,null,null,"MF.8.2.2 ","MF_BI_22","Gases from respiration of humans and livestock (CO2 and H2O), and from bacterial respiration from solid waste and wastewater (H2O)",0,13,9,0.3,9,0.2,9,9]
[null,null,null,null,null,null,null,null,null,null,null,null,null,null,null,"MF.8.2.2.1 ","MF_BI_221","Carbon dioxide (CO2)",0,14,13,0.3,13,0.2,13,13]
[null,null,null,null,null,null,null,null,null,null,null,null,null,null,null,"MF.8.2.2.2 ","MF_BI_222","Water vapour (H2O)",0,15,13,0.3,13,0.2,13,13]
[null,null,null,null,null,null,null,null,null,null,null,null,null,null,null,"MF.8.2.3 ","MF_BI_23","Excorporated water from biomass products",0,16,9,0.3,9,0.2,9,9]
[null,null,null,null,null,null,null,null,null,null,null,null,null,null,null,"H.1","TOTAL","Domestic extraction (used) (DEU)",0,4,0,0.3,-1,0.2,0,0]
[null,null,null,null,null,null,null,null,null,null,null,null,null,null,null,"H.2","TOTAL","Imports",0,5,0,0.5,-1,0.2,0,0,"X"]
[null,null,null,null,null,null,null,null,null,null,null,null,null,null,null,"H.3","TOTAL","Exports",0,6,0,0.5,-1,0.2,0,0,"X"]
[null,null,null,null,null,null,null,null,null,null,null,null,null,null,null,"H.4","TOTAL","Direct material input (DMI)",0,7,0,0.5,-1,0.2,0,0,"X"]
[null,null,null,null,null,null,null,null,null,null,null,null,null,null,null,"H.5","TOTAL","Domestic material consumption (DMC)",0,8,0,0.15,-1,0.2,0,0,"X"]
[null,null,null,null,null,null,null,null,null,null,null,null,null,null,null,"H.6","TOTAL","Physical trade balance (PTB)",1,9,0,0.5,-1,0.2,0,0,"X"]
[null,null,null,null,null,null,null,null,null,null,null,null,null,null,null,"H.7","TOTAL","Domestic processed output (DPO)",0,10,0,0.3,-1,0.2,0,0]
[null,null,null,null,null,null,null,null,null,null,null,null,null,null,null,"H.8","TOTAL","Net additions to stock (NAS)",1,11,0,0.5,-1,0.2,0,0]
[null,null,null,null,null,null,null,null,null,null,null,null,null,null,null,"I.1","TOTAL","Domestic extraction (used) (DE)",0,4,0,0.3,0,0.2,0,0]
[null,null,null,null,null,null,null,null,null,null,null,null,null,null,null,"I.1.1","MF1","Biomass",0,5,4,0.3,4,0.2,0,0]
[null,null,null,null,null,null,null,null,null,null,null,null,null,null,null,"I.1.2","MF2","Metal ores (gross ores)",0,6,4,0.3,4,0.2,0,0]
[null,null,null,null,null,null,null,null,null,null,null,null,null,null,null,"I.1.3","MF3","Non-metalic minerals",0,7,4,0.3,4,0.2,0,0]
[null,null,null,null,null,null,null,null,null,null,null,null,null,null,null,"I.1.3","MF4","Fossil energy materials/carriers",0,8,4,0.3,4,0.2,0,0]
[null,null,null,null,null,null,null,null,null,null,null,null,null,null,null,"I.2","TOTAL","Imports in RME",0,9,0,0.5,0,0.2,0,0]
[null,null,null,null,null,null,null,null,null,null,null,null,null,null,null,"I.2.1","MF1","Biomass",0,10,9,0.5,9,0.2,0,0]
[null,null,null,null,null,null,null,null,null,null,null,null,null,null,null,"I.2.2","MF2","Metal ores (gross ores)",0,11,9,0.5,9,0.2,0,0]
[null,null,null,null,null,null,null,null,null,null,null,null,null,null,null,"I.2.3","MF3","Non-metalic minerals",0,12,9,0.5,9,0.2,0,0]
[null,null,null,null,null,null,null,null,null,null,null,null,null,null,null,"I.2.4","MF4","Fossil energy materials/carriers",0,13,9,0.5,9,0.2,0,0]
[null,null,null,null,null,null,null,null,null,null,null,null,null,null,null,"I.3 ","TOTAL","Raw material input (RMI)",0,14,0,0.5,0,0.2,0,0]
[null,null,null,null,null,null,null,null,null,null,null,null,null,null,null,"I.3.1","MF1","Biomass",0,15,14,0.5,14,0.2,0,0]
[null,null,null,null,null,null,null,null,null,null,null,null,null,null,null,"I.3.2","MF2","Metal ores (gross ores)",0,16,14,0.5,14,0.2,0,0]
[null,null,null,null,null,null,null,null,null,null,null,null,null,null,null,"I.3.3","MF3","Non-metalic minerals",0,17,14,0.5,14,0.2,0,0]
[null,null,null,null,null,null,null,null,null,null,null,null,null,null,null,"I.3.4","MF4","Fossil energy materials/carriers",0,18,14,0.5,14,0.2,0,0]
[null,null,null,null,null,null,null,null,null,null,null,null,null,null,null,"I.4","TOTAL"," Exports in RME",0,19,0,0.5,0,0.2,0,0]
[null,null,null,null,null,null,null,null,null,null,null,null,null,null,null,"I.4.1","MF1","Biomass",0,20,19,0.5,19,0.2,0,0]
[null,null,null,null,null,null,null,null,null,null,null,null,null,null,null,"I.4.2","MF2","Metal ores (gross ores)",0,21,19,0.5,19,0.2,0,0]
[null,null,null,null,null,null,null,null,null,null,null,null,null,null,null,"I.4.3","MF3","Non-metalic minerals",0,22,19,0.5,19,0.2,0,0]
[null,null,null,null,null,null,null,null,null,null,null,null,null,null,null,"I.4.4","MF4","Fossil energy materials/carriers",0,23,19,0.5,19,0.2,0,0]
[null,null,null,null,null,null,null,null,null,null,null,null,null,null,null,"I.5 ","TOTAL","Raw material consumption (RMC)",1,24,0,0.5,0,0.2,0,0]
[null,null,null,null,null,null,null,null,null,null,null,null,null,null,null,"I.5.1","MF1","Biomass",1,25,24,0.5,24,0.2,0,0]
[null,null,null,null,null,null,null,null,null,null,null,null,null,null,null,"I.5.2","MF2","Metal ores (gross ores)",1,26,24,0.5,24,0.2,0,0]
[null,null,null,null,null,null,null,null,null,null,null,null,null,null,null,"I.5.3","MF3","Non-metalic minerals",1,27,24,0.5,24,0.2,0,0]
[null,null,null,null,null,null,null,null,null,null,null,null,null,null,null,"I.5.4","MF4","Fossil energy materials/carriers",1,28,24,0.5,24,0.2,0,0]

{"sheet":"footnotes_list","index":5,"n_rows":115,"n_cols":5,"rows_kept":115,"cut":false,"hidden":false,"merged":[[4,1,4,2],[6,2,6,3],[1,4,1,5],[2,4,2,5],[1,1,1,2],[2,1,2,2],[3,1,3,2]]}
[]
[null,"Country :",null,{"$f":"intro!I8","v":0},"Flags Mode"]
[null,null,null,null,{"$f":"Parameters!C21","v":"SDMX Flags"}]
[null,"Type:",null,"Text"]
[null,"Content:",null,"Footnotes (associating symbols to content text)"]
[]
[null,null,"List of footnotes"]
[]
[null,null,"footnote symbol","footnote text (content) associated to footnote symbol"]
[null,"obs_status","b)","Break in series"]
[null,"conf_status","c)","Confidential"]
[null,"conf_status","d)","Secondary confidentiality"]
[null,"obs_status","e)","Estimated data"]
[null,"obs_status","n)","Not to be published (only to be set by Eurostat!)"]
[null,"obs_status","p)","Provisional "]
[null,"obs_status","s)","Eurostat estimate (only to be set by Eurostat!)"]
[null,"obs_comment","1)"]
[null,"obs_comment","2)"]
[null,"obs_comment","3)"]
[null,"obs_comment","4)"]
[null,"obs_comment","5)"]
[null,"obs_comment","6)"]
[null,"obs_comment","7)"]
[null,"obs_comment","8)"]
[null,"obs_comment","9)"]
[null,"obs_comment","10)"]
[null,"obs_comment","11)"]
[null,"obs_comment","12)"]
[null,"obs_comment","13)"]
[null,"obs_comment","14)"]
[null,"obs_comment","15)"]
[null,"obs_comment","16)"]
[null,"obs_comment","17)"]
[null,"obs_comment","18)"]
[null,"obs_comment","19)"]
[null,"obs_comment","20)"]
[null,"obs_comment","21)"]
[null,"obs_comment","22)"]
[null,"obs_comment","23)"]
[null,"obs_comment","24)"]
[null,"obs_comment","25)"]
[null,"obs_comment","26)"]
[null,"obs_comment","27)"]
[null,"obs_comment","28)"]
[null,"obs_comment","29)"]
[null,"obs_comment","30)"]
[null,"obs_comment","31)"]
[null,"obs_comment","32)"]
[null,"obs_comment","33)"]
[null,"obs_comment","34)"]
[null,"obs_comment","35)"]
[null,"obs_comment","36)"]
[null,"obs_comment","37)"]
[null,"obs_comment","38)"]
[null,"obs_comment","39)"]
[null,"obs_comment","40)"]
[null,"obs_comment","41)"]
[null,"obs_comment","42)"]
[null,"obs_comment","43)"]
[null,"obs_comment","44)"]
[null,"obs_comment","45)"]
[null,"obs_comment","46)"]
[null,"obs_comment","47)"]
[null,"obs_comment","48)"]
[null,"obs_comment","49)"]
[null,"obs_comment","50)"]
[null,"obs_comment","51)"]
[null,"obs_comment","52)"]
[null,"obs_comment","53)"]
[null,"obs_comment","54)"]
[null,"obs_comment","55)"]
[null,"obs_comment","56)"]
[null,"obs_comment","57)"]
[null,"obs_comment","58)"]
[null,"obs_comment","59)"]
[null,"obs_comment","60)"]
[null,"obs_comment","61)"]
[null,"obs_comment","62)"]
[null,"obs_comment","63)"]
[null,"obs_comment","64)"]
[null,"obs_comment","65)"]
[null,"obs_comment","66)"]
[null,"obs_comment","67)"]
[null,"obs_comment","68)"]
[null,"obs_comment","69)"]
[null,"obs_comment","70)"]
[null,"obs_comment","71)"]
[null,"obs_comment","72)"]
[null,"obs_comment","73)"]
[null,"obs_comment","74)"]
[null,"obs_comment","75)"]
[null,"obs_comment","76)"]
[null,"obs_comment","77)"]
[null,"obs_comment","78)"]
[null,"obs_comment","79)"]
[null,"obs_comment","80)"]
[null,"obs_comment","81)"]
[null,"obs_comment","82)"]
[null,"obs_comment","83)"]
[null,"obs_comment","84)"]
[null,"obs_comment","85)"]
[null,"obs_comment","86)"]
[null,"obs_comment","87)"]
[null,"obs_comment","88)"]
[null,"obs_comment","89)"]
[null,"obs_comment","90)"]
[null,"obs_comment","91)"]
[null,"obs_comment","92)"]
[null,"obs_comment","93)"]
[null,"obs_comment","94)"]
[null,"obs_comment","95)"]
[null,"obs_comment","96)"]
[null,"obs_comment","97)"]
[null,"obs_comment","98)"]
[null,"obs_comment","99)"]

{"sheet":"Parameter_mapping","index":6,"n_rows":8,"n_cols":2,"rows_kept":8,"cut":false,"hidden":true,"merged":[]}
["Data Sheet","Parameter Sheet"]
["Table_A","Parameters_SDMX_Converter"]
["Table_B","Parameters_SDMX_Converter"]
["Table_D","Parameters_SDMX_Converter"]
["Table_F","Parameters_SDMX_Converter"]
["Table_G","Parameters_SDMX_Converter"]
["Table_H","Parameters_SDMX_Converter"]
["Table_I","Parameters_SDMX_Converter"]

{"sheet":"Parameters_SDMX_Converter","index":7,"n_rows":30,"n_cols":7,"rows_kept":30,"cut":false,"hidden":true,"merged":[]}
["Element","Type","PosType","Position",null,"DataStart","F4"]
["FREQ","DIM","FIX","A",null,"DataEnd","BL78"]
["REF_AREA","DIM","CELL","D1",null,"TranscodingSheet","Transcoding"]
["DEMAND_PROD","DIM","CELL","CJ4",null,"ConceptSeparator",")"]
["MATERIAL","DIM","COLUMN","CN",null,"DefaultValue","null"]
["UNIT_MEASURE","DIM","CELL","CP4",null,"SkipIncompleteKeys","true"]
["UNIT_MULT","ATT","CELL","CQ4",null,"RoundingPrecision",8]
["PRODUCT","DIM","CELL","CR4",null,"formatValues","actualValue"]
["SECTOR","DIM","CELL","CS4"]
["TIME_PERIOD","DIM","ROW",3]
["COMMENT_OBS","ATT","OBS_LEVEL","1/1"]
["OBS_STATUS_4","ATT","OBS_LEVEL","1/6"]
["OBS_STATUS_3","ATT","OBS_LEVEL","1/5"]
["OBS_STATUS_2","ATT","OBS_LEVEL","1/4"]
["OBS_STATUS_1","ATT","MIXED","OBS_LEVEL","1/3","FIX","A"]
["CONF_STATUS","ATT","MIXED","OBS_LEVEL","1/2","FIX","F"]
["ACCOUNTING_ENTRY","DIM","MIXED","COLUMN","CK","CELL","CK4"]
["COUNTERPART_AREA","DIM","MIXED","COLUMN","CL","CELL","CL4"]
["BRIDGE_ITEMS","DIM","MIXED","COLUMN","CM","ROW",83]
["STO","DIM","MIXED","COLUMN","CO","CELL","CO4"]
["COMMENT_DSET","ATT","SKIP"]
["DISS_ORG","ATT","SKIP"]
["COMPILING_ORG","ATT","SKIP"]
["LAST_UPDATE","ATT","SKIP"]
["TITLE_COMPL","ATT","SKIP"]
["TITLE","ATT","SKIP"]
["DECIMALS","ATT","SKIP"]
["COMMENT_TS","ATT","SKIP"]
["PRE_BREAK_VALUE","ATT","SKIP"]
["EMBARGO_TIME","ATT","SKIP"]

{"sheet":"Transcoding","index":8,"n_rows":123,"n_cols":3,"rows_kept":123,"cut":false,"hidden":true,"merged":[]}
["Text","Dimension","Value"]
[":","OBS_VALUE","NaN"]
["b","OBS_STATUS_1","B"]
["e","OBS_STATUS_1","E"]
["p","OBS_STATUS_1","P"]
["n","OBS_STATUS_1","N"]
["s","OBS_STATUS_1","S"]
["b","OBS_STATUS_2","B"]
["e","OBS_STATUS_2","E"]
["p","OBS_STATUS_2","P"]
["n","OBS_STATUS_2","N"]
["s","OBS_STATUS_2","S"]
["b","OBS_STATUS_3","B"]
["e","OBS_STATUS_3","E"]
["p","OBS_STATUS_3","P"]
["n","OBS_STATUS_3","N"]
["s","OBS_STATUS_3","S"]
["b","OBS_STATUS_4","B"]
["e","OBS_STATUS_4","E"]
["p","OBS_STATUS_4","P"]
["n","OBS_STATUS_4","N"]
["s","OBS_STATUS_4","S"]
["c","CONF_STATUS","C"]
["d","CONF_STATUS","D"]
[1,"COMMENT_OBS",{"$f":"IF(ISBLANK(footnotes_list!D17),\"\",footnotes_list!D17)","v":""}]
[2,"COMMENT_OBS",{"$f":"IF(ISBLANK(footnotes_list!D18),\"\",footnotes_list!D18)","v":""}]
[3,"COMMENT_OBS",{"$f":"IF(ISBLANK(footnotes_list!D19),\"\",footnotes_list!D19)","v":""}]
[4,"COMMENT_OBS",{"$f":"IF(ISBLANK(footnotes_list!D20),\"\",footnotes_list!D20)","v":""}]
[5,"COMMENT_OBS",{"$f":"IF(ISBLANK(footnotes_list!D21),\"\",footnotes_list!D21)","v":""}]
[6,"COMMENT_OBS",{"$f":"IF(ISBLANK(footnotes_list!D22),\"\",footnotes_list!D22)","v":""}]
[7,"COMMENT_OBS",{"$f":"IF(ISBLANK(footnotes_list!D23),\"\",footnotes_list!D23)","v":""}]
[8,"COMMENT_OBS",{"$f":"IF(ISBLANK(footnotes_list!D24),\"\",footnotes_list!D24)","v":""}]
[9,"COMMENT_OBS",{"$f":"IF(ISBLANK(footnotes_list!D25),\"\",footnotes_list!D25)","v":""}]
[10,"COMMENT_OBS",{"$f":"IF(ISBLANK(footnotes_list!D26),\"\",footnotes_list!D26)","v":""}]
[11,"COMMENT_OBS",{"$f":"IF(ISBLANK(footnotes_list!D27),\"\",footnotes_list!D27)","v":""}]
[12,"COMMENT_OBS",{"$f":"IF(ISBLANK(footnotes_list!D28),\"\",footnotes_list!D28)","v":""}]
[13,"COMMENT_OBS",{"$f":"IF(ISBLANK(footnotes_list!D29),\"\",footnotes_list!D29)","v":""}]
[14,"COMMENT_OBS",{"$f":"IF(ISBLANK(footnotes_list!D30),\"\",footnotes_list!D30)","v":""}]
[15,"COMMENT_OBS",{"$f":"IF(ISBLANK(footnotes_list!D31),\"\",footnotes_list!D31)","v":""}]
[16,"COMMENT_OBS",{"$f":"IF(ISBLANK(footnotes_list!D32),\"\",footnotes_list!D32)","v":""}]
[17,"COMMENT_OBS",{"$f":"IF(ISBLANK(footnotes_list!D33),\"\",footnotes_list!D33)","v":""}]
[18,"COMMENT_OBS",{"$f":"IF(ISBLANK(footnotes_list!D34),\"\",footnotes_list!D34)","v":""}]
[19,"COMMENT_OBS",{"$f":"IF(ISBLANK(footnotes_list!D35),\"\",footnotes_list!D35)","v":""}]
[20,"COMMENT_OBS",{"$f":"IF(ISBLANK(footnotes_list!D36),\"\",footnotes_list!D36)","v":""}]
[21,"COMMENT_OBS",{"$f":"IF(ISBLANK(footnotes_list!D37),\"\",footnotes_list!D37)","v":""}]
[22,"COMMENT_OBS",{"$f":"IF(ISBLANK(footnotes_list!D38),\"\",footnotes_list!D38)","v":""}]
[23,"COMMENT_OBS",{"$f":"IF(ISBLANK(footnotes_list!D39),\"\",footnotes_list!D39)","v":""}]
[24,"COMMENT_OBS",{"$f":"IF(ISBLANK(footnotes_list!D40),\"\",footnotes_list!D40)","v":""}]
[25,"COMMENT_OBS",{"$f":"IF(ISBLANK(footnotes_list!D41),\"\",footnotes_list!D41)","v":""}]
[26,"COMMENT_OBS",{"$f":"IF(ISBLANK(footnotes_list!D42),\"\",footnotes_list!D42)","v":""}]
[27,"COMMENT_OBS",{"$f":"IF(ISBLANK(footnotes_list!D43),\"\",footnotes_list!D43)","v":""}]
[28,"COMMENT_OBS",{"$f":"IF(ISBLANK(footnotes_list!D44),\"\",footnotes_list!D44)","v":""}]
[29,"COMMENT_OBS",{"$f":"IF(ISBLANK(footnotes_list!D45),\"\",footnotes_list!D45)","v":""}]
[30,"COMMENT_OBS",{"$f":"IF(ISBLANK(footnotes_list!D46),\"\",footnotes_list!D46)","v":""}]
[31,"COMMENT_OBS",{"$f":"IF(ISBLANK(footnotes_list!D47),\"\",footnotes_list!D47)","v":""}]
[32,"COMMENT_OBS",{"$f":"IF(ISBLANK(footnotes_list!D48),\"\",footnotes_list!D48)","v":""}]
[33,"COMMENT_OBS",{"$f":"IF(ISBLANK(footnotes_list!D49),\"\",footnotes_list!D49)","v":""}]
[34,"COMMENT_OBS",{"$f":"IF(ISBLANK(footnotes_list!D50),\"\",footnotes_list!D50)","v":""}]
[35,"COMMENT_OBS",{"$f":"IF(ISBLANK(footnotes_list!D51),\"\",footnotes_list!D51)","v":""}]
[36,"COMMENT_OBS",{"$f":"IF(ISBLANK(footnotes_list!D52),\"\",footnotes_list!D52)","v":""}]
[37,"COMMENT_OBS",{"$f":"IF(ISBLANK(footnotes_list!D53),\"\",footnotes_list!D53)","v":""}]
[38,"COMMENT_OBS",{"$f":"IF(ISBLANK(footnotes_list!D54),\"\",footnotes_list!D54)","v":""}]
[39,"COMMENT_OBS",{"$f":"IF(ISBLANK(footnotes_list!D55),\"\",footnotes_list!D55)","v":""}]
[40,"COMMENT_OBS",{"$f":"IF(ISBLANK(footnotes_list!D56),\"\",footnotes_list!D56)","v":""}]
[41,"COMMENT_OBS",{"$f":"IF(ISBLANK(footnotes_list!D57),\"\",footnotes_list!D57)","v":""}]
[42,"COMMENT_OBS",{"$f":"IF(ISBLANK(footnotes_list!D58),\"\",footnotes_list!D58)","v":""}]
[43,"COMMENT_OBS",{"$f":"IF(ISBLANK(footnotes_list!D59),\"\",footnotes_list!D59)","v":""}]
[44,"COMMENT_OBS",{"$f":"IF(ISBLANK(footnotes_list!D60),\"\",footnotes_list!D60)","v":""}]
[45,"COMMENT_OBS",{"$f":"IF(ISBLANK(footnotes_list!D61),\"\",footnotes_list!D61)","v":""}]
[46,"COMMENT_OBS",{"$f":"IF(ISBLANK(footnotes_list!D62),\"\",footnotes_list!D62)","v":""}]
[47,"COMMENT_OBS",{"$f":"IF(ISBLANK(footnotes_list!D63),\"\",footnotes_list!D63)","v":""}]
[48,"COMMENT_OBS",{"$f":"IF(ISBLANK(footnotes_list!D64),\"\",footnotes_list!D64)","v":""}]
[49,"COMMENT_OBS",{"$f":"IF(ISBLANK(footnotes_list!D65),\"\",footnotes_list!D65)","v":""}]
[50,"COMMENT_OBS",{"$f":"IF(ISBLANK(footnotes_list!D66),\"\",footnotes_list!D66)","v":""}]
[51,"COMMENT_OBS",{"$f":"IF(ISBLANK(footnotes_list!D67),\"\",footnotes_list!D67)","v":""}]
[52,"COMMENT_OBS",{"$f":"IF(ISBLANK(footnotes_list!D68),\"\",footnotes_list!D68)","v":""}]
[53,"COMMENT_OBS",{"$f":"IF(ISBLANK(footnotes_list!D69),\"\",footnotes_list!D69)","v":""}]
[54,"COMMENT_OBS",{"$f":"IF(ISBLANK(footnotes_list!D70),\"\",footnotes_list!D70)","v":""}]
[55,"COMMENT_OBS",{"$f":"IF(ISBLANK(footnotes_list!D71),\"\",footnotes_list!D71)","v":""}]
[56,"COMMENT_OBS",{"$f":"IF(ISBLANK(footnotes_list!D72),\"\",footnotes_list!D72)","v":""}]
[57,"COMMENT_OBS",{"$f":"IF(ISBLANK(footnotes_list!D73),\"\",footnotes_list!D73)","v":""}]
[58,"COMMENT_OBS",{"$f":"IF(ISBLANK(footnotes_list!D74),\"\",footnotes_list!D74)","v":""}]
[59,"COMMENT_OBS",{"$f":"IF(ISBLANK(footnotes_list!D75),\"\",footnotes_list!D75)","v":""}]
[60,"COMMENT_OBS",{"$f":"IF(ISBLANK(footnotes_list!D76),\"\",footnotes_list!D76)","v":""}]
[61,"COMMENT_OBS",{"$f":"IF(ISBLANK(footnotes_list!D77),\"\",footnotes_list!D77)","v":""}]
[62,"COMMENT_OBS",{"$f":"IF(ISBLANK(footnotes_list!D78),\"\",footnotes_list!D78)","v":""}]
[63,"COMMENT_OBS",{"$f":"IF(ISBLANK(footnotes_list!D79),\"\",footnotes_list!D79)","v":""}]
[64,"COMMENT_OBS",{"$f":"IF(ISBLANK(footnotes_list!D80),\"\",footnotes_list!D80)","v":""}]
[65,"COMMENT_OBS",{"$f":"IF(ISBLANK(footnotes_list!D81),\"\",footnotes_list!D81)","v":""}]
[66,"COMMENT_OBS",{"$f":"IF(ISBLANK(footnotes_list!D82),\"\",footnotes_list!D82)","v":""}]
[67,"COMMENT_OBS",{"$f":"IF(ISBLANK(footnotes_list!D83),\"\",footnotes_list!D83)","v":""}]
[68,"COMMENT_OBS",{"$f":"IF(ISBLANK(footnotes_list!D84),\"\",footnotes_list!D84)","v":""}]
[69,"COMMENT_OBS",{"$f":"IF(ISBLANK(footnotes_list!D85),\"\",footnotes_list!D85)","v":""}]
[70,"COMMENT_OBS",{"$f":"IF(ISBLANK(footnotes_list!D86),\"\",footnotes_list!D86)","v":""}]
[71,"COMMENT_OBS",{"$f":"IF(ISBLANK(footnotes_list!D87),\"\",footnotes_list!D87)","v":""}]
[72,"COMMENT_OBS",{"$f":"IF(ISBLANK(footnotes_list!D88),\"\",footnotes_list!D88)","v":""}]
[73,"COMMENT_OBS",{"$f":"IF(ISBLANK(footnotes_list!D89),\"\",footnotes_list!D89)","v":""}]
[74,"COMMENT_OBS",{"$f":"IF(ISBLANK(footnotes_list!D90),\"\",footnotes_list!D90)","v":""}]
[75,"COMMENT_OBS",{"$f":"IF(ISBLANK(footnotes_list!D91),\"\",footnotes_list!D91)","v":""}]
[76,"COMMENT_OBS",{"$f":"IF(ISBLANK(footnotes_list!D92),\"\",footnotes_list!D92)","v":""}]
[77,"COMMENT_OBS",{"$f":"IF(ISBLANK(footnotes_list!D93),\"\",footnotes_list!D93)","v":""}]
[78,"COMMENT_OBS",{"$f":"IF(ISBLANK(footnotes_list!D94),\"\",footnotes_list!D94)","v":""}]
[79,"COMMENT_OBS",{"$f":"IF(ISBLANK(footnotes_list!D95),\"\",footnotes_list!D95)","v":""}]
[80,"COMMENT_OBS",{"$f":"IF(ISBLANK(footnotes_list!D96),\"\",footnotes_list!D96)","v":""}]
[81,"COMMENT_OBS",{"$f":"IF(ISBLANK(footnotes_list!D97),\"\",footnotes_list!D97)","v":""}]
[82,"COMMENT_OBS",{"$f":"IF(ISBLANK(footnotes_list!D98),\"\",footnotes_list!D98)","v":""}]
[83,"COMMENT_OBS",{"$f":"IF(ISBLANK(footnotes_list!D99),\"\",footnotes_list!D99)","v":""}]
[84,"COMMENT_OBS",{"$f":"IF(ISBLANK(footnotes_list!D100),\"\",footnotes_list!D100)","v":""}]
[85,"COMMENT_OBS",{"$f":"IF(ISBLANK(footnotes_list!D101),\"\",footnotes_list!D101)","v":""}]
[86,"COMMENT_OBS",{"$f":"IF(ISBLANK(footnotes_list!D102),\"\",footnotes_list!D102)","v":""}]
[87,"COMMENT_OBS",{"$f":"IF(ISBLANK(footnotes_list!D103),\"\",footnotes_list!D103)","v":""}]
[88,"COMMENT_OBS",{"$f":"IF(ISBLANK(footnotes_list!D104),\"\",footnotes_list!D104)","v":""}]
[89,"COMMENT_OBS",{"$f":"IF(ISBLANK(footnotes_list!D105),\"\",footnotes_list!D105)","v":""}]
[90,"COMMENT_OBS",{"$f":"IF(ISBLANK(footnotes_list!D106),\"\",footnotes_list!D106)","v":""}]
[91,"COMMENT_OBS",{"$f":"IF(ISBLANK(footnotes_list!D107),\"\",footnotes_list!D107)","v":""}]
[92,"COMMENT_OBS",{"$f":"IF(ISBLANK(footnotes_list!D108),\"\",footnotes_list!D108)","v":""}]
[93,"COMMENT_OBS",{"$f":"IF(ISBLANK(footnotes_list!D109),\"\",footnotes_list!D109)","v":""}]
[94,"COMMENT_OBS",{"$f":"IF(ISBLANK(footnotes_list!D110),\"\",footnotes_list!D110)","v":""}]
[95,"COMMENT_OBS",{"$f":"IF(ISBLANK(footnotes_list!D111),\"\",footnotes_list!D111)","v":""}]
[96,"COMMENT_OBS",{"$f":"IF(ISBLANK(footnotes_list!D112),\"\",footnotes_list!D112)","v":""}]
[97,"COMMENT_OBS",{"$f":"IF(ISBLANK(footnotes_list!D113),\"\",footnotes_list!D113)","v":""}]
[98,"COMMENT_OBS",{"$f":"IF(ISBLANK(footnotes_list!D114),\"\",footnotes_list!D114)","v":""}]
[99,"COMMENT_OBS",{"$f":"IF(ISBLANK(footnotes_list!D115),\"\",footnotes_list!D115)","v":""}]

{"sheet":"Table_A","index":9,"n_rows":68,"n_cols":97,"rows_kept":68,"cut":false,"hidden":false,"merged":[[0,92,2,92],[0,93,2,93],[0,94,2,94],[0,95,2,95],[0,96,2,96],[0,87,2,87],[0,88,2,88],[0,89,2,89],[0,90,2,90],[0,91,2,91],[67,2,67,4],[0,41,1,42],[0,13,1,14],[0,15,1,16],[0,17,1,18],[1,2,1,3],[2,2,2,4],[0,31,1,32],[0,27,1,28],[0,29,1,30]]}
["DATAENTRY",null,"   Country:",{"$f":"intro!H8","v":""},null,null,null,null,null,null,null,null,null,null,null,null,null,null,null,null,null,null,null,null,null,null,null,null,null,null,null,null,null,null,null,null,null,null,null,null,null,null,null,null,null,null,null,null,null,null,null,null,null,null,null,null,null,null,null,null,null,null,null,null,null,null,null,null,null,null,null,null,null,null,null,null,null,null,null,null,null,null,null,null,null,null,null,"DEMAND_PROD","ACCOUNTING_ENTRY","COUNTERPART_AREA","BRIDGE_ITEM","MATERIAL","STO","UNIT_MEASURE","UNIT_MULT","PRODUCT","SECTOR"]
["DE","THS_T","Unit","Million National Currency","1000 Metric tonnes"]
[null,"Matflows","TABLE A: DOMESTIC EXTRACTION",null,null,1990,null,1991,null,1992,null,1993,null,1994,null,1995,null,1996,null,1997,null,1998,null,1999,null,2000,null,2001,null,2002,null,2003,null,2004,null,2005,null,2006,null,2007,null,2008,null,2009,null,2010,null,2011,null,2012,null,2013,null,2014,null,2015,null,2016,null,2017,null,2018,null,2019,null,2020]
[null,"MF1","MF.1   Biomass",null,null,null,null,null,null,null,null,null,null,null,null,null,null,null,null,null,null,null,null,null,null,null,null,null,null,null,null,null,null,null,null,null,null,null,null,null,null,null,null,null,null,null,null,null,null,null,null,null,null,null,null,null,null,null,null,null,null,null,null,null,null,null,null,null,null,null,null,null,null,null,null,null,null,null,null,null,null,null,null,null,null,null,null,"P","EN","W2","RES","MF1","MDE","TN",3,"_T","S1"]
[null,"MF11","MF.1.1   Crops (excluding fodder crops)",null,null,null,null,null,null,null,null,null,null,null,null,null,null,null,null,null,null,null,null,null,null,null,null,null,null,null,null,null,null,null,null,null,null,null,null,null,null,null,null,null,null,null,null,null,null,null,null,null,null,null,null,null,null,null,null,null,null,null,null,null,null,null,null,null,null,null,null,null,null,null,null,null,null,null,null,null,null,null,null,null,null,null,null,null,null,null,"RES","MF11"]
[null,"MF111","MF.1.1.1   Cereals ",null,null,null,null,null,null,null,null,null,null,null,null,null,null,null,null,null,null,null,null,null,null,null,null,null,null,null,null,null,null,null,null,null,null,null,null,null,null,null,null,null,null,null,null,null,null,null,null,null,null,null,null,null,null,null,null,null,null,null,null,null,null,null,null,null,null,null,null,null,null,null,null,null,null,null,null,null,null,null,null,null,null,null,null,null,null,null,"RES","MF111"]
[null,"MF112","MF.1.1.2   Roots, tubers",null,null,null,null,null,null,null,null,null,null,null,null,null,null,null,null,null,null,null,null,null,null,null,null,null,null,null,null,null,null,null,null,null,null,null,null,null,null,null,null,null,null,null,null,null,null,null,null,null,null,null,null,null,null,null,null,null,null,null,null,null,null,null,null,null,null,null,null,null,null,null,null,null,null,null,null,null,null,null,null,null,null,null,null,null,null,null,"RES","MF112"]
[null,"MF113","MF.1.1.3   Sugar crops ",null,null,null,null,null,null,null,null,null,null,null,null,null,null,null,null,null,null,null,null,null,null,null,null,null,null,null,null,null,null,null,null,null,null,null,null,null,null,null,null,null,null,null,null,null,null,null,null,null,null,null,null,null,null,null,null,null,null,null,null,null,null,null,null,null,null,null,null,null,null,null,null,null,null,null,null,null,null,null,null,null,null,null,null,null,null,null,"RES","MF113"]
[null,"MF114","MF.1.1.4   Pulses",null,null,null,null,null,null,null,null,null,null,null,null,null,null,null,null,null,null,null,null,null,null,null,null,null,null,null,null,null,null,null,null,null,null,null,null,null,null,null,null,null,null,null,null,null,null,null,null,null,null,null,null,null,null,null,null,null,null,null,null,null,null,null,null,null,null,null,null,null,null,null,null,null,null,null,null,null,null,null,null,null,null,null,null,null,null,null,"RES","MF114"]
[null,"MF115","MF.1.1.5   Nuts ",null,null,null,null,null,null,null,null,null,null,null,null,null,null,null,null,null,null,null,null,null,null,null,null,null,null,null,null,null,null,null,null,null,null,null,null,null,null,null,null,null,null,null,null,null,null,null,null,null,null,null,null,null,null,null,null,null,null,null,null,null,null,null,null,null,null,null,null,null,null,null,null,null,null,null,null,null,null,null,null,null,null,null,null,null,null,null,"RES","MF115"]
[null,"MF116","MF.1.1.6   Oil-bearing crops ",null,null,null,null,null,null,null,null,null,null,null,null,null,null,null,null,null,null,null,null,null,null,null,null,null,null,null,null,null,null,null,null,null,null,null,null,null,null,null,null,null,null,null,null,null,null,null,null,null,null,null,null,null,null,null,null,null,null,null,null,null,null,null,null,null,null,null,null,null,null,null,null,null,null,null,null,null,null,null,null,null,null,null,null,null,null,null,"RES","MF116"]
[null,"MF117","MF.1.1.7   Vegetables ",null,null,null,null,null,null,null,null,null,null,null,null,null,null,null,null,null,null,null,null,null,null,null,null,null,null,null,null,null,null,null,null,null,null,null,null,null,null,null,null,null,null,null,null,null,null,null,null,null,null,null,null,null,null,null,null,null,null,null,null,null,null,null,null,null,null,null,null,null,null,null,null,null,null,null,null,null,null,null,null,null,null,null,null,null,null,null,"RES","MF117"]
[null,"MF118","MF.1.1.8   Fruits ",null,null,null,null,null,null,null,null,null,null,null,null,null,null,null,null,null,null,null,null,null,null,null,null,null,null,null,null,null,null,null,null,null,null,null,null,null,null,null,null,null,null,null,null,null,null,null,null,null,null,null,null,null,null,null,null,null,null,null,null,null,null,null,null,null,null,null,null,null,null,null,null,null,null,null,null,null,null,null,null,null,null,null,null,null,null,null,"RES","MF118"]
[null,"MF119","MF.1.1.9   Fibres ",null,null,null,null,null,null,null,null,null,null,null,null,null,null,null,null,null,null,null,null,null,null,null,null,null,null,null,null,null,null,null,null,null,null,null,null,null,null,null,null,null,null,null,null,null,null,null,null,null,null,null,null,null,null,null,null,null,null,null,null,null,null,null,null,null,null,null,null,null,null,null,null,null,null,null,null,null,null,null,null,null,null,null,null,null,null,null,"RES","MF119"]
[null,"MF1110","MF.1.1.A   Other crops (excluding fodder crops) n.e.c.",null,null,null,null,null,null,null,null,null,null,null,null,null,null,null,null,null,null,null,null,null,null,null,null,null,null,null,null,null,null,null,null,null,null,null,null,null,null,null,null,null,null,null,null,null,null,null,null,null,null,null,null,null,null,null,null,null,null,null,null,null,null,null,null,null,null,null,null,null,null,null,null,null,null,null,null,null,null,null,null,null,null,null,null,null,null,null,"RES","MF11A"]
[null,"MF12","MF.1.2   Crop residues (used), fodder crops and grazed biomass",null,null,null,null,null,null,null,null,null,null,null,null,null,null,null,null,null,null,null,null,null,null,null,null,null,null,null,null,null,null,null,null,null,null,null,null,null,null,null,null,null,null,null,null,null,null,null,null,null,null,null,null,null,null,null,null,null,null,null,null,null,null,null,null,null,null,null,null,null,null,null,null,null,null,null,null,null,null,null,null,null,null,null,null,null,null,null,"RES","MF12"]
[null,"MF121","MF.1.2.1   Crop residues (used)",null,null,null,null,null,null,null,null,null,null,null,null,null,null,null,null,null,null,null,null,null,null,null,null,null,null,null,null,null,null,null,null,null,null,null,null,null,null,null,null,null,null,null,null,null,null,null,null,null,null,null,null,null,null,null,null,null,null,null,null,null,null,null,null,null,null,null,null,null,null,null,null,null,null,null,null,null,null,null,null,null,null,null,null,null,null,null,"RES","MF121"]
[null,"MF1211","MF.1.2.1.1   Straw",null,null,null,null,null,null,null,null,null,null,null,null,null,null,null,null,null,null,null,null,null,null,null,null,null,null,null,null,null,null,null,null,null,null,null,null,null,null,null,null,null,null,null,null,null,null,null,null,null,null,null,null,null,null,null,null,null,null,null,null,null,null,null,null,null,null,null,null,null,null,null,null,null,null,null,null,null,null,null,null,null,null,null,null,null,null,null,"RES","MF1211"]
[null,"MF1212","MF.1.2.1.2   Other crop residues (sugar and fodder beet leaves, etc.)",null,null,null,null,null,null,null,null,null,null,null,null,null,null,null,null,null,null,null,null,null,null,null,null,null,null,null,null,null,null,null,null,null,null,null,null,null,null,null,null,null,null,null,null,null,null,null,null,null,null,null,null,null,null,null,null,null,null,null,null,null,null,null,null,null,null,null,null,null,null,null,null,null,null,null,null,null,null,null,null,null,null,null,null,null,null,null,"RES","MF1212"]
[null,"MF122","MF.1.2.2   Fodder crops and grazed biomass",null,null,null,null,null,null,null,null,null,null,null,null,null,null,null,null,null,null,null,null,null,null,null,null,null,null,null,null,null,null,null,null,null,null,null,null,null,null,null,null,null,null,null,null,null,null,null,null,null,null,null,null,null,null,null,null,null,null,null,null,null,null,null,null,null,null,null,null,null,null,null,null,null,null,null,null,null,null,null,null,null,null,null,null,null,null,null,"RES","MF122"]
[null,"MF1221","MF.1.2.2.1   Fodder crops (including biomass harvest from grassland)",null,null,null,null,null,null,null,null,null,null,null,null,null,null,null,null,null,null,null,null,null,null,null,null,null,null,null,null,null,null,null,null,null,null,null,null,null,null,null,null,null,null,null,null,null,null,null,null,null,null,null,null,null,null,null,null,null,null,null,null,null,null,null,null,null,null,null,null,null,null,null,null,null,null,null,null,null,null,null,null,null,null,null,null,null,null,null,"RES","MF1221"]
[null,"MF1222","MF.1.2.2.2   Grazed biomass",null,null,null,null,null,null,null,null,null,null,null,null,null,null,null,null,null,null,null,null,null,null,null,null,null,null,null,null,null,null,null,null,null,null,null,null,null,null,null,null,null,null,null,null,null,null,null,null,null,null,null,null,null,null,null,null,null,null,null,null,null,null,null,null,null,null,null,null,null,null,null,null,null,null,null,null,null,null,null,null,null,null,null,null,null,null,null,"RES","MF1222"]
[null,"MF13","MF.1.3  Wood",null,null,null,null,null,null,null,null,null,null,null,null,null,null,null,null,null,null,null,null,null,null,null,null,null,null,null,null,null,null,null,null,null,null,null,null,null,null,null,null,null,null,null,null,null,null,null,null,null,null,null,null,null,null,null,null,null,null,null,null,null,null,null,null,null,null,null,null,null,null,null,null,null,null,null,null,null,null,null,null,null,null,null,null,null,null,null,"RES","MF13"]
[null,"MF131","MF.1.3.1   Timber (Industrial roundwood)",null,null,null,null,null,null,null,null,null,null,null,null,null,null,null,null,null,null,null,null,null,null,null,null,null,null,null,null,null,null,null,null,null,null,null,null,null,null,null,null,null,null,null,null,null,null,null,null,null,null,null,null,null,null,null,null,null,null,null,null,null,null,null,null,null,null,null,null,null,null,null,null,null,null,null,null,null,null,null,null,null,null,null,null,null,null,null,"RES","MF131"]
[null,"MF132","MF.1.3.2  Wood fuel and other extraction ",null,null,null,null,null,null,null,null,null,null,null,null,null,null,null,null,null,null,null,null,null,null,null,null,null,null,null,null,null,null,null,null,null,null,null,null,null,null,null,null,null,null,null,null,null,null,null,null,null,null,null,null,null,null,null,null,null,null,null,null,null,null,null,null,null,null,null,null,null,null,null,null,null,null,null,null,null,null,null,null,null,null,null,null,null,null,null,"RES","MF132"]
[null,"MF13M","MF.1.3 MEMO:  Net increment of timber stock (memo item )",null,null,null,null,null,null,null,null,null,null,null,null,null,null,null,null,null,null,null,null,null,null,null,null,null,null,null,null,null,null,null,null,null,null,null,null,null,null,null,null,null,null,null,null,null,null,null,null,null,null,null,null,null,null,null,null,null,null,null,null,null,null,null,null,null,null,null,null,null,null,null,null,null,null,null,null,null,null,null,null,null,null,null,null,null,null,null,"RES","MEMO_MF13"]
[null,"MF14","MF.1.4   Wild fish catch, aquatic plants and animals, hunting and gathering ",null,null,null,null,null,null,null,null,null,null,null,null,null,null,null,null,null,null,null,null,null,null,null,null,null,null,null,null,null,null,null,null,null,null,null,null,null,null,null,null,null,null,null,null,null,null,null,null,null,null,null,null,null,null,null,null,null,null,null,null,null,null,null,null,null,null,null,null,null,null,null,null,null,null,null,null,null,null,null,null,null,null,null,null,null,null,null,"RES","MF14"]
[null,"MF141","MF.1.4.1   Wild fish catch",null,null,null,null,null,null,null,null,null,null,null,null,null,null,null,null,null,null,null,null,null,null,null,null,null,null,null,null,null,null,null,null,null,null,null,null,null,null,null,null,null,null,null,null,null,null,null,null,null,null,null,null,null,null,null,null,null,null,null,null,null,null,null,null,null,null,null,null,null,null,null,null,null,null,null,null,null,null,null,null,null,null,null,null,null,null,null,"RES","MF141"]
[null,"MF142","MF.1.4.2   All other aquatic animals and plants",null,null,null,null,null,null,null,null,null,null,null,null,null,null,null,null,null,null,null,null,null,null,null,null,null,null,null,null,null,null,null,null,null,null,null,null,null,null,null,null,null,null,null,null,null,null,null,null,null,null,null,null,null,null,null,null,null,null,null,null,null,null,null,null,null,null,null,null,null,null,null,null,null,null,null,null,null,null,null,null,null,null,null,null,null,null,null,"RES","MF142"]
[null,"MF143","               MF.1.4.3   Hunting and gathering",null,null,null,null,null,null,null,null,null,null,null,null,null,null,null,null,null,null,null,null,null,null,null,null,null,null,null,null,null,null,null,null,null,null,null,null,null,null,null,null,null,null,null,null,null,null,null,null,null,null,null,null,null,null,null,null,null,null,null,null,null,null,null,null,null,null,null,null,null,null,null,null,null,null,null,null,null,null,null,null,null,null,null,null,null,null,null,"RES","MF143"]
[null,"MF2","MF.2   Metal ores (gross ores)",null,null,null,null,null,null,null,null,null,null,null,null,null,null,null,null,null,null,null,null,null,null,null,null,null,null,null,null,null,null,null,null,null,null,null,null,null,null,null,null,null,null,null,null,null,null,null,null,null,null,null,null,null,null,null,null,null,null,null,null,null,null,null,null,null,null,null,null,null,null,null,null,null,null,null,null,null,null,null,null,null,null,null,null,null,null,null,"RES","MF2"]
[null,"MF21","MF.2.1   Iron ",null,null,null,null,null,null,null,null,null,null,null,null,null,null,null,null,null,null,null,null,null,null,null,null,null,null,null,null,null,null,null,null,null,null,null,null,null,null,null,null,null,null,null,null,null,null,null,null,null,null,null,null,null,null,null,null,null,null,null,null,null,null,null,null,null,null,null,null,null,null,null,null,null,null,null,null,null,null,null,null,null,null,null,null,null,null,null,"RES","MF21"]
[null,"MF22","MF.2.2   Non-ferrous metal",null,null,null,null,null,null,null,null,null,null,null,null,null,null,null,null,null,null,null,null,null,null,null,null,null,null,null,null,null,null,null,null,null,null,null,null,null,null,null,null,null,null,null,null,null,null,null,null,null,null,null,null,null,null,null,null,null,null,null,null,null,null,null,null,null,null,null,null,null,null,null,null,null,null,null,null,null,null,null,null,null,null,null,null,null,null,null,"RES","MF22"]
[null,"MF221","MF.2.2.1 Copper ",null,null,null,null,null,null,null,null,null,null,null,null,null,null,null,null,null,null,null,null,null,null,null,null,null,null,null,null,null,null,null,null,null,null,null,null,null,null,null,null,null,null,null,null,null,null,null,null,null,null,null,null,null,null,null,null,null,null,null,null,null,null,null,null,null,null,null,null,null,null,null,null,null,null,null,null,null,null,null,null,null,null,null,null,null,null,null,"RES","MF221"]
[null,"MF221M","MF.2.2.1 MEMO Copper - metal content",null,null,null,null,null,null,null,null,null,null,null,null,null,null,null,null,null,null,null,null,null,null,null,null,null,null,null,null,null,null,null,null,null,null,null,null,null,null,null,null,null,null,null,null,null,null,null,null,null,null,null,null,null,null,null,null,null,null,null,null,null,null,null,null,null,null,null,null,null,null,null,null,null,null,null,null,null,null,null,null,null,null,null,null,null,null,null,"RES","MEMO_MF221"]
[null,"MF222","MF.2.2.2 Nickel ",null,null,null,null,null,null,null,null,null,null,null,null,null,null,null,null,null,null,null,null,null,null,null,null,null,null,null,null,null,null,null,null,null,null,null,null,null,null,null,null,null,null,null,null,null,null,null,null,null,null,null,null,null,null,null,null,null,null,null,null,null,null,null,null,null,null,null,null,null,null,null,null,null,null,null,null,null,null,null,null,null,null,null,null,null,null,null,"RES","MF222"]
[null,"MF222M","MF.2.2.2 MEMO Nickel - metal content ",null,null,null,null,null,null,null,null,null,null,null,null,null,null,null,null,null,null,null,null,null,null,null,null,null,null,null,null,null,null,null,null,null,null,null,null,null,null,null,null,null,null,null,null,null,null,null,null,null,null,null,null,null,null,null,null,null,null,null,null,null,null,null,null,null,null,null,null,null,null,null,null,null,null,null,null,null,null,null,null,null,null,null,null,null,null,null,"RES","MEMO_MF222"]
[null,"MF223","MF.2.2.3 Lead ",null,null,null,null,null,null,null,null,null,null,null,null,null,null,null,null,null,null,null,null,null,null,null,null,null,null,null,null,null,null,null,null,null,null,null,null,null,null,null,null,null,null,null,null,null,null,null,null,null,null,null,null,null,null,null,null,null,null,null,null,null,null,null,null,null,null,null,null,null,null,null,null,null,null,null,null,null,null,null,null,null,null,null,null,null,null,null,"RES","MF223"]
[null,"MF223M","MF.2.2.3 MEMO Lead - metal content ",null,null,null,null,null,null,null,null,null,null,null,null,null,null,null,null,null,null,null,null,null,null,null,null,null,null,null,null,null,null,null,null,null,null,null,null,null,null,null,null,null,null,null,null,null,null,null,null,null,null,null,null,null,null,null,null,null,null,null,null,null,null,null,null,null,null,null,null,null,null,null,null,null,null,null,null,null,null,null,null,null,null,null,null,null,null,null,"RES","MEMO_MF223"]
[null,"MF224","MF.2.2.4 Zinc  ",null,null,null,null,null,null,null,null,null,null,null,null,null,null,null,null,null,null,null,null,null,null,null,null,null,null,null,null,null,null,null,null,null,null,null,null,null,null,null,null,null,null,null,null,null,null,null,null,null,null,null,null,null,null,null,null,null,null,null,null,null,null,null,null,null,null,null,null,null,null,null,null,null,null,null,null,null,null,null,null,null,null,null,null,null,null,null,"RES","MF224"]
[null,"MF224M","MF.2.2.4 MEMO Zinc - metal content ",null,null,null,null,null,null,null,null,null,null,null,null,null,null,null,null,null,null,null,null,null,null,null,null,null,null,null,null,null,null,null,null,null,null,null,null,null,null,null,null,null,null,null,null,null,null,null,null,null,null,null,null,null,null,null,null,null,null,null,null,null,null,null,null,null,null,null,null,null,null,null,null,null,null,null,null,null,null,null,null,null,null,null,null,null,null,null,"RES","MEMO_MF224"]
[null,"MF225","MF.2.2.5 Tin ",null,null,null,null,null,null,null,null,null,null,null,null,null,null,null,null,null,null,null,null,null,null,null,null,null,null,null,null,null,null,null,null,null,null,null,null,null,null,null,null,null,null,null,null,null,null,null,null,null,null,null,null,null,null,null,null,null,null,null,null,null,null,null,null,null,null,null,null,null,null,null,null,null,null,null,null,null,null,null,null,null,null,null,null,null,null,null,"RES","MF225"]
[null,"MF225M","MF.2.2.5 MEMO Tin - metal content ",null,null,null,null,null,null,null,null,null,null,null,null,null,null,null,null,null,null,null,null,null,null,null,null,null,null,null,null,null,null,null,null,null,null,null,null,null,null,null,null,null,null,null,null,null,null,null,null,null,null,null,null,null,null,null,null,null,null,null,null,null,null,null,null,null,null,null,null,null,null,null,null,null,null,null,null,null,null,null,null,null,null,null,null,null,null,null,"RES","MEMO_MF225"]
[null,"MF226","MF.2.2.6 Gold, silver, platinum and other precious metals ",null,null,null,null,null,null,null,null,null,null,null,null,null,null,null,null,null,null,null,null,null,null,null,null,null,null,null,null,null,null,null,null,null,null,null,null,null,null,null,null,null,null,null,null,null,null,null,null,null,null,null,null,null,null,null,null,null,null,null,null,null,null,null,null,null,null,null,null,null,null,null,null,null,null,null,null,null,null,null,null,null,null,null,null,null,null,null,"RES","MF226"]
[null,"MF227","MF.2.2.7 Bauxite and other aluminium ",null,null,null,null,null,null,null,null,null,null,null,null,null,null,null,null,null,null,null,null,null,null,null,null,null,null,null,null,null,null,null,null,null,null,null,null,null,null,null,null,null,null,null,null,null,null,null,null,null,null,null,null,null,null,null,null,null,null,null,null,null,null,null,null,null,null,null,null,null,null,null,null,null,null,null,null,null,null,null,null,null,null,null,null,null,null,null,"RES","MF227"]
[null,"MF228","MF.2.2.8 Uranium and thorium ",null,null,null,null,null,null,null,null,null,null,null,null,null,null,null,null,null,null,null,null,null,null,null,null,null,null,null,null,null,null,null,null,null,null,null,null,null,null,null,null,null,null,null,null,null,null,null,null,null,null,null,null,null,null,null,null,null,null,null,null,null,null,null,null,null,null,null,null,null,null,null,null,null,null,null,null,null,null,null,null,null,null,null,null,null,null,null,"RES","MF228"]
[null,"MF229","MF.2.2.9 Other non-ferrous metals ",null,null,null,null,null,null,null,null,null,null,null,null,null,null,null,null,null,null,null,null,null,null,null,null,null,null,null,null,null,null,null,null,null,null,null,null,null,null,null,null,null,null,null,null,null,null,null,null,null,null,null,null,null,null,null,null,null,null,null,null,null,null,null,null,null,null,null,null,null,null,null,null,null,null,null,null,null,null,null,null,null,null,null,null,null,null,null,"RES","MF229"]
[null,"MF3","MF.3   Non-metalic minerals",null,null,null,null,null,null,null,null,null,null,null,null,null,null,null,null,null,null,null,null,null,null,null,null,null,null,null,null,null,null,null,null,null,null,null,null,null,null,null,null,null,null,null,null,null,null,null,null,null,null,null,null,null,null,null,null,null,null,null,null,null,null,null,null,null,null,null,null,null,null,null,null,null,null,null,null,null,null,null,null,null,null,null,null,null,null,null,"RES","MF3"]
[null,"MF31","MF.3.1   Marble, granite, sandstone, porphyry, basalt, other ornamental or building stone (excluding slate)",null,null,null,null,null,null,null,null,null,null,null,null,null,null,null,null,null,null,null,null,null,null,null,null,null,null,null,null,null,null,null,null,null,null,null,null,null,null,null,null,null,null,null,null,null,null,null,null,null,null,null,null,null,null,null,null,null,null,null,null,null,null,null,null,null,null,null,null,null,null,null,null,null,null,null,null,null,null,null,null,null,null,null,null,null,null,null,"RES","MF31"]
[null,"MF32","MF.3.2  Chalk and dolomite",null,null,null,null,null,null,null,null,null,null,null,null,null,null,null,null,null,null,null,null,null,null,null,null,null,null,null,null,null,null,null,null,null,null,null,null,null,null,null,null,null,null,null,null,null,null,null,null,null,null,null,null,null,null,null,null,null,null,null,null,null,null,null,null,null,null,null,null,null,null,null,null,null,null,null,null,null,null,null,null,null,null,null,null,null,null,null,"RES","MF32"]
[null,"MF33","MF.3.3   Slate",null,null,null,null,null,null,null,null,null,null,null,null,null,null,null,null,null,null,null,null,null,null,null,null,null,null,null,null,null,null,null,null,null,null,null,null,null,null,null,null,null,null,null,null,null,null,null,null,null,null,null,null,null,null,null,null,null,null,null,null,null,null,null,null,null,null,null,null,null,null,null,null,null,null,null,null,null,null,null,null,null,null,null,null,null,null,null,"RES","MF33"]
[null,"MF34","MF.3.4   Chemical and fertilizer minerals",null,null,null,null,null,null,null,null,null,null,null,null,null,null,null,null,null,null,null,null,null,null,null,null,null,null,null,null,null,null,null,null,null,null,null,null,null,null,null,null,null,null,null,null,null,null,null,null,null,null,null,null,null,null,null,null,null,null,null,null,null,null,null,null,null,null,null,null,null,null,null,null,null,null,null,null,null,null,null,null,null,null,null,null,null,null,null,"RES","MF34"]
[null,"MF35","MF.3.5   Salt",null,null,null,null,null,null,null,null,null,null,null,null,null,null,null,null,null,null,null,null,null,null,null,null,null,null,null,null,null,null,null,null,null,null,null,null,null,null,null,null,null,null,null,null,null,null,null,null,null,null,null,null,null,null,null,null,null,null,null,null,null,null,null,null,null,null,null,null,null,null,null,null,null,null,null,null,null,null,null,null,null,null,null,null,null,null,null,"RES","MF35"]
[null,"MF36","MF.3.6   Limestone and gypsum",null,null,null,null,null,null,null,null,null,null,null,null,null,null,null,null,null,null,null,null,null,null,null,null,null,null,null,null,null,null,null,null,null,null,null,null,null,null,null,null,null,null,null,null,null,null,null,null,null,null,null,null,null,null,null,null,null,null,null,null,null,null,null,null,null,null,null,null,null,null,null,null,null,null,null,null,null,null,null,null,null,null,null,null,null,null,null,"RES","MF36"]
[null,"MF37","MF.3.7   Clays and kaolin",null,null,null,null,null,null,null,null,null,null,null,null,null,null,null,null,null,null,null,null,null,null,null,null,null,null,null,null,null,null,null,null,null,null,null,null,null,null,null,null,null,null,null,null,null,null,null,null,null,null,null,null,null,null,null,null,null,null,null,null,null,null,null,null,null,null,null,null,null,null,null,null,null,null,null,null,null,null,null,null,null,null,null,null,null,null,null,"RES","MF37"]
[null,"MF38","MF.3.8   Sand and gravel",null,null,null,null,null,null,null,null,null,null,null,null,null,null,null,null,null,null,null,null,null,null,null,null,null,null,null,null,null,null,null,null,null,null,null,null,null,null,null,null,null,null,null,null,null,null,null,null,null,null,null,null,null,null,null,null,null,null,null,null,null,null,null,null,null,null,null,null,null,null,null,null,null,null,null,null,null,null,null,null,null,null,null,null,null,null,null,"RES","MF38"]
[null,"MF39","MF.3.9   Other non-metallic minerals n.e.c",null,null,null,null,null,null,null,null,null,null,null,null,null,null,null,null,null,null,null,null,null,null,null,null,null,null,null,null,null,null,null,null,null,null,null,null,null,null,null,null,null,null,null,null,null,null,null,null,null,null,null,null,null,null,null,null,null,null,null,null,null,null,null,null,null,null,null,null,null,null,null,null,null,null,null,null,null,null,null,null,null,null,null,null,null,null,null,"RES","MF39"]
[null,"MF310","MF.3.A   Excavated earthen materials (including soil), only if used (optional reporting) ",null,null,null,null,null,null,null,null,null,null,null,null,null,null,null,null,null,null,null,null,null,null,null,null,null,null,null,null,null,null,null,null,null,null,null,null,null,null,null,null,null,null,null,null,null,null,null,null,null,null,null,null,null,null,null,null,null,null,null,null,null,null,null,null,null,null,null,null,null,null,null,null,null,null,null,null,null,null,null,null,null,null,null,null,null,null,null,"RES","MF3A"]
[null,"MF4","MF.4   Fossil energy materials/carriers",null,null,null,null,null,null,null,null,null,null,null,null,null,null,null,null,null,null,null,null,null,null,null,null,null,null,null,null,null,null,null,null,null,null,null,null,null,null,null,null,null,null,null,null,null,null,null,null,null,null,null,null,null,null,null,null,null,null,null,null,null,null,null,null,null,null,null,null,null,null,null,null,null,null,null,null,null,null,null,null,null,null,null,null,null,null,null,"RES","MF4"]
[null,"MF41","MF.4.1   Coal and other solid energy materials/carriers",null,null,null,null,null,null,null,null,null,null,null,null,null,null,null,null,null,null,null,null,null,null,null,null,null,null,null,null,null,null,null,null,null,null,null,null,null,null,null,null,null,null,null,null,null,null,null,null,null,null,null,null,null,null,null,null,null,null,null,null,null,null,null,null,null,null,null,null,null,null,null,null,null,null,null,null,null,null,null,null,null,null,null,null,null,null,null,"RES","MF41"]
[null,"MF411","MF.4.1.1   Lignite (brown coal)",null,null,null,null,null,null,null,null,null,null,null,null,null,null,null,null,null,null,null,null,null,null,null,null,null,null,null,null,null,null,null,null,null,null,null,null,null,null,null,null,null,null,null,null,null,null,null,null,null,null,null,null,null,null,null,null,null,null,null,null,null,null,null,null,null,null,null,null,null,null,null,null,null,null,null,null,null,null,null,null,null,null,null,null,null,null,null,"RES","MF411"]
[null,"MF412","MF.4.1.2   Hard coal",null,null,null,null,null,null,null,null,null,null,null,null,null,null,null,null,null,null,null,null,null,null,null,null,null,null,null,null,null,null,null,null,null,null,null,null,null,null,null,null,null,null,null,null,null,null,null,null,null,null,null,null,null,null,null,null,null,null,null,null,null,null,null,null,null,null,null,null,null,null,null,null,null,null,null,null,null,null,null,null,null,null,null,null,null,null,null,"RES","MF412"]
[null,"MF413","MF.4.1.3   Oil shale and tar sands",null,null,null,null,null,null,null,null,null,null,null,null,null,null,null,null,null,null,null,null,null,null,null,null,null,null,null,null,null,null,null,null,null,null,null,null,null,null,null,null,null,null,null,null,null,null,null,null,null,null,null,null,null,null,null,null,null,null,null,null,null,null,null,null,null,null,null,null,null,null,null,null,null,null,null,null,null,null,null,null,null,null,null,null,null,null,null,"RES","MF413"]
[null,"MF414","MF.4.1.4   Peat",null,null,null,null,null,null,null,null,null,null,null,null,null,null,null,null,null,null,null,null,null,null,null,null,null,null,null,null,null,null,null,null,null,null,null,null,null,null,null,null,null,null,null,null,null,null,null,null,null,null,null,null,null,null,null,null,null,null,null,null,null,null,null,null,null,null,null,null,null,null,null,null,null,null,null,null,null,null,null,null,null,null,null,null,null,null,null,"RES","MF414"]
[null,"MF42","MF.4.2   Liquid and gaseous energy materials/carriers",null,null,null,null,null,null,null,null,null,null,null,null,null,null,null,null,null,null,null,null,null,null,null,null,null,null,null,null,null,null,null,null,null,null,null,null,null,null,null,null,null,null,null,null,null,null,null,null,null,null,null,null,null,null,null,null,null,null,null,null,null,null,null,null,null,null,null,null,null,null,null,null,null,null,null,null,null,null,null,null,null,null,null,null,null,null,null,"RES","MF42"]
[null,"MF421","MF.4.2.1  Crude oil, condensate and natural gas liquids (NGL)",null,null,null,null,null,null,null,null,null,null,null,null,null,null,null,null,null,null,null,null,null,null,null,null,null,null,null,null,null,null,null,null,null,null,null,null,null,null,null,null,null,null,null,null,null,null,null,null,null,null,null,null,null,null,null,null,null,null,null,null,null,null,null,null,null,null,null,null,null,null,null,null,null,null,null,null,null,null,null,null,null,null,null,null,null,null,null,"RES","MF421"]
[null,"MF422","MF.4.2.2   Natural gas",null,null,null,null,null,null,null,null,null,null,null,null,null,null,null,null,null,null,null,null,null,null,null,null,null,null,null,null,null,null,null,null,null,null,null,null,null,null,null,null,null,null,null,null,null,null,null,null,null,null,null,null,null,null,null,null,null,null,null,null,null,null,null,null,null,null,null,null,null,null,null,null,null,null,null,null,null,null,null,null,null,null,null,null,null,null,null,"RES","MF422"]
[null,"TOTAL","Total domestic extraction",null,null,{"$f":" IFERROR(IF(COUNT(F4,F31,F48,F59)=4,F4+F31+F48+F59,\":\"),\":\")","v":":"},null,{"$f":" IFERROR(IF(COUNT(H4,H31,H48,H59)=4,H4+H31+H48+H59,\":\"),\":\")","v":":"},null,{"$f":" IFERROR(IF(COUNT(J4,J31,J48,J59)=4,J4+J31+J48+J59,\":\"),\":\")","v":":"},null,{"$f":" IFERROR(IF(COUNT(L4,L31,L48,L59)=4,L4+L31+L48+L59,\":\"),\":\")","v":":"},null,{"$f":" IFERROR(IF(COUNT(N4,N31,N48,N59)=4,N4+N31+N48+N59,\":\"),\":\")","v":":"},null,{"$f":" IFERROR(IF(COUNT(P4,P31,P48,P59)=4,P4+P31+P48+P59,\":\"),\":\")","v":":"},null,{"$f":" IFERROR(IF(COUNT(R4,R31,R48,R59)=4,R4+R31+R48+R59,\":\"),\":\")","v":":"},null,{"$f":" IFERROR(IF(COUNT(T4,T31,T48,T59)=4,T4+T31+T48+T59,\":\"),\":\")","v":":"},null,{"$f":" IFERROR(IF(COUNT(V4,V31,V48,V59)=4,V4+V31+V48+V59,\":\"),\":\")","v":":"},null,{"$f":" IFERROR(IF(COUNT(X4,X31,X48,X59)=4,X4+X31+X48+X59,\":\"),\":\")","v":":"},null,{"$f":" IFERROR(IF(COUNT(Z4,Z31,Z48,Z59)=4,Z4+Z31+Z48+Z59,\":\"),\":\")","v":":"},null,{"$f":" IFERROR(IF(COUNT(AB4,AB31,AB48,AB59)=4,AB4+AB31+AB48+AB59,\":\"),\":\")","v":":"},null,{"$f":" IFERROR(IF(COUNT(AD4,AD31,AD48,AD59)=4,AD4+AD31+AD48+AD59,\":\"),\":\")","v":":"},null,{"$f":" IFERROR(IF(COUNT(AF4,AF31,AF48,AF59)=4,AF4+AF31+AF48+AF59,\":\"),\":\")","v":":"},null,{"$f":" IFERROR(IF(COUNT(AH4,AH31,AH48,AH59)=4,AH4+AH31+AH48+AH59,\":\"),\":\")","v":":"},null,{"$f":" IFERROR(IF(COUNT(AJ4,AJ31,AJ48,AJ59)=4,AJ4+AJ31+AJ48+AJ59,\":\"),\":\")","v":":"},null,{"$f":" IFERROR(IF(COUNT(AL4,AL31,AL48,AL59)=4,AL4+AL31+AL48+AL59,\":\"),\":\")","v":":"},null,{"$f":" IFERROR(IF(COUNT(AN4,AN31,AN48,AN59)=4,AN4+AN31+AN48+AN59,\":\"),\":\")","v":":"},null,{"$f":" IFERROR(IF(COUNT(AP4,AP31,AP48,AP59)=4,AP4+AP31+AP48+AP59,\":\"),\":\")","v":":"},null,{"$f":" IFERROR(IF(COUNT(AR4,AR31,AR48,AR59)=4,AR4+AR31+AR48+AR59,\":\"),\":\")","v":":"},null,{"$f":" IFERROR(IF(COUNT(AT4,AT31,AT48,AT59)=4,AT4+AT31+AT48+AT59,\":\"),\":\")","v":":"},null,{"$f":" IFERROR(IF(COUNT(AV4,AV31,AV48,AV59)=4,AV4+AV31+AV48+AV59,\":\"),\":\")","v":":"},null,{"$f":" IFERROR(IF(COUNT(AX4,AX31,AX48,AX59)=4,AX4+AX31+AX48+AX59,\":\"),\":\")","v":":"},null,{"$f":" IFERROR(IF(COUNT(AZ4,AZ31,AZ48,AZ59)=4,AZ4+AZ31+AZ48+AZ59,\":\"),\":\")","v":":"},null,{"$f":" IFERROR(IF(COUNT(BB4,BB31,BB48,BB59)=4,BB4+BB31+BB48+BB59,\":\"),\":\")","v":":"},null,{"$f":" IFERROR(IF(COUNT(BD4,BD31,BD48,BD59)=4,BD4+BD31+BD48+BD59,\":\"),\":\")","v":":"},null,{"$f":" IFERROR(IF(COUNT(BF4,BF31,BF48,BF59)=4,BF4+BF31+BF48+BF59,\":\"),\":\")","v":":"},null,{"$f":" IFERROR(IF(COUNT(BH4,BH31,BH48,BH59)=4,BH4+BH31+BH48+BH59,\":\"),\":\")","v":":"},null,{"$f":" IFERROR(IF(COUNT(BJ4,BJ31,BJ48,BJ59)=4,BJ4+BJ31+BJ48+BJ59,\":\"),\":\")","v":":"},null,{"$f":" IFERROR(IF(COUNT(BL4,BL31,BL48,BL59)=4,BL4+BL31+BL48+BL59,\":\"),\":\")","v":":"},null,{"$f":" IFERROR(IF(COUNT(BN4,BN31,BN48,BN59)=4,BN4+BN31+BN48+BN59,\":\"),\":\")","v":":"},null,null,null,null,null,null,null,null,null,null,null,null,null,null,null,null,null,null,null,null,null,null,null,null,"RES","_T"]

{"sheet":"Table_B","index":10,"n_rows":83,"n_cols":97,"rows_kept":83,"cut":false,"hidden":false,"merged":[[0,92,2,92],[0,93,2,93],[0,94,2,94],[0,95,2,95],[0,96,2,96],[0,87,2,87],[0,88,2,88],[0,89,2,89],[0,90,2,90],[0,91,2,91],[0,41,1,42],[0,27,1,28],[0,29,1,30],[0,31,1,32],[0,17,1,18],[1,2,1,3],[0,15,1,16],[2,2,2,4],[77,2,77,4],[0,13,1,14]]}
["DATAENTRY",null,"   Country:",{"$f":"intro!H8","v":""},null,null,null,null,null,null,null,null,null,null,null,null,null,null,null,null,null,null,null,null,null,null,null,null,null,null,null,null,null,null,null,null,null,null,null,null,null,null,null,null,null,null,null,null,null,null,null,null,null,null,null,null,null,null,null,null,null,null,null,null,null,null,null,null,null,null,null,null,null,null,null,null,null,null,null,null,null,null,null,null,null,null,null,"DEMAND_PROD","ACCOUNTING_ENTRY","COUNTERPART_AREA","BRIDGE_ITEM","MATERIAL","STO","UNIT_MEASURE","UNIT_MULT","PRODUCT","SECTOR"]
["IMP","THS_T","Unit","Million National Currency","1000 Metric tonnes"]
[null,"Matflows","Table B: Imports - total trade (intra + extra EU-28 trade)",null,null,1990,null,1991,null,1992,null,1993,null,1994,null,1995,null,1996,null,1997,null,1998,null,1999,null,2000,null,2001,null,2002,null,2003,null,2004,null,2005,null,2006,null,2007,null,2008,null,2009,null,2010,null,2011,null,2012,null,2013,null,2014,null,2015,null,2016,null,2017,null,2018,null,2019,null,2020]
[null,"MF1","MF.1  Biomass",null,null,null,null,null,null,null,null,null,null,null,null,null,null,null,null,null,null,null,null,null,null,null,null,null,null,null,null,null,null,null,null,null,null,null,null,null,null,null,null,null,null,null,null,null,null,null,null,null,null,null,null,null,null,null,null,null,null,null,null,null,null,null,null,null,null,null,null,null,null,null,null,null,null,null,null,null,null,null,null,null,null,null,null,"P","C","W1","RES","MF1","P7","TN",3,"_T","S1"]
[null,"MF11","MF.1.1   Crops (excluding fodder crops)",null,null,null,null,null,null,null,null,null,null,null,null,null,null,null,null,null,null,null,null,null,null,null,null,null,null,null,null,null,null,null,null,null,null,null,null,null,null,null,null,null,null,null,null,null,null,null,null,null,null,null,null,null,null,null,null,null,null,null,null,null,null,null,null,null,null,null,null,null,null,null,null,null,null,null,null,null,null,null,null,null,null,null,null,null,null,null,"RES","MF11"]
[null,"MF111","MF.1.1.1  Cereals",null,null,null,null,null,null,null,null,null,null,null,null,null,null,null,null,null,null,null,null,null,null,null,null,null,null,null,null,null,null,null,null,null,null,null,null,null,null,null,null,null,null,null,null,null,null,null,null,null,null,null,null,null,null,null,null,null,null,null,null,null,null,null,null,null,null,null,null,null,null,null,null,null,null,null,null,null,null,null,null,null,null,null,null,null,null,null,"RES","MF111"]
[null,"MF112","MF.1.1.2   Roots, tubers",null,null,null,null,null,null,null,null,null,null,null,null,null,null,null,null,null,null,null,null,null,null,null,null,null,null,null,null,null,null,null,null,null,null,null,null,null,null,null,null,null,null,null,null,null,null,null,null,null,null,null,null,null,null,null,null,null,null,null,null,null,null,null,null,null,null,null,null,null,null,null,null,null,null,null,null,null,null,null,null,null,null,null,null,null,null,null,"RES","MF112"]
[null,"MF113","MF.1.1.3   Sugar crops",null,null,null,null,null,null,null,null,null,null,null,null,null,null,null,null,null,null,null,null,null,null,null,null,null,null,null,null,null,null,null,null,null,null,null,null,null,null,null,null,null,null,null,null,null,null,null,null,null,null,null,null,null,null,null,null,null,null,null,null,null,null,null,null,null,null,null,null,null,null,null,null,null,null,null,null,null,null,null,null,null,null,null,null,null,null,null,"RES","MF113"]
[null,"MF114","MF.1.1.4   Pulses",null,null,null,null,null,null,null,null,null,null,null,null,null,null,null,null,null,null,null,null,null,null,null,null,null,null,null,null,null,null,null,null,null,null,null,null,null,null,null,null,null,null,null,null,null,null,null,null,null,null,null,null,null,null,null,null,null,null,null,null,null,null,null,null,null,null,null,null,null,null,null,null,null,null,null,null,null,null,null,null,null,null,null,null,null,null,null,"RES","MF114"]
[null,"MF115","MF.1.1.5   Nuts",null,null,null,null,null,null,null,null,null,null,null,null,null,null,null,null,null,null,null,null,null,null,null,null,null,null,null,null,null,null,null,null,null,null,null,null,null,null,null,null,null,null,null,null,null,null,null,null,null,null,null,null,null,null,null,null,null,null,null,null,null,null,null,null,null,null,null,null,null,null,null,null,null,null,null,null,null,null,null,null,null,null,null,null,null,null,null,"RES","MF115"]
[null,"MF116","MF.1.1.6   Oil-bearing crops",null,null,null,null,null,null,null,null,null,null,null,null,null,null,null,null,null,null,null,null,null,null,null,null,null,null,null,null,null,null,null,null,null,null,null,null,null,null,null,null,null,null,null,null,null,null,null,null,null,null,null,null,null,null,null,null,null,null,null,null,null,null,null,null,null,null,null,null,null,null,null,null,null,null,null,null,null,null,null,null,null,null,null,null,null,null,null,"RES","MF116"]
[null,"MF117","MF.1.1.7   Vegetables ",null,null,null,null,null,null,null,null,null,null,null,null,null,null,null,null,null,null,null,null,null,null,null,null,null,null,null,null,null,null,null,null,null,null,null,null,null,null,null,null,null,null,null,null,null,null,null,null,null,null,null,null,null,null,null,null,null,null,null,null,null,null,null,null,null,null,null,null,null,null,null,null,null,null,null,null,null,null,null,null,null,null,null,null,null,null,null,"RES","MF117"]
[null,"MF118","MF.1.1.8   Fruits ",null,null,null,null,null,null,null,null,null,null,null,null,null,null,null,null,null,null,null,null,null,null,null,null,null,null,null,null,null,null,null,null,null,null,null,null,null,null,null,null,null,null,null,null,null,null,null,null,null,null,null,null,null,null,null,null,null,null,null,null,null,null,null,null,null,null,null,null,null,null,null,null,null,null,null,null,null,null,null,null,null,null,null,null,null,null,null,"RES","MF118"]
[null,"MF119","MF.1.1.9   Fibres",null,null,null,null,null,null,null,null,null,null,null,null,null,null,null,null,null,null,null,null,null,null,null,null,null,null,null,null,null,null,null,null,null,null,null,null,null,null,null,null,null,null,null,null,null,null,null,null,null,null,null,null,null,null,null,null,null,null,null,null,null,null,null,null,null,null,null,null,null,null,null,null,null,null,null,null,null,null,null,null,null,null,null,null,null,null,null,"RES","MF119"]
[null,"MF1110","MF.1.1.A   Other crops (excluding fodder crops) n.e.c. ",null,null,null,null,null,null,null,null,null,null,null,null,null,null,null,null,null,null,null,null,null,null,null,null,null,null,null,null,null,null,null,null,null,null,null,null,null,null,null,null,null,null,null,null,null,null,null,null,null,null,null,null,null,null,null,null,null,null,null,null,null,null,null,null,null,null,null,null,null,null,null,null,null,null,null,null,null,null,null,null,null,null,null,null,null,null,null,"RES","MF11A"]
[null,"MF12","MF.1.2   Crop residues (used) and fodder crops",null,null,null,null,null,null,null,null,null,null,null,null,null,null,null,null,null,null,null,null,null,null,null,null,null,null,null,null,null,null,null,null,null,null,null,null,null,null,null,null,null,null,null,null,null,null,null,null,null,null,null,null,null,null,null,null,null,null,null,null,null,null,null,null,null,null,null,null,null,null,null,null,null,null,null,null,null,null,null,null,null,null,null,null,null,null,null,"RES","MF12"]
[null,"MF121","MF.1.2.1   Crop residues (used)",null,null,null,null,null,null,null,null,null,null,null,null,null,null,null,null,null,null,null,null,null,null,null,null,null,null,null,null,null,null,null,null,null,null,null,null,null,null,null,null,null,null,null,null,null,null,null,null,null,null,null,null,null,null,null,null,null,null,null,null,null,null,null,null,null,null,null,null,null,null,null,null,null,null,null,null,null,null,null,null,null,null,null,null,null,null,null,"RES","MF121"]
[null,"MF1211","MF.1.2.1.1   Straw",null,null,null,null,null,null,null,null,null,null,null,null,null,null,null,null,null,null,null,null,null,null,null,null,null,null,null,null,null,null,null,null,null,null,null,null,null,null,null,null,null,null,null,null,null,null,null,null,null,null,null,null,null,null,null,null,null,null,null,null,null,null,null,null,null,null,null,null,null,null,null,null,null,null,null,null,null,null,null,null,null,null,null,null,null,null,null,"RES","MF1211"]
[null,"MF1212","MF.1.2.1.2   Other crop residues (sugar and fodder beet leaves, etc.)",null,null,null,null,null,null,null,null,null,null,null,null,null,null,null,null,null,null,null,null,null,null,null,null,null,null,null,null,null,null,null,null,null,null,null,null,null,null,null,null,null,null,null,null,null,null,null,null,null,null,null,null,null,null,null,null,null,null,null,null,null,null,null,null,null,null,null,null,null,null,null,null,null,null,null,null,null,null,null,null,null,null,null,null,null,null,null,"RES","MF1212"]
[null,"MF122","MF.1.2.2   Fodder crops and grazed biomass",null,null,null,null,null,null,null,null,null,null,null,null,null,null,null,null,null,null,null,null,null,null,null,null,null,null,null,null,null,null,null,null,null,null,null,null,null,null,null,null,null,null,null,null,null,null,null,null,null,null,null,null,null,null,null,null,null,null,null,null,null,null,null,null,null,null,null,null,null,null,null,null,null,null,null,null,null,null,null,null,null,null,null,null,null,null,null,"RES","MF122"]
[null,"MF1221","MF.1.2.2.1   Fodder crops (including biomass harvest from grassland)",null,null,null,null,null,null,null,null,null,null,null,null,null,null,null,null,null,null,null,null,null,null,null,null,null,null,null,null,null,null,null,null,null,null,null,null,null,null,null,null,null,null,null,null,null,null,null,null,null,null,null,null,null,null,null,null,null,null,null,null,null,null,null,null,null,null,null,null,null,null,null,null,null,null,null,null,null,null,null,null,null,null,null,null,null,null,null,"RES","MF1221"]
[null,"MF13","MF.1.3   Wood ",null,null,null,null,null,null,null,null,null,null,null,null,null,null,null,null,null,null,null,null,null,null,null,null,null,null,null,null,null,null,null,null,null,null,null,null,null,null,null,null,null,null,null,null,null,null,null,null,null,null,null,null,null,null,null,null,null,null,null,null,null,null,null,null,null,null,null,null,null,null,null,null,null,null,null,null,null,null,null,null,null,null,null,null,null,null,null,"RES","MF13"]
[null,"MF131","MF.1.3.1   Timber (industrial roundwood)",null,null,null,null,null,null,null,null,null,null,null,null,null,null,null,null,null,null,null,null,null,null,null,null,null,null,null,null,null,null,null,null,null,null,null,null,null,null,null,null,null,null,null,null,null,null,null,null,null,null,null,null,null,null,null,null,null,null,null,null,null,null,null,null,null,null,null,null,null,null,null,null,null,null,null,null,null,null,null,null,null,null,null,null,null,null,null,"RES","MF131"]
[null,"MF132","MF.1.3.2   Wood fuel and other extraction",null,null,null,null,null,null,null,null,null,null,null,null,null,null,null,null,null,null,null,null,null,null,null,null,null,null,null,null,null,null,null,null,null,null,null,null,null,null,null,null,null,null,null,null,null,null,null,null,null,null,null,null,null,null,null,null,null,null,null,null,null,null,null,null,null,null,null,null,null,null,null,null,null,null,null,null,null,null,null,null,null,null,null,null,null,null,null,"RES","MF132"]
[null,"MF14","MF.1.4   Wild fish catch, aquatic plants and animals, hunting and gathering  ",null,null,null,null,null,null,null,null,null,null,null,null,null,null,null,null,null,null,null,null,null,null,null,null,null,null,null,null,null,null,null,null,null,null,null,null,null,null,null,null,null,null,null,null,null,null,null,null,null,null,null,null,null,null,null,null,null,null,null,null,null,null,null,null,null,null,null,null,null,null,null,null,null,null,null,null,null,null,null,null,null,null,null,null,null,null,null,"RES","MF14"]
[null,"MF141","MF.1.4.1   Wild fish catch",null,null,null,null,null,null,null,null,null,null,null,null,null,null,null,null,null,null,null,null,null,null,null,null,null,null,null,null,null,null,null,null,null,null,null,null,null,null,null,null,null,null,null,null,null,null,null,null,null,null,null,null,null,null,null,null,null,null,null,null,null,null,null,null,null,null,null,null,null,null,null,null,null,null,null,null,null,null,null,null,null,null,null,null,null,null,null,"RES","MF141"]
[null,"MF142","MF.1.4.2   All other aquatic animals and plants",null,null,null,null,null,null,null,null,null,null,null,null,null,null,null,null,null,null,null,null,null,null,null,null,null,null,null,null,null,null,null,null,null,null,null,null,null,null,null,null,null,null,null,null,null,null,null,null,null,null,null,null,null,null,null,null,null,null,null,null,null,null,null,null,null,null,null,null,null,null,null,null,null,null,null,null,null,null,null,null,null,null,null,null,null,null,null,"RES","MF142"]
[null,"MF15","MF.1.5   Live animals and animal products (excluding wild fish, aquatic plants and animals, hunted and gathered animals)",null,null,null,null,null,null,null,null,null,null,null,null,null,null,null,null,null,null,null,null,null,null,null,null,null,null,null,null,null,null,null,null,null,null,null,null,null,null,null,null,null,null,null,null,null,null,null,null,null,null,null,null,null,null,null,null,null,null,null,null,null,null,null,null,null,null,null,null,null,null,null,null,null,null,null,null,null,null,null,null,null,null,null,null,null,null,null,"RES","MF15"]
[null,"MF151","MF.1.5.1   Live animals (excluding wild fish, aquatic plants and animals, hunted and gathered animals)",null,null,null,null,null,null,null,null,null,null,null,null,null,null,null,null,null,null,null,null,null,null,null,null,null,null,null,null,null,null,null,null,null,null,null,null,null,null,null,null,null,null,null,null,null,null,null,null,null,null,null,null,null,null,null,null,null,null,null,null,null,null,null,null,null,null,null,null,null,null,null,null,null,null,null,null,null,null,null,null,null,null,null,null,null,null,null,"RES","MF151"]
[null,"MF152","MF.1.5.2   Meat and meat preparations",null,null,null,null,null,null,null,null,null,null,null,null,null,null,null,null,null,null,null,null,null,null,null,null,null,null,null,null,null,null,null,null,null,null,null,null,null,null,null,null,null,null,null,null,null,null,null,null,null,null,null,null,null,null,null,null,null,null,null,null,null,null,null,null,null,null,null,null,null,null,null,null,null,null,null,null,null,null,null,null,null,null,null,null,null,null,null,"RES","MF152"]
[null,"MF153","MF.1.5.3   Dairy products, birds eggs, and honey",null,null,null,null,null,null,null,null,null,null,null,null,null,null,null,null,null,null,null,null,null,null,null,null,null,null,null,null,null,null,null,null,null,null,null,null,null,null,null,null,null,null,null,null,null,null,null,null,null,null,null,null,null,null,null,null,null,null,null,null,null,null,null,null,null,null,null,null,null,null,null,null,null,null,null,null,null,null,null,null,null,null,null,null,null,null,null,"RES","MF153"]
[null,"MF154","MF.1.5.4   Other products from animals (animal fibres, skins, furs, leather etc.)",null,null,null,null,null,null,null,null,null,null,null,null,null,null,null,null,null,null,null,null,null,null,null,null,null,null,null,null,null,null,null,null,null,null,null,null,null,null,null,null,null,null,null,null,null,null,null,null,null,null,null,null,null,null,null,null,null,null,null,null,null,null,null,null,null,null,null,null,null,null,null,null,null,null,null,null,null,null,null,null,null,null,null,null,null,null,null,"RES","MF154"]
[null,"MF16","MF.1.6   Products mainly from biomass",null,null,null,null,null,null,null,null,null,null,null,null,null,null,null,null,null,null,null,null,null,null,null,null,null,null,null,null,null,null,null,null,null,null,null,null,null,null,null,null,null,null,null,null,null,null,null,null,null,null,null,null,null,null,null,null,null,null,null,null,null,null,null,null,null,null,null,null,null,null,null,null,null,null,null,null,null,null,null,null,null,null,null,null,null,null,null,"RES","MF16"]
[null,"MF2","MF.2   Metal ores (gross ores)",null,null,null,null,null,null,null,null,null,null,null,null,null,null,null,null,null,null,null,null,null,null,null,null,null,null,null,null,null,null,null,null,null,null,null,null,null,null,null,null,null,null,null,null,null,null,null,null,null,null,null,null,null,null,null,null,null,null,null,null,null,null,null,null,null,null,null,null,null,null,null,null,null,null,null,null,null,null,null,null,null,null,null,null,null,null,null,"RES","MF2"]
[null,"MF21","MF.2.1   Iron ",null,null,null,null,null,null,null,null,null,null,null,null,null,null,null,null,null,null,null,null,null,null,null,null,null,null,null,null,null,null,null,null,null,null,null,null,null,null,null,null,null,null,null,null,null,null,null,null,null,null,null,null,null,null,null,null,null,null,null,null,null,null,null,null,null,null,null,null,null,null,null,null,null,null,null,null,null,null,null,null,null,null,null,null,null,null,null,"RES","MF21"]
[null,"MF22","MF.2.2   Non-ferrous metal ",null,null,null,null,null,null,null,null,null,null,null,null,null,null,null,null,null,null,null,null,null,null,null,null,null,null,null,null,null,null,null,null,null,null,null,null,null,null,null,null,null,null,null,null,null,null,null,null,null,null,null,null,null,null,null,null,null,null,null,null,null,null,null,null,null,null,null,null,null,null,null,null,null,null,null,null,null,null,null,null,null,null,null,null,null,null,null,"RES","MF22"]
[null,"MF221","MF.2.2.1   Copper",null,null,null,null,null,null,null,null,null,null,null,null,null,null,null,null,null,null,null,null,null,null,null,null,null,null,null,null,null,null,null,null,null,null,null,null,null,null,null,null,null,null,null,null,null,null,null,null,null,null,null,null,null,null,null,null,null,null,null,null,null,null,null,null,null,null,null,null,null,null,null,null,null,null,null,null,null,null,null,null,null,null,null,null,null,null,null,"RES","MF221"]
[null,"MF222","MF.2.2.2   Nickel",null,null,null,null,null,null,null,null,null,null,null,null,null,null,null,null,null,null,null,null,null,null,null,null,null,null,null,null,null,null,null,null,null,null,null,null,null,null,null,null,null,null,null,null,null,null,null,null,null,null,null,null,null,null,null,null,null,null,null,null,null,null,null,null,null,null,null,null,null,null,null,null,null,null,null,null,null,null,null,null,null,null,null,null,null,null,null,"RES","MF222"]
[null,"MF223","MF.2.2.3   Lead",null,null,null,null,null,null,null,null,null,null,null,null,null,null,null,null,null,null,null,null,null,null,null,null,null,null,null,null,null,null,null,null,null,null,null,null,null,null,null,null,null,null,null,null,null,null,null,null,null,null,null,null,null,null,null,null,null,null,null,null,null,null,null,null,null,null,null,null,null,null,null,null,null,null,null,null,null,null,null,null,null,null,null,null,null,null,null,"RES","MF223"]
[null,"MF224","MF.2.2.4   Zinc",null,null,null,null,null,null,null,null,null,null,null,null,null,null,null,null,null,null,null,null,null,null,null,null,null,null,null,null,null,null,null,null,null,null,null,null,null,null,null,null,null,null,null,null,null,null,null,null,null,null,null,null,null,null,null,null,null,null,null,null,null,null,null,null,null,null,null,null,null,null,null,null,null,null,null,null,null,null,null,null,null,null,null,null,null,null,null,"RES","MF224"]
[null,"MF225","MF.2.2.5   Tin",null,null,null,null,null,null,null,null,null,null,null,null,null,null,null,null,null,null,null,null,null,null,null,null,null,null,null,null,null,null,null,null,null,null,null,null,null,null,null,null,null,null,null,null,null,null,null,null,null,null,null,null,null,null,null,null,null,null,null,null,null,null,null,null,null,null,null,null,null,null,null,null,null,null,null,null,null,null,null,null,null,null,null,null,null,null,null,"RES","MF225"]
[null,"MF226","MF.2.2.6   Gold, silver, platinum and other precious metal",null,null,null,null,null,null,null,null,null,null,null,null,null,null,null,null,null,null,null,null,null,null,null,null,null,null,null,null,null,null,null,null,null,null,null,null,null,null,null,null,null,null,null,null,null,null,null,null,null,null,null,null,null,null,null,null,null,null,null,null,null,null,null,null,null,null,null,null,null,null,null,null,null,null,null,null,null,null,null,null,null,null,null,null,null,null,null,"RES","MF226"]
[null,"MF227","MF.2.2.7   Bauxite and other aluminium",null,null,null,null,null,null,null,null,null,null,null,null,null,null,null,null,null,null,null,null,null,null,null,null,null,null,null,null,null,null,null,null,null,null,null,null,null,null,null,null,null,null,null,null,null,null,null,null,null,null,null,null,null,null,null,null,null,null,null,null,null,null,null,null,null,null,null,null,null,null,null,null,null,null,null,null,null,null,null,null,null,null,null,null,null,null,null,"RES","MF227"]
[null,"MF228","NF.2.2.8   Uranium and thorium",null,null,null,null,null,null,null,null,null,null,null,null,null,null,null,null,null,null,null,null,null,null,null,null,null,null,null,null,null,null,null,null,null,null,null,null,null,null,null,null,null,null,null,null,null,null,null,null,null,null,null,null,null,null,null,null,null,null,null,null,null,null,null,null,null,null,null,null,null,null,null,null,null,null,null,null,null,null,null,null,null,null,null,null,null,null,null,"RES","MF228"]
[null,"MF229","MF.2.2.9   Other non-ferrous metals",null,null,null,null,null,null,null,null,null,null,null,null,null,null,null,null,null,null,null,null,null,null,null,null,null,null,null,null,null,null,null,null,null,null,null,null,null,null,null,null,null,null,null,null,null,null,null,null,null,null,null,null,null,null,null,null,null,null,null,null,null,null,null,null,null,null,null,null,null,null,null,null,null,null,null,null,null,null,null,null,null,null,null,null,null,null,null,"RES","MF229"]
[null,"MF23","MF.2.3   Products mainly from metals",null,null,null,null,null,null,null,null,null,null,null,null,null,null,null,null,null,null,null,null,null,null,null,null,null,null,null,null,null,null,null,null,null,null,null,null,null,null,null,null,null,null,null,null,null,null,null,null,null,null,null,null,null,null,null,null,null,null,null,null,null,null,null,null,null,null,null,null,null,null,null,null,null,null,null,null,null,null,null,null,null,null,null,null,null,null,null,"RES","MF23"]
[null,"MF3","MF.3   Non-metallic minerals",null,null,null,null,null,null,null,null,null,null,null,null,null,null,null,null,null,null,null,null,null,null,null,null,null,null,null,null,null,null,null,null,null,null,null,null,null,null,null,null,null,null,null,null,null,null,null,null,null,null,null,null,null,null,null,null,null,null,null,null,null,null,null,null,null,null,null,null,null,null,null,null,null,null,null,null,null,null,null,null,null,null,null,null,null,null,null,"RES","MF3"]
[null,"MF31","MF.3.1  Marble, granite, sandstone, porphyry, basalt, other ornamental or building stone (excluding slate)",null,null,null,null,null,null,null,null,null,null,null,null,null,null,null,null,null,null,null,null,null,null,null,null,null,null,null,null,null,null,null,null,null,null,null,null,null,null,null,null,null,null,null,null,null,null,null,null,null,null,null,null,null,null,null,null,null,null,null,null,null,null,null,null,null,null,null,null,null,null,null,null,null,null,null,null,null,null,null,null,null,null,null,null,null,null,null,"RES","MF31"]
[null,"MF32","MF.3.2  Chalk and dolomite",null,null,null,null,null,null,null,null,null,null,null,null,null,null,null,null,null,null,null,null,null,null,null,null,null,null,null,null,null,null,null,null,null,null,null,null,null,null,null,null,null,null,null,null,null,null,null,null,null,null,null,null,null,null,null,null,null,null,null,null,null,null,null,null,null,null,null,null,null,null,null,null,null,null,null,null,null,null,null,null,null,null,null,null,null,null,null,"RES","MF32"]
[null,"MF33","MF.3.3  Slate",null,null,null,null,null,null,null,null,null,null,null,null,null,null,null,null,null,null,null,null,null,null,null,null,null,null,null,null,null,null,null,null,null,null,null,null,null,null,null,null,null,null,null,null,null,null,null,null,null,null,null,null,null,null,null,null,null,null,null,null,null,null,null,null,null,null,null,null,null,null,null,null,null,null,null,null,null,null,null,null,null,null,null,null,null,null,null,"RES","MF33"]
[null,"MF34","MF.3.4  Chemical and fertilizer minerals ",null,null,null,null,null,null,null,null,null,null,null,null,null,null,null,null,null,null,null,null,null,null,null,null,null,null,null,null,null,null,null,null,null,null,null,null,null,null,null,null,null,null,null,null,null,null,null,null,null,null,null,null,null,null,null,null,null,null,null,null,null,null,null,null,null,null,null,null,null,null,null,null,null,null,null,null,null,null,null,null,null,null,null,null,null,null,null,"RES","MF34"]
[null,"MF35","MF.3.5  Salt",null,null,null,null,null,null,null,null,null,null,null,null,null,null,null,null,null,null,null,null,null,null,null,null,null,null,null,null,null,null,null,null,null,null,null,null,null,null,null,null,null,null,null,null,null,null,null,null,null,null,null,null,null,null,null,null,null,null,null,null,null,null,null,null,null,null,null,null,null,null,null,null,null,null,null,null,null,null,null,null,null,null,null,null,null,null,null,"RES","MF35"]
[null,"MF36","MF.3.6  Limestone and gypsum",null,null,null,null,null,null,null,null,null,null,null,null,null,null,null,null,null,null,null,null,null,null,null,null,null,null,null,null,null,null,null,null,null,null,null,null,null,null,null,null,null,null,null,null,null,null,null,null,null,null,null,null,null,null,null,null,null,null,null,null,null,null,null,null,null,null,null,null,null,null,null,null,null,null,null,null,null,null,null,null,null,null,null,null,null,null,null,"RES","MF36"]
[null,"MF37","MF.3.7  Clays and kaolin",null,null,null,null,null,null,null,null,null,null,null,null,null,null,null,null,null,null,null,null,null,null,null,null,null,null,null,null,null,null,null,null,null,null,null,null,null,null,null,null,null,null,null,null,null,null,null,null,null,null,null,null,null,null,null,null,null,null,null,null,null,null,null,null,null,null,null,null,null,null,null,null,null,null,null,null,null,null,null,null,null,null,null,null,null,null,null,"RES","MF37"]
[null,"MF38","MF.3.8  Sand and gravel",null,null,null,null,null,null,null,null,null,null,null,null,null,null,null,null,null,null,null,null,null,null,null,null,null,null,null,null,null,null,null,null,null,null,null,null,null,null,null,null,null,null,null,null,null,null,null,null,null,null,null,null,null,null,null,null,null,null,null,null,null,null,null,null,null,null,null,null,null,null,null,null,null,null,null,null,null,null,null,null,null,null,null,null,null,null,null,"RES","MF38"]
[null,"MF39","MF.3.9  Other non-metallic minerals n.e.c",null,null,null,null,null,null,null,null,null,null,null,null,null,null,null,null,null,null,null,null,null,null,null,null,null,null,null,null,null,null,null,null,null,null,null,null,null,null,null,null,null,null,null,null,null,null,null,null,null,null,null,null,null,null,null,null,null,null,null,null,null,null,null,null,null,null,null,null,null,null,null,null,null,null,null,null,null,null,null,null,null,null,null,null,null,null,null,"RES","MF39"]
[null,"MF310","MF.3.A  Excavated earthen materials (including soil), only if used (optional reporting)",null,null,null,null,null,null,null,null,null,null,null,null,null,null,null,null,null,null,null,null,null,null,null,null,null,null,null,null,null,null,null,null,null,null,null,null,null,null,null,null,null,null,null,null,null,null,null,null,null,null,null,null,null,null,null,null,null,null,null,null,null,null,null,null,null,null,null,null,null,null,null,null,null,null,null,null,null,null,null,null,null,null,null,null,null,null,null,"RES","MF3A"]
[null,"MF311","MF.3.B  Products mainly from non-metallic minerals",null,null,null,null,null,null,null,null,null,null,null,null,null,null,null,null,null,null,null,null,null,null,null,null,null,null,null,null,null,null,null,null,null,null,null,null,null,null,null,null,null,null,null,null,null,null,null,null,null,null,null,null,null,null,null,null,null,null,null,null,null,null,null,null,null,null,null,null,null,null,null,null,null,null,null,null,null,null,null,null,null,null,null,null,null,null,null,"RES","MF3B"]
[null,"MF4","MF.4   Fossil energy materials/carriers",null,null,null,null,null,null,null,null,null,null,null,null,null,null,null,null,null,null,null,null,null,null,null,null,null,null,null,null,null,null,null,null,null,null,null,null,null,null,null,null,null,null,null,null,null,null,null,null,null,null,null,null,null,null,null,null,null,null,null,null,null,null,null,null,null,null,null,null,null,null,null,null,null,null,null,null,null,null,null,null,null,null,null,null,null,null,null,"RES","MF4"]
[null,"MF41","MF.4.1   Coal and other solid energy materials/carriers",null,null,null,null,null,null,null,null,null,null,null,null,null,null,null,null,null,null,null,null,null,null,null,null,null,null,null,null,null,null,null,null,null,null,null,null,null,null,null,null,null,null,null,null,null,null,null,null,null,null,null,null,null,null,null,null,null,null,null,null,null,null,null,null,null,null,null,null,null,null,null,null,null,null,null,null,null,null,null,null,null,null,null,null,null,null,null,"RES","MF41"]
[null,"MF411","MF.4.1.1   Lignite (brown coal)",null,null,null,null,null,null,null,null,null,null,null,null,null,null,null,null,null,null,null,null,null,null,null,null,null,null,null,null,null,null,null,null,null,null,null,null,null,null,null,null,null,null,null,null,null,null,null,null,null,null,null,null,null,null,null,null,null,null,null,null,null,null,null,null,null,null,null,null,null,null,null,null,null,null,null,null,null,null,null,null,null,null,null,null,null,null,null,"RES","MF411"]
[null,"MF412","MF.4.1.2   Hard coal",null,null,null,null,null,null,null,null,null,null,null,null,null,null,null,null,null,null,null,null,null,null,null,null,null,null,null,null,null,null,null,null,null,null,null,null,null,null,null,null,null,null,null,null,null,null,null,null,null,null,null,null,null,null,null,null,null,null,null,null,null,null,null,null,null,null,null,null,null,null,null,null,null,null,null,null,null,null,null,null,null,null,null,null,null,null,null,"RES","MF412"]
[null,"MF413","MF.4.1.3   Oil shale and tar sands",null,null,null,null,null,null,null,null,null,null,null,null,null,null,null,null,null,null,null,null,null,null,null,null,null,null,null,null,null,null,null,null,null,null,null,null,null,null,null,null,null,null,null,null,null,null,null,null,null,null,null,null,null,null,null,null,null,null,null,null,null,null,null,null,null,null,null,null,null,null,null,null,null,null,null,null,null,null,null,null,null,null,null,null,null,null,null,"RES","MF413"]
[null,"MF414","MF.4.1.4   Peat",null,null,null,null,null,null,null,null,null,null,null,null,null,null,null,null,null,null,null,null,null,null,null,null,null,null,null,null,null,null,null,null,null,null,null,null,null,null,null,null,null,null,null,null,null,null,null,null,null,null,null,null,null,null,null,null,null,null,null,null,null,null,null,null,null,null,null,null,null,null,null,null,null,null,null,null,null,null,null,null,null,null,null,null,null,null,null,"RES","MF414"]
[null,"MF42","MF.4.2   Liquid and gaseous energy materials/carriers",null,null,null,null,null,null,null,null,null,null,null,null,null,null,null,null,null,null,null,null,null,null,null,null,null,null,null,null,null,null,null,null,null,null,null,null,null,null,null,null,null,null,null,null,null,null,null,null,null,null,null,null,null,null,null,null,null,null,null,null,null,null,null,null,null,null,null,null,null,null,null,null,null,null,null,null,null,null,null,null,null,null,null,null,null,null,null,null,"MF42"]
[null,"MF421","MF.4.2.1   Crude oil, condensate and natural gas liquids (NGL)",null,null,null,null,null,null,null,null,null,null,null,null,null,null,null,null,null,null,null,null,null,null,null,null,null,null,null,null,null,null,null,null,null,null,null,null,null,null,null,null,null,null,null,null,null,null,null,null,null,null,null,null,null,null,null,null,null,null,null,null,null,null,null,null,null,null,null,null,null,null,null,null,null,null,null,null,null,null,null,null,null,null,null,null,null,null,null,null,"MF421"]
[null,"MF422","MF.4.2.2   Natural gas",null,null,null,null,null,null,null,null,null,null,null,null,null,null,null,null,null,null,null,null,null,null,null,null,null,null,null,null,null,null,null,null,null,null,null,null,null,null,null,null,null,null,null,null,null,null,null,null,null,null,null,null,null,null,null,null,null,null,null,null,null,null,null,null,null,null,null,null,null,null,null,null,null,null,null,null,null,null,null,null,null,null,null,null,null,null,null,null,"MF422"]
[null,"MF423","MF.4.2.3   Fuels bunkered (Imports:  by resident units abroad; Exports: by non-resident units domestically)",null,null,null,null,null,null,null,null,null,null,null,null,null,null,null,null,null,null,null,null,null,null,null,null,null,null,null,null,null,null,null,null,null,null,null,null,null,null,null,null,null,null,null,null,null,null,null,null,null,null,null,null,null,null,null,null,null,null,null,null,null,null,null,null,null,null,null,null,null,null,null,null,null,null,null,null,null,null,null,null,null,null,null,null,null,null,null,"RES_ABR","MF42"]
[null,"MF4231","MF.4.2.3.1   Fuel for land transport",null,null,null,null,null,null,null,null,null,null,null,null,null,null,null,null,null,null,null,null,null,null,null,null,null,null,null,null,null,null,null,null,null,null,null,null,null,null,null,null,null,null,null,null,null,null,null,null,null,null,null,null,null,null,null,null,null,null,null,null,null,null,null,null,null,null,null,null,null,null,null,null,null,null,null,null,null,null,null,null,null,null,null,null,null,null,null,"RES_ABR_LTR","MF42"]
[null,"MF4232","MF.4.2.3.2   Fuel for water transport",null,null,null,null,null,null,null,null,null,null,null,null,null,null,null,null,null,null,null,null,null,null,null,null,null,null,null,null,null,null,null,null,null,null,null,null,null,null,null,null,null,null,null,null,null,null,null,null,null,null,null,null,null,null,null,null,null,null,null,null,null,null,null,null,null,null,null,null,null,null,null,null,null,null,null,null,null,null,null,null,null,null,null,null,null,null,null,"RES_ABR_WTR","MF42"]
[null,"MF4233","MF.4.2.3.3   Fuel for air transport",null,null,null,null,null,null,null,null,null,null,null,null,null,null,null,null,null,null,null,null,null,null,null,null,null,null,null,null,null,null,null,null,null,null,null,null,null,null,null,null,null,null,null,null,null,null,null,null,null,null,null,null,null,null,null,null,null,null,null,null,null,null,null,null,null,null,null,null,null,null,null,null,null,null,null,null,null,null,null,null,null,null,null,null,null,null,null,"RES_ABR_ATR","MF42"]
[null,"MF43","MF.4.3   Products mainly from fossil energy products",null,null,null,null,null,null,null,null,null,null,null,null,null,null,null,null,null,null,null,null,null,null,null,null,null,null,null,null,null,null,null,null,null,null,null,null,null,null,null,null,null,null,null,null,null,null,null,null,null,null,null,null,null,null,null,null,null,null,null,null,null,null,null,null,null,null,null,null,null,null,null,null,null,null,null,null,null,null,null,null,null,null,null,null,null,null,null,"RES","MF43"]
[null,"MF5","MF.5   Other products",null,null,null,null,null,null,null,null,null,null,null,null,null,null,null,null,null,null,null,null,null,null,null,null,null,null,null,null,null,null,null,null,null,null,null,null,null,null,null,null,null,null,null,null,null,null,null,null,null,null,null,null,null,null,null,null,null,null,null,null,null,null,null,null,null,null,null,null,null,null,null,null,null,null,null,null,null,null,null,null,null,null,null,null,null,null,null,"RES","MF5"]
[null,"MF6","MF.6   Waste for final treatment and disposal",null,null,null,null,null,null,null,null,null,null,null,null,null,null,null,null,null,null,null,null,null,null,null,null,null,null,null,null,null,null,null,null,null,null,null,null,null,null,null,null,null,null,null,null,null,null,null,null,null,null,null,null,null,null,null,null,null,null,null,null,null,null,null,null,null,null,null,null,null,null,null,null,null,null,null,null,null,null,null,null,null,null,null,null,null,null,null,"RES","MF6"]
[null,"SM_RAW","Raw products",null,null,null,null,null,null,null,null,null,null,null,null,null,null,null,null,null,null,null,null,null,null,null,null,null,null,null,null,null,null,null,null,null,null,null,null,null,null,null,null,null,null,null,null,null,null,null,null,null,null,null,null,null,null,null,null,null,null,null,null,null,null,null,null,null,null,null,null,null,null,null,null,null,null,null,null,null,null,null,null,null,null,null,null,null,null,null,"RES","SM_RAW"]
[null,"SM_SFIN","Semi-manufactured products",null,null,null,null,null,null,null,null,null,null,null,null,null,null,null,null,null,null,null,null,null,null,null,null,null,null,null,null,null,null,null,null,null,null,null,null,null,null,null,null,null,null,null,null,null,null,null,null,null,null,null,null,null,null,null,null,null,null,null,null,null,null,null,null,null,null,null,null,null,null,null,null,null,null,null,null,null,null,null,null,null,null,null,null,null,null,null,"RES","SM_SFIN"]
[null,"SM_FIN","Finished products",null,null,null,null,null,null,null,null,null,null,null,null,null,null,null,null,null,null,null,null,null,null,null,null,null,null,null,null,null,null,null,null,null,null,null,null,null,null,null,null,null,null,null,null,null,null,null,null,null,null,null,null,null,null,null,null,null,null,null,null,null,null,null,null,null,null,null,null,null,null,null,null,null,null,null,null,null,null,null,null,null,null,null,null,null,null,null,"RES","SM_FIN"]
[null,"TOTAL","Imports - total trade (intra + extra EU-28 trade) by stage of manufacturing - optional reporting",null,null,{"$f":" IFERROR(IF(COUNT(F4,F34,F47,F59,F73,F74)=6,F4+F34+F47+F59+F73+F74,\":\"),\":\")","v":":"},null,{"$f":" IFERROR(IF(COUNT(H4,H34,H47,H59,H73,H74)=6,H4+H34+H47+H59+H73+H74,\":\"),\":\")","v":":"},null,{"$f":" IFERROR(IF(COUNT(J4,J34,J47,J59,J73,J74)=6,J4+J34+J47+J59+J73+J74,\":\"),\":\")","v":":"},null,{"$f":" IFERROR(IF(COUNT(L4,L34,L47,L59,L73,L74)=6,L4+L34+L47+L59+L73+L74,\":\"),\":\")","v":":"},null,{"$f":" IFERROR(IF(COUNT(N4,N34,N47,N59,N73,N74)=6,N4+N34+N47+N59+N73+N74,\":\"),\":\")","v":":"},null,{"$f":" IFERROR(IF(COUNT(P4,P34,P47,P59,P73,P74)=6,P4+P34+P47+P59+P73+P74,\":\"),\":\")","v":":"},null,{"$f":" IFERROR(IF(COUNT(R4,R34,R47,R59,R73,R74)=6,R4+R34+R47+R59+R73+R74,\":\"),\":\")","v":":"},null,{"$f":" IFERROR(IF(COUNT(T4,T34,T47,T59,T73,T74)=6,T4+T34+T47+T59+T73+T74,\":\"),\":\")","v":":"},null,{"$f":" IFERROR(IF(COUNT(V4,V34,V47,V59,V73,V74)=6,V4+V34+V47+V59+V73+V74,\":\"),\":\")","v":":"},null,{"$f":" IFERROR(IF(COUNT(X4,X34,X47,X59,X73,X74)=6,X4+X34+X47+X59+X73+X74,\":\"),\":\")","v":":"},null,{"$f":" IFERROR(IF(COUNT(Z4,Z34,Z47,Z59,Z73,Z74)=6,Z4+Z34+Z47+Z59+Z73+Z74,\":\"),\":\")","v":":"},null,{"$f":" IFERROR(IF(COUNT(AB4,AB34,AB47,AB59,AB73,AB74)=6,AB4+AB34+AB47+AB59+AB73+AB74,\":\"),\":\")","v":":"},null,{"$f":" IFERROR(IF(COUNT(AD4,AD34,AD47,AD59,AD73,AD74)=6,AD4+AD34+AD47+AD59+AD73+AD74,\":\"),\":\")","v":":"},null,{"$f":" IFERROR(IF(COUNT(AF4,AF34,AF47,AF59,AF73,AF74)=6,AF4+AF34+AF47+AF59+AF73+AF74,\":\"),\":\")","v":":"},null,{"$f":" IFERROR(IF(COUNT(AH4,AH34,AH47,AH59,AH73,AH74)=6,AH4+AH34+AH47+AH59+AH73+AH74,\":\"),\":\")","v":":"},null,{"$f":" IFERROR(IF(COUNT(AJ4,AJ34,AJ47,AJ59,AJ73,AJ74)=6,AJ4+AJ34+AJ47+AJ59+AJ73+AJ74,\":\"),\":\")","v":":"},null,{"$f":" IFERROR(IF(COUNT(AL4,AL34,AL47,AL59,AL73,AL74)=6,AL4+AL34+AL47+AL59+AL73+AL74,\":\"),\":\")","v":":"},null,{"$f":" IFERROR(IF(COUNT(AN4,AN34,AN47,AN59,AN73,AN74)=6,AN4+AN34+AN47+AN59+AN73+AN74,\":\"),\":\")","v":":"},null,{"$f":" IFERROR(IF(COUNT(AP4,AP34,AP47,AP59,AP73,AP74)=6,AP4+AP34+AP47+AP59+AP73+AP74,\":\"),\":\")","v":":"},null,{"$f":" IFERROR(IF(COUNT(AR4,AR34,AR47,AR59,AR73,AR74)=6,AR4+AR34+AR47+AR59+AR73+AR74,\":\"),\":\")","v":":"},null,{"$f":" IFERROR(IF(COUNT(AT4,AT34,AT47,AT59,AT73,AT74)=6,AT4+AT34+AT47+AT59+AT73+AT74,\":\"),\":\")","v":":"},null,{"$f":" IFERROR(IF(COUNT(AV4,AV34,AV47,AV59,AV73,AV74)=6,AV4+AV34+AV47+AV59+AV73+AV74,\":\"),\":\")","v":":"},null,{"$f":" IFERROR(IF(COUNT(AX4,AX34,AX47,AX59,AX73,AX74)=6,AX4+AX34+AX47+AX59+AX73+AX74,\":\"),\":\")","v":":"},null,{"$f":" IFERROR(IF(COUNT(AZ4,AZ34,AZ47,AZ59,AZ73,AZ74)=6,AZ4+AZ34+AZ47+AZ59+AZ73+AZ74,\":\"),\":\")","v":":"},null,{"$f":" IFERROR(IF(COUNT(BB4,BB34,BB47,BB59,BB73,BB74)=6,BB4+BB34+BB47+BB59+BB73+BB74,\":\"),\":\")","v":":"},null,{"$f":" IFERROR(IF(COUNT(BD4,BD34,BD47,BD59,BD73,BD74)=6,BD4+BD34+BD47+BD59+BD73+BD74,\":\"),\":\")","v":":"},null,{"$f":" IFERROR(IF(COUNT(BF4,BF34,BF47,BF59,BF73,BF74)=6,BF4+BF34+BF47+BF59+BF73+BF74,\":\"),\":\")","v":":"},null,{"$f":" IFERROR(IF(COUNT(BH4,BH34,BH47,BH59,BH73,BH74)=6,BH4+BH34+BH47+BH59+BH73+BH74,\":\"),\":\")","v":":"},null,{"$f":" IFERROR(IF(COUNT(BJ4,BJ34,BJ47,BJ59,BJ73,BJ74)=6,BJ4+BJ34+BJ47+BJ59+BJ73+BJ74,\":\"),\":\")","v":":"},null,{"$f":" IFERROR(IF(COUNT(BL4,BL34,BL47,BL59,BL73,BL74)=6,BL4+BL34+BL47+BL59+BL73+BL74,\":\"),\":\")","v":":"},null,{"$f":" IFERROR(IF(COUNT(BN4,BN34,BN47,BN59,BN73,BN74)=6,BN4+BN34+BN47+BN59+BN73+BN74,\":\"),\":\")","v":":"},null,null,null,null,null,null,null,null,null,null,null,null,null,null,null,null,null,null,null,null,null,null,null,null,"RES","_T"]
[]
[]
[]
[]
[null,null,null,null,"BRIDGE_ITEM",{"$f":"IF(COUNT(F68:F71)>0,\"TER\",\"RES\")","v":"RES"},null,{"$f":"IF(COUNT(H68:H71)>0,\"TER\",\"RES\")","v":"RES"},null,{"$f":"IF(COUNT(J68:J71)>0,\"TER\",\"RES\")","v":"RES"},null,{"$f":"IF(COUNT(L68:L71)>0,\"TER\",\"RES\")","v":"RES"},null,{"$f":"IF(COUNT(N68:N71)>0,\"TER\",\"RES\")","v":"RES"},null,{"$f":"IF(COUNT(P68:P71)>0,\"TER\",\"RES\")","v":"RES"},null,{"$f":"IF(COUNT(R68:R71)>0,\"TER\",\"RES\")","v":"RES"},null,{"$f":"IF(COUNT(T68:T71)>0,\"TER\",\"RES\")","v":"RES"},null,{"$f":"IF(COUNT(V68:V71)>0,\"TER\",\"RES\")","v":"RES"},null,{"$f":"IF(COUNT(X68:X71)>0,\"TER\",\"RES\")","v":"RES"},null,{"$f":"IF(COUNT(Z68:Z71)>0,\"TER\",\"RES\")","v":"RES"},null,{"$f":"IF(COUNT(AB68:AB71)>0,\"TER\",\"RES\")","v":"RES"},null,{"$f":"IF(COUNT(AD68:AD71)>0,\"TER\",\"RES\")","v":"RES"},null,{"$f":"IF(COUNT(AF68:AF71)>0,\"TER\",\"RES\")","v":"RES"},null,{"$f":"IF(COUNT(AH68:AH71)>0,\"TER\",\"RES\")","v":"RES"},null,{"$f":"IF(COUNT(AJ68:AJ71)>0,\"TER\",\"RES\")","v":"RES"},null,{"$f":"IF(COUNT(AL68:AL71)>0,\"TER\",\"RES\")","v":"RES"},null,{"$f":"IF(COUNT(AN69:AN71)>0,\"TER\",\"RES\")","v":"RES"},null,{"$f":"IF(COUNT(AP68:AP71)>0,\"TER\",\"RES\")","v":"RES"},null,{"$f":"IF(COUNT(AR68:AR71)>0,\"TER\",\"RES\")","v":"RES"},null,{"$f":"IF(COUNT(AT68:AT71)>0,\"TER\",\"RES\")","v":"RES"},null,{"$f":"IF(COUNT(AV68:AV71)>0,\"TER\",\"RES\")","v":"RES"},null,{"$f":"IF(COUNT(AX68:AX71)>0,\"TER\",\"RES\")","v":"RES"},null,{"$f":"IF(COUNT(AZ68:AZ71)>0,\"TER\",\"RES\")","v":"RES"},null,{"$f":"IF(COUNT(BB68:BB71)>0,\"TER\",\"RES\")","v":"RES"},null,{"$f":"IF(COUNT(BD68:BD71)>0,\"TER\",\"RES\")","v":"RES"},null,{"$f":"IF(COUNT(BF68:BF71)>0,\"TER\",\"RES\")","v":"RES"},null,{"$f":"IF(COUNT(BH68:BH71)>0,\"TER\",\"RES\")","v":"RES"},null,{"$f":"IF(COUNT(BJ68:BJ71)>0,\"TER\",\"RES\")","v":"RES"},null,{"$f":"IF(COUNT(BL69:BL71)>0,\"TER\",\"RES\")","v":"RES"}]

{"sheet":"Table_C","index":11,"n_rows":78,"n_cols":66,"rows_kept":78,"cut":false,"hidden":false,"merged":[[0,41,1,42],[1,2,1,3],[2,2,2,4],[77,2,77,4],[0,13,1,14],[0,15,1,16],[0,17,1,18],[0,27,1,28],[0,29,1,30],[0,31,1,32]]}
["DATAENTRY",null,"   Country:",{"$f":"intro!H8","v":""}]
[null,null,"Unit","Million National Currency","1000 Metric tonnes"]
[null,null,"Table C: Imports - extra-EU28 trade",null,null,1990,null,1991,null,1992,null,1993,null,1994,null,1995,null,1996,null,1997,null,1998,null,1999,null,2000,null,2001,null,2002,null,2003,null,2004,null,2005,null,2006,null,2007,null,2008,null,2009,null,2010,null,2011,null,2012,null,2013,null,2014,null,2015,null,2016,null,2017,null,2018,null,2019,null,2020]
[null,null,"MF.1  Biomass"]
[null,null,"MF.1.1   Crops (excluding fodder crops)"]
[null,null,"MF.1.1.1  Cereals"]
[null,null,"MF.1.1.2   Roots, tubers"]
[null,null,"MF.1.1.3   Sugar crops"]
[null,null,"MF.1.1.4   Pulses"]
[null,null,"MF.1.1.5   Nuts"]
[null,null,"MF.1.1.6   Oil-bearing crops"]
[null,null,"MF.1.1.7   Vegetables "]
[null,null,"MF.1.1.8   Fruits "]
[null,null,"MF.1.1.9   Fibres"]
[null,null,"MF.1.1.A   Other crops (excluding fodder crops) n.e.c. "]
[null,null,"MF.1.2   Crop residues (used) and fodder crops"]
[null,null,"MF.1.2.1   Crop residues (used)"]
[null,null,"MF.1.2.1.1   Straw"]
[null,null,"MF.1.2.1.2   Other crop residues (sugar and fodder beet leaves, etc.)"]
[null,null,"MF.1.2.2   Fodder crops and grazed biomass"]
[null,null,"MF.1.2.2.1   Fodder crops (including biomass harvest from grassland)"]
[null,null,"MF.1.3   Wood "]
[null,null,"MF.1.3.1   Timber (industrial roundwood)"]
[null,null,"MF.1.3.2   Wood fuel and other extraction"]
[null,null,"MF.1.4   Wild fish catch, aquatic plants and animals, hunting and gathering  "]
[null,null,"MF.1.4.1   Wild fish catch"]
[null,null,"MF.1.4.2   All other aquatic animals and plants"]
[null,null,"MF.1.5   Live animals and animal products (excluding wild fish, aquatic plants and animals, hunted and gathered animals)"]
[null,null,"MF.1.5.1   Live animals (excluding wild fish, aquatic plants and animals, hunted and gathered animals)"]
[null,null,"MF.1.5.2   Meat and meat preparations"]
[null,null,"MF.1.5.3   Dairy products, birds eggs, and honey"]
[null,null,"MF.1.5.4   Other products from animals (animal fibres, skins, furs, leather etc.)"]
[null,null,"MF.1.6   Products mainly from biomass"]
[null,null,"MF.2   Metal ores (gross ores)"]
[null,null,"MF.2.1   Iron "]
[null,null,"MF.2.2   Non-ferrous metal "]
[null,null,"MF.2.2.1   Copper"]
[null,null,"MF.2.2.2   Nickel"]
[null,null,"MF.2.2.3   Lead"]
[null,null,"MF.2.2.4   Zinc"]
[null,null,"MF.2.2.5   Tin"]
[null,null,"MF.2.2.6   Gold, silver, platinum and other precious metal"]
[null,null,"MF.2.2.7   Bauxite and other aluminium"]
[null,null,"NF.2.2.8   Uranium and thorium"]
[null,null,"MF.2.2.9   Other non-ferrous metals"]
[null,null,"MF.2.3   Products mainly from metals"]
[null,null,"MF.3   Non-metallic minerals"]
[null,null,"MF.3.1  Marble, granite, sandstone, porphyry, basalt, other ornamental or building stone (excluding slate)"]
[null,null,"MF.3.2  Chalk and dolomite"]
[null,null,"MF.3.3  Slate"]
[null,null,"MF.3.4  Chemical and fertilizer minerals "]
[null,null,"MF.3.5  Salt"]
[null,null,"MF.3.6  Limestone and gypsum"]
[null,null,"MF.3.7  Clays and kaolin"]
[null,null,"MF.3.8  Sand and gravel"]
[null,null,"MF.3.9  Other non-metallic minerals n.e.c"]
[null,null,"MF.3.A  Excavated earthen materials (including soil), only if used (optional reporting)"]
[null,null,"MF.3.B  Products mainly from non-metallic minerals"]
[null,null,"MF.4   Fossil energy materials/carriers"]
[null,null,"MF.4.1  Coal and other solid energy materials/carriers"]
[null,null,"MF.4.1.1   Lignite (brown coal)"]
[null,null,"MF.4.1.2   Hard coal"]
[null,null,"MF.4.1.3   Oil shale and tar sands"]
[null,null,"MF.4.1.4   Peat"]
[null,null,"MF.4.2   Liquid and gaseous energy materials/carriers"]
[null,null,"MF.4.2.1   Crude oil, condensate and natural gas liquids (NGL)"]
[null,null,"MF.4.2.2   Natural gas"]
[null,null,"MF.4.2.3   Fuels bunkered (Imports:  by resident units abroad; Exports: by non-resident units domestically)"]
[null,null,"MF.4.2.3.1   Fuel for land transport"]
[null,null,"MF.4.2.3.2   Fuel for water transport"]
[null,null,"MF.4.2.3.3   Fuel for air transport"]
[null,null,"MF.4.3   Products mainly from fossil energy products"]
[null,null,"MF.5   Other products"]
[null,null,"MF.6   Waste for final treatment and disposal"]
[null,null,"Raw products"]
[null,null,"Semi-manufactured products"]
[null,null,"Finished products"]
[null,null,"Imports - extra-EU28 trade by stage of manufacturing - optional reporting",null,null,{"$f":" IFERROR(IF(COUNT(F4,F34,F47,F59,F73,F74)=6,F4+F34+F47+F59+F73+F74,\":\"),\":\")","v":":"},null,{"$f":" IFERROR(IF(COUNT(H4,H34,H47,H59,H73,H74)=6,H4+H34+H47+H59+H73+H74,\":\"),\":\")","v":":"},null,{"$f":" IFERROR(IF(COUNT(J4,J34,J47,J59,J73,J74)=6,J4+J34+J47+J59+J73+J74,\":\"),\":\")","v":":"},null,{"$f":" IFERROR(IF(COUNT(L4,L34,L47,L59,L73,L74)=6,L4+L34+L47+L59+L73+L74,\":\"),\":\")","v":":"},null,{"$f":" IFERROR(IF(COUNT(N4,N34,N47,N59,N73,N74)=6,N4+N34+N47+N59+N73+N74,\":\"),\":\")","v":":"},null,{"$f":" IFERROR(IF(COUNT(P4,P34,P47,P59,P73,P74)=6,P4+P34+P47+P59+P73+P74,\":\"),\":\")","v":":"},null,{"$f":" IFERROR(IF(COUNT(R4,R34,R47,R59,R73,R74)=6,R4+R34+R47+R59+R73+R74,\":\"),\":\")","v":":"},null,{"$f":" IFERROR(IF(COUNT(T4,T34,T47,T59,T73,T74)=6,T4+T34+T47+T59+T73+T74,\":\"),\":\")","v":":"},null,{"$f":" IFERROR(IF(COUNT(V4,V34,V47,V59,V73,V74)=6,V4+V34+V47+V59+V73+V74,\":\"),\":\")","v":":"},null,{"$f":" IFERROR(IF(COUNT(X4,X34,X47,X59,X73,X74)=6,X4+X34+X47+X59+X73+X74,\":\"),\":\")","v":":"},null,{"$f":" IFERROR(IF(COUNT(Z4,Z34,Z47,Z59,Z73,Z74)=6,Z4+Z34+Z47+Z59+Z73+Z74,\":\"),\":\")","v":":"},null,{"$f":" IFERROR(IF(COUNT(AB4,AB34,AB47,AB59,AB73,AB74)=6,AB4+AB34+AB47+AB59+AB73+AB74,\":\"),\":\")","v":":"},null,{"$f":" IFERROR(IF(COUNT(AD4,AD34,AD47,AD59,AD73,AD74)=6,AD4+AD34+AD47+AD59+AD73+AD74,\":\"),\":\")","v":":"},null,{"$f":" IFERROR(IF(COUNT(AF4,AF34,AF47,AF59,AF73,AF74)=6,AF4+AF34+AF47+AF59+AF73+AF74,\":\"),\":\")","v":":"},null,{"$f":" IFERROR(IF(COUNT(AH4,AH34,AH47,AH59,AH73,AH74)=6,AH4+AH34+AH47+AH59+AH73+AH74,\":\"),\":\")","v":":"},null,{"$f":" IFERROR(IF(COUNT(AJ4,AJ34,AJ47,AJ59,AJ73,AJ74)=6,AJ4+AJ34+AJ47+AJ59+AJ73+AJ74,\":\"),\":\")","v":":"},null,{"$f":" IFERROR(IF(COUNT(AL4,AL34,AL47,AL59,AL73,AL74)=6,AL4+AL34+AL47+AL59+AL73+AL74,\":\"),\":\")","v":":"},null,{"$f":" IFERROR(IF(COUNT(AN4,AN34,AN47,AN59,AN73,AN74)=6,AN4+AN34+AN47+AN59+AN73+AN74,\":\"),\":\")","v":":"},null,{"$f":" IFERROR(IF(COUNT(AP4,AP34,AP47,AP59,AP73,AP74)=6,AP4+AP34+AP47+AP59+AP73+AP74,\":\"),\":\")","v":":"},null,{"$f":" IFERROR(IF(COUNT(AR4,AR34,AR47,AR59,AR73,AR74)=6,AR4+AR34+AR47+AR59+AR73+AR74,\":\"),\":\")","v":":"},null,{"$f":" IFERROR(IF(COUNT(AT4,AT34,AT47,AT59,AT73,AT74)=6,AT4+AT34+AT47+AT59+AT73+AT74,\":\"),\":\")","v":":"},null,{"$f":" IFERROR(IF(COUNT(AV4,AV34,AV47,AV59,AV73,AV74)=6,AV4+AV34+AV47+AV59+AV73+AV74,\":\"),\":\")","v":":"},null,{"$f":" IFERROR(IF(COUNT(AX4,AX34,AX47,AX59,AX73,AX74)=6,AX4+AX34+AX47+AX59+AX73+AX74,\":\"),\":\")","v":":"},null,{"$f":" IFERROR(IF(COUNT(AZ4,AZ34,AZ47,AZ59,AZ73,AZ74)=6,AZ4+AZ34+AZ47+AZ59+AZ73+AZ74,\":\"),\":\")","v":":"},null,{"$f":" IFERROR(IF(COUNT(BB4,BB34,BB47,BB59,BB73,BB74)=6,BB4+BB34+BB47+BB59+BB73+BB74,\":\"),\":\")","v":":"},null,{"$f":" IFERROR(IF(COUNT(BD4,BD34,BD47,BD59,BD73,BD74)=6,BD4+BD34+BD47+BD59+BD73+BD74,\":\"),\":\")","v":":"},null,{"$f":" IFERROR(IF(COUNT(BF4,BF34,BF47,BF59,BF73,BF74)=6,BF4+BF34+BF47+BF59+BF73+BF74,\":\"),\":\")","v":":"},null,{"$f":" IFERROR(IF(COUNT(BH4,BH34,BH47,BH59,BH73,BH74)=6,BH4+BH34+BH47+BH59+BH73+BH74,\":\"),\":\")","v":":"},null,{"$f":" IFERROR(IF(COUNT(BJ4,BJ34,BJ47,BJ59,BJ73,BJ74)=6,BJ4+BJ34+BJ47+BJ59+BJ73+BJ74,\":\"),\":\")","v":":"},null,{"$f":" IFERROR(IF(COUNT(BL4,BL34,BL47,BL59,BL73,BL74)=6,BL4+BL34+BL47+BL59+BL73+BL74,\":\"),\":\")","v":":"},null,{"$f":" IFERROR(IF(COUNT(BN4,BN34,BN47,BN59,BN73,BN74)=6,BN4+BN34+BN47+BN59+BN73+BN74,\":\"),\":\")","v":":"}]

{"sheet":"Table_D","index":12,"n_rows":83,"n_cols":97,"rows_kept":83,"cut":false,"hidden":false,"merged":[[0,92,2,92],[0,93,2,93],[0,94,2,94],[0,95,2,95],[0,96,2,96],[0,87,2,87],[0,88,2,88],[0,89,2,89],[0,90,2,90],[0,91,2,91],[0,15,1,16],[2,2,2,4],[77,2,77,4],[0,13,1,14],[0,41,1,42],[0,27,1,28],[0,29,1,30],[0,31,1,32],[0,17,1,18],[1,2,1,3]]}
["DATAENTRY",null,"   Country:",{"$f":"intro!H8","v":""},null,null,null,null,null,null,null,null,null,null,null,null,null,null,null,null,null,null,null,null,null,null,null,null,null,null,null,null,null,null,null,null,null,null,null,null,null,null,null,null,null,null,null,null,null,null,null,null,null,null,null,null,null,null,null,null,null,null,null,null,null,null,null,null,null,null,null,null,null,null,null,null,null,null,null,null,null,null,null,null,null,null,null,"DEMAND_PROD","ACCOUNTING_ENTRY","COUNTERPART_AREA","BRIDGE_ITEM","MATERIAL","STO","UNIT_MEASURE","UNIT_MULT","PRODUCT","SECTOR"]
["EXP","THS_T","Unit","Million National Currency","1000 Metric tonnes"]
[null,"Matflows","Table D: Exports - total trade (intra + extra EU-28 trade)",null,null,1990,null,1991,null,1992,null,1993,null,1994,null,1995,null,1996,null,1997,null,1998,null,1999,null,2000,null,2001,null,2002,null,2003,null,2004,null,2005,null,2006,null,2007,null,2008,null,2009,null,2010,null,2011,null,2012,null,2013,null,2014,null,2015,null,2016,null,2017,null,2018,null,2019,null,2020]
[null,"MF1","MF.1  Biomass",null,null,null,null,null,null,null,null,null,null,null,null,null,null,null,null,null,null,null,null,null,null,null,null,null,null,null,null,null,null,null,null,null,null,null,null,null,null,null,null,null,null,null,null,null,null,null,null,null,null,null,null,null,null,null,null,null,null,null,null,null,null,null,null,null,null,null,null,null,null,null,null,null,null,null,null,null,null,null,null,null,null,null,null,"P","D","W1","RES","MF1","P6","TN",3,"_T","S1"]
[null,"MF11","MF.1.1   Crops (excluding fodder crops)",null,null,null,null,null,null,null,null,null,null,null,null,null,null,null,null,null,null,null,null,null,null,null,null,null,null,null,null,null,null,null,null,null,null,null,null,null,null,null,null,null,null,null,null,null,null,null,null,null,null,null,null,null,null,null,null,null,null,null,null,null,null,null,null,null,null,null,null,null,null,null,null,null,null,null,null,null,null,null,null,null,null,null,null,null,null,null,"RES","MF11"]
[null,"MF111","MF.1.1.1  Cereals",null,null,null,null,null,null,null,null,null,null,null,null,null,null,null,null,null,null,null,null,null,null,null,null,null,null,null,null,null,null,null,null,null,null,null,null,null,null,null,null,null,null,null,null,null,null,null,null,null,null,null,null,null,null,null,null,null,null,null,null,null,null,null,null,null,null,null,null,null,null,null,null,null,null,null,null,null,null,null,null,null,null,null,null,null,null,null,"RES","MF111"]
[null,"MF112","MF.1.1.2   Roots, tubers",null,null,null,null,null,null,null,null,null,null,null,null,null,null,null,null,null,null,null,null,null,null,null,null,null,null,null,null,null,null,null,null,null,null,null,null,null,null,null,null,null,null,null,null,null,null,null,null,null,null,null,null,null,null,null,null,null,null,null,null,null,null,null,null,null,null,null,null,null,null,null,null,null,null,null,null,null,null,null,null,null,null,null,null,null,null,null,"RES","MF112"]
[null,"MF113","MF.1.1.3   Sugar crops",null,null,null,null,null,null,null,null,null,null,null,null,null,null,null,null,null,null,null,null,null,null,null,null,null,null,null,null,null,null,null,null,null,null,null,null,null,null,null,null,null,null,null,null,null,null,null,null,null,null,null,null,null,null,null,null,null,null,null,null,null,null,null,null,null,null,null,null,null,null,null,null,null,null,null,null,null,null,null,null,null,null,null,null,null,null,null,"RES","MF113"]
[null,"MF114","MF.1.1.4   Pulses",null,null,null,null,null,null,null,null,null,null,null,null,null,null,null,null,null,null,null,null,null,null,null,null,null,null,null,null,null,null,null,null,null,null,null,null,null,null,null,null,null,null,null,null,null,null,null,null,null,null,null,null,null,null,null,null,null,null,null,null,null,null,null,null,null,null,null,null,null,null,null,null,null,null,null,null,null,null,null,null,null,null,null,null,null,null,null,"RES","MF114"]
[null,"MF115","MF.1.1.5   Nuts",null,null,null,null,null,null,null,null,null,null,null,null,null,null,null,null,null,null,null,null,null,null,null,null,null,null,null,null,null,null,null,null,null,null,null,null,null,null,null,null,null,null,null,null,null,null,null,null,null,null,null,null,null,null,null,null,null,null,null,null,null,null,null,null,null,null,null,null,null,null,null,null,null,null,null,null,null,null,null,null,null,null,null,null,null,null,null,"RES","MF115"]
[null,"MF116","MF.1.1.6   Oil-bearing crops",null,null,null,null,null,null,null,null,null,null,null,null,null,null,null,null,null,null,null,null,null,null,null,null,null,null,null,null,null,null,null,null,null,null,null,null,null,null,null,null,null,null,null,null,null,null,null,null,null,null,null,null,null,null,null,null,null,null,null,null,null,null,null,null,null,null,null,null,null,null,null,null,null,null,null,null,null,null,null,null,null,null,null,null,null,null,null,"RES","MF116"]
[null,"MF117","MF.1.1.7   Vegetables ",null,null,null,null,null,null,null,null,null,null,null,null,null,null,null,null,null,null,null,null,null,null,null,null,null,null,null,null,null,null,null,null,null,null,null,null,null,null,null,null,null,null,null,null,null,null,null,null,null,null,null,null,null,null,null,null,null,null,null,null,null,null,null,null,null,null,null,null,null,null,null,null,null,null,null,null,null,null,null,null,null,null,null,null,null,null,null,"RES","MF117"]
[null,"MF118","MF.1.1.8   Fruits ",null,null,null,null,null,null,null,null,null,null,null,null,null,null,null,null,null,null,null,null,null,null,null,null,null,null,null,null,null,null,null,null,null,null,null,null,null,null,null,null,null,null,null,null,null,null,null,null,null,null,null,null,null,null,null,null,null,null,null,null,null,null,null,null,null,null,null,null,null,null,null,null,null,null,null,null,null,null,null,null,null,null,null,null,null,null,null,"RES","MF118"]
[null,"MF119","MF.1.1.9   Fibres",null,null,null,null,null,null,null,null,null,null,null,null,null,null,null,null,null,null,null,null,null,null,null,null,null,null,null,null,null,null,null,null,null,null,null,null,null,null,null,null,null,null,null,null,null,null,null,null,null,null,null,null,null,null,null,null,null,null,null,null,null,null,null,null,null,null,null,null,null,null,null,null,null,null,null,null,null,null,null,null,null,null,null,null,null,null,null,"RES","MF119"]
[null,"MF1110","MF.1.1.A   Other crops (excluding fodder crops) n.e.c. ",null,null,null,null,null,null,null,null,null,null,null,null,null,null,null,null,null,null,null,null,null,null,null,null,null,null,null,null,null,null,null,null,null,null,null,null,null,null,null,null,null,null,null,null,null,null,null,null,null,null,null,null,null,null,null,null,null,null,null,null,null,null,null,null,null,null,null,null,null,null,null,null,null,null,null,null,null,null,null,null,null,null,null,null,null,null,null,"RES","MF11A"]
[null,"MF12","MF.1.2   Crop residues (used) and fodder crops",null,null,null,null,null,null,null,null,null,null,null,null,null,null,null,null,null,null,null,null,null,null,null,null,null,null,null,null,null,null,null,null,null,null,null,null,null,null,null,null,null,null,null,null,null,null,null,null,null,null,null,null,null,null,null,null,null,null,null,null,null,null,null,null,null,null,null,null,null,null,null,null,null,null,null,null,null,null,null,null,null,null,null,null,null,null,null,"RES","MF12"]
[null,"MF121","MF.1.2.1   Crop residues (used)",null,null,null,null,null,null,null,null,null,null,null,null,null,null,null,null,null,null,null,null,null,null,null,null,null,null,null,null,null,null,null,null,null,null,null,null,null,null,null,null,null,null,null,null,null,null,null,null,null,null,null,null,null,null,null,null,null,null,null,null,null,null,null,null,null,null,null,null,null,null,null,null,null,null,null,null,null,null,null,null,null,null,null,null,null,null,null,"RES","MF121"]
[null,"MF1211","MF.1.2.1.1   Straw",null,null,null,null,null,null,null,null,null,null,null,null,null,null,null,null,null,null,null,null,null,null,null,null,null,null,null,null,null,null,null,null,null,null,null,null,null,null,null,null,null,null,null,null,null,null,null,null,null,null,null,null,null,null,null,null,null,null,null,null,null,null,null,null,null,null,null,null,null,null,null,null,null,null,null,null,null,null,null,null,null,null,null,null,null,null,null,"RES","MF1211"]
[null,"MF1212","MF.1.2.1.2   Other crop residues (sugar and fodder beet leaves, etc.)",null,null,null,null,null,null,null,null,null,null,null,null,null,null,null,null,null,null,null,null,null,null,null,null,null,null,null,null,null,null,null,null,null,null,null,null,null,null,null,null,null,null,null,null,null,null,null,null,null,null,null,null,null,null,null,null,null,null,null,null,null,null,null,null,null,null,null,null,null,null,null,null,null,null,null,null,null,null,null,null,null,null,null,null,null,null,null,"RES","MF1212"]
[null,"MF122","MF.1.2.2   Fodder crops and grazed biomass",null,null,null,null,null,null,null,null,null,null,null,null,null,null,null,null,null,null,null,null,null,null,null,null,null,null,null,null,null,null,null,null,null,null,null,null,null,null,null,null,null,null,null,null,null,null,null,null,null,null,null,null,null,null,null,null,null,null,null,null,null,null,null,null,null,null,null,null,null,null,null,null,null,null,null,null,null,null,null,null,null,null,null,null,null,null,null,"RES","MF122"]
[null,"MF1221","MF.1.2.2.1   Fodder crops (including biomass harvest from grassland)",null,null,null,null,null,null,null,null,null,null,null,null,null,null,null,null,null,null,null,null,null,null,null,null,null,null,null,null,null,null,null,null,null,null,null,null,null,null,null,null,null,null,null,null,null,null,null,null,null,null,null,null,null,null,null,null,null,null,null,null,null,null,null,null,null,null,null,null,null,null,null,null,null,null,null,null,null,null,null,null,null,null,null,null,null,null,null,"RES","MF1221"]
[null,"MF13","MF.1.3   Wood ",null,null,null,null,null,null,null,null,null,null,null,null,null,null,null,null,null,null,null,null,null,null,null,null,null,null,null,null,null,null,null,null,null,null,null,null,null,null,null,null,null,null,null,null,null,null,null,null,null,null,null,null,null,null,null,null,null,null,null,null,null,null,null,null,null,null,null,null,null,null,null,null,null,null,null,null,null,null,null,null,null,null,null,null,null,null,null,"RES","MF13"]
[null,"MF131","MF.1.3.1   Timber (industrial roundwood)",null,null,null,null,null,null,null,null,null,null,null,null,null,null,null,null,null,null,null,null,null,null,null,null,null,null,null,null,null,null,null,null,null,null,null,null,null,null,null,null,null,null,null,null,null,null,null,null,null,null,null,null,null,null,null,null,null,null,null,null,null,null,null,null,null,null,null,null,null,null,null,null,null,null,null,null,null,null,null,null,null,null,null,null,null,null,null,"RES","MF131"]
[null,"MF132","MF.1.3.2   Wood fuel and other extraction",null,null,null,null,null,null,null,null,null,null,null,null,null,null,null,null,null,null,null,null,null,null,null,null,null,null,null,null,null,null,null,null,null,null,null,null,null,null,null,null,null,null,null,null,null,null,null,null,null,null,null,null,null,null,null,null,null,null,null,null,null,null,null,null,null,null,null,null,null,null,null,null,null,null,null,null,null,null,null,null,null,null,null,null,null,null,null,"RES","MF132"]
[null,"MF14","MF.1.4   Wild fish catch, aquatic plants and animals, hunting and gathering  ",null,null,null,null,null,null,null,null,null,null,null,null,null,null,null,null,null,null,null,null,null,null,null,null,null,null,null,null,null,null,null,null,null,null,null,null,null,null,null,null,null,null,null,null,null,null,null,null,null,null,null,null,null,null,null,null,null,null,null,null,null,null,null,null,null,null,null,null,null,null,null,null,null,null,null,null,null,null,null,null,null,null,null,null,null,null,null,"RES","MF14"]
[null,"MF141","MF.1.4.1   Wild fish catch",null,null,null,null,null,null,null,null,null,null,null,null,null,null,null,null,null,null,null,null,null,null,null,null,null,null,null,null,null,null,null,null,null,null,null,null,null,null,null,null,null,null,null,null,null,null,null,null,null,null,null,null,null,null,null,null,null,null,null,null,null,null,null,null,null,null,null,null,null,null,null,null,null,null,null,null,null,null,null,null,null,null,null,null,null,null,null,"RES","MF141"]
[null,"MF142","MF.1.4.2   All other aquatic animals and plants",null,null,null,null,null,null,null,null,null,null,null,null,null,null,null,null,null,null,null,null,null,null,null,null,null,null,null,null,null,null,null,null,null,null,null,null,null,null,null,null,null,null,null,null,null,null,null,null,null,null,null,null,null,null,null,null,null,null,null,null,null,null,null,null,null,null,null,null,null,null,null,null,null,null,null,null,null,null,null,null,null,null,null,null,null,null,null,"RES","MF142"]
[null,"MF15","MF.1.5   Live animals and animal products (excluding wild fish, aquatic plants and animals, hunted and gathered animals)",null,null,null,null,null,null,null,null,null,null,null,null,null,null,null,null,null,null,null,null,null,null,null,null,null,null,null,null,null,null,null,null,null,null,null,null,null,null,null,null,null,null,null,null,null,null,null,null,null,null,null,null,null,null,null,null,null,null,null,null,null,null,null,null,null,null,null,null,null,null,null,null,null,null,null,null,null,null,null,null,null,null,null,null,null,null,null,"RES","MF15"]
[null,"MF151","MF.1.5.1   Live animals (excluding wild fish, aquatic plants and animals, hunted and gathered animals)",null,null,null,null,null,null,null,null,null,null,null,null,null,null,null,null,null,null,null,null,null,null,null,null,null,null,null,null,null,null,null,null,null,null,null,null,null,null,null,null,null,null,null,null,null,null,null,null,null,null,null,null,null,null,null,null,null,null,null,null,null,null,null,null,null,null,null,null,null,null,null,null,null,null,null,null,null,null,null,null,null,null,null,null,null,null,null,"RES","MF151"]
[null,"MF152","MF.1.5.2   Meat and meat preparations",null,null,null,null,null,null,null,null,null,null,null,null,null,null,null,null,null,null,null,null,null,null,null,null,null,null,null,null,null,null,null,null,null,null,null,null,null,null,null,null,null,null,null,null,null,null,null,null,null,null,null,null,null,null,null,null,null,null,null,null,null,null,null,null,null,null,null,null,null,null,null,null,null,null,null,null,null,null,null,null,null,null,null,null,null,null,null,"RES","MF152"]
[null,"MF153","MF.1.5.3   Dairy products, birds eggs, and honey",null,null,null,null,null,null,null,null,null,null,null,null,null,null,null,null,null,null,null,null,null,null,null,null,null,null,null,null,null,null,null,null,null,null,null,null,null,null,null,null,null,null,null,null,null,null,null,null,null,null,null,null,null,null,null,null,null,null,null,null,null,null,null,null,null,null,null,null,null,null,null,null,null,null,null,null,null,null,null,null,null,null,null,null,null,null,null,"RES","MF153"]
[null,"MF154","MF.1.5.4   Other products from animals (animal fibres, skins, furs, leather etc.)",null,null,null,null,null,null,null,null,null,null,null,null,null,null,null,null,null,null,null,null,null,null,null,null,null,null,null,null,null,null,null,null,null,null,null,null,null,null,null,null,null,null,null,null,null,null,null,null,null,null,null,null,null,null,null,null,null,null,null,null,null,null,null,null,null,null,null,null,null,null,null,null,null,null,null,null,null,null,null,null,null,null,null,null,null,null,null,"RES","MF154"]
[null,"MF16","MF.1.6   Products mainly from biomass",null,null,null,null,null,null,null,null,null,null,null,null,null,null,null,null,null,null,null,null,null,null,null,null,null,null,null,null,null,null,null,null,null,null,null,null,null,null,null,null,null,null,null,null,null,null,null,null,null,null,null,null,null,null,null,null,null,null,null,null,null,null,null,null,null,null,null,null,null,null,null,null,null,null,null,null,null,null,null,null,null,null,null,null,null,null,null,"RES","MF16"]
[null,"MF2","MF.2   Metal ores (gross ores)",null,null,null,null,null,null,null,null,null,null,null,null,null,null,null,null,null,null,null,null,null,null,null,null,null,null,null,null,null,null,null,null,null,null,null,null,null,null,null,null,null,null,null,null,null,null,null,null,null,null,null,null,null,null,null,null,null,null,null,null,null,null,null,null,null,null,null,null,null,null,null,null,null,null,null,null,null,null,null,null,null,null,null,null,null,null,null,"RES","MF2"]
[null,"MF21","MF.2.1   Iron ",null,null,null,null,null,null,null,null,null,null,null,null,null,null,null,null,null,null,null,null,null,null,null,null,null,null,null,null,null,null,null,null,null,null,null,null,null,null,null,null,null,null,null,null,null,null,null,null,null,null,null,null,null,null,null,null,null,null,null,null,null,null,null,null,null,null,null,null,null,null,null,null,null,null,null,null,null,null,null,null,null,null,null,null,null,null,null,"RES","MF21"]
[null,"MF22","MF.2.2   Non-ferrous metal ",null,null,null,null,null,null,null,null,null,null,null,null,null,null,null,null,null,null,null,null,null,null,null,null,null,null,null,null,null,null,null,null,null,null,null,null,null,null,null,null,null,null,null,null,null,null,null,null,null,null,null,null,null,null,null,null,null,null,null,null,null,null,null,null,null,null,null,null,null,null,null,null,null,null,null,null,null,null,null,null,null,null,null,null,null,null,null,"RES","MF22"]
[null,"MF221","MF.2.2.1   Copper",null,null,null,null,null,null,null,null,null,null,null,null,null,null,null,null,null,null,null,null,null,null,null,null,null,null,null,null,null,null,null,null,null,null,null,null,null,null,null,null,null,null,null,null,null,null,null,null,null,null,null,null,null,null,null,null,null,null,null,null,null,null,null,null,null,null,null,null,null,null,null,null,null,null,null,null,null,null,null,null,null,null,null,null,null,null,null,"RES","MF221"]
[null,"MF222","MF.2.2.2   Nickel",null,null,null,null,null,null,null,null,null,null,null,null,null,null,null,null,null,null,null,null,null,null,null,null,null,null,null,null,null,null,null,null,null,null,null,null,null,null,null,null,null,null,null,null,null,null,null,null,null,null,null,null,null,null,null,null,null,null,null,null,null,null,null,null,null,null,null,null,null,null,null,null,null,null,null,null,null,null,null,null,null,null,null,null,null,null,null,"RES","MF222"]
[null,"MF223","MF.2.2.3   Lead",null,null,null,null,null,null,null,null,null,null,null,null,null,null,null,null,null,null,null,null,null,null,null,null,null,null,null,null,null,null,null,null,null,null,null,null,null,null,null,null,null,null,null,null,null,null,null,null,null,null,null,null,null,null,null,null,null,null,null,null,null,null,null,null,null,null,null,null,null,null,null,null,null,null,null,null,null,null,null,null,null,null,null,null,null,null,null,"RES","MF223"]
[null,"MF224","MF.2.2.4   Zinc",null,null,null,null,null,null,null,null,null,null,null,null,null,null,null,null,null,null,null,null,null,null,null,null,null,null,null,null,null,null,null,null,null,null,null,null,null,null,null,null,null,null,null,null,null,null,null,null,null,null,null,null,null,null,null,null,null,null,null,null,null,null,null,null,null,null,null,null,null,null,null,null,null,null,null,null,null,null,null,null,null,null,null,null,null,null,null,"RES","MF224"]
[null,"MF225","MF.2.2.5   Tin",null,null,null,null,null,null,null,null,null,null,null,null,null,null,null,null,null,null,null,null,null,null,null,null,null,null,null,null,null,null,null,null,null,null,null,null,null,null,null,null,null,null,null,null,null,null,null,null,null,null,null,null,null,null,null,null,null,null,null,null,null,null,null,null,null,null,null,null,null,null,null,null,null,null,null,null,null,null,null,null,null,null,null,null,null,null,null,"RES","MF225"]
[null,"MF226","MF.2.2.6   Gold, silver, platinum and other precious metal",null,null,null,null,null,null,null,null,null,null,null,null,null,null,null,null,null,null,null,null,null,null,null,null,null,null,null,null,null,null,null,null,null,null,null,null,null,null,null,null,null,null,null,null,null,null,null,null,null,null,null,null,null,null,null,null,null,null,null,null,null,null,null,null,null,null,null,null,null,null,null,null,null,null,null,null,null,null,null,null,null,null,null,null,null,null,null,"RES","MF226"]
[null,"MF227","MF.2.2.7   Bauxite and other aluminium",null,null,null,null,null,null,null,null,null,null,null,null,null,null,null,null,null,null,null,null,null,null,null,null,null,null,null,null,null,null,null,null,null,null,null,null,null,null,null,null,null,null,null,null,null,null,null,null,null,null,null,null,null,null,null,null,null,null,null,null,null,null,null,null,null,null,null,null,null,null,null,null,null,null,null,null,null,null,null,null,null,null,null,null,null,null,null,"RES","MF227"]
[null,"MF228","NF.2.2.8   Uranium and thorium",null,null,null,null,null,null,null,null,null,null,null,null,null,null,null,null,null,null,null,null,null,null,null,null,null,null,null,null,null,null,null,null,null,null,null,null,null,null,null,null,null,null,null,null,null,null,null,null,null,null,null,null,null,null,null,null,null,null,null,null,null,null,null,null,null,null,null,null,null,null,null,null,null,null,null,null,null,null,null,null,null,null,null,null,null,null,null,"RES","MF228"]
[null,"MF229","MF.2.2.9   Other non-ferrous metals",null,null,null,null,null,null,null,null,null,null,null,null,null,null,null,null,null,null,null,null,null,null,null,null,null,null,null,null,null,null,null,null,null,null,null,null,null,null,null,null,null,null,null,null,null,null,null,null,null,null,null,null,null,null,null,null,null,null,null,null,null,null,null,null,null,null,null,null,null,null,null,null,null,null,null,null,null,null,null,null,null,null,null,null,null,null,null,"RES","MF229"]
[null,"MF23","MF.2.3   Products mainly from metals",null,null,null,null,null,null,null,null,null,null,null,null,null,null,null,null,null,null,null,null,null,null,null,null,null,null,null,null,null,null,null,null,null,null,null,null,null,null,null,null,null,null,null,null,null,null,null,null,null,null,null,null,null,null,null,null,null,null,null,null,null,null,null,null,null,null,null,null,null,null,null,null,null,null,null,null,null,null,null,null,null,null,null,null,null,null,null,"RES","MF23"]
[null,"MF3","MF.3   Non-metallic minerals",null,null,null,null,null,null,null,null,null,null,null,null,null,null,null,null,null,null,null,null,null,null,null,null,null,null,null,null,null,null,null,null,null,null,null,null,null,null,null,null,null,null,null,null,null,null,null,null,null,null,null,null,null,null,null,null,null,null,null,null,null,null,null,null,null,null,null,null,null,null,null,null,null,null,null,null,null,null,null,null,null,null,null,null,null,null,null,"RES","MF3"]
[null,"MF31","MF.3.1  Marble, granite, sandstone, porphyry, basalt, other ornamental or building stone (excluding slate)",null,null,null,null,null,null,null,null,null,null,null,null,null,null,null,null,null,null,null,null,null,null,null,null,null,null,null,null,null,null,null,null,null,null,null,null,null,null,null,null,null,null,null,null,null,null,null,null,null,null,null,null,null,null,null,null,null,null,null,null,null,null,null,null,null,null,null,null,null,null,null,null,null,null,null,null,null,null,null,null,null,null,null,null,null,null,null,"RES","MF31"]
[null,"MF32","MF.3.2  Chalk and dolomite",null,null,null,null,null,null,null,null,null,null,null,null,null,null,null,null,null,null,null,null,null,null,null,null,null,null,null,null,null,null,null,null,null,null,null,null,null,null,null,null,null,null,null,null,null,null,null,null,null,null,null,null,null,null,null,null,null,null,null,null,null,null,null,null,null,null,null,null,null,null,null,null,null,null,null,null,null,null,null,null,null,null,null,null,null,null,null,"RES","MF32"]
[null,"MF33","MF.3.3  Slate",null,null,null,null,null,null,null,null,null,null,null,null,null,null,null,null,null,null,null,null,null,null,null,null,null,null,null,null,null,null,null,null,null,null,null,null,null,null,null,null,null,null,null,null,null,null,null,null,null,null,null,null,null,null,null,null,null,null,null,null,null,null,null,null,null,null,null,null,null,null,null,null,null,null,null,null,null,null,null,null,null,null,null,null,null,null,null,"RES","MF33"]
[null,"MF34","MF.3.4  Chemical and fertilizer minerals ",null,null,null,null,null,null,null,null,null,null,null,null,null,null,null,null,null,null,null,null,null,null,null,null,null,null,null,null,null,null,null,null,null,null,null,null,null,null,null,null,null,null,null,null,null,null,null,null,null,null,null,null,null,null,null,null,null,null,null,null,null,null,null,null,null,null,null,null,null,null,null,null,null,null,null,null,null,null,null,null,null,null,null,null,null,null,null,"RES","MF34"]
[null,"MF35","MF.3.5  Salt",null,null,null,null,null,null,null,null,null,null,null,null,null,null,null,null,null,null,null,null,null,null,null,null,null,null,null,null,null,null,null,null,null,null,null,null,null,null,null,null,null,null,null,null,null,null,null,null,null,null,null,null,null,null,null,null,null,null,null,null,null,null,null,null,null,null,null,null,null,null,null,null,null,null,null,null,null,null,null,null,null,null,null,null,null,null,null,"RES","MF35"]
[null,"MF36","MF.3.6  Limestone and gypsum",null,null,null,null,null,null,null,null,null,null,null,null,null,null,null,null,null,null,null,null,null,null,null,null,null,null,null,null,null,null,null,null,null,null,null,null,null,null,null,null,null,null,null,null,null,null,null,null,null,null,null,null,null,null,null,null,null,null,null,null,null,null,null,null,null,null,null,null,null,null,null,null,null,null,null,null,null,null,null,null,null,null,null,null,null,null,null,"RES","MF36"]
[null,"MF37","MF.3.7  Clays and kaolin",null,null,null,null,null,null,null,null,null,null,null,null,null,null,null,null,null,null,null,null,null,null,null,null,null,null,null,null,null,null,null,null,null,null,null,null,null,null,null,null,null,null,null,null,null,null,null,null,null,null,null,null,null,null,null,null,null,null,null,null,null,null,null,null,null,null,null,null,null,null,null,null,null,null,null,null,null,null,null,null,null,null,null,null,null,null,null,"RES","MF37"]
[null,"MF38","MF.3.8  Sand and gravel",null,null,null,null,null,null,null,null,null,null,null,null,null,null,null,null,null,null,null,null,null,null,null,null,null,null,null,null,null,null,null,null,null,null,null,null,null,null,null,null,null,null,null,null,null,null,null,null,null,null,null,null,null,null,null,null,null,null,null,null,null,null,null,null,null,null,null,null,null,null,null,null,null,null,null,null,null,null,null,null,null,null,null,null,null,null,null,"RES","MF38"]
[null,"MF39","MF.3.9  Other non-metallic minerals n.e.c",null,null,null,null,null,null,null,null,null,null,null,null,null,null,null,null,null,null,null,null,null,null,null,null,null,null,null,null,null,null,null,null,null,null,null,null,null,null,null,null,null,null,null,null,null,null,null,null,null,null,null,null,null,null,null,null,null,null,null,null,null,null,null,null,null,null,null,null,null,null,null,null,null,null,null,null,null,null,null,null,null,null,null,null,null,null,null,"RES","MF39"]
[null,"MF310","MF.3.A  Excavated earthen materials (including soil), only if used (optional reporting)",null,null,null,null,null,null,null,null,null,null,null,null,null,null,null,null,null,null,null,null,null,null,null,null,null,null,null,null,null,null,null,null,null,null,null,null,null,null,null,null,null,null,null,null,null,null,null,null,null,null,null,null,null,null,null,null,null,null,null,null,null,null,null,null,null,null,null,null,null,null,null,null,null,null,null,null,null,null,null,null,null,null,null,null,null,null,null,"RES","MF3A"]
[null,"MF311","MF.3.B  Products mainly from non-metallic minerals",null,null,null,null,null,null,null,null,null,null,null,null,null,null,null,null,null,null,null,null,null,null,null,null,null,null,null,null,null,null,null,null,null,null,null,null,null,null,null,null,null,null,null,null,null,null,null,null,null,null,null,null,null,null,null,null,null,null,null,null,null,null,null,null,null,null,null,null,null,null,null,null,null,null,null,null,null,null,null,null,null,null,null,null,null,null,null,"RES","MF3B"]
[null,"MF4","MF.4   Fossil energy materials/carriers",null,null,null,null,null,null,null,null,null,null,null,null,null,null,null,null,null,null,null,null,null,null,null,null,null,null,null,null,null,null,null,null,null,null,null,null,null,null,null,null,null,null,null,null,null,null,null,null,null,null,null,null,null,null,null,null,null,null,null,null,null,null,null,null,null,null,null,null,null,null,null,null,null,null,null,null,null,null,null,null,null,null,null,null,null,null,null,"RES","MF4"]
[null,"MF41","MF.4.1   Coal and other solid energy materials/carriers",null,null,null,null,null,null,null,null,null,null,null,null,null,null,null,null,null,null,null,null,null,null,null,null,null,null,null,null,null,null,null,null,null,null,null,null,null,null,null,null,null,null,null,null,null,null,null,null,null,null,null,null,null,null,null,null,null,null,null,null,null,null,null,null,null,null,null,null,null,null,null,null,null,null,null,null,null,null,null,null,null,null,null,null,null,null,null,"RES","MF41"]
[null,"MF411","MF.4.1.1   Lignite (brown coal)",null,null,null,null,null,null,null,null,null,null,null,null,null,null,null,null,null,null,null,null,null,null,null,null,null,null,null,null,null,null,null,null,null,null,null,null,null,null,null,null,null,null,null,null,null,null,null,null,null,null,null,null,null,null,null,null,null,null,null,null,null,null,null,null,null,null,null,null,null,null,null,null,null,null,null,null,null,null,null,null,null,null,null,null,null,null,null,"RES","MF411"]
[null,"MF412","MF.4.1.2   Hard coal",null,null,null,null,null,null,null,null,null,null,null,null,null,null,null,null,null,null,null,null,null,null,null,null,null,null,null,null,null,null,null,null,null,null,null,null,null,null,null,null,null,null,null,null,null,null,null,null,null,null,null,null,null,null,null,null,null,null,null,null,null,null,null,null,null,null,null,null,null,null,null,null,null,null,null,null,null,null,null,null,null,null,null,null,null,null,null,"RES","MF412"]
[null,"MF413","MF.4.1.3   Oil shale and tar sands",null,null,null,null,null,null,null,null,null,null,null,null,null,null,null,null,null,null,null,null,null,null,null,null,null,null,null,null,null,null,null,null,null,null,null,null,null,null,null,null,null,null,null,null,null,null,null,null,null,null,null,null,null,null,null,null,null,null,null,null,null,null,null,null,null,null,null,null,null,null,null,null,null,null,null,null,null,null,null,null,null,null,null,null,null,null,null,"RES","MF413"]
[null,"MF414","MF.4.1.4   Peat",null,null,null,null,null,null,null,null,null,null,null,null,null,null,null,null,null,null,null,null,null,null,null,null,null,null,null,null,null,null,null,null,null,null,null,null,null,null,null,null,null,null,null,null,null,null,null,null,null,null,null,null,null,null,null,null,null,null,null,null,null,null,null,null,null,null,null,null,null,null,null,null,null,null,null,null,null,null,null,null,null,null,null,null,null,null,null,"RES","MF414"]
[null,"MF42","MF.4.2  Liquid and gaseous energy materials/carriers",null,null,null,null,null,null,null,null,null,null,null,null,null,null,null,null,null,null,null,null,null,null,null,null,null,null,null,null,null,null,null,null,null,null,null,null,null,null,null,null,null,null,null,null,null,null,null,null,null,null,null,null,null,null,null,null,null,null,null,null,null,null,null,null,null,null,null,null,null,null,null,null,null,null,null,null,null,null,null,null,null,null,null,null,null,null,null,null,"MF42"]
[null,"MF421","MF.4.2.1   Crude oil, condensate and natural gas liquids (NGL)",null,null,null,null,null,null,null,null,null,null,null,null,null,null,null,null,null,null,null,null,null,null,null,null,null,null,null,null,null,null,null,null,null,null,null,null,null,null,null,null,null,null,null,null,null,null,null,null,null,null,null,null,null,null,null,null,null,null,null,null,null,null,null,null,null,null,null,null,null,null,null,null,null,null,null,null,null,null,null,null,null,null,null,null,null,null,null,null,"MF421"]
[null,"MF422","MF.4.2.2   Natural gas",null,null,null,null,null,null,null,null,null,null,null,null,null,null,null,null,null,null,null,null,null,null,null,null,null,null,null,null,null,null,null,null,null,null,null,null,null,null,null,null,null,null,null,null,null,null,null,null,null,null,null,null,null,null,null,null,null,null,null,null,null,null,null,null,null,null,null,null,null,null,null,null,null,null,null,null,null,null,null,null,null,null,null,null,null,null,null,null,"MF422"]
[null,"MF423","MF.4.2.3   Fuels bunkered (Imports:  by resident units abroad; Exports: by non-resident units domestically)",null,null,null,null,null,null,null,null,null,null,null,null,null,null,null,null,null,null,null,null,null,null,null,null,null,null,null,null,null,null,null,null,null,null,null,null,null,null,null,null,null,null,null,null,null,null,null,null,null,null,null,null,null,null,null,null,null,null,null,null,null,null,null,null,null,null,null,null,null,null,null,null,null,null,null,null,null,null,null,null,null,null,null,null,null,null,null,"RES_ABR","MF42"]
[null,"MF4231","MF.4.2.3.1   Fuel for land transport",null,null,null,null,null,null,null,null,null,null,null,null,null,null,null,null,null,null,null,null,null,null,null,null,null,null,null,null,null,null,null,null,null,null,null,null,null,null,null,null,null,null,null,null,null,null,null,null,null,null,null,null,null,null,null,null,null,null,null,null,null,null,null,null,null,null,null,null,null,null,null,null,null,null,null,null,null,null,null,null,null,null,null,null,null,null,null,"RES_ABR_LTR","MF42"]
[null,"MF4232","MF.4.2.3.2   Fuel for water transport",null,null,null,null,null,null,null,null,null,null,null,null,null,null,null,null,null,null,null,null,null,null,null,null,null,null,null,null,null,null,null,null,null,null,null,null,null,null,null,null,null,null,null,null,null,null,null,null,null,null,null,null,null,null,null,null,null,null,null,null,null,null,null,null,null,null,null,null,null,null,null,null,null,null,null,null,null,null,null,null,null,null,null,null,null,null,null,"RES_ABR_WTR","MF42"]
[null,"MF4233","MF.4.2.3.3   Fuel for air transport",null,null,null,null,null,null,null,null,null,null,null,null,null,null,null,null,null,null,null,null,null,null,null,null,null,null,null,null,null,null,null,null,null,null,null,null,null,null,null,null,null,null,null,null,null,null,null,null,null,null,null,null,null,null,null,null,null,null,null,null,null,null,null,null,null,null,null,null,null,null,null,null,null,null,null,null,null,null,null,null,null,null,null,null,null,null,null,"RES_ABR_ATR","MF42"]
[null,"MF43","MF.4.3   Products mainly from fossil energy products",null,null,null,null,null,null,null,null,null,null,null,null,null,null,null,null,null,null,null,null,null,null,null,null,null,null,null,null,null,null,null,null,null,null,null,null,null,null,null,null,null,null,null,null,null,null,null,null,null,null,null,null,null,null,null,null,null,null,null,null,null,null,null,null,null,null,null,null,null,null,null,null,null,null,null,null,null,null,null,null,null,null,null,null,null,null,null,"RES","MF43"]
[null,"MF5","MF.5   Other products",null,null,null,null,null,null,null,null,null,null,null,null,null,null,null,null,null,null,null,null,null,null,null,null,null,null,null,null,null,null,null,null,null,null,null,null,null,null,null,null,null,null,null,null,null,null,null,null,null,null,null,null,null,null,null,null,null,null,null,null,null,null,null,null,null,null,null,null,null,null,null,null,null,null,null,null,null,null,null,null,null,null,null,null,null,null,null,"RES","MF5"]
[null,"MF6","MF.6   Waste for final treatment and disposal",null,null,null,null,null,null,null,null,null,null,null,null,null,null,null,null,null,null,null,null,null,null,null,null,null,null,null,null,null,null,null,null,null,null,null,null,null,null,null,null,null,null,null,null,null,null,null,null,null,null,null,null,null,null,null,null,null,null,null,null,null,null,null,null,null,null,null,null,null,null,null,null,null,null,null,null,null,null,null,null,null,null,null,null,null,null,null,"RES","MF6"]
[null,"SM_RAW","Raw products",null,null,null,null,null,null,null,null,null,null,null,null,null,null,null,null,null,null,null,null,null,null,null,null,null,null,null,null,null,null,null,null,null,null,null,null,null,null,null,null,null,null,null,null,null,null,null,null,null,null,null,null,null,null,null,null,null,null,null,null,null,null,null,null,null,null,null,null,null,null,null,null,null,null,null,null,null,null,null,null,null,null,null,null,null,null,null,"RES","SM_RAW"]
[null,"SM_SFIN","Semi-manufactured products",null,null,null,null,null,null,null,null,null,null,null,null,null,null,null,null,null,null,null,null,null,null,null,null,null,null,null,null,null,null,null,null,null,null,null,null,null,null,null,null,null,null,null,null,null,null,null,null,null,null,null,null,null,null,null,null,null,null,null,null,null,null,null,null,null,null,null,null,null,null,null,null,null,null,null,null,null,null,null,null,null,null,null,null,null,null,null,"RES","SM_SFIN"]
[null,"SM_FIN","Finished products",null,null,null,null,null,null,null,null,null,null,null,null,null,null,null,null,null,null,null,null,null,null,null,null,null,null,null,null,null,null,null,null,null,null,null,null,null,null,null,null,null,null,null,null,null,null,null,null,null,null,null,null,null,null,null,null,null,null,null,null,null,null,null,null,null,null,null,null,null,null,null,null,null,null,null,null,null,null,null,null,null,null,null,null,null,null,null,"RES","SM_FIN"]
[null,"TOTAL","Exports - total trade (intra + extra EU-28 trade) by stage of manufacturing - optional reporting",null,null,{"$f":" IFERROR(IF(COUNT(F4,F34,F47,F59,F73,F74)=6,F4+F34+F47+F59+F73+F74,\":\"),\":\")","v":":"},null,{"$f":" IFERROR(IF(COUNT(H4,H34,H47,H59,H73,H74)=6,H4+H34+H47+H59+H73+H74,\":\"),\":\")","v":":"},null,{"$f":" IFERROR(IF(COUNT(J4,J34,J47,J59,J73,J74)=6,J4+J34+J47+J59+J73+J74,\":\"),\":\")","v":":"},null,{"$f":" IFERROR(IF(COUNT(L4,L34,L47,L59,L73,L74)=6,L4+L34+L47+L59+L73+L74,\":\"),\":\")","v":":"},null,{"$f":" IFERROR(IF(COUNT(N4,N34,N47,N59,N73,N74)=6,N4+N34+N47+N59+N73+N74,\":\"),\":\")","v":":"},null,{"$f":" IFERROR(IF(COUNT(P4,P34,P47,P59,P73,P74)=6,P4+P34+P47+P59+P73+P74,\":\"),\":\")","v":":"},null,{"$f":" IFERROR(IF(COUNT(R4,R34,R47,R59,R73,R74)=6,R4+R34+R47+R59+R73+R74,\":\"),\":\")","v":":"},null,{"$f":" IFERROR(IF(COUNT(T4,T34,T47,T59,T73,T74)=6,T4+T34+T47+T59+T73+T74,\":\"),\":\")","v":":"},null,{"$f":" IFERROR(IF(COUNT(V4,V34,V47,V59,V73,V74)=6,V4+V34+V47+V59+V73+V74,\":\"),\":\")","v":":"},null,{"$f":" IFERROR(IF(COUNT(X4,X34,X47,X59,X73,X74)=6,X4+X34+X47+X59+X73+X74,\":\"),\":\")","v":":"},null,{"$f":" IFERROR(IF(COUNT(Z4,Z34,Z47,Z59,Z73,Z74)=6,Z4+Z34+Z47+Z59+Z73+Z74,\":\"),\":\")","v":":"},null,{"$f":" IFERROR(IF(COUNT(AB4,AB34,AB47,AB59,AB73,AB74)=6,AB4+AB34+AB47+AB59+AB73+AB74,\":\"),\":\")","v":":"},null,{"$f":" IFERROR(IF(COUNT(AD4,AD34,AD47,AD59,AD73,AD74)=6,AD4+AD34+AD47+AD59+AD73+AD74,\":\"),\":\")","v":":"},null,{"$f":" IFERROR(IF(COUNT(AF4,AF34,AF47,AF59,AF73,AF74)=6,AF4+AF34+AF47+AF59+AF73+AF74,\":\"),\":\")","v":":"},null,{"$f":" IFERROR(IF(COUNT(AH4,AH34,AH47,AH59,AH73,AH74)=6,AH4+AH34+AH47+AH59+AH73+AH74,\":\"),\":\")","v":":"},null,{"$f":" IFERROR(IF(COUNT(AJ4,AJ34,AJ47,AJ59,AJ73,AJ74)=6,AJ4+AJ34+AJ47+AJ59+AJ73+AJ74,\":\"),\":\")","v":":"},null,{"$f":" IFERROR(IF(COUNT(AL4,AL34,AL47,AL59,AL73,AL74)=6,AL4+AL34+AL47+AL59+AL73+AL74,\":\"),\":\")","v":":"},null,{"$f":" IFERROR(IF(COUNT(AN4,AN34,AN47,AN59,AN73,AN74)=6,AN4+AN34+AN47+AN59+AN73+AN74,\":\"),\":\")","v":":"},null,{"$f":" IFERROR(IF(COUNT(AP4,AP34,AP47,AP59,AP73,AP74)=6,AP4+AP34+AP47+AP59+AP73+AP74,\":\"),\":\")","v":":"},null,{"$f":" IFERROR(IF(COUNT(AR4,AR34,AR47,AR59,AR73,AR74)=6,AR4+AR34+AR47+AR59+AR73+AR74,\":\"),\":\")","v":":"},null,{"$f":" IFERROR(IF(COUNT(AT4,AT34,AT47,AT59,AT73,AT74)=6,AT4+AT34+AT47+AT59+AT73+AT74,\":\"),\":\")","v":":"},null,{"$f":" IFERROR(IF(COUNT(AV4,AV34,AV47,AV59,AV73,AV74)=6,AV4+AV34+AV47+AV59+AV73+AV74,\":\"),\":\")","v":":"},null,{"$f":" IFERROR(IF(COUNT(AX4,AX34,AX47,AX59,AX73,AX74)=6,AX4+AX34+AX47+AX59+AX73+AX74,\":\"),\":\")","v":":"},null,{"$f":" IFERROR(IF(COUNT(AZ4,AZ34,AZ47,AZ59,AZ73,AZ74)=6,AZ4+AZ34+AZ47+AZ59+AZ73+AZ74,\":\"),\":\")","v":":"},null,{"$f":" IFERROR(IF(COUNT(BB4,BB34,BB47,BB59,BB73,BB74)=6,BB4+BB34+BB47+BB59+BB73+BB74,\":\"),\":\")","v":":"},null,{"$f":" IFERROR(IF(COUNT(BD4,BD34,BD47,BD59,BD73,BD74)=6,BD4+BD34+BD47+BD59+BD73+BD74,\":\"),\":\")","v":":"},null,{"$f":" IFERROR(IF(COUNT(BF4,BF34,BF47,BF59,BF73,BF74)=6,BF4+BF34+BF47+BF59+BF73+BF74,\":\"),\":\")","v":":"},null,{"$f":" IFERROR(IF(COUNT(BH4,BH34,BH47,BH59,BH73,BH74)=6,BH4+BH34+BH47+BH59+BH73+BH74,\":\"),\":\")","v":":"},null,{"$f":" IFERROR(IF(COUNT(BJ4,BJ34,BJ47,BJ59,BJ73,BJ74)=6,BJ4+BJ34+BJ47+BJ59+BJ73+BJ74,\":\"),\":\")","v":":"},null,{"$f":" IFERROR(IF(COUNT(BL4,BL34,BL47,BL59,BL73,BL74)=6,BL4+BL34+BL47+BL59+BL73+BL74,\":\"),\":\")","v":":"},null,{"$f":" IFERROR(IF(COUNT(BN4,BN34,BN47,BN59,BN73,BN74)=6,BN4+BN34+BN47+BN59+BN73+BN74,\":\"),\":\")","v":":"},null,null,null,null,null,null,null,null,null,null,null,null,null,null,null,null,null,null,null,null,null,null,null,null,"RES","_T"]
[]
[]
[]
[]
[null,null,null,null,"BRIDGE_ITEM",{"$f":"IF(COUNT(F68:F71)>0,\"TER\",\"RES\")","v":"RES"},null,{"$f":"IF(COUNT(H68:H71)>0,\"TER\",\"RES\")","v":"RES"},null,{"$f":"IF(COUNT(J68:J71)>0,\"TER\",\"RES\")","v":"RES"},null,{"$f":"IF(COUNT(L68:L71)>0,\"TER\",\"RES\")","v":"RES"},null,{"$f":"IF(COUNT(N68:N71)>0,\"TER\",\"RES\")","v":"RES"},null,{"$f":"IF(COUNT(P68:P71)>0,\"TER\",\"RES\")","v":"RES"},null,{"$f":"IF(COUNT(R68:R71)>0,\"TER\",\"RES\")","v":"RES"},null,{"$f":"IF(COUNT(T68:T71)>0,\"TER\",\"RES\")","v":"RES"},null,{"$f":"IF(COUNT(V68:V71)>0,\"TER\",\"RES\")","v":"RES"},null,{"$f":"IF(COUNT(X68:X71)>0,\"TER\",\"RES\")","v":"RES"},null,{"$f":"IF(COUNT(Z68:Z71)>0,\"TER\",\"RES\")","v":"RES"},null,{"$f":"IF(COUNT(AB68:AB71)>0,\"TER\",\"RES\")","v":"RES"},null,{"$f":"IF(COUNT(AD68:AD71)>0,\"TER\",\"RES\")","v":"RES"},null,{"$f":"IF(COUNT(AF68:AF71)>0,\"TER\",\"RES\")","v":"RES"},null,{"$f":"IF(COUNT(AH68:AH71)>0,\"TER\",\"RES\")","v":"RES"},null,{"$f":"IF(COUNT(AJ68:AJ71)>0,\"TER\",\"RES\")","v":"RES"},null,{"$f":"IF(COUNT(AL68:AL71)>0,\"TER\",\"RES\")","v":"RES"},null,{"$f":"IF(COUNT(AN69:AN71)>0,\"TER\",\"RES\")","v":"RES"},null,{"$f":"IF(COUNT(AP68:AP71)>0,\"TER\",\"RES\")","v":"RES"},null,{"$f":"IF(COUNT(AR68:AR71)>0,\"TER\",\"RES\")","v":"RES"},null,{"$f":"IF(COUNT(AT68:AT71)>0,\"TER\",\"RES\")","v":"RES"},null,{"$f":"IF(COUNT(AV68:AV71)>0,\"TER\",\"RES\")","v":"RES"},null,{"$f":"IF(COUNT(AX68:AX71)>0,\"TER\",\"RES\")","v":"RES"},null,{"$f":"IF(COUNT(AZ68:AZ71)>0,\"TER\",\"RES\")","v":"RES"},null,{"$f":"IF(COUNT(BB68:BB71)>0,\"TER\",\"RES\")","v":"RES"},null,{"$f":"IF(COUNT(BD68:BD71)>0,\"TER\",\"RES\")","v":"RES"},null,{"$f":"IF(COUNT(BF68:BF71)>0,\"TER\",\"RES\")","v":"RES"},null,{"$f":"IF(COUNT(BH68:BH71)>0,\"TER\",\"RES\")","v":"RES"},null,{"$f":"IF(COUNT(BJ68:BJ71)>0,\"TER\",\"RES\")","v":"RES"},null,{"$f":"IF(COUNT(BL69:BL71)>0,\"TER\",\"RES\")","v":"RES"}]

{"sheet":"Table_E","index":13,"n_rows":78,"n_cols":66,"rows_kept":78,"cut":false,"hidden":false,"merged":[[2,2,2,4],[77,2,77,4]]}
["DATAENTRY",null,"   Country:",{"$f":"intro!H8","v":""}]
[null,null,"Unit",null,"1000 Metric tonnes"]
[null,null,"Table E: Exports - extra-EU28 trade",null,null,1990,null,1991,null,1992,null,1993,null,1994,null,1995,null,1996,null,1997,null,1998,null,1999,null,2000,null,2001,null,2002,null,2003,null,2004,null,2005,null,2006,null,2007,null,2008,null,2009,null,2010,null,2011,null,2012,null,2013,null,2014,null,2015,null,2016,null,2017,null,2018,null,2019,null,2020]
[null,null,"MF.1  Biomass"]
[null,null,"MF.1.1   Crops (excluding fodder crops)"]
[null,null,"MF.1.1.1  Cereals"]
[null,null,"MF.1.1.2   Roots, tubers"]
[null,null,"MF.1.1.3   Sugar crops"]
[null,null,"MF.1.1.4   Pulses"]
[null,null,"MF.1.1.5   Nuts"]
[null,null,"MF.1.1.6   Oil-bearing crops"]
[null,null,"MF.1.1.7   Vegetables "]
[null,null,"MF.1.1.8   Fruits "]
[null,null,"MF.1.1.9   Fibres"]
[null,null,"MF.1.1.A   Other crops (excluding fodder crops) n.e.c. "]
[null,null,"MF.1.2   Crop residues (used) and fodder crops"]
[null,null,"MF.1.2.1   Crop residues (used)"]
[null,null,"MF.1.2.1.1   Straw"]
[null,null,"MF.1.2.1.2   Other crop residues (sugar and fodder beet leaves, etc.)"]
[null,null,"MF.1.2.2   Fodder crops and grazed biomass"]
[null,null,"MF.1.2.2.1   Fodder crops (including biomass harvest from grassland)"]
[null,null,"MF.1.3   Wood "]
[null,null,"MF.1.3.1   Timber (industrial roundwood)"]
[null,null,"MF.1.3.2   Wood fuel and other extraction"]
[null,null,"MF.1.4   Wild fish catch, aquatic plants and animals, hunting and gathering  "]
[null,null,"MF.1.4.1   Wild fish catch"]
[null,null,"MF.1.4.2   All other aquatic animals and plants"]
[null,null,"MF.1.5   Live animals and animal products (excluding wild fish, aquatic plants and animals, hunted and gathered animals)"]
[null,null,"MF.1.5.1   Live animals (excluding wild fish, aquatic plants and animals, hunted and gathered animals)"]
[null,null,"MF.1.5.2   Meat and meat preparations"]
[null,null,"MF.1.5.3   Dairy products, birds eggs, and honey"]
[null,null,"MF.1.5.4   Other products from animals (animal fibres, skins, furs, leather etc.)"]
[null,null,"MF.1.6   Products mainly from biomass"]
[null,null,"MF.2   Metal ores (gross ores)"]
[null,null,"MF.2.1   Iron "]
[null,null,"MF.2.2   Non-ferrous metal "]
[null,null,"MF.2.2.1   Copper"]
[null,null,"MF.2.2.2   Nickel"]
[null,null,"MF.2.2.3   Lead"]
[null,null,"MF.2.2.4   Zinc"]
[null,null,"MF.2.2.5   Tin"]
[null,null,"MF.2.2.6   Gold, silver, platinum and other precious metal"]
[null,null,"MF.2.2.7   Bauxite and other aluminium"]
[null,null,"NF.2.2.8   Uranium and thorium"]
[null,null,"MF.2.2.9   Other non-ferrous metals"]
[null,null,"MF.2.3   Products mainly from metals"]
[null,null,"MF.3   Non-metallic minerals"]
[null,null,"MF.3.1  Marble, granite, sandstone, porphyry, basalt, other ornamental or building stone (excluding slate)"]
[null,null,"MF.3.2  Chalk and dolomite"]
[null,null,"MF.3.3  Slate"]
[null,null,"MF.3.4  Chemical and fertilizer minerals "]
[null,null,"MF.3.5  Salt"]
[null,null,"MF.3.6  Limestone and gypsum"]
[null,null,"MF.3.7  Clays and kaolin"]
[null,null,"MF.3.8  Sand and gravel"]
[null,null,"MF.3.9  Other non-metallic minerals n.e.c"]
[null,null,"MF.3.A  Excavated earthen materials (including soil), only if used (optional reporting)"]
[null,null,"MF.3.B  Products mainly from non-metallic minerals"]
[null,null,"MF.4   Fossil energy materials/carriers"]
[null,null,"MF.4.1   Coal and other solid energy materials/carriers"]
[null,null,"MF.4.1.1   Lignite (brown coal)"]
[null,null,"MF.4.1.2   Hard coal"]
[null,null,"MF.4.1.3   Oil shale and tar sands"]
[null,null,"MF.4.1.4   Peat"]
[null,null,"MF.4.2   Liquid and gaseous energy materials/carriers"]
[null,null,"MF.4.2.1   Crude oil, condensate and natural gas liquids (NGL)"]
[null,null,"MF.4.2.2   Natural gas"]
[null,null,"MF.4.2.3   Fuels bunkered (Imports:  by resident units abroad; Exports: by non-resident units domestically)"]
[null,null,"MF.4.2.3.1   Fuel for land transport"]
[null,null,"MF.4.2.3.2   Fuel for water transport"]
[null,null,"MF.4.2.3.3   Fuel for air transport"]
[null,null,"MF.4.3   Products mainly from fossil energy products"]
[null,null,"MF.5   Other products"]
[null,null,"MF.6   Waste for final treatment and disposal"]
[null,null,"Raw products"]
[null,null,"Semi-manufactured products"]
[null,null,"Finished products"]
[null,null,"Exports - extra-EU28 trade by stage of manufacturing - optional reporting",null,null,{"$f":" IFERROR(IF(COUNT(F4,F34,F47,F59,F73,F74)=6,F4+F34+F47+F59+F73+F74,\":\"),\":\")","v":":"},null,{"$f":" IFERROR(IF(COUNT(H4,H34,H47,H59,H73,H74)=6,H4+H34+H47+H59+H73+H74,\":\"),\":\")","v":":"},null,{"$f":" IFERROR(IF(COUNT(J4,J34,J47,J59,J73,J74)=6,J4+J34+J47+J59+J73+J74,\":\"),\":\")","v":":"},null,{"$f":" IFERROR(IF(COUNT(L4,L34,L47,L59,L73,L74)=6,L4+L34+L47+L59+L73+L74,\":\"),\":\")","v":":"},null,{"$f":" IFERROR(IF(COUNT(N4,N34,N47,N59,N73,N74)=6,N4+N34+N47+N59+N73+N74,\":\"),\":\")","v":":"},null,{"$f":" IFERROR(IF(COUNT(P4,P34,P47,P59,P73,P74)=6,P4+P34+P47+P59+P73+P74,\":\"),\":\")","v":":"},null,{"$f":" IFERROR(IF(COUNT(R4,R34,R47,R59,R73,R74)=6,R4+R34+R47+R59+R73+R74,\":\"),\":\")","v":":"},null,{"$f":" IFERROR(IF(COUNT(T4,T34,T47,T59,T73,T74)=6,T4+T34+T47+T59+T73+T74,\":\"),\":\")","v":":"},null,{"$f":" IFERROR(IF(COUNT(V4,V34,V47,V59,V73,V74)=6,V4+V34+V47+V59+V73+V74,\":\"),\":\")","v":":"},null,{"$f":" IFERROR(IF(COUNT(X4,X34,X47,X59,X73,X74)=6,X4+X34+X47+X59+X73+X74,\":\"),\":\")","v":":"},null,{"$f":" IFERROR(IF(COUNT(Z4,Z34,Z47,Z59,Z73,Z74)=6,Z4+Z34+Z47+Z59+Z73+Z74,\":\"),\":\")","v":":"},null,{"$f":" IFERROR(IF(COUNT(AB4,AB34,AB47,AB59,AB73,AB74)=6,AB4+AB34+AB47+AB59+AB73+AB74,\":\"),\":\")","v":":"},null,{"$f":" IFERROR(IF(COUNT(AD4,AD34,AD47,AD59,AD73,AD74)=6,AD4+AD34+AD47+AD59+AD73+AD74,\":\"),\":\")","v":":"},null,{"$f":" IFERROR(IF(COUNT(AF4,AF34,AF47,AF59,AF73,AF74)=6,AF4+AF34+AF47+AF59+AF73+AF74,\":\"),\":\")","v":":"},null,{"$f":" IFERROR(IF(COUNT(AH4,AH34,AH47,AH59,AH73,AH74)=6,AH4+AH34+AH47+AH59+AH73+AH74,\":\"),\":\")","v":":"},null,{"$f":" IFERROR(IF(COUNT(AJ4,AJ34,AJ47,AJ59,AJ73,AJ74)=6,AJ4+AJ34+AJ47+AJ59+AJ73+AJ74,\":\"),\":\")","v":":"},null,{"$f":" IFERROR(IF(COUNT(AL4,AL34,AL47,AL59,AL73,AL74)=6,AL4+AL34+AL47+AL59+AL73+AL74,\":\"),\":\")","v":":"},null,{"$f":" IFERROR(IF(COUNT(AN4,AN34,AN47,AN59,AN73,AN74)=6,AN4+AN34+AN47+AN59+AN73+AN74,\":\"),\":\")","v":":"},null,{"$f":" IFERROR(IF(COUNT(AP4,AP34,AP47,AP59,AP73,AP74)=6,AP4+AP34+AP47+AP59+AP73+AP74,\":\"),\":\")","v":":"},null,{"$f":" IFERROR(IF(COUNT(AR4,AR34,AR47,AR59,AR73,AR74)=6,AR4+AR34+AR47+AR59+AR73+AR74,\":\"),\":\")","v":":"},null,{"$f":" IFERROR(IF(COUNT(AT4,AT34,AT47,AT59,AT73,AT74)=6,AT4+AT34+AT47+AT59+AT73+AT74,\":\"),\":\")","v":":"},null,{"$f":" IFERROR(IF(COUNT(AV4,AV34,AV47,AV59,AV73,AV74)=6,AV4+AV34+AV47+AV59+AV73+AV74,\":\"),\":\")","v":":"},null,{"$f":" IFERROR(IF(COUNT(AX4,AX34,AX47,AX59,AX73,AX74)=6,AX4+AX34+AX47+AX59+AX73+AX74,\":\"),\":\")","v":":"},null,{"$f":" IFERROR(IF(COUNT(AZ4,AZ34,AZ47,AZ59,AZ73,AZ74)=6,AZ4+AZ34+AZ47+AZ59+AZ73+AZ74,\":\"),\":\")","v":":"},null,{"$f":" IFERROR(IF(COUNT(BB4,BB34,BB47,BB59,BB73,BB74)=6,BB4+BB34+BB47+BB59+BB73+BB74,\":\"),\":\")","v":":"},null,{"$f":" IFERROR(IF(COUNT(BD4,BD34,BD47,BD59,BD73,BD74)=6,BD4+BD34+BD47+BD59+BD73+BD74,\":\"),\":\")","v":":"},null,{"$f":" IFERROR(IF(COUNT(BF4,BF34,BF47,BF59,BF73,BF74)=6,BF4+BF34+BF47+BF59+BF73+BF74,\":\"),\":\")","v":":"},null,{"$f":" IFERROR(IF(COUNT(BH4,BH34,BH47,BH59,BH73,BH74)=6,BH4+BH34+BH47+BH59+BH73+BH74,\":\"),\":\")","v":":"},null,{"$f":" IFERROR(IF(COUNT(BJ4,BJ34,BJ47,BJ59,BJ73,BJ74)=6,BJ4+BJ34+BJ47+BJ59+BJ73+BJ74,\":\"),\":\")","v":":"},null,{"$f":" IFERROR(IF(COUNT(BL4,BL34,BL47,BL59,BL73,BL74)=6,BL4+BL34+BL47+BL59+BL73+BL74,\":\"),\":\")","v":":"},null,{"$f":" IFERROR(IF(COUNT(BN4,BN34,BN47,BN59,BN73,BN74)=6,BN4+BN34+BN47+BN59+BN73+BN74,\":\"),\":\")","v":":"}]

{"sheet":"Table_F","index":14,"n_rows":40,"n_cols":97,"rows_kept":40,"cut":false,"hidden":false,"merged":[[0,92,2,92],[0,93,2,93],[0,94,2,94],[0,95,2,95],[0,96,2,96],[0,87,2,87],[0,88,2,88],[0,89,2,89],[0,90,2,90],[0,91,2,91],[0,41,1,42],[1,2,1,3],[0,15,1,16],[0,17,1,18],[0,27,1,28],[0,29,1,30],[39,2,39,4],[0,31,1,32],[2,2,2,4],[0,13,1,14],[38,2,38,4]]}
["DATAENTRY",null,"   Country:",{"$f":"intro!H8","v":""},null,null,null,null,null,null,null,null,null,null,null,null,null,null,null,null,null,null,null,null,null,null,null,null,null,null,null,null,null,null,null,null,null,null,null,null,null,null,null,null,null,null,null,null,null,null,null,null,null,null,null,null,null,null,null,null,null,null,null,null,null,null,null,null,null,null,null,null,null,null,null,null,null,null,null,null,null,null,null,null,null,null,null,"DEMAND_PROD","ACCOUNTING_ENTRY","COUNTERPART_AREA","BRIDGE_ITEM","MATERIAL","STO","UNIT_MEASURE","UNIT_MULT","PRODUCT","SECTOR"]
["DPO","THS_T","Unit",null,"1000 Metric tonnes"]
[null,"Matflows","Table F: Domestic processed output",null,null,1990,null,1991,null,1992,null,1993,null,1994,null,1995,null,1996,null,1997,null,1998,null,1999,null,2000,null,2001,null,2002,null,2003,null,2004,null,2005,null,2006,null,2007,null,2008,null,2009,null,2010,null,2011,null,2012,null,2013,null,2014,null,2015,null,2016,null,2017,null,2018,null,2019,null,2020]
[null,"MF_DPO_1","MF.7.1   Emissions to air",null,null,null,null,null,null,null,null,null,null,null,null,null,null,null,null,null,null,null,null,null,null,null,null,null,null,null,null,null,null,null,null,null,null,null,null,null,null,null,null,null,null,null,null,null,null,null,null,null,null,null,null,null,null,null,null,null,null,null,null,null,null,null,null,null,null,null,null,null,null,null,null,null,null,null,null,null,null,null,null,null,null,null,null,"P","EC","W2","RES","MF71","MDPO","TN",3,"_T","S1"]
[null,"MF_DPO_11","MF.7.1.1   Carbon dioxide (CO2)",null,null,null,null,null,null,null,null,null,null,null,null,null,null,null,null,null,null,null,null,null,null,null,null,null,null,null,null,null,null,null,null,null,null,null,null,null,null,null,null,null,null,null,null,null,null,null,null,null,null,null,null,null,null,null,null,null,null,null,null,null,null,null,null,null,null,null,null,null,null,null,null,null,null,null,null,null,null,null,null,null,null,null,null,null,null,null,"RES","MF711"]
[null,"MF_DPO_111","MF.7.1.1.1   Carbon dioxide (CO2) from biomass combustion",null,null,null,null,null,null,null,null,null,null,null,null,null,null,null,null,null,null,null,null,null,null,null,null,null,null,null,null,null,null,null,null,null,null,null,null,null,null,null,null,null,null,null,null,null,null,null,null,null,null,null,null,null,null,null,null,null,null,null,null,null,null,null,null,null,null,null,null,null,null,null,null,null,null,null,null,null,null,null,null,null,null,null,null,null,null,null,"RES","MF7111"]
[null,"MF_DPO_112","MF.7.1.1.2   Carbon dioxide (CO2) excluding biomass combustion",null,null,null,null,null,null,null,null,null,null,null,null,null,null,null,null,null,null,null,null,null,null,null,null,null,null,null,null,null,null,null,null,null,null,null,null,null,null,null,null,null,null,null,null,null,null,null,null,null,null,null,null,null,null,null,null,null,null,null,null,null,null,null,null,null,null,null,null,null,null,null,null,null,null,null,null,null,null,null,null,null,null,null,null,null,null,null,"RES","MF7112"]
[null,"MF_DPO_12","MF.7.1.2   Methane (CH4)",null,null,null,null,null,null,null,null,null,null,null,null,null,null,null,null,null,null,null,null,null,null,null,null,null,null,null,null,null,null,null,null,null,null,null,null,null,null,null,null,null,null,null,null,null,null,null,null,null,null,null,null,null,null,null,null,null,null,null,null,null,null,null,null,null,null,null,null,null,null,null,null,null,null,null,null,null,null,null,null,null,null,null,null,null,null,null,"RES","MF712"]
[null,"MF_DPO_13","MF.7.1.3   Dinitrogen oxide (N2O)",null,null,null,null,null,null,null,null,null,null,null,null,null,null,null,null,null,null,null,null,null,null,null,null,null,null,null,null,null,null,null,null,null,null,null,null,null,null,null,null,null,null,null,null,null,null,null,null,null,null,null,null,null,null,null,null,null,null,null,null,null,null,null,null,null,null,null,null,null,null,null,null,null,null,null,null,null,null,null,null,null,null,null,null,null,null,null,"RES","MF713"]
[null,"MF_DPO_14","MF.7.1.4   Nitrous oxides (NOx)",null,null,null,null,null,null,null,null,null,null,null,null,null,null,null,null,null,null,null,null,null,null,null,null,null,null,null,null,null,null,null,null,null,null,null,null,null,null,null,null,null,null,null,null,null,null,null,null,null,null,null,null,null,null,null,null,null,null,null,null,null,null,null,null,null,null,null,null,null,null,null,null,null,null,null,null,null,null,null,null,null,null,null,null,null,null,null,"RES","MF714"]
[null,"MF_DPO_15","MF.7.1.5   Hydroflourcarbons (HFCs)",null,null,null,null,null,null,null,null,null,null,null,null,null,null,null,null,null,null,null,null,null,null,null,null,null,null,null,null,null,null,null,null,null,null,null,null,null,null,null,null,null,null,null,null,null,null,null,null,null,null,null,null,null,null,null,null,null,null,null,null,null,null,null,null,null,null,null,null,null,null,null,null,null,null,null,null,null,null,null,null,null,null,null,null,null,null,null,"RES","MF715"]
[null,"MF_DPO_16","MF.7.1.6   Perflourocarbons (PFCs)",null,null,null,null,null,null,null,null,null,null,null,null,null,null,null,null,null,null,null,null,null,null,null,null,null,null,null,null,null,null,null,null,null,null,null,null,null,null,null,null,null,null,null,null,null,null,null,null,null,null,null,null,null,null,null,null,null,null,null,null,null,null,null,null,null,null,null,null,null,null,null,null,null,null,null,null,null,null,null,null,null,null,null,null,null,null,null,"RES","MF716"]
[null,"MF_DPO_17","MF.7.1.7   Sulfur hexaflouride",null,null,null,null,null,null,null,null,null,null,null,null,null,null,null,null,null,null,null,null,null,null,null,null,null,null,null,null,null,null,null,null,null,null,null,null,null,null,null,null,null,null,null,null,null,null,null,null,null,null,null,null,null,null,null,null,null,null,null,null,null,null,null,null,null,null,null,null,null,null,null,null,null,null,null,null,null,null,null,null,null,null,null,null,null,null,null,"RES","MF717"]
[null,"MF_DPO_18","MF.7.1.8   Carbon monoxide (CO)",null,null,null,null,null,null,null,null,null,null,null,null,null,null,null,null,null,null,null,null,null,null,null,null,null,null,null,null,null,null,null,null,null,null,null,null,null,null,null,null,null,null,null,null,null,null,null,null,null,null,null,null,null,null,null,null,null,null,null,null,null,null,null,null,null,null,null,null,null,null,null,null,null,null,null,null,null,null,null,null,null,null,null,null,null,null,null,"RES","MF718"]
[null,"MF_DPO_19","MF.7.1.9   Non-methane volatile organic compounds (NMVOC)",null,null,null,null,null,null,null,null,null,null,null,null,null,null,null,null,null,null,null,null,null,null,null,null,null,null,null,null,null,null,null,null,null,null,null,null,null,null,null,null,null,null,null,null,null,null,null,null,null,null,null,null,null,null,null,null,null,null,null,null,null,null,null,null,null,null,null,null,null,null,null,null,null,null,null,null,null,null,null,null,null,null,null,null,null,null,null,"RES","MF719"]
[null,"MF_DPO_110","MF.7.1.A   Sulfur dioxide (SO2)",null,null,null,null,null,null,null,null,null,null,null,null,null,null,null,null,null,null,null,null,null,null,null,null,null,null,null,null,null,null,null,null,null,null,null,null,null,null,null,null,null,null,null,null,null,null,null,null,null,null,null,null,null,null,null,null,null,null,null,null,null,null,null,null,null,null,null,null,null,null,null,null,null,null,null,null,null,null,null,null,null,null,null,null,null,null,null,"RES","MF71A"]
[null,"MF_DPO_111","MF.7.1.B   Ammonia (NH3)",null,null,null,null,null,null,null,null,null,null,null,null,null,null,null,null,null,null,null,null,null,null,null,null,null,null,null,null,null,null,null,null,null,null,null,null,null,null,null,null,null,null,null,null,null,null,null,null,null,null,null,null,null,null,null,null,null,null,null,null,null,null,null,null,null,null,null,null,null,null,null,null,null,null,null,null,null,null,null,null,null,null,null,null,null,null,null,"RES","MF71B"]
[null,"MF_DPO_112","MF.7.1.C   Heavy metals",null,null,null,null,null,null,null,null,null,null,null,null,null,null,null,null,null,null,null,null,null,null,null,null,null,null,null,null,null,null,null,null,null,null,null,null,null,null,null,null,null,null,null,null,null,null,null,null,null,null,null,null,null,null,null,null,null,null,null,null,null,null,null,null,null,null,null,null,null,null,null,null,null,null,null,null,null,null,null,null,null,null,null,null,null,null,null,"RES","MF71C"]
[null,"MF_DPO_113","MF.7.1.D   Persistent organic pollutants (POPs)",null,null,null,null,null,null,null,null,null,null,null,null,null,null,null,null,null,null,null,null,null,null,null,null,null,null,null,null,null,null,null,null,null,null,null,null,null,null,null,null,null,null,null,null,null,null,null,null,null,null,null,null,null,null,null,null,null,null,null,null,null,null,null,null,null,null,null,null,null,null,null,null,null,null,null,null,null,null,null,null,null,null,null,null,null,null,null,"RES","MF71D"]
[null,"MF_DPO_114","MF.7.1.E   Particles (e.g. PM10, Dust)",null,null,null,null,null,null,null,null,null,null,null,null,null,null,null,null,null,null,null,null,null,null,null,null,null,null,null,null,null,null,null,null,null,null,null,null,null,null,null,null,null,null,null,null,null,null,null,null,null,null,null,null,null,null,null,null,null,null,null,null,null,null,null,null,null,null,null,null,null,null,null,null,null,null,null,null,null,null,null,null,null,null,null,null,null,null,null,"RES","MF71E"]
[null,"MF_DPO_115","MF.7.1.F   Other emissions to air",null,null,null,null,null,null,null,null,null,null,null,null,null,null,null,null,null,null,null,null,null,null,null,null,null,null,null,null,null,null,null,null,null,null,null,null,null,null,null,null,null,null,null,null,null,null,null,null,null,null,null,null,null,null,null,null,null,null,null,null,null,null,null,null,null,null,null,null,null,null,null,null,null,null,null,null,null,null,null,null,null,null,null,null,null,null,null,"RES","MF71F"]
[null,"MF_DPO_2","MF.7.2   Waste disposal to the environment ",null,null,null,null,null,null,null,null,null,null,null,null,null,null,null,null,null,null,null,null,null,null,null,null,null,null,null,null,null,null,null,null,null,null,null,null,null,null,null,null,null,null,null,null,null,null,null,null,null,null,null,null,null,null,null,null,null,null,null,null,null,null,null,null,null,null,null,null,null,null,null,null,null,null,null,null,null,null,null,null,null,null,null,null,null,null,null,"RES","MF72"]
[null,"MF_DPO_21M","MF.7.2 MEMO Waste disposal to controlled landfills (memo item)",null,null,null,null,null,null,null,null,null,null,null,null,null,null,null,null,null,null,null,null,null,null,null,null,null,null,null,null,null,null,null,null,null,null,null,null,null,null,null,null,null,null,null,null,null,null,null,null,null,null,null,null,null,null,null,null,null,null,null,null,null,null,null,null,null,null,null,null,null,null,null,null,null,null,null,null,null,null,null,null,null,null,null,null,null,null,null,"RES","MEMO_MF72"]
[null,"MF_DPO_3","MF.7.3   Emissions to water",null,null,null,null,null,null,null,null,null,null,null,null,null,null,null,null,null,null,null,null,null,null,null,null,null,null,null,null,null,null,null,null,null,null,null,null,null,null,null,null,null,null,null,null,null,null,null,null,null,null,null,null,null,null,null,null,null,null,null,null,null,null,null,null,null,null,null,null,null,null,null,null,null,null,null,null,null,null,null,null,null,null,null,null,null,null,null,"RES","MF73"]
[null,"MF_DPO_31","MF.7.3.1   Nitrogen (N)",null,null,null,null,null,null,null,null,null,null,null,null,null,null,null,null,null,null,null,null,null,null,null,null,null,null,null,null,null,null,null,null,null,null,null,null,null,null,null,null,null,null,null,null,null,null,null,null,null,null,null,null,null,null,null,null,null,null,null,null,null,null,null,null,null,null,null,null,null,null,null,null,null,null,null,null,null,null,null,null,null,null,null,null,null,null,null,"RES","MF731"]
[null,"MF_DPO_32","MF.7.3.2   Phosphorus (P)",null,null,null,null,null,null,null,null,null,null,null,null,null,null,null,null,null,null,null,null,null,null,null,null,null,null,null,null,null,null,null,null,null,null,null,null,null,null,null,null,null,null,null,null,null,null,null,null,null,null,null,null,null,null,null,null,null,null,null,null,null,null,null,null,null,null,null,null,null,null,null,null,null,null,null,null,null,null,null,null,null,null,null,null,null,null,null,"RES","MF732"]
[null,"MF_DPO_33","MF.7.3.3   Heavy metals",null,null,null,null,null,null,null,null,null,null,null,null,null,null,null,null,null,null,null,null,null,null,null,null,null,null,null,null,null,null,null,null,null,null,null,null,null,null,null,null,null,null,null,null,null,null,null,null,null,null,null,null,null,null,null,null,null,null,null,null,null,null,null,null,null,null,null,null,null,null,null,null,null,null,null,null,null,null,null,null,null,null,null,null,null,null,null,"RES","MF733"]
[null,"MF_DPO_34","MF.7.3.4   Other substances and (organic) materials",null,null,null,null,null,null,null,null,null,null,null,null,null,null,null,null,null,null,null,null,null,null,null,null,null,null,null,null,null,null,null,null,null,null,null,null,null,null,null,null,null,null,null,null,null,null,null,null,null,null,null,null,null,null,null,null,null,null,null,null,null,null,null,null,null,null,null,null,null,null,null,null,null,null,null,null,null,null,null,null,null,null,null,null,null,null,null,"RES","MF734"]
[null,"MF_DPO_35","MF.7.3.5   Dumping of materials at sea",null,null,null,null,null,null,null,null,null,null,null,null,null,null,null,null,null,null,null,null,null,null,null,null,null,null,null,null,null,null,null,null,null,null,null,null,null,null,null,null,null,null,null,null,null,null,null,null,null,null,null,null,null,null,null,null,null,null,null,null,null,null,null,null,null,null,null,null,null,null,null,null,null,null,null,null,null,null,null,null,null,null,null,null,null,null,null,"RES","MF735"]
[null,"MF_DPO_4","MF.7.4   Dissipative use of products",null,null,null,null,null,null,null,null,null,null,null,null,null,null,null,null,null,null,null,null,null,null,null,null,null,null,null,null,null,null,null,null,null,null,null,null,null,null,null,null,null,null,null,null,null,null,null,null,null,null,null,null,null,null,null,null,null,null,null,null,null,null,null,null,null,null,null,null,null,null,null,null,null,null,null,null,null,null,null,null,null,null,null,null,null,null,null,"RES","MF74"]
[null,"MF_DPO_41","MF.7.4.1   Organic fertiliser (manure)",null,null,null,null,null,null,null,null,null,null,null,null,null,null,null,null,null,null,null,null,null,null,null,null,null,null,null,null,null,null,null,null,null,null,null,null,null,null,null,null,null,null,null,null,null,null,null,null,null,null,null,null,null,null,null,null,null,null,null,null,null,null,null,null,null,null,null,null,null,null,null,null,null,null,null,null,null,null,null,null,null,null,null,null,null,null,null,"RES","MF741"]
[null,"MF_DPO_42","MF.7.4.2   Mineral fertiliser",null,null,null,null,null,null,null,null,null,null,null,null,null,null,null,null,null,null,null,null,null,null,null,null,null,null,null,null,null,null,null,null,null,null,null,null,null,null,null,null,null,null,null,null,null,null,null,null,null,null,null,null,null,null,null,null,null,null,null,null,null,null,null,null,null,null,null,null,null,null,null,null,null,null,null,null,null,null,null,null,null,null,null,null,null,null,null,"RES","MF742"]
[null,"MF_DPO_43","MF.7.4.3   Sewage sludge",null,null,null,null,null,null,null,null,null,null,null,null,null,null,null,null,null,null,null,null,null,null,null,null,null,null,null,null,null,null,null,null,null,null,null,null,null,null,null,null,null,null,null,null,null,null,null,null,null,null,null,null,null,null,null,null,null,null,null,null,null,null,null,null,null,null,null,null,null,null,null,null,null,null,null,null,null,null,null,null,null,null,null,null,null,null,null,"RES","MF743"]
[null,"MF_DPO_44","MF.7.4.4   Compost",null,null,null,null,null,null,null,null,null,null,null,null,null,null,null,null,null,null,null,null,null,null,null,null,null,null,null,null,null,null,null,null,null,null,null,null,null,null,null,null,null,null,null,null,null,null,null,null,null,null,null,null,null,null,null,null,null,null,null,null,null,null,null,null,null,null,null,null,null,null,null,null,null,null,null,null,null,null,null,null,null,null,null,null,null,null,null,"RES","MF744"]
[null,"MF_DPO_45","MF.7.4.5   Pesticides",null,null,null,null,null,null,null,null,null,null,null,null,null,null,null,null,null,null,null,null,null,null,null,null,null,null,null,null,null,null,null,null,null,null,null,null,null,null,null,null,null,null,null,null,null,null,null,null,null,null,null,null,null,null,null,null,null,null,null,null,null,null,null,null,null,null,null,null,null,null,null,null,null,null,null,null,null,null,null,null,null,null,null,null,null,null,null,"RES","MF745"]
[null,"MF_DPO_46","MF.7.4.6   Seeds",null,null,null,null,null,null,null,null,null,null,null,null,null,null,null,null,null,null,null,null,null,null,null,null,null,null,null,null,null,null,null,null,null,null,null,null,null,null,null,null,null,null,null,null,null,null,null,null,null,null,null,null,null,null,null,null,null,null,null,null,null,null,null,null,null,null,null,null,null,null,null,null,null,null,null,null,null,null,null,null,null,null,null,null,null,null,null,"RES","MF746"]
[null,"MF_DPO_47","MF.7.4.7   Salt and other thawing materials spread on roads (including grit)",null,null,null,null,null,null,null,null,null,null,null,null,null,null,null,null,null,null,null,null,null,null,null,null,null,null,null,null,null,null,null,null,null,null,null,null,null,null,null,null,null,null,null,null,null,null,null,null,null,null,null,null,null,null,null,null,null,null,null,null,null,null,null,null,null,null,null,null,null,null,null,null,null,null,null,null,null,null,null,null,null,null,null,null,null,null,null,"RES","MF747"]
[null,"MF_DPO_48","MF.7.4.8   Solvents, laughing gas and other",null,null,null,null,null,null,null,null,null,null,null,null,null,null,null,null,null,null,null,null,null,null,null,null,null,null,null,null,null,null,null,null,null,null,null,null,null,null,null,null,null,null,null,null,null,null,null,null,null,null,null,null,null,null,null,null,null,null,null,null,null,null,null,null,null,null,null,null,null,null,null,null,null,null,null,null,null,null,null,null,null,null,null,null,null,null,null,"RES","MF748"]
[null,"MF_DPO_5","MF.7.5   Dissipative losses",null,null,null,null,null,null,null,null,null,null,null,null,null,null,null,null,null,null,null,null,null,null,null,null,null,null,null,null,null,null,null,null,null,null,null,null,null,null,null,null,null,null,null,null,null,null,null,null,null,null,null,null,null,null,null,null,null,null,null,null,null,null,null,null,null,null,null,null,null,null,null,null,null,null,null,null,null,null,null,null,null,null,null,null,null,null,null,"RES","MF75"]
[null,"TOTAL","Total domestic processed output",null,null,{"$f":" IFERROR(IF(COUNT(F4,F22,F24,F30,F39)=5,F4+F22+F24+F30+F39,\":\"),\":\")","v":":"},null,{"$f":" IFERROR(IF(COUNT(H4,H22,H24,H30,H39)=5,H4+H22+H24+H30+H39,\":\"),\":\")","v":":"},null,{"$f":" IFERROR(IF(COUNT(J4,J22,J24,J30,J39)=5,J4+J22+J24+J30+J39,\":\"),\":\")","v":":"},null,{"$f":" IFERROR(IF(COUNT(L4,L22,L24,L30,L39)=5,L4+L22+L24+L30+L39,\":\"),\":\")","v":":"},null,{"$f":" IFERROR(IF(COUNT(N4,N22,N24,N30,N39)=5,N4+N22+N24+N30+N39,\":\"),\":\")","v":":"},null,{"$f":" IFERROR(IF(COUNT(P4,P22,P24,P30,P39)=5,P4+P22+P24+P30+P39,\":\"),\":\")","v":":"},null,{"$f":" IFERROR(IF(COUNT(R4,R22,R24,R30,R39)=5,R4+R22+R24+R30+R39,\":\"),\":\")","v":":"},null,{"$f":" IFERROR(IF(COUNT(T4,T22,T24,T30,T39)=5,T4+T22+T24+T30+T39,\":\"),\":\")","v":":"},null,{"$f":" IFERROR(IF(COUNT(V4,V22,V24,V30,V39)=5,V4+V22+V24+V30+V39,\":\"),\":\")","v":":"},null,{"$f":" IFERROR(IF(COUNT(X4,X22,X24,X30,X39)=5,X4+X22+X24+X30+X39,\":\"),\":\")","v":":"},null,{"$f":" IFERROR(IF(COUNT(Z4,Z22,Z24,Z30,Z39)=5,Z4+Z22+Z24+Z30+Z39,\":\"),\":\")","v":":"},null,{"$f":" IFERROR(IF(COUNT(AB4,AB22,AB24,AB30,AB39)=5,AB4+AB22+AB24+AB30+AB39,\":\"),\":\")","v":":"},null,{"$f":" IFERROR(IF(COUNT(AD4,AD22,AD24,AD30,AD39)=5,AD4+AD22+AD24+AD30+AD39,\":\"),\":\")","v":":"},null,{"$f":" IFERROR(IF(COUNT(AF4,AF22,AF24,AF30,AF39)=5,AF4+AF22+AF24+AF30+AF39,\":\"),\":\")","v":":"},null,{"$f":" IFERROR(IF(COUNT(AH4,AH22,AH24,AH30,AH39)=5,AH4+AH22+AH24+AH30+AH39,\":\"),\":\")","v":":"},null,{"$f":" IFERROR(IF(COUNT(AJ4,AJ22,AJ24,AJ30,AJ39)=5,AJ4+AJ22+AJ24+AJ30+AJ39,\":\"),\":\")","v":":"},null,{"$f":" IFERROR(IF(COUNT(AL4,AL22,AL24,AL30,AL39)=5,AL4+AL22+AL24+AL30+AL39,\":\"),\":\")","v":":"},null,{"$f":" IFERROR(IF(COUNT(AN4,AN22,AN24,AN30,AN39)=5,AN4+AN22+AN24+AN30+AN39,\":\"),\":\")","v":":"},null,{"$f":" IFERROR(IF(COUNT(AP4,AP22,AP24,AP30,AP39)=5,AP4+AP22+AP24+AP30+AP39,\":\"),\":\")","v":":"},null,{"$f":" IFERROR(IF(COUNT(AR4,AR22,AR24,AR30,AR39)=5,AR4+AR22+AR24+AR30+AR39,\":\"),\":\")","v":":"},null,{"$f":" IFERROR(IF(COUNT(AT4,AT22,AT24,AT30,AT39)=5,AT4+AT22+AT24+AT30+AT39,\":\"),\":\")","v":":"},null,{"$f":" IFERROR(IF(COUNT(AV4,AV22,AV24,AV30,AV39)=5,AV4+AV22+AV24+AV30+AV39,\":\"),\":\")","v":":"},null,{"$f":" IFERROR(IF(COUNT(AX4,AX22,AX24,AX30,AX39)=5,AX4+AX22+AX24+AX30+AX39,\":\"),\":\")","v":":"},null,{"$f":" IFERROR(IF(COUNT(AZ4,AZ22,AZ24,AZ30,AZ39)=5,AZ4+AZ22+AZ24+AZ30+AZ39,\":\"),\":\")","v":":"},null,{"$f":" IFERROR(IF(COUNT(BB4,BB22,BB24,BB30,BB39)=5,BB4+BB22+BB24+BB30+BB39,\":\"),\":\")","v":":"},null,{"$f":" IFERROR(IF(COUNT(BD4,BD22,BD24,BD30,BD39)=5,BD4+BD22+BD24+BD30+BD39,\":\"),\":\")","v":":"},null,{"$f":" IFERROR(IF(COUNT(BF4,BF22,BF24,BF30,BF39)=5,BF4+BF22+BF24+BF30+BF39,\":\"),\":\")","v":":"},null,{"$f":" IFERROR(IF(COUNT(BH4,BH22,BH24,BH30,BH39)=5,BH4+BH22+BH24+BH30+BH39,\":\"),\":\")","v":":"},null,{"$f":" IFERROR(IF(COUNT(BJ4,BJ22,BJ24,BJ30,BJ39)=5,BJ4+BJ22+BJ24+BJ30+BJ39,\":\"),\":\")","v":":"},null,{"$f":" IFERROR(IF(COUNT(BL4,BL22,BL24,BL30,BL39)=5,BL4+BL22+BL24+BL30+BL39,\":\"),\":\")","v":":"},null,{"$f":" IFERROR(IF(COUNT(BN4,BN22,BN24,BN30,BN39)=5,BN4+BN22+BN24+BN30+BN39,\":\"),\":\")","v":":"},null,null,null,null,null,null,null,null,null,null,null,null,null,null,null,null,null,null,null,null,null,null,null,null,"RES","_T"]

{"sheet":"Table_G","index":15,"n_rows":16,"n_cols":97,"rows_kept":16,"cut":false,"hidden":false,"merged":[[0,92,2,92],[0,93,2,93],[0,94,2,94],[0,95,2,95],[0,96,2,96],[0,87,2,87],[0,88,2,88],[0,89,2,89],[0,90,2,90],[0,91,2,91],[12,2,12,4],[5,2,5,4],[0,41,1,42],[1,2,1,3],[3,2,3,4],[0,17,1,18],[8,2,8,4],[2,2,2,4],[0,31,1,32],[0,13,1,14],[0,15,1,16],[0,27,1,28],[0,29,1,30]]}
["DATAENTRY",null,"   Country:",{"$f":"intro!H8","v":""},null,null,null,null,null,null,null,null,null,null,null,null,null,null,null,null,null,null,null,null,null,null,null,null,null,null,null,null,null,null,null,null,null,null,null,null,null,null,null,null,null,null,null,null,null,null,null,null,null,null,null,null,null,null,null,null,null,null,null,null,null,null,null,null,null,null,null,null,null,null,null,null,null,null,null,null,null,null,null,null,null,null,null,"DEMAND_PROD","ACCOUNTING_ENTRY","COUNTERPART_AREA","BRIDGE_ITEM","MATERIAL","STO","UNIT_MEASURE","UNIT_MULT","PRODUCT","SECTOR"]
["BI","THS_T"," Unit","Million National Currency","1000 Metric tonnes"]
[null,"Matflows","Table G: Balancing items",null,null,1990,null,1991,null,1992,null,1993,null,1994,null,1995,null,1996,null,1997,null,1998,null,1999,null,2000,null,2001,null,2002,null,2003,null,2004,null,2005,null,2006,null,2007,null,2008,null,2009,null,2010,null,2011,null,2012,null,2013,null,2014,null,2015,null,2016,null,2017,null,2018,null,2019,null,2020]
[null,"MF_BI_1","MF.8.1  Balancing items: input side",null,null,{"$f":" IFERROR(IF(COUNT(F5,F6,F7,F8)=4,F5+F6+F7+F8,\":\"),\":\")","v":":"},null,{"$f":" IFERROR(IF(COUNT(H5,H6,H7,H8)=4,H5+H6+H7+H8,\":\"),\":\")","v":":"},null,{"$f":" IFERROR(IF(COUNT(J5,J6,J7,J8)=4,J5+J6+J7+J8,\":\"),\":\")","v":":"},null,{"$f":" IFERROR(IF(COUNT(L5,L6,L7,L8)=4,L5+L6+L7+L8,\":\"),\":\")","v":":"},null,{"$f":" IFERROR(IF(COUNT(N5,N6,N7,N8)=4,N5+N6+N7+N8,\":\"),\":\")","v":":"},null,{"$f":" IFERROR(IF(COUNT(P5,P6,P7,P8)=4,P5+P6+P7+P8,\":\"),\":\")","v":":"},null,{"$f":" IFERROR(IF(COUNT(R5,R6,R7,R8)=4,R5+R6+R7+R8,\":\"),\":\")","v":":"},null,{"$f":" IFERROR(IF(COUNT(T5,T6,T7,T8)=4,T5+T6+T7+T8,\":\"),\":\")","v":":"},null,{"$f":" IFERROR(IF(COUNT(V5,V6,V7,V8)=4,V5+V6+V7+V8,\":\"),\":\")","v":":"},null,{"$f":" IFERROR(IF(COUNT(X5,X6,X7,X8)=4,X5+X6+X7+X8,\":\"),\":\")","v":":"},null,{"$f":" IFERROR(IF(COUNT(Z5,Z6,Z7,Z8)=4,Z5+Z6+Z7+Z8,\":\"),\":\")","v":":"},null,{"$f":" IFERROR(IF(COUNT(AB5,AB6,AB7,AB8)=4,AB5+AB6+AB7+AB8,\":\"),\":\")","v":":"},null,{"$f":" IFERROR(IF(COUNT(AD5,AD6,AD7,AD8)=4,AD5+AD6+AD7+AD8,\":\"),\":\")","v":":"},null,{"$f":" IFERROR(IF(COUNT(AF5,AF6,AF7,AF8)=4,AF5+AF6+AF7+AF8,\":\"),\":\")","v":":"},null,{"$f":" IFERROR(IF(COUNT(AH5,AH6,AH7,AH8)=4,AH5+AH6+AH7+AH8,\":\"),\":\")","v":":"},null,{"$f":" IFERROR(IF(COUNT(AJ5,AJ6,AJ7,AJ8)=4,AJ5+AJ6+AJ7+AJ8,\":\"),\":\")","v":":"},null,{"$f":" IFERROR(IF(COUNT(AL5,AL6,AL7,AL8)=4,AL5+AL6+AL7+AL8,\":\"),\":\")","v":":"},null,{"$f":" IFERROR(IF(COUNT(AN5,AN6,AN7,AN8)=4,AN5+AN6+AN7+AN8,\":\"),\":\")","v":":"},null,{"$f":" IFERROR(IF(COUNT(AP5,AP6,AP7,AP8)=4,AP5+AP6+AP7+AP8,\":\"),\":\")","v":":"},null,{"$f":" IFERROR(IF(COUNT(AR5,AR6,AR7,AR8)=4,AR5+AR6+AR7+AR8,\":\"),\":\")","v":":"},null,{"$f":" IFERROR(IF(COUNT(AT5,AT6,AT7,AT8)=4,AT5+AT6+AT7+AT8,\":\"),\":\")","v":":"},null,{"$f":" IFERROR(IF(COUNT(AV5,AV6,AV7,AV8)=4,AV5+AV6+AV7+AV8,\":\"),\":\")","v":":"},null,{"$f":" IFERROR(IF(COUNT(AX5,AX6,AX7,AX8)=4,AX5+AX6+AX7+AX8,\":\"),\":\")","v":":"},null,{"$f":" IFERROR(IF(COUNT(AZ5,AZ6,AZ7,AZ8)=4,AZ5+AZ6+AZ7+AZ8,\":\"),\":\")","v":":"},null,{"$f":" IFERROR(IF(COUNT(BB5,BB6,BB7,BB8)=4,BB5+BB6+BB7+BB8,\":\"),\":\")","v":":"},null,{"$f":" IFERROR(IF(COUNT(BD5,BD6,BD7,BD8)=4,BD5+BD6+BD7+BD8,\":\"),\":\")","v":":"},null,{"$f":" IFERROR(IF(COUNT(BF5,BF6,BF7,BF8)=4,BF5+BF6+BF7+BF8,\":\"),\":\")","v":":"},null,{"$f":" IFERROR(IF(COUNT(BH5,BH6,BH7,BH8)=4,BH5+BH6+BH7+BH8,\":\"),\":\")","v":":"},null,{"$f":" IFERROR(IF(COUNT(BJ5,BJ6,BJ7,BJ8)=4,BJ5+BJ6+BJ7+BJ8,\":\"),\":\")","v":":"},null,{"$f":" IFERROR(IF(COUNT(BL5,BL6,BL7,BL8)=4,BL5+BL6+BL7+BL8,\":\"),\":\")","v":":"},null,{"$f":" IFERROR(IF(COUNT(BN5,BN6,BN7,BN8)=4,BN5+BN6+BN7+BN8,\":\"),\":\")","v":":"},null,null,null,null,null,null,null,null,null,null,null,null,null,null,null,null,null,null,null,null,null,"P","B","W2","RES","MF81","BBI","TN",3,"_T","S1"]
[null,"MF_BI_11","MF.8.1.1 Oxygen for combustion processes",null,null,null,null,null,null,null,null,null,null,null,null,null,null,null,null,null,null,null,null,null,null,null,null,null,null,null,null,null,null,null,null,null,null,null,null,null,null,null,null,null,null,null,null,null,null,null,null,null,null,null,null,null,null,null,null,null,null,null,null,null,null,null,null,null,null,null,null,null,null,null,null,null,null,null,null,null,null,null,null,null,null,null,null,null,null,null,"RES","MF811"]
[null,"MF_BI_12","MF.8.1.2 Oxygen for respiration of humans and livestock; bacterial respiration from solid waste and wastewater",null,null,null,null,null,null,null,null,null,null,null,null,null,null,null,null,null,null,null,null,null,null,null,null,null,null,null,null,null,null,null,null,null,null,null,null,null,null,null,null,null,null,null,null,null,null,null,null,null,null,null,null,null,null,null,null,null,null,null,null,null,null,null,null,null,null,null,null,null,null,null,null,null,null,null,null,null,null,null,null,null,null,null,null,null,null,null,"RES","MF812"]
[null,"MF_BI_13","MF.8.1.3 Nitrogen for Haber-Bosch process",null,null,null,null,null,null,null,null,null,null,null,null,null,null,null,null,null,null,null,null,null,null,null,null,null,null,null,null,null,null,null,null,null,null,null,null,null,null,null,null,null,null,null,null,null,null,null,null,null,null,null,null,null,null,null,null,null,null,null,null,null,null,null,null,null,null,null,null,null,null,null,null,null,null,null,null,null,null,null,null,null,null,null,null,null,null,null,"RES","MF813"]
[null,"MF_BI_14","MF.8.1.4 Water requirements for the domestic production of exported beverages",null,null,null,null,null,null,null,null,null,null,null,null,null,null,null,null,null,null,null,null,null,null,null,null,null,null,null,null,null,null,null,null,null,null,null,null,null,null,null,null,null,null,null,null,null,null,null,null,null,null,null,null,null,null,null,null,null,null,null,null,null,null,null,null,null,null,null,null,null,null,null,null,null,null,null,null,null,null,null,null,null,null,null,null,null,null,null,"RES","MF814"]
[null,"MF_BI_2","MF.8.2  Balancing items: output side",null,null,{"$f":" IFERROR(IF(COUNT(F10,F13,F16)=3,F10+F13+F16,\":\"),\":\")","v":":"},null,{"$f":" IFERROR(IF(COUNT(H10,H13,H16)=3,H10+H13+H16,\":\"),\":\")","v":":"},null,{"$f":" IFERROR(IF(COUNT(J10,J13,J16)=3,J10+J13+J16,\":\"),\":\")","v":":"},null,{"$f":" IFERROR(IF(COUNT(L10,L13,L16)=3,L10+L13+L16,\":\"),\":\")","v":":"},null,{"$f":" IFERROR(IF(COUNT(N10,N13,N16)=3,N10+N13+N16,\":\"),\":\")","v":":"},null,{"$f":" IFERROR(IF(COUNT(P10,P13,P16)=3,P10+P13+P16,\":\"),\":\")","v":":"},null,{"$f":" IFERROR(IF(COUNT(R10,R13,R16)=3,R10+R13+R16,\":\"),\":\")","v":":"},null,{"$f":" IFERROR(IF(COUNT(T10,T13,T16)=3,T10+T13+T16,\":\"),\":\")","v":":"},null,{"$f":" IFERROR(IF(COUNT(V10,V13,V16)=3,V10+V13+V16,\":\"),\":\")","v":":"},null,{"$f":" IFERROR(IF(COUNT(X10,X13,X16)=3,X10+X13+X16,\":\"),\":\")","v":":"},null,{"$f":" IFERROR(IF(COUNT(Z10,Z13,Z16)=3,Z10+Z13+Z16,\":\"),\":\")","v":":"},null,{"$f":" IFERROR(IF(COUNT(AB10,AB13,AB16)=3,AB10+AB13+AB16,\":\"),\":\")","v":":"},null,{"$f":" IFERROR(IF(COUNT(AD10,AD13,AD16)=3,AD10+AD13+AD16,\":\"),\":\")","v":":"},null,{"$f":" IFERROR(IF(COUNT(AF10,AF13,AF16)=3,AF10+AF13+AF16,\":\"),\":\")","v":":"},null,{"$f":" IFERROR(IF(COUNT(AH10,AH13,AH16)=3,AH10+AH13+AH16,\":\"),\":\")","v":":"},null,{"$f":" IFERROR(IF(COUNT(AJ10,AJ13,AJ16)=3,AJ10+AJ13+AJ16,\":\"),\":\")","v":":"},null,{"$f":" IFERROR(IF(COUNT(AL10,AL13,AL16)=3,AL10+AL13+AL16,\":\"),\":\")","v":":"},null,{"$f":" IFERROR(IF(COUNT(AN10,AN13,AN16)=3,AN10+AN13+AN16,\":\"),\":\")","v":":"},null,{"$f":" IFERROR(IF(COUNT(AP10,AP13,AP16)=3,AP10+AP13+AP16,\":\"),\":\")","v":":"},null,{"$f":" IFERROR(IF(COUNT(AR10,AR13,AR16)=3,AR10+AR13+AR16,\":\"),\":\")","v":":"},null,{"$f":" IFERROR(IF(COUNT(AT10,AT13,AT16)=3,AT10+AT13+AT16,\":\"),\":\")","v":":"},null,{"$f":" IFERROR(IF(COUNT(AV10,AV13,AV16)=3,AV10+AV13+AV16,\":\"),\":\")","v":":"},null,{"$f":" IFERROR(IF(COUNT(AX10,AX13,AX16)=3,AX10+AX13+AX16,\":\"),\":\")","v":":"},null,{"$f":" IFERROR(IF(COUNT(AZ10,AZ13,AZ16)=3,AZ10+AZ13+AZ16,\":\"),\":\")","v":":"},null,{"$f":" IFERROR(IF(COUNT(BB10,BB13,BB16)=3,BB10+BB13+BB16,\":\"),\":\")","v":":"},null,{"$f":" IFERROR(IF(COUNT(BD10,BD13,BD16)=3,BD10+BD13+BD16,\":\"),\":\")","v":":"},null,{"$f":" IFERROR(IF(COUNT(BF10,BF13,BF16)=3,BF10+BF13+BF16,\":\"),\":\")","v":":"},null,{"$f":" IFERROR(IF(COUNT(BH10,BH13,BH16)=3,BH10+BH13+BH16,\":\"),\":\")","v":":"},null,{"$f":" IFERROR(IF(COUNT(BJ10,BJ13,BJ16)=3,BJ10+BJ13+BJ16,\":\"),\":\")","v":":"},null,{"$f":" IFERROR(IF(COUNT(BL10,BL13,BL16)=3,BL10+BL13+BL16,\":\"),\":\")","v":":"},null,{"$f":" IFERROR(IF(COUNT(BN10,BN13,BN16)=3,BN10+BN13+BN16,\":\"),\":\")","v":":"},null,null,null,null,null,null,null,null,null,null,null,null,null,null,null,null,null,null,null,null,null,null,null,null,"RES","MF82"]
[null,"MF_BI_21","MF.8.2.1 Water vapour from combustion",null,null,null,null,null,null,null,null,null,null,null,null,null,null,null,null,null,null,null,null,null,null,null,null,null,null,null,null,null,null,null,null,null,null,null,null,null,null,null,null,null,null,null,null,null,null,null,null,null,null,null,null,null,null,null,null,null,null,null,null,null,null,null,null,null,null,null,null,null,null,null,null,null,null,null,null,null,null,null,null,null,null,null,null,null,null,null,"RES","MF821"]
[null,"MF_BI_211","MF.8.2.1.1 Water vapour from moisture content of fuels",null,null,null,null,null,null,null,null,null,null,null,null,null,null,null,null,null,null,null,null,null,null,null,null,null,null,null,null,null,null,null,null,null,null,null,null,null,null,null,null,null,null,null,null,null,null,null,null,null,null,null,null,null,null,null,null,null,null,null,null,null,null,null,null,null,null,null,null,null,null,null,null,null,null,null,null,null,null,null,null,null,null,null,null,null,null,null,"RES","MF8211"]
[null,"MF_BI_212","MF.8.2.1.2 Water vapour from the oxidised hydrogen components of fuels",null,null,null,null,null,null,null,null,null,null,null,null,null,null,null,null,null,null,null,null,null,null,null,null,null,null,null,null,null,null,null,null,null,null,null,null,null,null,null,null,null,null,null,null,null,null,null,null,null,null,null,null,null,null,null,null,null,null,null,null,null,null,null,null,null,null,null,null,null,null,null,null,null,null,null,null,null,null,null,null,null,null,null,null,null,null,null,"RES","MF8212"]
[null,"MF_BI_22","MF.8.2.2 Gases from respiration of humans and livestock (CO2 and H2O), and from bacterial respiration from solid waste and wastewater (H2O)",null,null,null,null,null,null,null,null,null,null,null,null,null,null,null,null,null,null,null,null,null,null,null,null,null,null,null,null,null,null,null,null,null,null,null,null,null,null,null,null,null,null,null,null,null,null,null,null,null,null,null,null,null,null,null,null,null,null,null,null,null,null,null,null,null,null,null,null,null,null,null,null,null,null,null,null,null,null,null,null,null,null,null,null,null,null,null,"RES","MF822"]
[null,"MF_BI_221","MF.8.2.2.1 Carbon dioxide (CO2)",null,null,null,null,null,null,null,null,null,null,null,null,null,null,null,null,null,null,null,null,null,null,null,null,null,null,null,null,null,null,null,null,null,null,null,null,null,null,null,null,null,null,null,null,null,null,null,null,null,null,null,null,null,null,null,null,null,null,null,null,null,null,null,null,null,null,null,null,null,null,null,null,null,null,null,null,null,null,null,null,null,null,null,null,null,null,null,"RES","MF8221"]
[null,"MF_BI_222","MF.8.2.2.2 Water vapour (H2O)",null,null,null,null,null,null,null,null,null,null,null,null,null,null,null,null,null,null,null,null,null,null,null,null,null,null,null,null,null,null,null,null,null,null,null,null,null,null,null,null,null,null,null,null,null,null,null,null,null,null,null,null,null,null,null,null,null,null,null,null,null,null,null,null,null,null,null,null,null,null,null,null,null,null,null,null,null,null,null,null,null,null,null,null,null,null,null,"RES","MF8222"]
[null,"MF_BI_23","MF.8.2.3  Excorporated water from biomass products",null,null,null,null,null,null,null,null,null,null,null,null,null,null,null,null,null,null,null,null,null,null,null,null,null,null,null,null,null,null,null,null,null,null,null,null,null,null,null,null,null,null,null,null,null,null,null,null,null,null,null,null,null,null,null,null,null,null,null,null,null,null,null,null,null,null,null,null,null,null,null,null,null,null,null,null,null,null,null,null,null,null,null,null,null,null,null,"RES","MF823"]

{"sheet":"Table_H","index":16,"n_rows":11,"n_cols":97,"rows_kept":11,"cut":false,"hidden":false,"merged":[[0,97,2,97],[0,92,2,92],[0,93,2,93],[0,94,2,94],[0,95,2,95],[0,96,2,96],[0,87,2,87],[0,88,2,88],[0,89,2,89],[0,90,2,90],[0,91,2,91],[0,41,1,42],[0,27,1,28],[0,29,1,30],[0,31,1,32],[1,2,1,3],[8,2,8,4],[9,2,9,4],[0,5,1,20],[10,2,10,3],[3,2,3,4],[6,2,6,4],[4,2,4,4],[5,2,5,4],[7,2,7,4],[2,2,2,4]]}
["DATAENTRY",null,"   Country:",{"$f":"intro!H8","v":""},null,"The values in Table H are automatically calculated based on data reported in Table A to Table G. Therefore the cells are protected.",null,null,null,null,null,null,null,null,null,null,null,null,null,null,null,null,null,null,null,null,null,null,null,null,null,null,null,null,null,null,null,null,null,null,null,null,null,null,null,null,null,null,null,null,null,null,null,null,null,null,null,null,null,null,null,null,null,null,null,null,null,null,null,null,null,null,null,null,null,null,null,null,null,null,null,null,null,null,null,null,null,"DEMAND_PROD","ACCOUNTING_ENTRY","COUNTERPART_AREA","BRIDGE_ITEM","MATERIAL","STO","UNIT_MEASURE","UNIT_MULT","PRODUCT","SECTOR"]
[null,"THS_T","   Unit","Million National Currency","1000 Metric tonnes"]
[null,null,"Table H: Indicators",null,null,1990,null,1991,null,1992,null,1993,null,1994,null,1995,null,1996,null,1997,null,1998,null,1999,null,2000,null,2001,null,2002,null,2003,null,2004,null,2005,null,2006,null,2007,null,2008,null,2009,null,2010,null,2011,null,2012,null,2013,null,2014,null,2015,null,2016,null,2017,null,2018,null,2019,null,2020]
[null,"DE","H.1 Domestic extraction (DE)",null,null,{"$f":"Table_A!F68","v":":"},null,{"$f":"Table_A!H68","v":":"},null,{"$f":"Table_A!J68","v":":"},null,{"$f":"Table_A!L68","v":":"},null,{"$f":"Table_A!N68","v":":"},null,{"$f":"Table_A!P68","v":":"},null,{"$f":"Table_A!R68","v":":"},null,{"$f":"Table_A!T68","v":":"},null,{"$f":"Table_A!V68","v":":"},null,{"$f":"Table_A!X68","v":":"},null,{"$f":"Table_A!Z68","v":":"},null,{"$f":"Table_A!AB68","v":":"},null,{"$f":"Table_A!AD68","v":":"},null,{"$f":"Table_A!AF68","v":":"},null,{"$f":"Table_A!AH68","v":":"},null,{"$f":"Table_A!AJ68","v":":"},null,{"$f":"Table_A!AL68","v":":"},null,{"$f":"Table_A!AN68","v":":"},null,{"$f":"Table_A!AP68","v":":"},null,{"$f":"Table_A!AR68","v":":"},null,{"$f":"Table_A!AT68","v":":"},null,{"$f":"Table_A!AV68","v":":"},null,{"$f":"Table_A!AX68","v":":"},null,{"$f":"Table_A!AZ68","v":":"},null,{"$f":"Table_A!BB68","v":":"},null,{"$f":"Table_A!BD68","v":":"},null,{"$f":"Table_A!BF68","v":":"},null,{"$f":"Table_A!BH68","v":":"},null,{"$f":"Table_A!BJ68","v":":"},null,{"$f":"Table_A!BL68","v":":"},null,{"$f":"Table_A!BN68","v":":"},null,null,null,null,null,null,null,null,null,null,null,null,null,null,null,null,null,null,null,null,"REPORTED IN TABLE A"]
[null,"IMP","H.2 Imports",null,null,{"$f":"Table_B!F78","v":":"},null,{"$f":"Table_B!H78","v":":"},null,{"$f":"Table_B!J78","v":":"},null,{"$f":"Table_B!L78","v":":"},null,{"$f":"Table_B!N78","v":":"},null,{"$f":"Table_B!P78","v":":"},null,{"$f":"Table_B!R78","v":":"},null,{"$f":"Table_B!T78","v":":"},null,{"$f":"Table_B!V78","v":":"},null,{"$f":"Table_B!X78","v":":"},null,{"$f":"Table_B!Z78","v":":"},null,{"$f":"Table_B!AB78","v":":"},null,{"$f":"Table_B!AD78","v":":"},null,{"$f":"Table_B!AF78","v":":"},null,{"$f":"Table_B!AH78","v":":"},null,{"$f":"Table_B!AJ78","v":":"},null,{"$f":"Table_B!AL78","v":":"},null,{"$f":"Table_B!AN78","v":":"},null,{"$f":"Table_B!AP78","v":":"},null,{"$f":"Table_B!AR78","v":":"},null,{"$f":"Table_B!AT78","v":":"},null,{"$f":"Table_B!AV78","v":":"},null,{"$f":"Table_B!AX78","v":":"},null,{"$f":"Table_B!AZ78","v":":"},null,{"$f":"Table_B!BB78","v":":"},null,{"$f":"Table_B!BD78","v":":"},null,{"$f":"Table_B!BF78","v":":"},null,{"$f":"Table_B!BH78","v":":"},null,{"$f":"Table_B!BJ78","v":":"},null,{"$f":"Table_B!BL78","v":":"},null,{"$f":"Table_B!BN78","v":":"},null,null,null,null,null,null,null,null,null,null,null,null,null,null,null,null,null,null,null,null,"REPORTED IN TABLE B"]
[null,"EXP","H.3 Exports",null,null,{"$f":"Table_D!F78","v":":"},null,{"$f":"Table_D!H78","v":":"},null,{"$f":"Table_D!J78","v":":"},null,{"$f":"Table_D!L78","v":":"},null,{"$f":"Table_D!N78","v":":"},null,{"$f":"Table_D!P78","v":":"},null,{"$f":"Table_D!R78","v":":"},null,{"$f":"Table_D!T78","v":":"},null,{"$f":"Table_D!V78","v":":"},null,{"$f":"Table_D!X78","v":":"},null,{"$f":"Table_D!Z78","v":":"},null,{"$f":"Table_D!AB78","v":":"},null,{"$f":"Table_D!AD78","v":":"},null,{"$f":"Table_D!AF78","v":":"},null,{"$f":"Table_D!AH78","v":":"},null,{"$f":"Table_D!AJ78","v":":"},null,{"$f":"Table_D!AL78","v":":"},null,{"$f":"Table_D!AN78","v":":"},null,{"$f":"Table_D!AP78","v":":"},null,{"$f":"Table_D!AR78","v":":"},null,{"$f":"Table_D!AT78","v":":"},null,{"$f":"Table_D!AV78","v":":"},null,{"$f":"Table_D!AX78","v":":"},null,{"$f":"Table_D!AZ78","v":":"},null,{"$f":"Table_D!BB78","v":":"},null,{"$f":"Table_D!BD78","v":":"},null,{"$f":"Table_D!BF78","v":":"},null,{"$f":"Table_D!BH78","v":":"},null,{"$f":"Table_D!BJ78","v":":"},null,{"$f":"Table_D!BL78","v":":"},null,{"$f":"Table_D!BN78","v":":"},null,null,null,null,null,null,null,null,null,null,null,null,null,null,null,null,null,null,null,null,"REPORTED IN TABLE C"]
[null,"DMI","H.4 Direct material input (DMI)",null,null,{"$f":"IFERROR(F4+F5,\":\")","v":":"},null,{"$f":"IFERROR(H4+H5,\":\")","v":":"},null,{"$f":"IFERROR(J4+J5,\":\")","v":":"},null,{"$f":"IFERROR(L4+L5,\":\")","v":":"},null,{"$f":"IFERROR(N4+N5,\":\")","v":":"},null,{"$f":"IFERROR(P4+P5,\":\")","v":":"},null,{"$f":"IFERROR(R4+R5,\":\")","v":":"},null,{"$f":"IFERROR(T4+T5,\":\")","v":":"},null,{"$f":"IFERROR(V4+V5,\":\")","v":":"},null,{"$f":"IFERROR(X4+X5,\":\")","v":":"},null,{"$f":"IFERROR(Z4+Z5,\":\")","v":":"},null,{"$f":"IFERROR(AB4+AB5,\":\")","v":":"},null,{"$f":"IFERROR(AD4+AD5,\":\")","v":":"},null,{"$f":"IFERROR(AF4+AF5,\":\")","v":":"},null,{"$f":"IFERROR(AH4+AH5,\":\")","v":":"},null,{"$f":"IFERROR(AJ4+AJ5,\":\")","v":":"},null,{"$f":"IFERROR(AL4+AL5,\":\")","v":":"},null,{"$f":"IFERROR(AN4+AN5,\":\")","v":":"},null,{"$f":"IFERROR(AP4+AP5,\":\")","v":":"},null,{"$f":"IFERROR(AR4+AR5,\":\")","v":":"},null,{"$f":"IFERROR(AT4+AT5,\":\")","v":":"},null,{"$f":"IFERROR(AV4+AV5,\":\")","v":":"},null,{"$f":"IFERROR(AX4+AX5,\":\")","v":":"},null,{"$f":"IFERROR(AZ4+AZ5,\":\")","v":":"},null,{"$f":"IFERROR(BB4+BB5,\":\")","v":":"},null,{"$f":"IFERROR(BD4+BD5,\":\")","v":":"},null,{"$f":"IFERROR(BF4+BF5,\":\")","v":":"},null,{"$f":"IFERROR(BH4+BH5,\":\")","v":":"},null,{"$f":"IFERROR(BJ4+BJ5,\":\")","v":":"},null,{"$f":"IFERROR(BL4+BL5,\":\")","v":":"},null,{"$f":"IFERROR(BN4+BN5,\":\")","v":":"},null,null,null,null,null,null,null,null,null,null,null,null,null,null,null,null,null,null,null,null,"CALCULATED","P","C","W0","RES","_T","BDMI","TN",3,"_T","S1"]
[null,"DMC","H.5 Domestic material consumption (DMC)",null,null,{"$f":"IFERROR(F7-F6,\":\")","v":":"},null,{"$f":"IFERROR(H7-H6,\":\")","v":":"},null,{"$f":"IFERROR(J7-J6,\":\")","v":":"},null,{"$f":"IFERROR(L7-L6,\":\")","v":":"},null,{"$f":"IFERROR(N7-N6,\":\")","v":":"},null,{"$f":"IFERROR(P7-P6,\":\")","v":":"},null,{"$f":"IFERROR(R7-R6,\":\")","v":":"},null,{"$f":"IFERROR(T7-T6,\":\")","v":":"},null,{"$f":"IFERROR(V7-V6,\":\")","v":":"},null,{"$f":"IFERROR(X7-X6,\":\")","v":":"},null,{"$f":"IFERROR(Z7-Z6,\":\")","v":":"},null,{"$f":"IFERROR(AB7-AB6,\":\")","v":":"},null,{"$f":"IFERROR(AD7-AD6,\":\")","v":":"},null,{"$f":"IFERROR(AF7-AF6,\":\")","v":":"},null,{"$f":"IFERROR(AH7-AH6,\":\")","v":":"},null,{"$f":"IFERROR(AJ7-AJ6,\":\")","v":":"},null,{"$f":"IFERROR(AL7-AL6,\":\")","v":":"},null,{"$f":"IFERROR(AN7-AN6,\":\")","v":":"},null,{"$f":"IFERROR(AP7-AP6,\":\")","v":":"},null,{"$f":"IFERROR(AR7-AR6,\":\")","v":":"},null,{"$f":"IFERROR(AT7-AT6,\":\")","v":":"},null,{"$f":"IFERROR(AV7-AV6,\":\")","v":":"},null,{"$f":"IFERROR(AX7-AX6,\":\")","v":":"},null,{"$f":"IFERROR(AZ7-AZ6,\":\")","v":":"},null,{"$f":"IFERROR(BB7-BB6,\":\")","v":":"},null,{"$f":"IFERROR(BD7-BD6,\":\")","v":":"},null,{"$f":"IFERROR(BF7-BF6,\":\")","v":":"},null,{"$f":"IFERROR(BH7-BH6,\":\")","v":":"},null,{"$f":"IFERROR(BJ7-BJ6,\":\")","v":":"},null,{"$f":"IFERROR(BL7-BL6,\":\")","v":":"},null,{"$f":"IFERROR(BN7-BN6,\":\")","v":":"},null,null,null,null,null,null,null,null,null,null,null,null,null,null,null,null,null,null,null,null,"Kept for","P","D","W0","RES","_T","BDMC","TN",3,"_T","S1"]
[null,"PTB","H.6 Physical trade balance (PTB)",null,null,{"$f":"IFERROR(F5-F6,\":\")","v":":"},null,{"$f":"IFERROR(H5-H6,\":\")","v":":"},null,{"$f":"IFERROR(J5-J6,\":\")","v":":"},null,{"$f":"IFERROR(L5-L6,\":\")","v":":"},null,{"$f":"IFERROR(N5-N6,\":\")","v":":"},null,{"$f":"IFERROR(P5-P6,\":\")","v":":"},null,{"$f":"IFERROR(R5-R6,\":\")","v":":"},null,{"$f":"IFERROR(T5-T6,\":\")","v":":"},null,{"$f":"IFERROR(V5-V6,\":\")","v":":"},null,{"$f":"IFERROR(X5-X6,\":\")","v":":"},null,{"$f":"IFERROR(Z5-Z6,\":\")","v":":"},null,{"$f":"IFERROR(AB5-AB6,\":\")","v":":"},null,{"$f":"IFERROR(AD5-AD6,\":\")","v":":"},null,{"$f":"IFERROR(AF5-AF6,\":\")","v":":"},null,{"$f":"IFERROR(AH5-AH6,\":\")","v":":"},null,{"$f":"IFERROR(AJ5-AJ6,\":\")","v":":"},null,{"$f":"IFERROR(AL5-AL6,\":\")","v":":"},null,{"$f":"IFERROR(AN5-AN6,\":\")","v":":"},null,{"$f":"IFERROR(AP5-AP6,\":\")","v":":"},null,{"$f":"IFERROR(AR5-AR6,\":\")","v":":"},null,{"$f":"IFERROR(AT5-AT6,\":\")","v":":"},null,{"$f":"IFERROR(AV5-AV6,\":\")","v":":"},null,{"$f":"IFERROR(AX5-AX6,\":\")","v":":"},null,{"$f":"IFERROR(AZ5-AZ6,\":\")","v":":"},null,{"$f":"IFERROR(BB5-BB6,\":\")","v":":"},null,{"$f":"IFERROR(BD5-BD6,\":\")","v":":"},null,{"$f":"IFERROR(BF5-BF6,\":\")","v":":"},null,{"$f":"IFERROR(BH5-BH6,\":\")","v":":"},null,{"$f":"IFERROR(BJ5-BJ6,\":\")","v":":"},null,{"$f":"IFERROR(BL5-BL6,\":\")","v":":"},null,{"$f":"IFERROR(BN5-BN6,\":\")","v":":"},null,null,null,null,null,null,null,null,null,null,null,null,null,null,null,null,null,null,null,null,"testing","P","B","W1","RES","_T","PPTB","TN",3,"_T","S1"]
[null,"DPO","H.7 Domestic processed output (DPO)",null,null,{"$f":"Table_F!F40","v":":"},null,{"$f":"Table_F!H40","v":":"},null,{"$f":"Table_F!J40","v":":"},null,{"$f":"Table_F!L40","v":":"},null,{"$f":"Table_F!N40","v":":"},null,{"$f":"Table_F!P40","v":":"},null,{"$f":"Table_F!R40","v":":"},null,{"$f":"Table_F!T40","v":":"},null,{"$f":"Table_F!V40","v":":"},null,{"$f":"Table_F!X40","v":":"},null,{"$f":"Table_F!Z40","v":":"},null,{"$f":"Table_F!AB40","v":":"},null,{"$f":"Table_F!AD40","v":":"},null,{"$f":"Table_F!AF40","v":":"},null,{"$f":"Table_F!AH40","v":":"},null,{"$f":"Table_F!AJ40","v":":"},null,{"$f":"Table_F!AL40","v":":"},null,{"$f":"Table_F!AN40","v":":"},null,{"$f":"Table_F!AP40","v":":"},null,{"$f":"Table_F!AR40","v":":"},null,{"$f":"Table_F!AT40","v":":"},null,{"$f":"Table_F!AV40","v":":"},null,{"$f":"Table_F!AX40","v":":"},null,{"$f":"Table_F!AZ40","v":":"},null,{"$f":"Table_F!BB40","v":":"},null,{"$f":"Table_F!BD40","v":":"},null,{"$f":"Table_F!BF40","v":":"},null,{"$f":"Table_F!BH40","v":":"},null,{"$f":"Table_F!BJ40","v":":"},null,{"$f":"Table_F!BL40","v":":"},null,{"$f":"Table_F!BN40","v":":"},null,null,null,null,null,null,null,null,null,null,null,null,null,null,null,null,null,null,null,null,"purposes","P","EC","W2","RES","_T","MDPO","TN",3,"_T","S1"]
[null,"NAS","H.8 Net additions to stock (NAS)         ",null,null,{"$f":"IFERROR(F8-F10+Table_G!F4-Table_G!F9,\":\")","v":":"},null,{"$f":"IFERROR(H8-H10+Table_G!H4-Table_G!H9,\":\")","v":":"},null,{"$f":"IFERROR(J8-J10+Table_G!J4-Table_G!J9,\":\")","v":":"},null,{"$f":"IFERROR(L8-L10+Table_G!L4-Table_G!L9,\":\")","v":":"},null,{"$f":"IFERROR(N8-N10+Table_G!N4-Table_G!N9,\":\")","v":":"},null,{"$f":"IFERROR(P8-P10+Table_G!P4-Table_G!P9,\":\")","v":":"},null,{"$f":"IFERROR(R8-R10+Table_G!R4-Table_G!R9,\":\")","v":":"},null,{"$f":"IFERROR(T8-T10+Table_G!T4-Table_G!T9,\":\")","v":":"},null,{"$f":"IFERROR(V8-V10+Table_G!V4-Table_G!V9,\":\")","v":":"},null,{"$f":"IFERROR(X8-X10+Table_G!X4-Table_G!X9,\":\")","v":":"},null,{"$f":"IFERROR(Z8-Z10+Table_G!Z4-Table_G!Z9,\":\")","v":":"},null,{"$f":"IFERROR(AB8-AB10+Table_G!AB4-Table_G!AB9,\":\")","v":":"},null,{"$f":"IFERROR(AD8-AD10+Table_G!AD4-Table_G!AD9,\":\")","v":":"},null,{"$f":"IFERROR(AF8-AF10+Table_G!AF4-Table_G!AF9,\":\")","v":":"},null,{"$f":"IFERROR(AH8-AH10+Table_G!AH4-Table_G!AH9,\":\")","v":":"},null,{"$f":"IFERROR(AJ8-AJ10+Table_G!AJ4-Table_G!AJ9,\":\")","v":":"},null,{"$f":"IFERROR(AL8-AL10+Table_G!AL4-Table_G!AL9,\":\")","v":":"},null,{"$f":"IFERROR(AN8-AN10+Table_G!AN4-Table_G!AN9,\":\")","v":":"},null,{"$f":"IFERROR(AP8-AP10+Table_G!AP4-Table_G!AP9,\":\")","v":":"},null,{"$f":"IFERROR(AR8-AR10+Table_G!AR4-Table_G!AR9,\":\")","v":":"},null,{"$f":"IFERROR(AT8-AT10+Table_G!AT4-Table_G!AT9,\":\")","v":":"},null,{"$f":"IFERROR(AV8-AV10+Table_G!AV4-Table_G!AV9,\":\")","v":":"},null,{"$f":"IFERROR(AX8-AX10+Table_G!AX4-Table_G!AX9,\":\")","v":":"},null,{"$f":"IFERROR(AZ8-AZ10+Table_G!AZ4-Table_G!AZ9,\":\")","v":":"},null,{"$f":"IFERROR(BB8-BB10+Table_G!BB4-Table_G!BB9,\":\")","v":":"},null,{"$f":"IFERROR(BD8-BD10+Table_G!BD4-Table_G!BD9,\":\")","v":":"},null,{"$f":"IFERROR(BF8-BF10+Table_G!BF4-Table_G!BF9,\":\")","v":":"},null,{"$f":"IFERROR(BH8-BH10+Table_G!BH4-Table_G!BH9,\":\")","v":":"},null,{"$f":"IFERROR(BJ8-BJ10+Table_G!BJ4-Table_G!BJ9,\":\")","v":":"},null,{"$f":"IFERROR(BL8-BL10+Table_G!BL4-Table_G!BL9,\":\")","v":":"},null,{"$f":"IFERROR(BN8-BN10+Table_G!BN4-Table_G!BN9,\":\")","v":":"},null,null,null,null,null,null,null,null,null,null,null,null,null,null,null,null,null,null,null,null,null,"P","A","W2","RES","_T","KNAS","TN",3,"_T","S1"]

{"sheet":"Table_I","index":17,"n_rows":28,"n_cols":97,"rows_kept":28,"cut":false,"hidden":false,"merged":[[0,97,2,97],[0,92,2,92],[0,93,2,93],[0,94,2,94],[0,95,2,95],[0,96,2,96],[0,87,2,87],[0,88,2,88],[0,89,2,89],[0,90,2,90],[0,91,2,91],[18,2,18,4],[23,2,23,4],[0,41,1,42],[1,2,1,3],[2,2,2,4],[3,2,3,4],[8,2,8,4],[13,2,13,4],[0,27,1,28],[0,29,1,30],[0,31,1,32],[0,5,1,20]]}
["DATAENTRY",null,"   Country:",{"$f":"intro!H8","v":""},null,"The cells highlighted in light grey are automatically calculated based on data reported in Table A and Table I and the cells are protected . Please fill in only the white cells.  ",null,null,null,null,null,null,null,null,null,null,null,null,null,null,null,null,null,null,null,null,null,null,null,null,null,null,null,null,null,null,null,null,null,null,null,null,null,null,null,null,null,null,null,null,null,null,null,null,null,null,null,null,null,null,null,null,null,null,null,null,null,null,null,null,null,null,null,null,null,null,null,null,null,null,null,null,null,null,null,null,null,"DEMAND_PROD","ACCOUNTING_ENTRY","COUNTERPART_AREA","BRIDGE_ITEM","MATERIAL","STO","UNIT_MEASURE","UNIT_MULT","PRODUCT","SECTOR"]
[null,"THS_T","   Unit","Million National Currency","1000 Metric tonnes"]
[null,null,"Table I: Material flow accounts in raw \nmaterial equivalents (RME) ",null,null,1990,null,1991,null,1992,null,1993,null,1994,null,1995,null,1996,null,1997,null,1998,null,1999,null,2000,null,2001,null,2002,null,2003,null,2004,null,2005,null,2006,null,2007,null,2008,null,2009,null,2010,null,2011,null,2012,null,2013,null,2014,null,2015,null,2016,null,2017,null,2018,null,2019,null,2020]
["DE","TOTAL","Domestic extraction (DE)",null,null,{"$f":"IFERROR(IF(COUNT(Table_A!F4,Table_A!F31,Table_A!F48,Table_A!F59)=4,IF(ISBLANK(F9), \":\",Table_A!F4+Table_A!F31+Table_A!F48+Table_A!F59),\":\"),\":\")","v":":"},{"$f":"IF(ISBLANK(F9), \"\",\"\"&Table_A!G68)","v":""},{"$f":"IFERROR(IF(COUNT(Table_A!H4,Table_A!H31,Table_A!H48,Table_A!H59)=4,IF(ISBLANK(H9), \":\",Table_A!H4+Table_A!H31+Table_A!H48+Table_A!H59),\":\"),\":\")","v":":"},{"$f":"IF(ISBLANK(H9), \"\",\"\"&Table_A!I68)","v":""},{"$f":"IFERROR(IF(COUNT(Table_A!J4,Table_A!J31,Table_A!J48,Table_A!J59)=4,IF(ISBLANK(J9), \":\",Table_A!J4+Table_A!J31+Table_A!J48+Table_A!J59),\":\"),\":\")","v":":"},{"$f":"IF(ISBLANK(J9), \"\",\"\"&Table_A!K68)","v":""},{"$f":"IFERROR(IF(COUNT(Table_A!L4,Table_A!L31,Table_A!L48,Table_A!L59)=4,IF(ISBLANK(L9), \":\",Table_A!L4+Table_A!L31+Table_A!L48+Table_A!L59),\":\"),\":\")","v":":"},{"$f":"IF(ISBLANK(L9), \"\",\"\"&Table_A!M68)","v":""},{"$f":"IFERROR(IF(COUNT(Table_A!N4,Table_A!N31,Table_A!N48,Table_A!N59)=4,IF(ISBLANK(N9), \":\",Table_A!N4+Table_A!N31+Table_A!N48+Table_A!N59),\":\"),\":\")","v":":"},{"$f":"IF(ISBLANK(N9), \"\",\"\"&Table_A!O68)","v":""},{"$f":"IFERROR(IF(COUNT(Table_A!P4,Table_A!P31,Table_A!P48,Table_A!P59)=4,IF(ISBLANK(P9), \":\",Table_A!P4+Table_A!P31+Table_A!P48+Table_A!P59),\":\"),\":\")","v":":"},{"$f":"IF(ISBLANK(P9), \"\",\"\"&Table_A!Q68)","v":""},{"$f":"IFERROR(IF(COUNT(Table_A!R4,Table_A!R31,Table_A!R48,Table_A!R59)=4,IF(ISBLANK(R9), \":\",Table_A!R4+Table_A!R31+Table_A!R48+Table_A!R59),\":\"),\":\")","v":":"},{"$f":"IF(ISBLANK(R9), \"\",\"\"&Table_A!S68)","v":""},{"$f":"IFERROR(IF(COUNT(Table_A!T4,Table_A!T31,Table_A!T48,Table_A!T59)=4,IF(ISBLANK(T9), \":\",Table_A!T4+Table_A!T31+Table_A!T48+Table_A!T59),\":\"),\":\")","v":":"},{"$f":"IF(ISBLANK(T9), \"\",\"\"&Table_A!U68)","v":""},{"$f":"IFERROR(IF(COUNT(Table_A!V4,Table_A!V31,Table_A!V48,Table_A!V59)=4,IF(ISBLANK(V9), \":\",Table_A!V4+Table_A!V31+Table_A!V48+Table_A!V59),\":\"),\":\")","v":":"},{"$f":"IF(ISBLANK(V9), \"\",\"\"&Table_A!W68)","v":""},{"$f":"IFERROR(IF(COUNT(Table_A!X4,Table_A!X31,Table_A!X48,Table_A!X59)=4,IF(ISBLANK(X9), \":\",Table_A!X4+Table_A!X31+Table_A!X48+Table_A!X59),\":\"),\":\")","v":":"},{"$f":"IF(ISBLANK(X9), \"\",\"\"&Table_A!Y68)","v":""},{"$f":"IFERROR(IF(COUNT(Table_A!Z4,Table_A!Z31,Table_A!Z48,Table_A!Z59)=4,IF(ISBLANK(Z9), \":\",Table_A!Z4+Table_A!Z31+Table_A!Z48+Table_A!Z59),\":\"),\":\")","v":":"},{"$f":"IF(ISBLANK(Z9), \"\",\"\"&Table_A!AA68)","v":""},{"$f":"IFERROR(IF(COUNT(Table_A!AB4,Table_A!AB31,Table_A!AB48,Table_A!AB59)=4,IF(ISBLANK(AB9), \":\",Table_A!AB4+Table_A!AB31+Table_A!AB48+Table_A!AB59),\":\"),\":\")","v":":"},{"$f":"IF(ISBLANK(AB9), \"\",\"\"&Table_A!AC68)","v":""},{"$f":"IFERROR(IF(COUNT(Table_A!AD4,Table_A!AD31,Table_A!AD48,Table_A!AD59)=4,IF(ISBLANK(AD9), \":\",Table_A!AD4+Table_A!AD31+Table_A!AD48+Table_A!AD59),\":\"),\":\")","v":":"},{"$f":"IF(ISBLANK(AD9), \"\",\"\"&Table_A!AE68)","v":""},{"$f":"IFERROR(IF(COUNT(Table_A!AF4,Table_A!AF31,Table_A!AF48,Table_A!AF59)=4,IF(ISBLANK(AF9), \":\",Table_A!AF4+Table_A!AF31+Table_A!AF48+Table_A!AF59),\":\"),\":\")","v":":"},{"$f":"IF(ISBLANK(AF9), \"\",\"\"&Table_A!AG68)","v":""},{"$f":"IFERROR(IF(COUNT(Table_A!AH4,Table_A!AH31,Table_A!AH48,Table_A!AH59)=4,IF(ISBLANK(AH9), \":\",Table_A!AH4+Table_A!AH31+Table_A!AH48+Table_A!AH59),\":\"),\":\")","v":":"},{"$f":"IF(ISBLANK(AH9), \"\",\"\"&Table_A!AI68)","v":""},{"$f":"IFERROR(IF(COUNT(Table_A!AJ4,Table_A!AJ31,Table_A!AJ48,Table_A!AJ59)=4,IF(ISBLANK(AJ9), \":\",Table_A!AJ4+Table_A!AJ31+Table_A!AJ48+Table_A!AJ59),\":\"),\":\")","v":":"},{"$f":"IF(ISBLANK(AJ9), \"\",\"\"&Table_A!AK68)","v":""},{"$f":"IFERROR(IF(COUNT(Table_A!AL4,Table_A!AL31,Table_A!AL48,Table_A!AL59)=4,IF(ISBLANK(AL9), \":\",Table_A!AL4+Table_A!AL31+Table_A!AL48+Table_A!AL59),\":\"),\":\")","v":":"},{"$f":"IF(ISBLANK(AL9), \"\",\"\"&Table_A!AM68)","v":""},{"$f":"IFERROR(IF(COUNT(Table_A!AN4,Table_A!AN31,Table_A!AN48,Table_A!AN59)=4,IF(ISBLANK(AN9), \":\",Table_A!AN4+Table_A!AN31+Table_A!AN48+Table_A!AN59),\":\"),\":\")","v":":"},{"$f":"IF(ISBLANK(AN9), \"\",\"\"&Table_A!AO68)","v":""},{"$f":"IFERROR(IF(COUNT(Table_A!AP4,Table_A!AP31,Table_A!AP48,Table_A!AP59)=4,IF(ISBLANK(AP9), \":\",Table_A!AP4+Table_A!AP31+Table_A!AP48+Table_A!AP59),\":\"),\":\")","v":":"},{"$f":"IF(ISBLANK(AP9), \"\",\"\"&Table_A!AQ68)","v":""},{"$f":"IFERROR(IF(COUNT(Table_A!AR4,Table_A!AR31,Table_A!AR48,Table_A!AR59)=4,IF(ISBLANK(AR9), \":\",Table_A!AR4+Table_A!AR31+Table_A!AR48+Table_A!AR59),\":\"),\":\")","v":":"},{"$f":"IF(ISBLANK(AR9), \"\",\"\"&Table_A!AS68)","v":""},{"$f":"IFERROR(IF(COUNT(Table_A!AT4,Table_A!AT31,Table_A!AT48,Table_A!AT59)=4,IF(ISBLANK(AT9), \":\",Table_A!AT4+Table_A!AT31+Table_A!AT48+Table_A!AT59),\":\"),\":\")","v":":"},{"$f":"IF(ISBLANK(AT9), \"\",\"\"&Table_A!AU68)","v":""},{"$f":"IFERROR(IF(COUNT(Table_A!AV4,Table_A!AV31,Table_A!AV48,Table_A!AV59)=4,IF(ISBLANK(AV9), \":\",Table_A!AV4+Table_A!AV31+Table_A!AV48+Table_A!AV59),\":\"),\":\")","v":":"},{"$f":"IF(ISBLANK(AV9), \"\",\"\"&Table_A!AW68)","v":""},{"$f":"IFERROR(IF(COUNT(Table_A!AX4,Table_A!AX31,Table_A!AX48,Table_A!AX59)=4,IF(ISBLANK(AX9), \":\",Table_A!AX4+Table_A!AX31+Table_A!AX48+Table_A!AX59),\":\"),\":\")","v":":"},{"$f":"IF(ISBLANK(AX9), \"\",\"\"&Table_A!AY68)","v":""},{"$f":"IFERROR(IF(COUNT(Table_A!AZ4,Table_A!AZ31,Table_A!AZ48,Table_A!AZ59)=4,IF(ISBLANK(AZ9), \":\",Table_A!AZ4+Table_A!AZ31+Table_A!AZ48+Table_A!AZ59),\":\"),\":\")","v":":"},{"$f":"IF(ISBLANK(AZ9), \"\",\"\"&Table_A!BA68)","v":""},{"$f":"IFERROR(IF(COUNT(Table_A!BB4,Table_A!BB31,Table_A!BB48,Table_A!BB59)=4,IF(ISBLANK(BB9), \":\",Table_A!BB4+Table_A!BB31+Table_A!BB48+Table_A!BB59),\":\"),\":\")","v":":"},{"$f":"IF(ISBLANK(BB9), \"\",\"\"&Table_A!BC68)","v":""},{"$f":"IFERROR(IF(COUNT(Table_A!BD4,Table_A!BD31,Table_A!BD48,Table_A!BD59)=4,IF(ISBLANK(BD9), \":\",Table_A!BD4+Table_A!BD31+Table_A!BD48+Table_A!BD59),\":\"),\":\")","v":":"},{"$f":"IF(ISBLANK(BD9), \"\",\"\"&Table_A!BE68)","v":""},{"$f":"IFERROR(IF(COUNT(Table_A!BF4,Table_A!BF31,Table_A!BF48,Table_A!BF59)=4,IF(ISBLANK(BF9), \":\",Table_A!BF4+Table_A!BF31+Table_A!BF48+Table_A!BF59),\":\"),\":\")","v":":"},{"$f":"IF(ISBLANK(BF9), \"\",\"\"&Table_A!BG68)","v":""},{"$f":"IFERROR(IF(COUNT(Table_A!BH4,Table_A!BH31,Table_A!BH48,Table_A!BH59)=4,IF(ISBLANK(BH9), \":\",Table_A!BH4+Table_A!BH31+Table_A!BH48+Table_A!BH59),\":\"),\":\")","v":":"},{"$f":"IF(ISBLANK(BH9), \"\",\"\"&Table_A!BI68)","v":""},{"$f":"IFERROR(IF(COUNT(Table_A!BJ4,Table_A!BJ31,Table_A!BJ48,Table_A!BJ59)=4,IF(ISBLANK(BJ9), \":\",Table_A!BJ4+Table_A!BJ31+Table_A!BJ48+Table_A!BJ59),\":\"),\":\")","v":":"},{"$f":"IF(ISBLANK(BJ9), \"\",\"\"&Table_A!BK68)","v":""},{"$f":"IFERROR(IF(COUNT(Table_A!BL4,Table_A!BL31,Table_A!BL48,Table_A!BL59)=4,IF(ISBLANK(BL9), \":\",Table_A!BL4+Table_A!BL31+Table_A!BL48+Table_A!BL59),\":\"),\":\")","v":":"},{"$f":"IF(ISBLANK(BL9), \"\",\"\"&Table_A!BM68)","v":""},{"$f":"IFERROR(IF(COUNT(Table_A!BN4,Table_A!BN31,Table_A!BN48,Table_A!BN59)=4,IF(ISBLANK(BN9), \":\",Table_A!BN4+Table_A!BN31+Table_A!BN48+Table_A!BN59),\":\"),\":\")","v":":"},{"$f":"IF(ISBLANK(BN9), \"\",\"\"&Table_A!BO68)","v":""}]
["DE","MF1","MF.1 Biomass",null,null,{"$f":"IFERROR(IF(COUNT(Table_A!F4)=1,IF(ISBLANK(F10), \":\",Table_A!F4),\":\"),\":\")","v":":"},{"$f":"IF(ISBLANK(F10), \"\",\"\"&Table_A!G4)","v":""},{"$f":"IFERROR(IF(COUNT(Table_A!H4)=1,IF(ISBLANK(H10), \":\",Table_A!H4),\":\"),\":\")","v":":"},{"$f":"IF(ISBLANK(H10), \"\",\"\"&Table_A!I4)","v":""},{"$f":"IFERROR(IF(COUNT(Table_A!J4)=1,IF(ISBLANK(J10), \":\",Table_A!J4),\":\"),\":\")","v":":"},{"$f":"IF(ISBLANK(J10), \"\",\"\"&Table_A!K4)","v":""},{"$f":"IFERROR(IF(COUNT(Table_A!L4)=1,IF(ISBLANK(L10), \":\",Table_A!L4),\":\"),\":\")","v":":"},{"$f":"IF(ISBLANK(L10), \"\",\"\"&Table_A!M4)","v":""},{"$f":"IFERROR(IF(COUNT(Table_A!N4)=1,IF(ISBLANK(N10), \":\",Table_A!N4),\":\"),\":\")","v":":"},{"$f":"IF(ISBLANK(N10), \"\",\"\"&Table_A!O4)","v":""},{"$f":"IFERROR(IF(COUNT(Table_A!P4)=1,IF(ISBLANK(P10), \":\",Table_A!P4),\":\"),\":\")","v":":"},{"$f":"IF(ISBLANK(P10), \"\",\"\"&Table_A!Q4)","v":""},{"$f":"IFERROR(IF(COUNT(Table_A!R4)=1,IF(ISBLANK(R10), \":\",Table_A!R4),\":\"),\":\")","v":":"},{"$f":"IF(ISBLANK(R10), \"\",\"\"&Table_A!S4)","v":""},{"$f":"IFERROR(IF(COUNT(Table_A!T4)=1,IF(ISBLANK(T10), \":\",Table_A!T4),\":\"),\":\")","v":":"},{"$f":"IF(ISBLANK(T10), \"\",\"\"&Table_A!U4)","v":""},{"$f":"IFERROR(IF(COUNT(Table_A!V4)=1,IF(ISBLANK(V10), \":\",Table_A!V4),\":\"),\":\")","v":":"},{"$f":"IF(ISBLANK(V10), \"\",\"\"&Table_A!W4)","v":""},{"$f":"IFERROR(IF(COUNT(Table_A!X4)=1,IF(ISBLANK(X10), \":\",Table_A!X4),\":\"),\":\")","v":":"},{"$f":"IF(ISBLANK(X10), \"\",\"\"&Table_A!Y4)","v":""},{"$f":"IFERROR(IF(COUNT(Table_A!Z4)=1,IF(ISBLANK(Z10), \":\",Table_A!Z4),\":\"),\":\")","v":":"},{"$f":"IF(ISBLANK(Z10), \"\",\"\"&Table_A!AA4)","v":""},{"$f":"IFERROR(IF(COUNT(Table_A!AB4)=1,IF(ISBLANK(AB10), \":\",Table_A!AB4),\":\"),\":\")","v":":"},{"$f":"IF(ISBLANK(AB10), \"\",\"\"&Table_A!AC4)","v":""},{"$f":"IFERROR(IF(COUNT(Table_A!AD4)=1,IF(ISBLANK(AD10), \":\",Table_A!AD4),\":\"),\":\")","v":":"},{"$f":"IF(ISBLANK(AD10), \"\",\"\"&Table_A!AE4)","v":""},{"$f":"IFERROR(IF(COUNT(Table_A!AF4)=1,IF(ISBLANK(AF10), \":\",Table_A!AF4),\":\"),\":\")","v":":"},{"$f":"IF(ISBLANK(AF10), \"\",\"\"&Table_A!AG4)","v":""},{"$f":"IFERROR(IF(COUNT(Table_A!AH4)=1,IF(ISBLANK(AH10), \":\",Table_A!AH4),\":\"),\":\")","v":":"},{"$f":"IF(ISBLANK(AH10), \"\",\"\"&Table_A!AI4)","v":""},{"$f":"IFERROR(IF(COUNT(Table_A!AJ4)=1,IF(ISBLANK(AJ10), \":\",Table_A!AJ4),\":\"),\":\")","v":":"},{"$f":"IF(ISBLANK(AJ10), \"\",\"\"&Table_A!AK4)","v":""},{"$f":"IFERROR(IF(COUNT(Table_A!AL4)=1,IF(ISBLANK(AL10), \":\",Table_A!AL4),\":\"),\":\")","v":":"},{"$f":"IF(ISBLANK(AL10), \"\",\"\"&Table_A!AM4)","v":""},{"$f":"IFERROR(IF(COUNT(Table_A!AN4)=1,IF(ISBLANK(AN10), \":\",Table_A!AN4),\":\"),\":\")","v":":"},{"$f":"IF(ISBLANK(AN10), \"\",\"\"&Table_A!AO4)","v":""},{"$f":"IFERROR(IF(COUNT(Table_A!AP4)=1,IF(ISBLANK(AP10), \":\",Table_A!AP4),\":\"),\":\")","v":":"},{"$f":"IF(ISBLANK(AP10), \"\",\"\"&Table_A!AQ4)","v":""},{"$f":"IFERROR(IF(COUNT(Table_A!AR4)=1,IF(ISBLANK(AR10), \":\",Table_A!AR4),\":\"),\":\")","v":":"},{"$f":"IF(ISBLANK(AR10), \"\",\"\"&Table_A!AS4)","v":""},{"$f":"IFERROR(IF(COUNT(Table_A!AT4)=1,IF(ISBLANK(AT10), \":\",Table_A!AT4),\":\"),\":\")","v":":"},{"$f":"IF(ISBLANK(AT10), \"\",\"\"&Table_A!AU4)","v":""},{"$f":"IFERROR(IF(COUNT(Table_A!AV4)=1,IF(ISBLANK(AV10), \":\",Table_A!AV4),\":\"),\":\")","v":":"},{"$f":"IF(ISBLANK(AV10), \"\",\"\"&Table_A!AW4)","v":""},{"$f":"IFERROR(IF(COUNT(Table_A!AX4)=1,IF(ISBLANK(AX10), \":\",Table_A!AX4),\":\"),\":\")","v":":"},{"$f":"IF(ISBLANK(AX10), \"\",\"\"&Table_A!AY4)","v":""},{"$f":"IFERROR(IF(COUNT(Table_A!AZ4)=1,IF(ISBLANK(AZ10), \":\",Table_A!AZ4),\":\"),\":\")","v":":"},{"$f":"IF(ISBLANK(AZ10), \"\",\"\"&Table_A!BA4)","v":""},{"$f":"IFERROR(IF(COUNT(Table_A!BB4)=1,IF(ISBLANK(BB10), \":\",Table_A!BB4),\":\"),\":\")","v":":"},{"$f":"IF(ISBLANK(BB10), \"\",\"\"&Table_A!BC4)","v":""},{"$f":"IFERROR(IF(COUNT(Table_A!BD4)=1,IF(ISBLANK(BD10), \":\",Table_A!BD4),\":\"),\":\")","v":":"},{"$f":"IF(ISBLANK(BD10), \"\",\"\"&Table_A!BE4)","v":""},{"$f":"IFERROR(IF(COUNT(Table_A!BF4)=1,IF(ISBLANK(BF10), \":\",Table_A!BF4),\":\"),\":\")","v":":"},{"$f":"IF(ISBLANK(BF10), \"\",\"\"&Table_A!BG4)","v":""},{"$f":"IFERROR(IF(COUNT(Table_A!BH4)=1,IF(ISBLANK(BH10), \":\",Table_A!BH4),\":\"),\":\")","v":":"},{"$f":"IF(ISBLANK(BH10), \"\",\"\"&Table_A!BI4)","v":""},{"$f":"IFERROR(IF(COUNT(Table_A!BJ4)=1,IF(ISBLANK(BJ10), \":\",Table_A!BJ4),\":\"),\":\")","v":":"},{"$f":"IF(ISBLANK(BJ10), \"\",\"\"&Table_A!BK4)","v":""},{"$f":"IFERROR(IF(COUNT(Table_A!BL4)=1,IF(ISBLANK(BL10), \":\",Table_A!BL4),\":\"),\":\")","v":":"},{"$f":"IF(ISBLANK(BL10), \"\",\"\"&Table_A!BM4)","v":""},{"$f":"IFERROR(IF(COUNT(Table_A!BN4)=1,IF(ISBLANK(BN10), \":\",Table_A!BN4),\":\"),\":\")","v":":"},{"$f":"IF(ISBLANK(BN10), \"\",\"\"&Table_A!BO4)","v":""}]
["DE","MF2","MF.2 Metal ores (gross ores)",null,null,{"$f":"IFERROR(IF(COUNT(Table_A!F31)=1,IF(ISBLANK(F11), \":\",Table_A!F31),\":\"),\":\")","v":":"},{"$f":"IF(ISBLANK(F11), \"\",\"\"&Table_A!G31)","v":""},{"$f":"IFERROR(IF(COUNT(Table_A!H31)=1,IF(ISBLANK(H11), \":\",Table_A!H31),\":\"),\":\")","v":":"},{"$f":"IF(ISBLANK(H11), \"\",\"\"&Table_A!I31)","v":""},{"$f":"IFERROR(IF(COUNT(Table_A!J31)=1,IF(ISBLANK(J11), \":\",Table_A!J31),\":\"),\":\")","v":":"},{"$f":"IF(ISBLANK(J11), \"\",\"\"&Table_A!K31)","v":""},{"$f":"IFERROR(IF(COUNT(Table_A!L31)=1,IF(ISBLANK(L11), \":\",Table_A!L31),\":\"),\":\")","v":":"},{"$f":"IF(ISBLANK(L11), \"\",\"\"&Table_A!M31)","v":""},{"$f":"IFERROR(IF(COUNT(Table_A!N31)=1,IF(ISBLANK(N11), \":\",Table_A!N31),\":\"),\":\")","v":":"},{"$f":"IF(ISBLANK(N11), \"\",\"\"&Table_A!O31)","v":""},{"$f":"IFERROR(IF(COUNT(Table_A!P31)=1,IF(ISBLANK(P11), \":\",Table_A!P31),\":\"),\":\")","v":":"},{"$f":"IF(ISBLANK(P11), \"\",\"\"&Table_A!Q31)","v":""},{"$f":"IFERROR(IF(COUNT(Table_A!R31)=1,IF(ISBLANK(R11), \":\",Table_A!R31),\":\"),\":\")","v":":"},{"$f":"IF(ISBLANK(R11), \"\",\"\"&Table_A!S31)","v":""},{"$f":"IFERROR(IF(COUNT(Table_A!T31)=1,IF(ISBLANK(T11), \":\",Table_A!T31),\":\"),\":\")","v":":"},{"$f":"IF(ISBLANK(T11), \"\",\"\"&Table_A!U31)","v":""},{"$f":"IFERROR(IF(COUNT(Table_A!V31)=1,IF(ISBLANK(V11), \":\",Table_A!V31),\":\"),\":\")","v":":"},{"$f":"IF(ISBLANK(V11), \"\",\"\"&Table_A!W31)","v":""},{"$f":"IFERROR(IF(COUNT(Table_A!X31)=1,IF(ISBLANK(X11), \":\",Table_A!X31),\":\"),\":\")","v":":"},{"$f":"IF(ISBLANK(X11), \"\",\"\"&Table_A!Y31)","v":""},{"$f":"IFERROR(IF(COUNT(Table_A!Z31)=1,IF(ISBLANK(Z11), \":\",Table_A!Z31),\":\"),\":\")","v":":"},{"$f":"IF(ISBLANK(Z11), \"\",\"\"&Table_A!AA31)","v":""},{"$f":"IFERROR(IF(COUNT(Table_A!AB31)=1,IF(ISBLANK(AB11), \":\",Table_A!AB31),\":\"),\":\")","v":":"},{"$f":"IF(ISBLANK(AB11), \"\",\"\"&Table_A!AC31)","v":""},{"$f":"IFERROR(IF(COUNT(Table_A!AD31)=1,IF(ISBLANK(AD11), \":\",Table_A!AD31),\":\"),\":\")","v":":"},{"$f":"IF(ISBLANK(AD11), \"\",\"\"&Table_A!AE31)","v":""},{"$f":"IFERROR(IF(COUNT(Table_A!AF31)=1,IF(ISBLANK(AF11), \":\",Table_A!AF31),\":\"),\":\")","v":":"},{"$f":"IF(ISBLANK(AF11), \"\",\"\"&Table_A!AG31)","v":""},{"$f":"IFERROR(IF(COUNT(Table_A!AH31)=1,IF(ISBLANK(AH11), \":\",Table_A!AH31),\":\"),\":\")","v":":"},{"$f":"IF(ISBLANK(AH11), \"\",\"\"&Table_A!AI31)","v":""},{"$f":"IFERROR(IF(COUNT(Table_A!AJ31)=1,IF(ISBLANK(AJ11), \":\",Table_A!AJ31),\":\"),\":\")","v":":"},{"$f":"IF(ISBLANK(AJ11), \"\",\"\"&Table_A!AK31)","v":""},{"$f":"IFERROR(IF(COUNT(Table_A!AL31)=1,IF(ISBLANK(AL11), \":\",Table_A!AL31),\":\"),\":\")","v":":"},{"$f":"IF(ISBLANK(AL11), \"\",\"\"&Table_A!AM31)","v":""},{"$f":"IFERROR(IF(COUNT(Table_A!AN31)=1,IF(ISBLANK(AN11), \":\",Table_A!AN31),\":\"),\":\")","v":":"},{"$f":"IF(ISBLANK(AN11), \"\",\"\"&Table_A!AO31)","v":""},{"$f":"IFERROR(IF(COUNT(Table_A!AP31)=1,IF(ISBLANK(AP11), \":\",Table_A!AP31),\":\"),\":\")","v":":"},{"$f":"IF(ISBLANK(AP11), \"\",\"\"&Table_A!AQ31)","v":""},{"$f":"IFERROR(IF(COUNT(Table_A!AR31)=1,IF(ISBLANK(AR11), \":\",Table_A!AR31),\":\"),\":\")","v":":"},{"$f":"IF(ISBLANK(AR11), \"\",\"\"&Table_A!AS31)","v":""},{"$f":"IFERROR(IF(COUNT(Table_A!AT31)=1,IF(ISBLANK(AT11), \":\",Table_A!AT31),\":\"),\":\")","v":":"},{"$f":"IF(ISBLANK(AT11), \"\",\"\"&Table_A!AU31)","v":""},{"$f":"IFERROR(IF(COUNT(Table_A!AV31)=1,IF(ISBLANK(AV11), \":\",Table_A!AV31),\":\"),\":\")","v":":"},{"$f":"IF(ISBLANK(AV11), \"\",\"\"&Table_A!AW31)","v":""},{"$f":"IFERROR(IF(COUNT(Table_A!AX31)=1,IF(ISBLANK(AX11), \":\",Table_A!AX31),\":\"),\":\")","v":":"},{"$f":"IF(ISBLANK(AX11), \"\",\"\"&Table_A!AY31)","v":""},{"$f":"IFERROR(IF(COUNT(Table_A!AZ31)=1,IF(ISBLANK(AZ11), \":\",Table_A!AZ31),\":\"),\":\")","v":":"},{"$f":"IF(ISBLANK(AZ11), \"\",\"\"&Table_A!BA31)","v":""},{"$f":"IFERROR(IF(COUNT(Table_A!BB31)=1,IF(ISBLANK(BB11), \":\",Table_A!BB31),\":\"),\":\")","v":":"},{"$f":"IF(ISBLANK(BB11), \"\",\"\"&Table_A!BC31)","v":""},{"$f":"IFERROR(IF(COUNT(Table_A!BD31)=1,IF(ISBLANK(BD11), \":\",Table_A!BD31),\":\"),\":\")","v":":"},{"$f":"IF(ISBLANK(BD11), \"\",\"\"&Table_A!BE31)","v":""},{"$f":"IFERROR(IF(COUNT(Table_A!BF31)=1,IF(ISBLANK(BF11), \":\",Table_A!BF31),\":\"),\":\")","v":":"},{"$f":"IF(ISBLANK(BF11), \"\",\"\"&Table_A!BG31)","v":""},{"$f":"IFERROR(IF(COUNT(Table_A!BH31)=1,IF(ISBLANK(BH11), \":\",Table_A!BH31),\":\"),\":\")","v":":"},{"$f":"IF(ISBLANK(BH11), \"\",\"\"&Table_A!BI31)","v":""},{"$f":"IFERROR(IF(COUNT(Table_A!BJ31)=1,IF(ISBLANK(BJ11), \":\",Table_A!BJ31),\":\"),\":\")","v":":"},{"$f":"IF(ISBLANK(BJ11), \"\",\"\"&Table_A!BK31)","v":""},{"$f":"IFERROR(IF(COUNT(Table_A!BL31)=1,IF(ISBLANK(BL11), \":\",Table_A!BL31),\":\"),\":\")","v":":"},{"$f":"IF(ISBLANK(BL11), \"\",\"\"&Table_A!BM31)","v":""},{"$f":"IFERROR(IF(COUNT(Table_A!BN31)=1,IF(ISBLANK(BN11), \":\",Table_A!BN31),\":\"),\":\")","v":":"},{"$f":"IF(ISBLANK(BN11), \"\",\"\"&Table_A!BO31)","v":""},null,null,null,null,null,null,null,null,null,null,null,null,null,null,null,null,null,null,null,"REPORTED IN TABLE A"]
["DE","MF3","MF.3 Non-metalic minerals",null,null,{"$f":"IFERROR(IF(COUNT(Table_A!F48)=1,IF(ISBLANK(F12), \":\",Table_A!F48),\":\"),\":\")","v":":"},{"$f":"IF(ISBLANK(F12), \"\",\"\"&Table_A!G48)","v":""},{"$f":"IFERROR(IF(COUNT(Table_A!H48)=1,IF(ISBLANK(H12), \":\",Table_A!H48),\":\"),\":\")","v":":"},{"$f":"IF(ISBLANK(H12), \"\",\"\"&Table_A!I48)","v":""},{"$f":"IFERROR(IF(COUNT(Table_A!J48)=1,IF(ISBLANK(J12), \":\",Table_A!J48),\":\"),\":\")","v":":"},{"$f":"IF(ISBLANK(J12), \"\",\"\"&Table_A!K48)","v":""},{"$f":"IFERROR(IF(COUNT(Table_A!L48)=1,IF(ISBLANK(L12), \":\",Table_A!L48),\":\"),\":\")","v":":"},{"$f":"IF(ISBLANK(L12), \"\",\"\"&Table_A!M48)","v":""},{"$f":"IFERROR(IF(COUNT(Table_A!N48)=1,IF(ISBLANK(N12), \":\",Table_A!N48),\":\"),\":\")","v":":"},{"$f":"IF(ISBLANK(N12), \"\",\"\"&Table_A!O48)","v":""},{"$f":"IFERROR(IF(COUNT(Table_A!P48)=1,IF(ISBLANK(P12), \":\",Table_A!P48),\":\"),\":\")","v":":"},{"$f":"IF(ISBLANK(P12), \"\",\"\"&Table_A!Q48)","v":""},{"$f":"IFERROR(IF(COUNT(Table_A!R48)=1,IF(ISBLANK(R12), \":\",Table_A!R48),\":\"),\":\")","v":":"},{"$f":"IF(ISBLANK(R12), \"\",\"\"&Table_A!S48)","v":""},{"$f":"IFERROR(IF(COUNT(Table_A!T48)=1,IF(ISBLANK(T12), \":\",Table_A!T48),\":\"),\":\")","v":":"},{"$f":"IF(ISBLANK(T12), \"\",\"\"&Table_A!U48)","v":""},{"$f":"IFERROR(IF(COUNT(Table_A!V48)=1,IF(ISBLANK(V12), \":\",Table_A!V48),\":\"),\":\")","v":":"},{"$f":"IF(ISBLANK(V12), \"\",\"\"&Table_A!W48)","v":""},{"$f":"IFERROR(IF(COUNT(Table_A!X48)=1,IF(ISBLANK(X12), \":\",Table_A!X48),\":\"),\":\")","v":":"},{"$f":"IF(ISBLANK(X12), \"\",\"\"&Table_A!Y48)","v":""},{"$f":"IFERROR(IF(COUNT(Table_A!Z48)=1,IF(ISBLANK(Z12), \":\",Table_A!Z48),\":\"),\":\")","v":":"},{"$f":"IF(ISBLANK(Z12), \"\",\"\"&Table_A!AA48)","v":""},{"$f":"IFERROR(IF(COUNT(Table_A!AB48)=1,IF(ISBLANK(AB12), \":\",Table_A!AB48),\":\"),\":\")","v":":"},{"$f":"IF(ISBLANK(AB12), \"\",\"\"&Table_A!AC48)","v":""},{"$f":"IFERROR(IF(COUNT(Table_A!AD48)=1,IF(ISBLANK(AD12), \":\",Table_A!AD48),\":\"),\":\")","v":":"},{"$f":"IF(ISBLANK(AD12), \"\",\"\"&Table_A!AE48)","v":""},{"$f":"IFERROR(IF(COUNT(Table_A!AF48)=1,IF(ISBLANK(AF12), \":\",Table_A!AF48),\":\"),\":\")","v":":"},{"$f":"IF(ISBLANK(AF12), \"\",\"\"&Table_A!AG48)","v":""},{"$f":"IFERROR(IF(COUNT(Table_A!AH48)=1,IF(ISBLANK(AH12), \":\",Table_A!AH48),\":\"),\":\")","v":":"},{"$f":"IF(ISBLANK(AH12), \"\",\"\"&Table_A!AI48)","v":""},{"$f":"IFERROR(IF(COUNT(Table_A!AJ48)=1,IF(ISBLANK(AJ12), \":\",Table_A!AJ48),\":\"),\":\")","v":":"},{"$f":"IF(ISBLANK(AJ12), \"\",\"\"&Table_A!AK48)","v":""},{"$f":"IFERROR(IF(COUNT(Table_A!AL48)=1,IF(ISBLANK(AL12), \":\",Table_A!AL48),\":\"),\":\")","v":":"},{"$f":"IF(ISBLANK(AL12), \"\",\"\"&Table_A!AM48)","v":""},{"$f":"IFERROR(IF(COUNT(Table_A!AN48)=1,IF(ISBLANK(AN12), \":\",Table_A!AN48),\":\"),\":\")","v":":"},{"$f":"IF(ISBLANK(AN12), \"\",\"\"&Table_A!AO48)","v":""},{"$f":"IFERROR(IF(COUNT(Table_A!AP48)=1,IF(ISBLANK(AP12), \":\",Table_A!AP48),\":\"),\":\")","v":":"},{"$f":"IF(ISBLANK(AP12), \"\",\"\"&Table_A!AQ48)","v":""},{"$f":"IFERROR(IF(COUNT(Table_A!AR48)=1,IF(ISBLANK(AR12), \":\",Table_A!AR48),\":\"),\":\")","v":":"},{"$f":"IF(ISBLANK(AR12), \"\",\"\"&Table_A!AS48)","v":""},{"$f":"IFERROR(IF(COUNT(Table_A!AT48)=1,IF(ISBLANK(AT12), \":\",Table_A!AT48),\":\"),\":\")","v":":"},{"$f":"IF(ISBLANK(AT12), \"\",\"\"&Table_A!AU48)","v":""},{"$f":"IFERROR(IF(COUNT(Table_A!AV48)=1,IF(ISBLANK(AV12), \":\",Table_A!AV48),\":\"),\":\")","v":":"},{"$f":"IF(ISBLANK(AV12), \"\",\"\"&Table_A!AW48)","v":""},{"$f":"IFERROR(IF(COUNT(Table_A!AX48)=1,IF(ISBLANK(AX12), \":\",Table_A!AX48),\":\"),\":\")","v":":"},{"$f":"IF(ISBLANK(AX12), \"\",\"\"&Table_A!AY48)","v":""},{"$f":"IFERROR(IF(COUNT(Table_A!AZ48)=1,IF(ISBLANK(AZ12), \":\",Table_A!AZ48),\":\"),\":\")","v":":"},{"$f":"IF(ISBLANK(AZ12), \"\",\"\"&Table_A!BA48)","v":""},{"$f":"IFERROR(IF(COUNT(Table_A!BB48)=1,IF(ISBLANK(BB12), \":\",Table_A!BB48),\":\"),\":\")","v":":"},{"$f":"IF(ISBLANK(BB12), \"\",\"\"&Table_A!BC48)","v":""},{"$f":"IFERROR(IF(COUNT(Table_A!BD48)=1,IF(ISBLANK(BD12), \":\",Table_A!BD48),\":\"),\":\")","v":":"},{"$f":"IF(ISBLANK(BD12), \"\",\"\"&Table_A!BE48)","v":""},{"$f":"IFERROR(IF(COUNT(Table_A!BF48)=1,IF(ISBLANK(BF12), \":\",Table_A!BF48),\":\"),\":\")","v":":"},{"$f":"IF(ISBLANK(BF12), \"\",\"\"&Table_A!BG48)","v":""},{"$f":"IFERROR(IF(COUNT(Table_A!BH48)=1,IF(ISBLANK(BH12), \":\",Table_A!BH48),\":\"),\":\")","v":":"},{"$f":"IF(ISBLANK(BH12), \"\",\"\"&Table_A!BI48)","v":""},{"$f":"IFERROR(IF(COUNT(Table_A!BJ48)=1,IF(ISBLANK(BJ12), \":\",Table_A!BJ48),\":\"),\":\")","v":":"},{"$f":"IF(ISBLANK(BJ12), \"\",\"\"&Table_A!BK48)","v":""},{"$f":"IFERROR(IF(COUNT(Table_A!BL48)=1,IF(ISBLANK(BL12), \":\",Table_A!BL48),\":\"),\":\")","v":":"},{"$f":"IF(ISBLANK(BL12), \"\",\"\"&Table_A!BM48)","v":""},{"$f":"IFERROR(IF(COUNT(Table_A!BN48)=1,IF(ISBLANK(BN12), \":\",Table_A!BN48),\":\"),\":\")","v":":"},{"$f":"IF(ISBLANK(BN12), \"\",\"\"&Table_A!BO48)","v":""}]
["DE","MF4","MF.4 Fossil energy materials/carriers",null,null,{"$f":"IFERROR(IF(COUNT(Table_A!F59)=1,IF(ISBLANK(F13), \":\",Table_A!F59),\":\"),\":\")","v":":"},{"$f":"IF(ISBLANK(F13), \"\",\"\"&Table_A!G59)","v":""},{"$f":"IFERROR(IF(COUNT(Table_A!H59)=1,IF(ISBLANK(H13), \":\",Table_A!H59),\":\"),\":\")","v":":"},{"$f":"IF(ISBLANK(H13), \"\",\"\"&Table_A!I59)","v":""},{"$f":"IFERROR(IF(COUNT(Table_A!J59)=1,IF(ISBLANK(J13), \":\",Table_A!J59),\":\"),\":\")","v":":"},{"$f":"IF(ISBLANK(J13), \"\",\"\"&Table_A!K59)","v":""},{"$f":"IFERROR(IF(COUNT(Table_A!L59)=1,IF(ISBLANK(L13), \":\",Table_A!L59),\":\"),\":\")","v":":"},{"$f":"IF(ISBLANK(L13), \"\",\"\"&Table_A!M59)","v":""},{"$f":"IFERROR(IF(COUNT(Table_A!N59)=1,IF(ISBLANK(N13), \":\",Table_A!N59),\":\"),\":\")","v":":"},{"$f":"IF(ISBLANK(N13), \"\",\"\"&Table_A!O59)","v":""},{"$f":"IFERROR(IF(COUNT(Table_A!P59)=1,IF(ISBLANK(P13), \":\",Table_A!P59),\":\"),\":\")","v":":"},{"$f":"IF(ISBLANK(P13), \"\",\"\"&Table_A!Q59)","v":""},{"$f":"IFERROR(IF(COUNT(Table_A!R59)=1,IF(ISBLANK(R13), \":\",Table_A!R59),\":\"),\":\")","v":":"},{"$f":"IF(ISBLANK(R13), \"\",\"\"&Table_A!S59)","v":""},{"$f":"IFERROR(IF(COUNT(Table_A!T59)=1,IF(ISBLANK(T13), \":\",Table_A!T59),\":\"),\":\")","v":":"},{"$f":"IF(ISBLANK(T13), \"\",\"\"&Table_A!U59)","v":""},{"$f":"IFERROR(IF(COUNT(Table_A!V59)=1,IF(ISBLANK(V13), \":\",Table_A!V59),\":\"),\":\")","v":":"},{"$f":"IF(ISBLANK(V13), \"\",\"\"&Table_A!W59)","v":""},{"$f":"IFERROR(IF(COUNT(Table_A!X59)=1,IF(ISBLANK(X13), \":\",Table_A!X59),\":\"),\":\")","v":":"},{"$f":"IF(ISBLANK(X13), \"\",\"\"&Table_A!Y59)","v":""},{"$f":"IFERROR(IF(COUNT(Table_A!Z59)=1,IF(ISBLANK(Z13), \":\",Table_A!Z59),\":\"),\":\")","v":":"},{"$f":"IF(ISBLANK(Z13), \"\",\"\"&Table_A!AA59)","v":""},{"$f":"IFERROR(IF(COUNT(Table_A!AB59)=1,IF(ISBLANK(AB13), \":\",Table_A!AB59),\":\"),\":\")","v":":"},{"$f":"IF(ISBLANK(AB13), \"\",\"\"&Table_A!AC59)","v":""},{"$f":"IFERROR(IF(COUNT(Table_A!AD59)=1,IF(ISBLANK(AD13), \":\",Table_A!AD59),\":\"),\":\")","v":":"},{"$f":"IF(ISBLANK(AD13), \"\",\"\"&Table_A!AE59)","v":""},{"$f":"IFERROR(IF(COUNT(Table_A!AF59)=1,IF(ISBLANK(AF13), \":\",Table_A!AF59),\":\"),\":\")","v":":"},{"$f":"IF(ISBLANK(AF13), \"\",\"\"&Table_A!AG59)","v":""},{"$f":"IFERROR(IF(COUNT(Table_A!AH59)=1,IF(ISBLANK(AH13), \":\",Table_A!AH59),\":\"),\":\")","v":":"},{"$f":"IF(ISBLANK(AH13), \"\",\"\"&Table_A!AI59)","v":""},{"$f":"IFERROR(IF(COUNT(Table_A!AJ59)=1,IF(ISBLANK(AJ13), \":\",Table_A!AJ59),\":\"),\":\")","v":":"},{"$f":"IF(ISBLANK(AJ13), \"\",\"\"&Table_A!AK59)","v":""},{"$f":"IFERROR(IF(COUNT(Table_A!AL59)=1,IF(ISBLANK(AL13), \":\",Table_A!AL59),\":\"),\":\")","v":":"},{"$f":"IF(ISBLANK(AL13), \"\",\"\"&Table_A!AM59)","v":""},{"$f":"IFERROR(IF(COUNT(Table_A!AN59)=1,IF(ISBLANK(AN13), \":\",Table_A!AN59),\":\"),\":\")","v":":"},{"$f":"IF(ISBLANK(AN13), \"\",\"\"&Table_A!AO59)","v":""},{"$f":"IFERROR(IF(COUNT(Table_A!AP59)=1,IF(ISBLANK(AP13), \":\",Table_A!AP59),\":\"),\":\")","v":":"},{"$f":"IF(ISBLANK(AP13), \"\",\"\"&Table_A!AQ59)","v":""},{"$f":"IFERROR(IF(COUNT(Table_A!AR59)=1,IF(ISBLANK(AR13), \":\",Table_A!AR59),\":\"),\":\")","v":":"},{"$f":"IF(ISBLANK(AR13), \"\",\"\"&Table_A!AS59)","v":""},{"$f":"IFERROR(IF(COUNT(Table_A!AT59)=1,IF(ISBLANK(AT13), \":\",Table_A!AT59),\":\"),\":\")","v":":"},{"$f":"IF(ISBLANK(AT13), \"\",\"\"&Table_A!AU59)","v":""},{"$f":"IFERROR(IF(COUNT(Table_A!AV59)=1,IF(ISBLANK(AV13), \":\",Table_A!AV59),\":\"),\":\")","v":":"},{"$f":"IF(ISBLANK(AV13), \"\",\"\"&Table_A!AW59)","v":""},{"$f":"IFERROR(IF(COUNT(Table_A!AX59)=1,IF(ISBLANK(AX13), \":\",Table_A!AX59),\":\"),\":\")","v":":"},{"$f":"IF(ISBLANK(AX13), \"\",\"\"&Table_A!AY59)","v":""},{"$f":"IFERROR(IF(COUNT(Table_A!AZ59)=1,IF(ISBLANK(AZ13), \":\",Table_A!AZ59),\":\"),\":\")","v":":"},{"$f":"IF(ISBLANK(AZ13), \"\",\"\"&Table_A!BA59)","v":""},{"$f":"IFERROR(IF(COUNT(Table_A!BB59)=1,IF(ISBLANK(BB13), \":\",Table_A!BB59),\":\"),\":\")","v":":"},{"$f":"IF(ISBLANK(BB13), \"\",\"\"&Table_A!BC59)","v":""},{"$f":"IFERROR(IF(COUNT(Table_A!BD59)=1,IF(ISBLANK(BD13), \":\",Table_A!BD59),\":\"),\":\")","v":":"},{"$f":"IF(ISBLANK(BD13), \"\",\"\"&Table_A!BE59)","v":""},{"$f":"IFERROR(IF(COUNT(Table_A!BF59)=1,IF(ISBLANK(BF13), \":\",Table_A!BF59),\":\"),\":\")","v":":"},{"$f":"IF(ISBLANK(BF13), \"\",\"\"&Table_A!BG59)","v":""},{"$f":"IFERROR(IF(COUNT(Table_A!BH59)=1,IF(ISBLANK(BH13), \":\",Table_A!BH59),\":\"),\":\")","v":":"},{"$f":"IF(ISBLANK(BH13), \"\",\"\"&Table_A!BI59)","v":""},{"$f":"IFERROR(IF(COUNT(Table_A!BJ59)=1,IF(ISBLANK(BJ13), \":\",Table_A!BJ59),\":\"),\":\")","v":":"},{"$f":"IF(ISBLANK(BJ13), \"\",\"\"&Table_A!BK59)","v":""},{"$f":"IFERROR(IF(COUNT(Table_A!BL59)=1,IF(ISBLANK(BL13), \":\",Table_A!BL59),\":\"),\":\")","v":":"},{"$f":"IF(ISBLANK(BL13), \"\",\"\"&Table_A!BM59)","v":""},{"$f":"IFERROR(IF(COUNT(Table_A!BN59)=1,IF(ISBLANK(BN13), \":\",Table_A!BN59),\":\"),\":\")","v":":"},{"$f":"IF(ISBLANK(BN13), \"\",\"\"&Table_A!BO59)","v":""}]
["IMP_RME","TOTAL","Imports in RME",null,null,null,null,null,null,null,null,null,null,null,null,null,null,null,null,null,null,null,null,null,null,null,null,null,null,null,null,null,null,null,null,null,null,null,null,null,null,null,null,null,null,null,null,null,null,null,null,null,null,null,null,null,null,null,null,null,null,null,null,null,null,null,null,null,null,null,null,null,null,null,null,null,null,null,null,null,null,null,null,null,null,null,null,"D","C","W1","RES","_T","P7","TN_RME",3,"_T","S1"]
["IMP_RME","MF1","MF.1 Biomass",null,null,null,null,null,null,null,null,null,null,null,null,null,null,null,null,null,null,null,null,null,null,null,null,null,null,null,null,null,null,null,null,null,null,null,null,null,null,null,null,null,null,null,null,null,null,null,null,null,null,null,null,null,null,null,null,null,null,null,null,null,null,null,null,null,null,null,null,null,null,null,null,null,null,null,null,null,null,null,null,null,null,null,null,"D","C","W1","RES","MF1","P7","TN_RME",3,"_T","S1"]
["IMP_RME","MF2","MF.2 Metal ores (gross ores)",null,null,null,null,null,null,null,null,null,null,null,null,null,null,null,null,null,null,null,null,null,null,null,null,null,null,null,null,null,null,null,null,null,null,null,null,null,null,null,null,null,null,null,null,null,null,null,null,null,null,null,null,null,null,null,null,null,null,null,null,null,null,null,null,null,null,null,null,null,null,null,null,null,null,null,null,null,null,null,null,null,null,null,null,"D","C","W1","RES","MF2","P7","TN_RME",3,"_T","S1"]
["IMP_RME","MF3","MF.3 Non-metalic minerals",null,null,null,null,null,null,null,null,null,null,null,null,null,null,null,null,null,null,null,null,null,null,null,null,null,null,null,null,null,null,null,null,null,null,null,null,null,null,null,null,null,null,null,null,null,null,null,null,null,null,null,null,null,null,null,null,null,null,null,null,null,null,null,null,null,null,null,null,null,null,null,null,null,null,null,null,null,null,null,null,null,null,null,null,"D","C","W1","RES","MF3","P7","TN_RME",3,"_T","S1"]
["IMP_RME","MF4","MF.4 Fossil energy materials/carriers",null,null,null,null,null,null,null,null,null,null,null,null,null,null,null,null,null,null,null,null,null,null,null,null,null,null,null,null,null,null,null,null,null,null,null,null,null,null,null,null,null,null,null,null,null,null,null,null,null,null,null,null,null,null,null,null,null,null,null,null,null,null,null,null,null,null,null,null,null,null,null,null,null,null,null,null,null,null,null,null,null,null,null,null,"D","C","W1","RES","MF4","P7","TN_RME",3,"_T","S1"]
["RMI","TOTAL","Raw material input (RMI)",null,null,{"$f":"IFERROR(F4+F9,\":\")","v":":"},null,{"$f":"IFERROR(H4+H9,\":\")","v":":"},null,{"$f":"IFERROR(J4+J9,\":\")","v":":"},null,{"$f":"IFERROR(L4+L9,\":\")","v":":"},null,{"$f":"IFERROR(N4+N9,\":\")","v":":"},null,{"$f":"IFERROR(P4+P9,\":\")","v":":"},null,{"$f":"IFERROR(R4+R9,\":\")","v":":"},null,{"$f":"IFERROR(T4+T9,\":\")","v":":"},null,{"$f":"IFERROR(V4+V9,\":\")","v":":"},null,{"$f":"IFERROR(X4+X9,\":\")","v":":"},null,{"$f":"IFERROR(Z4+Z9,\":\")","v":":"},null,{"$f":"IFERROR(AB4+AB9,\":\")","v":":"},null,{"$f":"IFERROR(AD4+AD9,\":\")","v":":"},null,{"$f":"IFERROR(AF4+AF9,\":\")","v":":"},null,{"$f":"IFERROR(AH4+AH9,\":\")","v":":"},null,{"$f":"IFERROR(AJ4+AJ9,\":\")","v":":"},null,{"$f":"IFERROR(AL4+AL9,\":\")","v":":"},null,{"$f":"IFERROR(AN4+AN9,\":\")","v":":"},null,{"$f":"IFERROR(AP4+AP9,\":\")","v":":"},null,{"$f":"IFERROR(AR4+AR9,\":\")","v":":"},null,{"$f":"IFERROR(AT4+AT9,\":\")","v":":"},null,{"$f":"IFERROR(AV4+AV9,\":\")","v":":"},null,{"$f":"IFERROR(AX4+AX9,\":\")","v":":"},null,{"$f":"IFERROR(AZ4+AZ9,\":\")","v":":"},null,{"$f":"IFERROR(BB4+BB9,\":\")","v":":"},null,{"$f":"IFERROR(BD4+BD9,\":\")","v":":"},null,{"$f":"IFERROR(BF4+BF9,\":\")","v":":"},null,{"$f":"IFERROR(BH4+BH9,\":\")","v":":"},null,{"$f":"IFERROR(BJ4+BJ9,\":\")","v":":"},null,{"$f":"IFERROR(BL4+BL9,\":\")","v":":"},null,":",null,null,null,null,null,null,null,null,null,null,null,null,null,null,null,null,null,null,null,null,"CALCULATED","D","C","W0","RES","_T","BRMI","TN_RME",3,"_T","S1"]
["RMI","MF1","MF.1 Biomass",null,null,{"$f":"IFERROR(F5+F10,\":\")","v":":"},null,{"$f":"IFERROR(H5+H10,\":\")","v":":"},null,{"$f":"IFERROR(J5+J10,\":\")","v":":"},null,{"$f":"IFERROR(L5+L10,\":\")","v":":"},null,{"$f":"IFERROR(N5+N10,\":\")","v":":"},null,{"$f":"IFERROR(P5+P10,\":\")","v":":"},null,{"$f":"IFERROR(R5+R10,\":\")","v":":"},null,{"$f":"IFERROR(T5+T10,\":\")","v":":"},null,{"$f":"IFERROR(V5+V10,\":\")","v":":"},null,{"$f":"IFERROR(X5+X10,\":\")","v":":"},null,{"$f":"IFERROR(Z5+Z10,\":\")","v":":"},null,{"$f":"IFERROR(AB5+AB10,\":\")","v":":"},null,{"$f":"IFERROR(AD5+AD10,\":\")","v":":"},null,{"$f":"IFERROR(AF5+AF10,\":\")","v":":"},null,{"$f":"IFERROR(AH5+AH10,\":\")","v":":"},null,{"$f":"IFERROR(AJ5+AJ10,\":\")","v":":"},null,{"$f":"IFERROR(AL5+AL10,\":\")","v":":"},null,{"$f":"IFERROR(AN5+AN10,\":\")","v":":"},null,{"$f":"IFERROR(AP5+AP10,\":\")","v":":"},null,{"$f":"IFERROR(AR5+AR10,\":\")","v":":"},null,{"$f":"IFERROR(AT5+AT10,\":\")","v":":"},null,{"$f":"IFERROR(AV5+AV10,\":\")","v":":"},null,{"$f":"IFERROR(AX5+AX10,\":\")","v":":"},null,{"$f":"IFERROR(AZ5+AZ10,\":\")","v":":"},null,{"$f":"IFERROR(BB5+BB10,\":\")","v":":"},null,{"$f":"IFERROR(BD5+BD10,\":\")","v":":"},null,{"$f":"IFERROR(BF5+BF10,\":\")","v":":"},null,{"$f":"IFERROR(BH5+BH10,\":\")","v":":"},null,{"$f":"IFERROR(BJ5+BJ10,\":\")","v":":"},null,{"$f":"IFERROR(BL5+BL10,\":\")","v":":"},null,":",null,null,null,null,null,null,null,null,null,null,null,null,null,null,null,null,null,null,null,null,"Kept for","D","C","W0","RES","MF1","BRMI","TN_RME",3,"_T","S1"]
["RMI","MF2","MF.2 Metal ores (gross ores)",null,null,{"$f":"IFERROR(F6+F11,\":\")","v":":"},null,":",null,":",null,":",null,":",null,":",null,":",null,":",null,":",null,":",null,":",null,":",null,":",null,":",null,":",null,":",null,":",null,":",null,":",null,":",null,":",null,":",null,":",null,":",null,":",null,":",null,":",null,":",null,":",null,":",null,{"$f":"IFERROR(BN6+BN11,\":\")","v":":"},null,null,null,null,null,null,null,null,null,null,null,null,null,null,null,null,null,null,null,null,"testing","D","C","W0","RES","MF2","BRMI","TN_RME",3,"_T","S1"]
["RMI","MF3","MF.3 Non-metalic minerals",null,null,":",null,{"$f":"IFERROR(H7+H12,\":\")","v":":"},null,":",null,":",null,":",null,":",null,":",null,":",null,":",null,":",null,":",null,":",null,":",null,":",null,":",null,":",null,":",null,":",null,":",null,":",null,":",null,":",null,":",null,":",null,":",null,":",null,":",null,":",null,":",null,":",null,{"$f":"IFERROR(BN7+BN12,\":\")","v":":"},null,null,null,null,null,null,null,null,null,null,null,null,null,null,null,null,null,null,null,null,"purposes","D","C","W0","RES","MF3","BRMI","TN_RME",3,"_T","S1"]
["RMI","MF4","MF.4 Fossil energy materials/carriers",null,null,":",null,":",null,":",null,":",null,":",null,":",null,":",null,":",null,":",null,":",null,":",null,":",null,":",null,":",null,":",null,":",null,":",null,":",null,":",null,":",null,":",null,":",null,":",null,":",null,":",null,":",null,":",null,":",null,":",null,":",null,{"$f":"IFERROR(BN8+BN13,\":\")","v":":"},null,null,null,null,null,null,null,null,null,null,null,null,null,null,null,null,null,null,null,null,null,"D","C","W0","RES","MF4","BRMI","TN_RME",3,"_T","S1"]
["EXP_RME","TOTAL","Exports in RME",null,null,null,null,null,null,null,null,null,null,null,null,null,null,null,null,null,null,null,null,null,null,null,null,null,null,null,null,null,null,null,null,null,null,null,null,null,null,null,null,null,null,null,null,null,null,null,null,null,null,null,null,null,null,null,null,null,null,null,null,null,null,null,null,null,null,null,null,null,null,null,null,null,null,null,null,null,null,null,null,null,null,null,null,"D","D","W1","RES","_T","P6","TN_RME",3,"_T","S1"]
["EXP_RME","MF1","MF.1 Biomass",null,null,null,null,null,null,null,null,null,null,null,null,null,null,null,null,null,null,null,null,null,null,null,null,null,null,null,null,null,null,null,null,null,null,null,null,null,null,null,null,null,null,null,null,null,null,null,null,null,null,null,null,null,null,null,null,null,null,null,null,null,null,null,null,null,null,null,null,null,null,null,null,null,null,null,null,null,null,null,null,null,null,null,null,"D","D","W1","RES","MF1","P6","TN_RME",3,"_T","S1"]
["EXP_RME","MF2","MF.2 Metal ores (gross ores)",null,null,null,null,null,null,null,null,null,null,null,null,null,null,null,null,null,null,null,null,null,null,null,null,null,null,null,null,null,null,null,null,null,null,null,null,null,null,null,null,null,null,null,null,null,null,null,null,null,null,null,null,null,null,null,null,null,null,null,null,null,null,null,null,null,null,null,null,null,null,null,null,null,null,null,null,null,null,null,null,null,null,null,null,"D","D","W1","RES","MF2","P6","TN_RME",3,"_T","S1"]
["EXP_RME","MF3","MF.3 Non-metalic minerals",null,null,null,null,null,null,null,null,null,null,null,null,null,null,null,null,null,null,null,null,null,null,null,null,null,null,null,null,null,null,null,null,null,null,null,null,null,null,null,null,null,null,null,null,null,null,null,null,null,null,null,null,null,null,null,null,null,null,null,null,null,null,null,null,null,null,null,null,null,null,null,null,null,null,null,null,null,null,null,null,null,null,null,null,"D","D","W1","RES","MF3","P6","TN_RME",3,"_T","S1"]
["EXP_RME","MF4","MF.4 Fossil energy materials/carriers",null,null,null,null,null,null,null,null,null,null,null,null,null,null,null,null,null,null,null,null,null,null,null,null,null,null,null,null,null,null,null,null,null,null,null,null,null,null,null,null,null,null,null,null,null,null,null,null,null,null,null,null,null,null,null,null,null,null,null,null,null,null,null,null,null,null,null,null,null,null,null,null,null,null,null,null,null,null,null,null,null,null,null,null,"D","D","W1","RES","MF4","P6","TN_RME",3,"_T","S1"]
["RMC","TOTAL","Raw material consumption (RMC)",null,null,{"$f":"IFERROR(F14-F19,\":\")","v":":"},null,{"$f":"IFERROR(H14-H19,\":\")","v":":"},null,{"$f":"IFERROR(J14-J19,\":\")","v":":"},null,{"$f":"IFERROR(L14-L19,\":\")","v":":"},null,{"$f":"IFERROR(N14-N19,\":\")","v":":"},null,{"$f":"IFERROR(P14-P19,\":\")","v":":"},null,{"$f":"IFERROR(R14-R19,\":\")","v":":"},null,{"$f":"IFERROR(T14-T19,\":\")","v":":"},null,{"$f":"IFERROR(V14-V19,\":\")","v":":"},null,{"$f":"IFERROR(X14-X19,\":\")","v":":"},null,{"$f":"IFERROR(Z14-Z19,\":\")","v":":"},null,{"$f":"IFERROR(AB14-AB19,\":\")","v":":"},null,{"$f":"IFERROR(AD14-AD19,\":\")","v":":"},null,{"$f":"IFERROR(AF14-AF19,\":\")","v":":"},null,{"$f":"IFERROR(AH14-AH19,\":\")","v":":"},null,{"$f":"IFERROR(AJ14-AJ19,\":\")","v":":"},null,{"$f":"IFERROR(AL14-AL19,\":\")","v":":"},null,{"$f":"IFERROR(AN14-AN19,\":\")","v":":"},null,{"$f":"IFERROR(AP14-AP19,\":\")","v":":"},null,{"$f":"IFERROR(AR14-AR19,\":\")","v":":"},null,{"$f":"IFERROR(AT14-AT19,\":\")","v":":"},null,{"$f":"IFERROR(AV14-AV19,\":\")","v":":"},null,{"$f":"IFERROR(AX14-AX19,\":\")","v":":"},null,{"$f":"IFERROR(AZ14-AZ19,\":\")","v":":"},null,{"$f":"IFERROR(BB14-BB19,\":\")","v":":"},null,{"$f":"IFERROR(BD14-BD19,\":\")","v":":"},null,{"$f":"IFERROR(BF14-BF19,\":\")","v":":"},null,{"$f":"IFERROR(BH14-BH19,\":\")","v":":"},null,{"$f":"IFERROR(BJ14-BJ19,\":\")","v":":"},null,{"$f":"IFERROR(BL14-BL19,\":\")","v":":"},null,":",null,null,null,null,null,null,null,null,null,null,null,null,null,null,null,null,null,null,null,null,"CALCULATED","D","B","W0","RES","_T","BRMC","TN_RME",3,"_T","S1"]
["RMC","MF1","MF.1 Biomass",null,null,{"$f":"IFERROR(F15-F20,\":\")","v":":"},null,{"$f":"IFERROR(H15-H20,\":\")","v":":"},null,{"$f":"IFERROR(J15-J20,\":\")","v":":"},null,{"$f":"IFERROR(L15-L20,\":\")","v":":"},null,{"$f":"IFERROR(N15-N20,\":\")","v":":"},null,{"$f":"IFERROR(P15-P20,\":\")","v":":"},null,{"$f":"IFERROR(R15-R20,\":\")","v":":"},null,{"$f":"IFERROR(T15-T20,\":\")","v":":"},null,{"$f":"IFERROR(V15-V20,\":\")","v":":"},null,{"$f":"IFERROR(X15-X20,\":\")","v":":"},null,{"$f":"IFERROR(Z15-Z20,\":\")","v":":"},null,{"$f":"IFERROR(AB15-AB20,\":\")","v":":"},null,{"$f":"IFERROR(AD15-AD20,\":\")","v":":"},null,{"$f":"IFERROR(AF15-AF20,\":\")","v":":"},null,{"$f":"IFERROR(AH15-AH20,\":\")","v":":"},null,{"$f":"IFERROR(AJ15-AJ20,\":\")","v":":"},null,{"$f":"IFERROR(AL15-AL20,\":\")","v":":"},null,{"$f":"IFERROR(AN15-AN20,\":\")","v":":"},null,{"$f":"IFERROR(AP15-AP20,\":\")","v":":"},null,{"$f":"IFERROR(AR15-AR20,\":\")","v":":"},null,{"$f":"IFERROR(AT15-AT20,\":\")","v":":"},null,{"$f":"IFERROR(AV15-AV20,\":\")","v":":"},null,{"$f":"IFERROR(AX15-AX20,\":\")","v":":"},null,{"$f":"IFERROR(AZ15-AZ20,\":\")","v":":"},null,{"$f":"IFERROR(BB15-BB20,\":\")","v":":"},null,{"$f":"IFERROR(BD15-BD20,\":\")","v":":"},null,{"$f":"IFERROR(BF15-BF20,\":\")","v":":"},null,{"$f":"IFERROR(BH15-BH20,\":\")","v":":"},null,{"$f":"IFERROR(BJ15-BJ20,\":\")","v":":"},null,{"$f":"IFERROR(BL15-BL20,\":\")","v":":"},null,":",null,null,null,null,null,null,null,null,null,null,null,null,null,null,null,null,null,null,null,null,"Kept for","D","B","W0","RES","MF1","BRMC","TN_RME",3,"_T","S1"]
["RMC","MF2","MF.2 Metal ores (gross ores)",null,null,{"$f":"IFERROR(F16-F21,\":\")","v":":"},null,":",null,":",null,":",null,":",null,":",null,":",null,":",null,":",null,":",null,":",null,":",null,":",null,":",null,":",null,":",null,":",null,":",null,":",null,":",null,":",null,":",null,":",null,":",null,":",null,":",null,":",null,":",null,":",null,":",null,{"$f":"IFERROR(BN16-BN21,\":\")","v":":"},null,null,null,null,null,null,null,null,null,null,null,null,null,null,null,null,null,null,null,null,"testing","D","B","W0","RES","MF2","BRMC","TN_RME",3,"_T","S1"]
["RMC","MF3","MF.3 Non-metalic minerals",null,null,":",null,{"$f":"IFERROR(H17-H22,\":\")","v":":"},null,":",null,":",null,":",null,":",null,":",null,":",null,":",null,":",null,":",null,":",null,":",null,":",null,":",null,":",null,":",null,":",null,":",null,":",null,":",null,":",null,":",null,":",null,":",null,":",null,":",null,":",null,":",null,":",null,{"$f":"IFERROR(BN17-BN22,\":\")","v":":"},null,null,null,null,null,null,null,null,null,null,null,null,null,null,null,null,null,null,null,null,"purposes","D","B","W0","RES","MF3","BRMC","TN_RME",3,"_T","S1"]
["RMC","MF4","MF.4 Fossil energy materials/carriers",null,null,":",null,":",null,":",null,":",null,":",null,":",null,":",null,":",null,":",null,":",null,":",null,":",null,":",null,":",null,":",null,":",null,":",null,":",null,":",null,":",null,":",null,":",null,":",null,":",null,":",null,":",null,":",null,":",null,":",null,":",null,{"$f":"IFERROR(BN18-BN23,\":\")","v":":"},null,null,null,null,null,null,null,null,null,null,null,null,null,null,null,null,null,null,null,null,null,"D","B","W0","RES","MF4","BRMC","TN_RME",3,"_T","S1"]

{"sheet":"Grazed biomass v1","index":18,"n_rows":61,"n_cols":36,"rows_kept":61,"cut":false,"hidden":false,"merged":[[12,0,13,0],[12,4,13,4],[12,2,13,3],[5,2,5,23],[7,2,8,23],[12,1,13,1],[12,5,12,25],[14,2,14,3],[15,2,15,3],[58,0,59,21],[56,2,56,4],[55,2,55,4],[50,2,50,4],[53,2,53,23],[51,2,51,4],[23,2,23,3],[41,2,42,2],[41,3,42,3],[21,2,21,3],[22,2,22,3],[3,0,3,18],[48,2,49,25],[41,5,41,25],[30,2,32,25],[39,2,39,23],[26,2,26,4],[27,2,27,4],[41,4,42,4],[34,2,34,4],[35,2,35,4],[16,2,16,3],[19,2,19,3],[18,2,18,3],[33,2,33,4],[20,2,20,3],[17,2,17,3]]}
["Compilation tool for \"grazed biomass\""]
[]
[]
["Please fill only in the yellow cells. If you have other national factors, change those in the blue cells. Please don't touch the green or red cells!!!"]
[]
[null,null,"Step 1:  Demand side approach: feed balance to identify demand for grazed biomass"]
[]
[null,null,"roughage requirement = livstock [number] * annual feed intake [t per head and year]"]
[]
[]
[]
[]
["Eurostat table ","Code in Eurostat table ",null,null,"Annual feed intake [t/head and year]","Livestock\n [number]"]
[null,null,null,null,null,1990,1991,1992,1993,1994,1995,1996,1997,1998,1999,2000,2001,2002,2003,2004,2005,2006,2007,2008,2009,2010,2011,2012,2013,2014,2015,2016,2017,2018,2019,2020]
["Bovine population - annual data [apro_mt_lscatl]","A2000","Bovine cattle, live ",null,4.5]
["Sheep population - annual data [apro_mt_lssheep]","A4100","Sheep, live ",null,0.5]
["Goats population - annual data [apro_mt_lsgoat]","A4200","Goats, live",null,0.5]
["Equidae - annual data [apro_mt_lsequi]","\tA1100","Horses*",null,3.7]
["Equidae - annual data [apro_mt_lsequi]","A1200","Mules and asses*",null,2.2000000000000002]
[null,null,"[new animals]"]
[null,null,"[new animals]"]
[null,null,"[new animals]"]
[null,null,"[new animals]"]
[null,null,"[new animals]"]
[]
[]
[null,null,null,null,null,1990,1991,1992,1993,1994,1995,1996,1997,1998,1999,2000,2001,2002,2003,2004,2005,2006,2007,2008,2009,2010,2011,2012,2013,2014,2015,2016,2017,2018,2019,2020]
[null,null,"Roughage requirement ",null,null,{"$f":"F15*$E15+F16*$E16+F17*$E17+F18*$E18+F19*$E19+$E20*F20+$E21*F21+$E22*F22+$E23*F23+$E24*F24","v":0},{"$f":"G15*$E15+G16*$E16+G17*$E17+G18*$E18+G19*$E19+$E20*G20+$E21*G21+$E22*G22+$E23*G23+$E24*G24","v":0},{"$f":"H15*$E15+H16*$E16+H17*$E17+H18*$E18+H19*$E19+$E20*H20+$E21*H21+$E22*H22+$E23*H23+$E24*H24","v":0},{"$f":"I15*$E15+I16*$E16+I17*$E17+I18*$E18+I19*$E19+$E20*I20+$E21*I21+$E22*I22+$E23*I23+$E24*I24","v":0},{"$f":"J15*$E15+J16*$E16+J17*$E17+J18*$E18+J19*$E19+$E20*J20+$E21*J21+$E22*J22+$E23*J23+$E24*J24","v":0},{"$f":"K15*$E15+K16*$E16+K17*$E17+K18*$E18+K19*$E19+$E20*K20+$E21*K21+$E22*K22+$E23*K23+$E24*K24","v":0},0,0,0,0,0,0,0,0,0,0,0,0,0,0,0,{"$f":"AA15*$E15+AA16*$E16+AA17*$E17+AA18*$E18+AA19*$E19+$E20*AA20+$E21*AA21+$E22*AA22+$E23*AA23+$E24*AA24","v":0},0,0,0,0,0,0,{"$f":"AH15*$E15+AH16*$E16+AH17*$E17+AH18*$E18+AH19*$E19+$E20*AH20+$E21*AH21+$E22*AH22+$E23*AH23+$E24*AH24","v":0},0,{"$f":"AJ15*$E15+AJ16*$E16+AJ17*$E17+AJ18*$E18+AJ19*$E19+$E20*AJ20+$E21*AJ21+$E22*AJ22+$E23*AJ23+$E24*AJ24","v":0}]
[]
[]
[null,null,"demand for grazed biomass = roughage requirement [t at 15% mc] - fodder crops [t at 15%mc] "]
[]
[]
[null,null,null,null,null,1990,1991,1992,1993,1994,1995,1996,1997,1998,1999,2000,2001,2002,2003,2004,2005,2006,2007,2008,2009,2010,2011,2012,2013,2014,2015,2016,2017,2018,2019,2020]
[null,null,"MF.1.2.2.1   Fodder crops (including biomass harvest from grassland)"]
[null,null,"Demand for grazed biomass",null,null,{"$f":"F28-F35","v":0},{"$f":"G28-G35","v":0},{"$f":"H28-H35","v":0},{"$f":"I28-I35","v":0},{"$f":"J28-J35","v":0},{"$f":"K28-K35","v":0},0,0,0,0,0,0,0,0,0,0,0,0,0,{"$f":"Y28-Y35","v":0},0,0,0,0,0,0,0,0,{"$f":"AH28-AH35","v":0},0,{"$f":"AJ28-AJ35","v":0}]
[]
[]
[]
[null,null,"Step 2: Supply estimate based on available/used grazed area and information on area yield"]
[]
[null,null,null,"Yield range \n[t at 15%mc/ha]","Average yield \n[t at  15%mc/ha]","Pasture area [ha]"]
[null,null,null,null,null,1990,1991,1992,1993,1994,1995,1996,1997,1998,1999,2000,2001,2002,2003,2004,2005,2006,2007,2008,2009,2010,2011,2012,2013,2014,2015,2016,2017,2018,2019,2020]
[null,null,"Rough grazing, alpine pasture ","<1",0.5]
[null,null,"Extensive pasture","1-5",2.5]
[null,null,"Improved pasture","5-10",7]
[]
[]
[null,null,"grazing potential [tat 15%mc]=pasture area [ha] * pasture yield [t at 15% mc/ha]"]
[]
[null,null,null,null,null,1990,1991,1992,1993,1994,1995,1996,1997,1998,1999,2000,2001,2002,2003,2004,2005,2006,2007,2008,2009,2010,2011,2012,2013,2014,2015,2016,2017,2018,2019,2020]
[null,null,"grazing potential [t at 15%mc]",null,null,{"$f":"F44*$E44+F45*$E45+F46*$E46","v":0},{"$f":"G44*$E44+G45*$E45+G46*$E46","v":0},{"$f":"H44*$E44+H45*$E45+H46*$E46","v":0},{"$f":"I44*$E44+I45*$E45+I46*$E46","v":0},{"$f":"J44*$E44+J45*$E45+J46*$E46","v":0},{"$f":"K44*$E44+K45*$E45+K46*$E46","v":0},0,0,0,0,0,0,0,0,0,0,0,0,0,{"$f":"Y44*$E44+Y45*$E45+Y46*$E46","v":0},0,0,0,0,0,0,0,0,{"$f":"AH44*$E44+AH45*$E45+AH46*$E46","v":0},0,{"$f":"AJ44*$E44+AJ45*$E45+AJ46*$E46","v":0}]
[]
[null,null,"Step 3: Check that there the grazed biomass demand is covered by the resources available before entering the grazed biomass estimate in the DE table (row MF.1.2.2.2)"]
[]
[null,null,null,null,null,1990,1991,1992,1993,1994,1995,1996,1997,1998,1999,2000,2001,2002,2003,2004,2005,2006,2007,2008,2009,2010,2011,2012,2013,2014,2015,2016,2017,2018,2019,2020]
[null,null,"demand for grazed biomass ≤ grazing potential",null,null,{"$f":"IF(F36<=F52,\"OK\",\" PLEASE CHECK AGAIN  !!!\")","v":"OK"},{"$f":"IF(G36<=G52,\"OK\",\" PLEASE CHECK AGAIN  !!!\")","v":"OK"},{"$f":"IF(H36<=H52,\"OK\",\" PLEASE CHECK AGAIN  !!!\")","v":"OK"},{"$f":"IF(I36<=I52,\"OK\",\" PLEASE CHECK AGAIN  !!!\")","v":"OK"},{"$f":"IF(J36<=J52,\"OK\",\" PLEASE CHECK AGAIN  !!!\")","v":"OK"},{"$f":"IF(K36<=K52,\"OK\",\" PLEASE CHECK AGAIN  !!!\")","v":"OK"},"OK","OK","OK","OK","OK","OK","OK","OK","OK","OK","OK","OK","OK",{"$f":"IF(Y36<=Y52,\"OK\",\" PLEASE CHECK AGAIN  !!!\")","v":"OK"},"OK","OK","OK","OK","OK","OK",{"$f":"IF(AF36<=AF52,\"OK\",\" PLEASE CHECK AGAIN  !!!\")","v":"OK"},"OK",{"$f":"IF(AH36<=AH52,\"OK\",\" PLEASE CHECK AGAIN  !!!\")","v":"OK"},"OK",{"$f":"IF(AJ36<=AJ52,\"OK\",\" PLEASE CHECK AGAIN  !!!\")","v":"OK"}]
[]
["If the message displayed on the red row is \"OK\" the demand can be covered by the available pasture area, then report the data in row 36 of this calculation tool in Table A row \"MF.1.2.2.2   Grazed biomass\". "]
[]
["If the message displayed on the red row is \"please check again \" then the average yields could be too low or the annual feed intakes are too high"]

{"sheet":"Crop residues v1","index":19,"n_rows":76,"n_cols":36,"rows_kept":76,"cut":false,"hidden":false,"merged":[[14,0,26,0],[59,4,60,4],[56,2,56,23],[59,2,60,2],[59,3,60,3],[59,5,59,31],[3,0,4,23],[7,0,7,23],[8,0,8,22],[12,5,12,31],[37,5,37,31],[37,4,38,4],[37,2,38,2],[37,3,38,3],[35,2,35,23],[32,2,33,23],[12,0,13,0],[12,2,13,2],[12,4,13,4],[12,3,13,3],[21,2,23,2],[12,1,13,1]]}
["Compilation tool for \"crop residues\" "]
[]
[]
["Please fill only in the yellow cells and if you have other national factors change in the blue cells and don't touch the green cells!!!"]
[]
["Step 1 "]
[]
["Identification of crops which provide residues for futher socio-economic use."]
["In most cases this include all types of cereals (MF.1.1.1), sugar crops (MF.1.1.3) and oil-bearing crops (MF.1.1.6), only in exceptional cases other crops have to be considered"]
[]
[]
[]
["Eurostat table ","Code in Eurostat table ",null,"Harvest factor","Recovery rate","Primary crop harvest \n[ 1000 t ]"]
[null,null,null,null,null,1990,1991,1992,1993,1994,1995,1996,1997,1998,1999,2000,2001,2002,2003,2004,2005,2006,2007,2008,2009,2010,2011,2012,2013,2014,2015,2016,2017,2018,2019,2020]
["Crop production in EU standard humidity[apro_cpsh1]","C1100","Wheat ",1,0.7]
[null,"C1220","Winter cereal mixtures (maslin)",1,0.7]
[null,"C1300","Barley ",1.2,0.7]
[null,"C1210","Rye ",1.2,0.7]
[null,"C1410","Oats",1.2,0.7]
[null,"C1500","Maize",1.2,0.9]
[null,"C2000","Rice",1.2,0.7]
[null,"C1600","All other cereals",1.2,0.7]
[null,"C1700",null,1.2,0.7]
[null,"C1900",null,1.2,0.7]
[null,"I1110","Rape seed",1.9,0.7]
[null,"I1130","Soya beans",1.2,0.7]
[null,"R2000","Sugar beet",0.7,0.9]
[null,null,"Sugar cane",0.5,0.9]
[]
[null,null,"Step 2"]
[null,null,"Estimation of available crop residues via harvest factors"]
[]
[null,null,"Available crop residues [t(as is weight)] = primary crop harvest [t(as is weight)] * harvest factor "]
[]
[]
[null,null,"Standard values for harvest factors and recovery rates for the most common crop residues used in Europe"]
[]
[null,null,null,"Harvest factor","Recovery rate","Available crop residues \n[1000 t ]"]
[null,null,null,null,null,1990,1991,1992,1993,1994,1995,1996,1997,1998,1999,2000,2001,2002,2003,2004,2005,2006,2007,2008,2009,2010,2011,2012,2013,2014,2015,2016,2017,2018,2019,2020]
[null,null,"Wheat ",1,0.7,{"$f":"F15*$D15","v":0},0,0,0,0,{"$f":"K15*$D15","v":0},0,0,0,0,0,0,0,0,0,0,0,0,0,{"$f":"Y15*$D15","v":0},0,0,0,0,0,0,{"$f":"AF15*$D15","v":0},0,{"$f":"AH15*$D15","v":0},0,{"$f":"AJ15*$D15","v":0}]
[null,null,"Soft wheat and meslin",1,0.7,{"$f":"F16*$D16","v":0},{"$f":"G16*$D16","v":0},0,0,0,0,0,0,0,0,0,0,0,0,0,0,0,0,0,0,0,{"$f":"AA16*$D16","v":0},0,{"$f":"AC16*$D16","v":0},0,0,{"$f":"AF16*$D16","v":0},0,{"$f":"AH16*$D16","v":0},0,{"$f":"AJ16*$D16","v":0}]
[null,null,"Barley ",1.2,0.7,{"$f":"F17*$D17","v":0},0,0,0,0,0,0,0,0,0,0,0,0,0,0,0,0,0,0,{"$f":"Y17*$D17","v":0},{"$f":"Z17*$D17","v":0},0,0,0,0,0,{"$f":"AF17*$D17","v":0},0,{"$f":"AH17*$D17","v":0},0,{"$f":"AJ17*$D17","v":0}]
[null,null,"Rye",1.2,0.7,{"$f":"F18*$D18","v":0},0,0,0,0,0,0,0,0,0,0,0,0,0,0,0,0,0,0,{"$f":"Y18*$D18","v":0},{"$f":"Z18*$D18","v":0},0,0,0,0,0,{"$f":"AF18*$D18","v":0},0,{"$f":"AH18*$D18","v":0},0,{"$f":"AJ18*$D18","v":0}]
[null,null,"Oats",1.2,0.7,{"$f":"F19*$D19","v":0},{"$f":"G19*$D19","v":0},0,0,0,0,0,0,0,0,0,0,0,0,0,0,0,0,0,0,0,0,0,0,0,0,{"$f":"AF19*$D19","v":0},0,{"$f":"AH19*$D19","v":0},0,{"$f":"AJ19*$D19","v":0}]
[null,null,"Maize",1.2,0.9,{"$f":"F20*$D20","v":0},0,0,0,0,0,0,0,0,0,0,0,0,0,0,0,0,0,0,{"$f":"Y20*$D20","v":0},{"$f":"Z20*$D20","v":0},0,0,0,0,0,{"$f":"AF20*$D20","v":0},0,{"$f":"AH20*$D20","v":0},0,{"$f":"AJ20*$D20","v":0}]
[null,null,"Rice",1.2,0.7,{"$f":"F21*$D21","v":0},0,0,0,0,0,0,0,0,0,0,0,0,0,0,0,0,0,0,{"$f":"Y21*$D21","v":0},{"$f":"Z21*$D21","v":0},0,0,0,0,0,{"$f":"AF21*$D21","v":0},0,{"$f":"AH21*$D21","v":0},0,{"$f":"AJ21*$D21","v":0}]
[null,null,"All other cereals",1.2,0.7,{"$f":"F22*$D22+F23*$D23+F24*$D24","v":0},{"$f":"G22*$D22+G23*$D23+G24*$D24","v":0},0,{"$f":"I22*$D22+I23*$D23+I24*$D24","v":0},0,{"$f":"K22*$D22+K23*$D23+K24*$D24","v":0},{"$f":"L22*$D22+L23*$D23+L24*$D24","v":0},{"$f":"M22*$D22+M23*$D23+M24*$D24","v":0},{"$f":"N22*$D22+N23*$D23+N24*$D24","v":0},{"$f":"O22*$D22+O23*$D23+O24*$D24","v":0},0,0,0,0,0,0,0,0,0,0,0,{"$f":"AA22*$D22+AA23*$D23+AA24*$D24","v":0},0,0,0,0,0,{"$f":"AG22*$D22+AG23*$D23+AG24*$D24","v":0},0,{"$f":"AI22*$D22+AI23*$D23+AI24*$D24","v":0},0]
[null,null,"Rape seed",1.9,0.7,{"$f":"F25*$D25","v":0},0,0,0,0,{"$f":"K25*$D25","v":0},0,0,0,0,0,0,0,0,0,0,0,0,0,{"$f":"Y25*$D25","v":0},0,{"$f":"AA25*$D25","v":0},0,0,{"$f":"AD25*$D25","v":0},0,{"$f":"AF25*$D25","v":0},0,{"$f":"AH25*$D25","v":0},0,{"$f":"AJ25*$D25","v":0}]
[null,null,"Soya beans",1.2,0.7,{"$f":"F26*$D26","v":0},0,0,0,0,0,0,0,0,0,0,0,0,0,0,0,0,0,0,0,0,0,0,0,0,0,{"$f":"AF26*$D26","v":0},0,{"$f":"AH26*$D26","v":0},0,{"$f":"AJ26*$D26","v":0}]
[null,null,"Sugar beet",0.7,0.9,{"$f":"F27*$D27","v":0},0,0,0,0,0,0,0,0,0,0,0,0,0,0,0,0,0,0,0,0,0,0,0,0,0,{"$f":"AF27*$D27","v":0},0,{"$f":"AH27*$D27","v":0},0,{"$f":"AJ27*$D27","v":0}]
[null,null,"Sugar cane",0.5,0.9,{"$f":"F28*$D28","v":0},0,0,0,0,0,0,0,0,0,0,0,0,0,0,0,0,0,0,0,0,0,0,0,0,0,{"$f":"AF28*$D28","v":0},0,{"$f":"AH28*$D28","v":0},0,{"$f":"AJ28*$D28","v":0}]
[]
[]
[null,null,"Step 3"]
[null,null,"Estimation of fraction of used residues"]
[]
[null,null,"Used crop residues [t (as is weight] = available crop residues [t (as is weight)] * recovery rate"]
[]
[]
[null,null,null,"Harvest factor","Recovery rate","Used crop residues \n[1000 t ]"]
[null,null,null,null,null,1990,1991,1992,1993,1994,1995,1996,1997,1998,1999,2000,2001,2002,2003,2004,2005,2006,2007,2008,2009,2010,2011,2012,2013,2014,2015,2016,2017,2018,2019,2020]
[null,null,"Wheat ",1,0.7,{"$f":"F40*$E62","v":0},{"$f":"G40*$E62","v":0},0,0,0,{"$f":"K40*$E62","v":0},0,0,0,0,0,0,0,0,0,0,0,0,0,{"$f":"Y40*$E62","v":0},0,0,0,0,0,0,{"$f":"AF40*$E62","v":0},0,{"$f":"AH40*$E62","v":0},0,{"$f":"AJ40*$E62","v":0}]
[null,null,"Soft wheat and meslin",1,0.7,{"$f":"F41*$E63","v":0},{"$f":"G41*$E63","v":0},0,0,0,0,0,0,0,0,0,0,0,0,0,0,0,0,0,0,0,{"$f":"AA41*$E63","v":0},0,{"$f":"AC41*$E63","v":0},0,0,{"$f":"AF41*$E63","v":0},0,{"$f":"AH41*$E63","v":0},0,{"$f":"AJ41*$E63","v":0}]
[null,null,"Barley ",1.2,0.7,{"$f":"F42*$E64","v":0},0,0,0,0,0,0,0,0,0,0,0,0,0,0,0,0,0,0,{"$f":"Y42*$E64","v":0},{"$f":"Z42*$E64","v":0},0,0,0,0,0,{"$f":"AF42*$E64","v":0},0,{"$f":"AH42*$E64","v":0},0,{"$f":"AJ42*$E64","v":0}]
[null,null,"Rye",1.2,0.7,{"$f":"F43*$E65","v":0},0,0,0,0,0,0,0,0,0,0,0,0,0,0,0,0,0,0,{"$f":"Y43*$E65","v":0},{"$f":"Z43*$E65","v":0},0,0,0,0,0,{"$f":"AF43*$E65","v":0},0,{"$f":"AH43*$E65","v":0},0,{"$f":"AJ43*$E65","v":0}]
[null,null,"Oats",1.2,0.7,0,0,0,0,0,0,0,0,0,0,0,0,0,0,0,0,0,0,0,0,0,0,0,0,0,0,{"$f":"AF44*$E66","v":0},0,{"$f":"AH44*$E66","v":0},0,{"$f":"AJ44*$E66","v":0}]
[null,null,"Maize",1.2,0.9,{"$f":"F45*$E67","v":0},0,0,0,0,0,0,0,0,0,0,0,0,0,0,0,0,0,0,{"$f":"Y45*$E67","v":0},0,0,0,0,0,0,{"$f":"AF45*$E67","v":0},0,{"$f":"AH45*$E67","v":0},0,{"$f":"AJ45*$E67","v":0}]
[null,null,"Rice",1.2,0.7,{"$f":"F46*$E68","v":0},0,0,0,0,0,0,0,0,0,0,0,0,0,0,0,0,0,0,0,0,0,0,0,0,0,{"$f":"AF46*$E68","v":0},0,{"$f":"AH46*$E68","v":0},0,{"$f":"AJ46*$E68","v":0}]
[null,null,"All other cereals",1.2,0.7,{"$f":"F47*$E69","v":0},{"$f":"G47*$E69","v":0},0,0,0,0,0,0,0,0,0,0,0,0,0,0,0,0,0,0,0,0,0,0,0,0,{"$f":"AF47*$E69","v":0},0,{"$f":"AH47*$E69","v":0},0,{"$f":"AJ47*$E69","v":0}]
[null,null,"Rape seed",1.9,0.7,{"$f":"F48*$E70","v":0},0,0,0,0,0,0,0,0,0,0,0,0,0,0,0,0,0,0,0,0,0,0,0,0,0,{"$f":"AF48*$E70","v":0},0,{"$f":"AH48*$E70","v":0},0,{"$f":"AJ48*$E70","v":0}]
[null,null,"Soya beans",1.2,0.7,{"$f":"F49*$E71","v":0},0,0,0,0,0,0,0,0,0,0,0,0,0,0,0,0,0,0,0,0,0,0,0,0,0,{"$f":"AF49*$E71","v":0},0,{"$f":"AH49*$E71","v":0},0,{"$f":"AJ49*$E71","v":0}]
[null,null,"Sugar beet",0.7,0.9,{"$f":"F50*$E72","v":0},0,0,0,0,0,0,0,0,0,0,0,0,0,0,0,0,0,0,0,0,0,0,0,0,0,{"$f":"AF50*$E72","v":0},0,{"$f":"AH50*$E72","v":0},0,{"$f":"AJ50*$E72","v":0}]
[null,null,"Sugar cane",0.5,0.9,{"$f":"F51*$E73","v":0},0,0,0,0,0,0,0,0,0,0,0,0,0,0,0,0,0,0,0,0,0,0,0,0,0,{"$f":"AF51*$E73","v":0},0,{"$f":"AH51*$E73","v":0},0,{"$f":"AJ51*$E73","v":0}]
[null,null,"TOTAL USED CROP  RESIDUES",null,null,{"$f":"SUM(F62:F73)","v":0},{"$f":"SUM(G62:G73)","v":0},0,0,0,{"$f":"SUM(K62:K73)","v":0},{"$f":"SUM(L62:L73)","v":0},{"$f":"SUM(M62:M73)","v":0},{"$f":"SUM(N62:N73)","v":0},{"$f":"SUM(O62:O73)","v":0},0,0,0,0,0,0,0,0,0,{"$f":"SUM(Y62:Y73)","v":0},0,0,0,0,0,0,{"$f":"SUM(AF62:AF73)","v":0},0,{"$f":"SUM(AH62:AH73)","v":0},0,{"$f":"SUM(AJ62:AJ73)","v":0}]
[]
[null,null,"Enter the figures  from row 74 \"Total used crop residues\" of this calculation tool in Table A row \" MF.1.2.1   Crop residues (used)\""]

{"sheet":"Sand and gravel v1","index":20,"n_rows":126,"n_cols":34,"rows_kept":126,"cut":false,"hidden":false,"merged":[[38,24,39,24],[40,24,41,24],[38,31,39,31],[40,31,41,31],[38,27,39,27],[38,28,39,28],[40,27,41,27],[40,28,41,28],[38,30,39,30],[40,30,41,30],[38,29,39,29],[40,29,41,29],[1,0,2,21],[4,0,5,21],[40,21,41,21],[28,0,28,21],[36,0,36,21],[40,1,41,1],[11,0,12,23],[21,0,22,23],[38,23,39,23],[40,23,41,23],[32,0,33,23],[38,1,39,1],[38,21,39,21],[38,22,39,22],[25,0,26,2],[30,0,30,23],[123,0,124,21],[104,0,105,2],[106,0,106,2],[120,0,120,2],[108,0,108,2],[117,0,117,2],[111,0,111,2],[109,0,109,2],[110,0,110,2],[119,0,119,2],[118,0,118,2],[112,0,112,2],[107,0,107,2],[103,3,104,24],[100,0,100,2],[62,0,62,2],[98,0,98,2],[70,0,72,0],[83,0,84,2],[99,0,99,2],[96,0,96,2],[97,0,97,2],[95,0,95,2],[89,0,89,2],[90,0,90,2],[86,0,86,2],[87,0,87,2],[85,0,85,2],[54,0,54,21],[46,0,46,1],[47,0,47,1],[48,0,48,1],[93,0,94,2],[88,0,88,2],[55,0,55,1],[50,0,50,1],[57,0,57,1],[56,0,56,1],[93,3,93,24],[38,33,39,33],[40,33,41,33],[38,32,39,32],[40,32,41,32],[83,3,83,24],[38,26,39,26],[40,26,41,26],[40,22,41,22],[70,6,70,7],[70,2,70,3],[45,0,45,21],[70,11,70,12],[63,0,63,2],[59,0,59,1],[49,0,49,1],[58,0,58,1]]}
["Compilation tool for \"sand and gravel\" "]
["Please fill only in the yellow cells and if you have other national factors change in the blue cells and don't touch the green or red cells!!!"]
[]
[]
["If the amount of sand and gravel per capita of the population in the respective year is significantly less than 1 tonne per capita, it means that sand and gravel for construction \npurposes is not reported (or substantially underestimated) and has to be estimated"]
[]
[]
[]
["Step1 "]
["1a) Estimation of sand and gravel based on concrete production data"]
[]
["1 tonne of concrete = 6% air + 11% portland cement + 41% gravel or crushed stone (coarse aggregate) + 26% sand + 16% water  (PCA 2007)"]
[]
[]
[41,null,"Per cent gravel"]
[26,null,"Per cent sand"]
[{"$f":"A15+A16","v":67},null,"Per cent of gravel and sand "]
[]
["PRODCOM 2007 CODE","PRODCOM 2017 - 2018 CODE",null,1990,1991,1992,1993,1994,1995,1996,1997,1998,1999,2000,2001,2002,2003,2004,2005,2006,2007,2008,2009,2010,2011,2012,2013,2014,2015,2016,2017,2018,2019,2020]
[26631000,23631000,"Ready - mixed concrete"]
[]
["Concrete production (tonnes) * sand and gravel input in % / 100 = sand and gravel (tonnes)"]
[]
[]
[]
["Estimation of sand and gravel based on concrete production (tonnes)",null,null,1990,1991,1992,1993,1994,1995,1996,1997,1998,1999,2000,2001,2002,2003,2004,2005,2006,2007,2008,2009,2010,2011,2012,2013,2014,2015,2016,2017,2018,2019,2020]
[null,null,null,{"$f":"D20*$A17/100","v":0},0,0,0,0,0,0,{"$f":"K20*$A17/100","v":0},{"$f":"L20*$A17/100","v":0},{"$f":"M20*$A17/100","v":0},{"$f":"N20*$A17/100","v":0},{"$f":"O20*$A17/100","v":0},0,0,0,0,0,0,0,{"$f":"W20*$A17/100","v":0},0,0,0,0,0,0,{"$f":"AD20*$A17/100","v":0},0,{"$f":"AF20*$A17/100","v":0},0,{"$f":"AH20*$A17/100","v":0}]
[]
["1b) Estimation of sand and gravel based on the consumption of cement "]
[]
["Sand and gravel input [t] = cement consumption [t] * 6.09"]
[]
["Cement consumption = cement production + cement imports - cement exports"]
[]
[]
[]
["CEMENT PRODUCTION (in tonnes)"]
["PRODCOM 2007 CODE","PRODCOM 2017 - 2018 CODE",null,1990,1991,1992,1993,1994,1995,1996,1997,1998,1999,2000,2001,2002,2003,2004,2005,2006,2007,2008,2009,2010,2011,2012,2013,2014,2015,2016,2017,2018,2019,2020]
[26511210,23511210,"White Portland cement "]
[26511230,null,"Grey Portland cement including blended cement "]
[26511250,23511290,"Alumina cement "]
[26511290,null,"Other hydraulic cement "]
[null,null,"Total cement production ",{"$f":"SUM(D39:D42)","v":0},0,0,0,0,0,0,{"$f":"SUM(K39:K42)","v":0},{"$f":"SUM(L39:L42)","v":0},{"$f":"SUM(M39:M42)","v":0},{"$f":"SUM(N39:N42)","v":0},{"$f":"SUM(O39:O42)","v":0},0,0,0,0,0,0,{"$f":"SUM(V39:V42)","v":0},0,0,0,0,0,{"$f":"SUM(AB39:AB42)","v":0},0,0,0,0,0,{"$f":"SUM(AH39:AH42)","v":0}]
[]
[]
["CEMENT IMPORTS (in tonnes)"]
["HS  CODE ",null,null,1990,1991,1992,1993,1994,1995,1996,1997,1998,1999,2000,2001,2002,2003,2004,2005,2006,2007,2008,2009,2010,2011,2012,2013,2014,2015,2016,2017,2018,2019,2020]
[252321,null,"White Portland cement "]
[252329,null," Portland cement excl. white"]
[252330,null,"Aluminous cement "]
[252390,null,"Cement weather or not coloured excl. Aluminous and Portland cement "]
[null,null,"Total cement imports",{"$f":"SUM(D48:D51)","v":0},0,0,0,0,0,0,{"$f":"SUM(K48:K51)","v":0},{"$f":"SUM(L48:L51)","v":0},{"$f":"SUM(M48:M51)","v":0},{"$f":"SUM(N48:N51)","v":0},{"$f":"SUM(O48:O51)","v":0},0,0,0,0,0,0,0,{"$f":"SUM(W48:W51)","v":0},0,0,0,0,0,0,{"$f":"SUM(AD48:AD51)","v":0},0,{"$f":"SUM(AF48:AF51)","v":0},0,{"$f":"SUM(AH48:AH51)","v":0}]
[]
[]
["CEMENT EXPORTS (in tonnes)"]
["HS  CODE ",null,null,1990,1991,1992,1993,1994,1995,1996,1997,1998,1999,2000,2001,2002,2003,2004,2005,2006,2007,2008,2009,2010,2011,2012,2013,2014,2015,2016,2017,2018,2019,2020]
[252321,null,"White Portland cement "]
[252329,null," Portland cement excl. white"]
[252330,null,"Aluminous cement "]
[252390,null,"Cement weather or not coloured excl. Aluminous and Portland cement "]
[null,null,"Total cement exports",{"$f":"SUM(D57:D60)","v":0},0,0,0,0,0,0,{"$f":"SUM(K57:K60)","v":0},{"$f":"SUM(L57:L60)","v":0},{"$f":"SUM(M57:M60)","v":0},{"$f":"SUM(N57:N60)","v":0},{"$f":"SUM(O57:O60)","v":0},0,0,0,0,0,0,0,{"$f":"SUM(W57:W60)","v":0},0,0,0,0,0,0,{"$f":"SUM(AD57:AD60)","v":0},0,{"$f":"SUM(AF57:AF60)","v":0},0,{"$f":"SUM(AH57:AH60)","v":0}]
[]
[null,null,null,1990,1991,1992,1993,1994,1995,1996,1997,1998,1999,2000,2001,2002,2003,2004,2005,2006,2007,2008,2009,2010,2011,2012,2013,2014,2015,2016,2017,2018,2019,2020]
["Estimation of sand and gravel based on the consumption of cement ",null,null,{"$f":"(D43+D52-D61)*6.09","v":0},0,0,0,0,0,0,{"$f":"(K43+K52-K61)*6.09","v":0},{"$f":"(L43+L52-L61)*6.09","v":0},{"$f":"(M43+M52-M61)*6.09","v":0},{"$f":"(N43+N52-N61)*6.09","v":0},{"$f":"(O43+O52-O61)*6.09","v":0},0,0,0,0,0,0,0,{"$f":"(W43+W52-W61)*6.09","v":0},0,0,0,0,0,0,{"$f":"(AD43+AD52-AD61)*6.09","v":0},0,{"$f":"(AF43+AF52-AF61)*6.09","v":0},0,{"$f":"(AH43+AH52-AH61)*6.09","v":0}]
[]
[]
["Step 2 "]
["Use of sand and gravel for road construction and for annual maintenance"]
[]
[]
[null,null,"tonnes sand and gravel per km "]
[null,null,"for construction ","for annual maintenance"]
[null,null,"Germany","Germany"]
["Highways",null,28383,518]
["National roads",null,9692,151]
["Federal state roads",null,8719,76]
["District roads",null,6777,65]
["Local roads",null,5729,67]
["All roads",null,6886,81]
[]
[]
[]
[]
[null,null,null,"Length of newly built roads\n [km]"]
[null,null,null,1990,1991,1992,1993,1994,1995,1996,1997,1998,1999,2000,2001,2002,2003,2004,2005,2006,2007,2008,2009,2010,2011,2012,2013,2014,2015,2016,2017,2018,2019,2020]
["Highways"]
["National roads"]
["Federal state roads"]
["District roads"]
["Local roads"]
["All roads"]
[]
[]
[null,null,null,"Length of roads receiving annual  maintenance\n [km]"]
[null,null,null,1990,1991,1992,1993,1994,1995,1996,1997,1998,1999,2000,2001,2002,2003,2004,2005,2006,2007,2008,2009,2010,2011,2012,2013,2014,2015,2016,2017,2018,2019,2020]
["Highways"]
["National roads"]
["Federal state roads"]
["District roads"]
["Local roads"]
["All roads"]
[]
[]
[null,null,null,"Estimation of sand and gravel for road construction and maintenance"]
[]
[null,null,null,1990,1991,1992,1993,1994,1995,1996,1997,1998,1999,2000,2001,2002,2003,2004,2005,2006,2007,2008,2009,2010,2011,2012,2013,2014,2015,2016,2017,2018,2019,2020]
["Highways",null,null,{"$f":"D86*$C74+D96*$D74","v":0},0,0,0,0,0,0,{"$f":"K86*$C74+K96*$D74","v":0},0,0,0,0,0,0,0,0,0,0,{"$f":"V86*$C74+V96*$D74","v":0},0,0,0,0,0,{"$f":"AB86*$C74+AB96*$D74","v":0},0,{"$f":"AD86*$C74+AD96*$D74","v":0},0,{"$f":"AF86*$C74+AF96*$D74","v":0},0,{"$f":"AH86*$C74+AH96*$D74","v":0}]
["National roads",null,null,{"$f":"D87*$C75+D97*$D75","v":0},0,0,0,0,0,0,0,0,0,0,0,0,0,0,0,0,0,0,0,0,0,{"$f":"Z87*$C75+Z97*$D75","v":0},0,0,0,{"$f":"AD87*$C75+AD97*$D75","v":0},0,{"$f":"AF87*$C75+AF97*$D75","v":0},0,{"$f":"AH87*$C75+AH97*$D75","v":0}]
["Federal state roads",null,null,{"$f":"D88*$C76+D98*$D76","v":0},0,0,0,0,0,0,0,0,0,0,0,0,0,0,0,0,0,0,0,0,0,0,0,0,0,{"$f":"AD88*$C76+AD98*$D76","v":0},0,{"$f":"AF88*$C76+AF98*$D76","v":0},0,{"$f":"AH88*$C76+AH98*$D76","v":0}]
["District roads",null,null,{"$f":"D89*$C77+D99*$D77","v":0},0,0,0,0,0,0,0,0,0,0,0,0,0,0,0,0,0,0,0,0,0,0,0,0,0,{"$f":"AD89*$C77+AD99*$D77","v":0},0,{"$f":"AF89*$C77+AF99*$D77","v":0},0,{"$f":"AH89*$C77+AH99*$D77","v":0}]
["Local roads",null,null,{"$f":"D90*$C78+D100*$D78","v":0},0,0,0,0,0,0,0,0,0,0,0,0,0,0,0,0,0,0,0,0,0,0,0,0,0,{"$f":"AD90*$C78+AD100*$D78","v":0},0,{"$f":"AF90*$C78+AF100*$D78","v":0},0,{"$f":"AH90*$C78+AH100*$D78","v":0}]
["All roads",null,null,{"$f":"D91*$C79+D101*$D79","v":0},0,0,0,0,0,0,0,0,0,0,0,0,0,0,0,0,0,0,0,0,0,0,0,0,0,{"$f":"AD91*$C79+AD101*$D79","v":0},0,{"$f":"AF91*$C79+AF101*$D79","v":0},0,{"$f":"AH91*$C79+AH101*$D79","v":0}]
["Total",null,null,{"$f":"SUM(D107:D112)","v":0},0,0,0,0,0,0,{"$f":"SUM(K107:K112)","v":0},{"$f":"SUM(L107:L112)","v":0},{"$f":"SUM(M107:M112)","v":0},{"$f":"SUM(N107:N112)","v":0},{"$f":"SUM(O107:O112)","v":0},0,0,0,0,0,0,0,{"$f":"SUM(W107:W112)","v":0},0,0,0,0,0,0,{"$f":"SUM(AD107:AD112)","v":0},0,{"$f":"SUM(AF107:AF112)","v":0},0,{"$f":"SUM(AH107:AH112)","v":0}]
[]
[]
["Step 3"]
[]
[null,null,null,1990,1991,1992,1993,1994,1995,1996,1997,1998,1999,2000,2001,2002,2003,2004,2005,2006,2007,2008,2009,2010,2011,2012,2013,2014,2015,2016,2017,2018,2019,2020]
["Total estimated",null,null,{"$f":"D27+D64+D113","v":0},{"$f":"E27+E64+E113","v":0},0,0,0,0,0,{"$f":"K27+K64+K113","v":0},{"$f":"L27+L64+L113","v":0},{"$f":"M27+M64+M113","v":0},{"$f":"N27+N64+N113","v":0},{"$f":"O27+O64+O113","v":0},0,0,0,0,0,0,0,0,0,0,0,0,{"$f":"AB27+AB64+AB113","v":0},{"$f":"AC27+AC64+AC113","v":0},{"$f":"AD27+AD64+AD113","v":0},0,{"$f":"AF27+AF64+AF113","v":0},0,{"$f":"AH27+AH64+AH113","v":0}]
["Sand and gravel reported in statistics  or Geological Survey"]
["Domestic extraction of sand and gravel",null,null,{"$f":"IF(D119>D120,\"USE ESTIMATED DATA\",\"USE  DATA REPORTED IN STATISTICS\")","v":"USE  DATA REPORTED IN STATISTICS"},"USE  DATA REPORTED IN STATISTICS","USE  DATA REPORTED IN STATISTICS","USE  DATA REPORTED IN STATISTICS","USE  DATA REPORTED IN STATISTICS","USE  DATA REPORTED IN STATISTICS","USE  DATA REPORTED IN STATISTICS",{"$f":"IF(K119>K120,\"USE ESTIMATED DATA\",\"USE  DATA REPORTED IN STATISTICS\")","v":"USE  DATA REPORTED IN STATISTICS"},{"$f":"IF(L119>L120,\"USE ESTIMATED DATA\",\"USE  DATA REPORTED IN STATISTICS\")","v":"USE  DATA REPORTED IN STATISTICS"},{"$f":"IF(M119>M120,\"USE ESTIMATED DATA\",\"USE  DATA REPORTED IN STATISTICS\")","v":"USE  DATA REPORTED IN STATISTICS"},{"$f":"IF(N119>N120,\"USE ESTIMATED DATA\",\"USE  DATA REPORTED IN STATISTICS\")","v":"USE  DATA REPORTED IN STATISTICS"},{"$f":"IF(O119>O120,\"USE ESTIMATED DATA\",\"USE  DATA REPORTED IN STATISTICS\")","v":"USE  DATA REPORTED IN STATISTICS"},"USE  DATA REPORTED IN STATISTICS","USE  DATA REPORTED IN STATISTICS","USE  DATA REPORTED IN STATISTICS","USE  DATA REPORTED IN STATISTICS","USE  DATA REPORTED IN STATISTICS","USE  DATA REPORTED IN STATISTICS","USE  DATA REPORTED IN STATISTICS",{"$f":"IF(W119>W120,\"USE ESTIMATED DATA\",\"USE  DATA REPORTED IN STATISTICS\")","v":"USE  DATA REPORTED IN STATISTICS"},"USE  DATA REPORTED IN STATISTICS","USE  DATA REPORTED IN STATISTICS","USE  DATA REPORTED IN STATISTICS","USE  DATA REPORTED IN STATISTICS","USE  DATA REPORTED IN STATISTICS","USE  DATA REPORTED IN STATISTICS",{"$f":"IF(AD119>AD120,\"USE ESTIMATED DATA\",\"USE  DATA REPORTED IN STATISTICS\")","v":"USE  DATA REPORTED IN STATISTICS"},"USE  DATA REPORTED IN STATISTICS",{"$f":"IF(AF119>AF120,\"USE ESTIMATED DATA\",\"USE  DATA REPORTED IN STATISTICS\")","v":"USE  DATA REPORTED IN STATISTICS"},"USE  DATA REPORTED IN STATISTICS",{"$f":"IF(AH119>AH120,\"USE ESTIMATED DATA\",\"USE  DATA REPORTED IN STATISTICS\")","v":"USE  DATA REPORTED IN STATISTICS"}]
[]
[]
["If the message displayed on the red row is \"use data reported in statistics\" then report the data in row 119 of this calculation tool to fill in Table A row \"MF.3.8   Sand and gravel\". NOTE: make sure that the figures in row 119 include both  gravel and sand."]
[]
["If the message displayed on the red row is \"use estimated data \" then report the data in row 118 of this calculation tool to fill in Table A row \"MF.3.8   Sand and gravel\""]

{"sheet":"Clay v1","index":21,"n_rows":46,"n_cols":34,"rows_kept":46,"cut":false,"hidden":false,"merged":[[1,0,2,21],[10,0,10,2],[24,0,24,2],[5,0,6,23],[19,0,20,23],[10,3,10,24],[24,3,24,24],[29,3,29,24],[43,0,44,21],[38,0,38,2],[39,0,39,2],[37,0,37,2],[36,0,36,2]]}
["Compilation tool for \"clay\""]
["Please fill only in the yellow cells and if you have other national factors change in the blue cells and don't touch the green cells!!!"]
[]
[]
["Step1 "]
["For the production of bricks: 0.998 tonnes crude clay are required to produce 1 m3 of bricks"]
[]
[0.998,null,"tonnes crude clay "]
[]
[]
[null,null,null,"Production of bricks \n[m3]"]
["PRODCOM 2004 CODE","PRODCOM 2017 - 2018 CODE","Name of the code",1990,1991,1992,1993,1994,1995,1996,1997,1998,1999,2000,2001,2002,2003,2004,2005,2006,2007,2008,2009,2010,2011,2012,2013,2014,2015,2016,2017,2018,2019,2020]
[26401110,23321110,"Non-refractory clay building bricks "]
["26401113*",null,"Ceramic bricks and blocks for common masonry: formed units, with or without perforation, for walls with rendering or cladding"]
["26401115*",null,"Ceramic facing bricks: formed units, with or without performation, for use without rendering"]
["26401117*",null,"Ceramic paving bricks: formed units for floor and road surfacing"]
[null,null,"Estimated production of crude clay for bricks [t]",{"$f":"(D13+D14+D15+D16)*$A8","v":0},{"$f":"(E13+E14+E15+E16)*$A8","v":0},0,0,0,0,0,{"$f":"(K13+K14+K15+K16)*$A8","v":0},{"$f":"(L13+L14+L15+L16)*$A8","v":0},{"$f":"(M13+M14+M15+M16)*$A8","v":0},{"$f":"(N13+N14+N15+N16)*$A8","v":0},{"$f":"(O13+O14+O15+O16)*$A8","v":0},0,0,0,0,0,0,0,{"$f":"(W13+W14+W15+W16)*$A8","v":0},0,0,0,0,0,0,{"$f":"(AD13+AD14+AD15+AD16)*$A8","v":0},0,{"$f":"(AF13+AF14+AF15+AF16)*$A8","v":0},0,{"$f":"(AH13+AH14+AH15+AH16)*$A8","v":0}]
["* these codes are valid only for the period 1995 - 2004 "]
["Step 2 "]
["For the production of roof bricks: 1349 kg crude clay are required to produce 1t of bricks, and 2.37 kg crude clay are required to produce one single roof brick respectively"]
[]
[1.349,null,"kg crude clay per kg clay product"]
[2.37,null,"kg crude clay nper piece roof tile"]
[]
[null,null,null,"Production of roof bricks\n [kg]"]
["PRODCOM 2003 CODE","PRODCOM 2017 - 2018 CODE","Name of the code",1990,1991,1992,1993,1994,1995,1996,1997,1998,1999,2000,2001,2002,2003,2004,2005,2006,2007,2008,2009,2010,2011,2012,2013,2014,2015,2016,2017,2018,2019,2020]
[26401130,23321130,"Non-refractory clay flooring blocks"]
[26401270,23321270,"Non-refractory clay constructional products "]
[26401300,23321300,"Ceramic pipes, conduits, guttering and pipe fittings: drain pipes and guttering with fittings   "]
[null,null,null,"Production of roof bricks\n [pieces]"]
[26401250,23321250,"Non-refractory clay roofing tiles   "]
[null,null,"Estimated production of crude clay for bricks [t]",{"$f":"((D27+D28+D29)*$A22)/1000+D31*$A23/1000","v":0},{"$f":"((E27+E28+E29)*$A22)/1000+E31*$A23/1000","v":0},0,0,0,0,0,0,0,0,0,0,0,0,0,0,0,0,0,0,0,0,0,{"$f":"((AA27+AA28+AA29)*$A22)/1000+AA31*$A23/1000","v":0},0,0,0,0,0,{"$f":"((AG27+AG28+AG29)*$A22)/1000+AG31*$A23/1000","v":0},{"$f":"((AH27+AH28+AH29)*$A22)/1000+AH31*$A23/1000","v":0}]
[]
[]
[]
[]
[null,null,null,1990,1991,1992,1993,1994,1995,1996,1997,1998,1999,2000,2001,2002,2003,2004,2005,2006,2007,2008,2009,2010,2011,2012,2013,2014,2015,2016,2017,2018,2019,2020]
["Total estimated production of crude clay [t]",null,null,{"$f":"D17+D32","v":0},{"$f":"E17+E32","v":0},0,0,0,0,0,{"$f":"K17+K32","v":0},{"$f":"L17+L32","v":0},{"$f":"M17+M32","v":0},{"$f":"N17+N32","v":0},{"$f":"O17+O32","v":0},0,0,0,0,0,0,0,0,0,0,0,{"$f":"AA17+AA32","v":0},0,0,0,0,0,{"$f":"AG17+AG32","v":0},{"$f":"AH17+AH32","v":0}]
["Figure for common clays extraction reported in statistics or Geological Survey"]
[null,null,null,{"$f":"IF(D38>D39, \"USE ESTIMATED DATA\",\"USE DATA REPORTED IN STATISTICS\")","v":"USE DATA REPORTED IN STATISTICS"},"USE DATA REPORTED IN STATISTICS","USE DATA REPORTED IN STATISTICS","USE DATA REPORTED IN STATISTICS","USE DATA REPORTED IN STATISTICS","USE DATA REPORTED IN STATISTICS","USE DATA REPORTED IN STATISTICS",{"$f":"IF(K38>K39, \"USE ESTIMATED DATA\",\"USE DATA REPORTED IN STATISTICS\")","v":"USE DATA REPORTED IN STATISTICS"},{"$f":"IF(L38>L39, \"USE ESTIMATED DATA\",\"USE DATA REPORTED IN STATISTICS\")","v":"USE DATA REPORTED IN STATISTICS"},{"$f":"IF(M38>M39, \"USE ESTIMATED DATA\",\"USE DATA REPORTED IN STATISTICS\")","v":"USE DATA REPORTED IN STATISTICS"},{"$f":"IF(N38>N39, \"USE ESTIMATED DATA\",\"USE DATA REPORTED IN STATISTICS\")","v":"USE DATA REPORTED IN STATISTICS"},{"$f":"IF(O38>O39, \"USE ESTIMATED DATA\",\"USE DATA REPORTED IN STATISTICS\")","v":"USE DATA REPORTED IN STATISTICS"},"USE DATA REPORTED IN STATISTICS","USE DATA REPORTED IN STATISTICS","USE DATA REPORTED IN STATISTICS","USE DATA REPORTED IN STATISTICS","USE DATA REPORTED IN STATISTICS","USE DATA REPORTED IN STATISTICS","USE DATA REPORTED IN STATISTICS",{"$f":"IF(W38>W39, \"USE ESTIMATED DATA\",\"USE DATA REPORTED IN STATISTICS\")","v":"USE DATA REPORTED IN STATISTICS"},"USE DATA REPORTED IN STATISTICS","USE DATA REPORTED IN STATISTICS","USE DATA REPORTED IN STATISTICS","USE DATA REPORTED IN STATISTICS","USE DATA REPORTED IN STATISTICS","USE DATA REPORTED IN STATISTICS",{"$f":"IF(AD38>AD39, \"USE ESTIMATED DATA\",\"USE DATA REPORTED IN STATISTICS\")","v":"USE DATA REPORTED IN STATISTICS"},"USE DATA REPORTED IN STATISTICS",{"$f":"IF(AF38>AF39, \"USE ESTIMATED DATA\",\"USE DATA REPORTED IN STATISTICS\")","v":"USE DATA REPORTED IN STATISTICS"},"USE DATA REPORTED IN STATISTICS",{"$f":"IF(AH38>AH39, \"USE ESTIMATED DATA\",\"USE DATA REPORTED IN STATISTICS\")","v":"USE DATA REPORTED IN STATISTICS"}]
[]
[]
[]
["If the message displayed on the red row is \"use data reported in statistics\" then report the data in row 38 of this calculation tool to fill in Table A row \"MF.3.7   Clays and kaolin\". NOTE: make sure that the figures in row 38 are in tonnes and include both clay and kaolin."]
[]
["If the message displayed on the red row is \"use estimated data \" then report the data in row 37 of this calculation tool to fill in Table A row \"MF.3.7   Clays and kaolin\""]

{"sheet":"Limestone v1","index":22,"n_rows":26,"n_cols":34,"rows_kept":26,"cut":false,"hidden":false,"merged":[[23,0,24,21],[17,0,17,2],[9,22,10,22],[11,22,12,22],[9,1,10,1],[11,1,12,1],[9,21,10,21],[11,21,12,21],[9,23,10,23],[11,23,12,23],[1,0,2,21],[18,0,18,2],[19,0,19,2],[7,0,7,21],[16,0,16,2],[3,0,4,23],[9,24,10,24],[11,24,12,24],[9,31,10,31],[11,31,12,31],[9,27,10,27],[9,28,10,28],[11,27,12,27],[11,28,12,28],[9,30,10,30],[11,30,12,30],[9,29,10,29],[11,29,12,29],[9,33,10,33],[11,33,12,33],[9,32,10,32],[11,32,12,32],[9,26,10,26],[11,26,12,26]]}
["Compilation tool for \"limestone\" "]
["Please fill only in the yellow cells and if you have other national factors change in the blue cells and don't touch the green and red cells!!!"]
[]
["Limestone for cement production [t] = cement production [t] *1.19"]
[]
[1.19,null,"tonnes limestone for the production of 1 tonne of cement "]
[]
["CEMENT PRODUCTION (tonnes)"]
["PRODCOM 2003 CODE","PRODCOM 2017 - 2018 CODE",null,1990,1991,1992,1993,1994,1995,1996,1997,1998,1999,2000,2001,2002,2003,2004,2005,2006,2007,2008,2009,2010,2011,2012,2013,2014,2015,2016,2017,2018,2019,2020]
[26511210,23511210,"White Portland cement "]
[26511230,null,"Grey Portland cement including blended cement "]
[26511250,23511290,"Alumina cement "]
[26511290,null,"Other hydraulic cement "]
[null,null,"Total cement production ",{"$f":"SUM(D10:D13)","v":0},0,0,0,0,0,{"$f":"SUM(J10:J13)","v":0},{"$f":"SUM(K10:K13)","v":0},{"$f":"SUM(L10:L13)","v":0},{"$f":"SUM(M10:M13)","v":0},{"$f":"SUM(N10:N13)","v":0},0,0,0,0,0,0,0,0,{"$f":"SUM(W10:W13)","v":0},0,0,0,0,0,0,{"$f":"SUM(AD10:AD13)","v":0},0,{"$f":"SUM(AF10:AF13)","v":0},0,{"$f":"SUM(AH10:AH13)","v":0}]
[]
[]
[null,null,null,1990,1991,1992,1993,1994,1995,1996,1997,1998,1999,2000,2001,2002,2003,2004,2005,2006,2007,2008,2009,2010,2011,2012,2013,2014,2015,2016,2017,2018,2019,2020]
["Estimation of limestone based on the production of cement ",null,null,{"$f":"D14*$A6","v":0},{"$f":"E14*$A6","v":0},0,0,0,0,{"$f":"J14*$A6","v":0},{"$f":"K14*$A6","v":0},{"$f":"L14*$A6","v":0},{"$f":"M14*$A6","v":0},{"$f":"N14*$A6","v":0},0,0,0,0,0,0,0,{"$f":"V14*$A6","v":0},0,0,0,0,0,{"$f":"AB14*$A6","v":0},0,0,0,0,0,{"$f":"AH14*$A6","v":0}]
["Limestone reported in statistics or Geological Survey"]
["Domestic extraction of limestone",null,null,{"$f":"IF(D18>D19,\"USE ESTIMATED DATA\",\"USE  DATA REPORTED IN STATISTICS\")","v":"USE  DATA REPORTED IN STATISTICS"},"USE  DATA REPORTED IN STATISTICS","USE  DATA REPORTED IN STATISTICS","USE  DATA REPORTED IN STATISTICS","USE  DATA REPORTED IN STATISTICS","USE  DATA REPORTED IN STATISTICS",{"$f":"IF(J18>J19,\"USE ESTIMATED DATA\",\"USE  DATA REPORTED IN STATISTICS\")","v":"USE  DATA REPORTED IN STATISTICS"},{"$f":"IF(K18>K19,\"USE ESTIMATED DATA\",\"USE  DATA REPORTED IN STATISTICS\")","v":"USE  DATA REPORTED IN STATISTICS"},{"$f":"IF(L18>L19,\"USE ESTIMATED DATA\",\"USE  DATA REPORTED IN STATISTICS\")","v":"USE  DATA REPORTED IN STATISTICS"},{"$f":"IF(M18>M19,\"USE ESTIMATED DATA\",\"USE  DATA REPORTED IN STATISTICS\")","v":"USE  DATA REPORTED IN STATISTICS"},{"$f":"IF(N18>N19,\"USE ESTIMATED DATA\",\"USE  DATA REPORTED IN STATISTICS\")","v":"USE  DATA REPORTED IN STATISTICS"},"USE  DATA REPORTED IN STATISTICS","USE  DATA REPORTED IN STATISTICS","USE  DATA REPORTED IN STATISTICS","USE  DATA REPORTED IN STATISTICS","USE  DATA REPORTED IN STATISTICS","USE  DATA REPORTED IN STATISTICS","USE  DATA REPORTED IN STATISTICS","USE  DATA REPORTED IN STATISTICS",{"$f":"IF(W18>W19,\"USE ESTIMATED DATA\",\"USE  DATA REPORTED IN STATISTICS\")","v":"USE  DATA REPORTED IN STATISTICS"},"USE  DATA REPORTED IN STATISTICS","USE  DATA REPORTED IN STATISTICS","USE  DATA REPORTED IN STATISTICS","USE  DATA REPORTED IN STATISTICS","USE  DATA REPORTED IN STATISTICS","USE  DATA REPORTED IN STATISTICS",{"$f":"IF(AD18>AD19,\"USE ESTIMATED DATA\",\"USE  DATA REPORTED IN STATISTICS\")","v":"USE  DATA REPORTED IN STATISTICS"},"USE  DATA REPORTED IN STATISTICS",{"$f":"IF(AF18>AF19,\"USE ESTIMATED DATA\",\"USE  DATA REPORTED IN STATISTICS\")","v":"USE  DATA REPORTED IN STATISTICS"},"USE  DATA REPORTED IN STATISTICS",{"$f":"IF(AH18>AH19,\"USE ESTIMATED DATA\",\"USE  DATA REPORTED IN STATISTICS\")","v":"USE  DATA REPORTED IN STATISTICS"}]
[]
[]
[]
["If the message displayed on the red row is \"use data reported in statistics\" then report the data in row 18 of this calculation tool to fill in Table A row \"MF.3.6   Limestone and gypsum\". NOTE: make sure that the figures in row 18 include both limestone and gypsum."]
[]
["If the message displayed on the red row is \"use estimated data \" then report the data in row 17 of this calculation tool to fill in Table A row \"MF.3.6   Limestone and gypsum\""]

{"sheet":"Table G Estimation tool","index":23,"n_rows":121,"n_cols":30,"rows_kept":121,"cut":false,"hidden":false,"merged":[[110,0,110,2],[113,0,113,2],[117,0,117,2],[1,0,2,14],[24,0,24,1],[4,0,5,21],[14,0,14,14],[108,0,108,2]]}
["Estimation tool - Balancing items"]
["Balancing items are an integral part of the EW-MFA, yet their calculation is quite work-intensive challenging their regular reporting. The premise of this tool is therefore to offer a calculation procedure for the balancing items which generates reasonably accurate estimates based on data which are either collected and reported - either in EW-MFA or in other environmental accounts - anyways or which are provided within the tool. The latter group of data can, of course, not reflect specific national consumption patterns and NSIs are encouraged to replace these estimates with more accurate national data wherever such data are available."]
[]
[]
["Please fill only in the yellow cells. If national factors are available, please change the existing factors in the blue cells. Do not modify the green and red cells!!!"]
[]
[null,null,null,null,null,null,null,null,null,2000,2001,2002,2003,2004,2005,2006,2007,2008,2009,2010,2011,2012,2013,2014,2015,2016,2017,2018,2019,2020]
["Emissions to air [1000 t], from Table F",null,"oxygen [%]",null,"from fuel combustion [%]"]
["MF.7.1.1","Carbon dioxide (CO2)",0.72710747557373323,null,1,null,null,null,null,{"$f":"IFERROR(Table_F!Z5*$E9,\":\")","v":0},{"$f":"IFERROR(Table_F!AB5*$E9,\":\")","v":0},{"$f":"IFERROR(Table_F!AD5*$E9,\":\")","v":0},{"$f":"IFERROR(Table_F!AF5*$E9,\":\")","v":0},{"$f":"IFERROR(Table_F!AH5*$E9,\":\")","v":0},{"$f":"IFERROR(Table_F!AJ5*$E9,\":\")","v":0},{"$f":"IFERROR(Table_F!AL5*$E9,\":\")","v":0},{"$f":"IFERROR(Table_F!AN5*$E9,\":\")","v":0},{"$f":"IFERROR(Table_F!AP5*$E9,\":\")","v":0},{"$f":"IFERROR(Table_F!AR5*$E9,\":\")","v":0},{"$f":"IFERROR(Table_F!AT5*$E9,\":\")","v":0},{"$f":"IFERROR(Table_F!AV5*$E9,\":\")","v":0},{"$f":"IFERROR(Table_F!AX5*$E9,\":\")","v":0},{"$f":"IFERROR(Table_F!AZ5*$E9,\":\")","v":0},{"$f":"IFERROR(Table_F!BB5*$E9,\":\")","v":0},{"$f":"IFERROR(Table_F!BD5*$E9,\":\")","v":0},{"$f":"IFERROR(Table_F!BF5*$E9,\":\")","v":0},{"$f":"IFERROR(Table_F!BH5*$E9,\":\")","v":0},{"$f":"IFERROR(Table_F!BJ5*$E9,\":\")","v":0},{"$f":"IFERROR(Table_F!BL5*$E9,\":\")","v":0},{"$f":"IFERROR(Table_F!BN5*$E9,\":\")","v":0}]
["MF.7.1.3","Dinitrogen oxide (N2O)",0.36347114947751025,null,null,null,null,null,null,{"$f":"Table_F!Z9","v":0},{"$f":"Table_F!AB9","v":0},{"$f":"Table_F!AD9","v":0},{"$f":"Table_F!AF9","v":0},{"$f":"Table_F!AH9","v":0},{"$f":"Table_F!AJ9","v":0},{"$f":"Table_F!AL9","v":0},{"$f":"Table_F!AN9","v":0},{"$f":"Table_F!AP9","v":0},{"$f":"Table_F!AR9","v":0},{"$f":"Table_F!AT9","v":0},{"$f":"Table_F!AV9","v":0},{"$f":"Table_F!AX9","v":0},{"$f":"Table_F!AZ9","v":0},{"$f":"Table_F!BB9","v":0},{"$f":"Table_F!BD9","v":0},{"$f":"Table_F!BF9","v":0},{"$f":"Table_F!BH9","v":0},{"$f":"Table_F!BJ9","v":0},{"$f":"Table_F!BL9","v":0},{"$f":"Table_F!BN9","v":0}]
["MF.7.1.4","Nitrous oxides (NOx)",0.6955009780482504,null,null,null,null,null,null,{"$f":"Table_F!Z10","v":0},{"$f":"Table_F!AB10","v":0},{"$f":"Table_F!AD10","v":0},{"$f":"Table_F!AF10","v":0},{"$f":"Table_F!AH10","v":0},{"$f":"Table_F!AJ10","v":0},{"$f":"Table_F!AL10","v":0},{"$f":"Table_F!AN10","v":0},{"$f":"Table_F!AP10","v":0},{"$f":"Table_F!AR10","v":0},{"$f":"Table_F!AT10","v":0},{"$f":"Table_F!AV10","v":0},{"$f":"Table_F!AX10","v":0},{"$f":"Table_F!AZ10","v":0},{"$f":"Table_F!BB10","v":0},{"$f":"Table_F!BD10","v":0},{"$f":"Table_F!BF10","v":0},{"$f":"Table_F!BH10","v":0},{"$f":"Table_F!BJ10","v":0},{"$f":"Table_F!BL10","v":0},{"$f":"Table_F!BN10","v":0}]
["MF.7.1.8","Carbon monoxide (CO)",0.57122456265619426,null,null,null,null,null,null,{"$f":"Table_F!Z14","v":0},{"$f":"Table_F!AB14","v":0},{"$f":"Table_F!AD14","v":0},{"$f":"Table_F!AF14","v":0},{"$f":"Table_F!AH14","v":0},{"$f":"Table_F!AJ14","v":0},{"$f":"Table_F!AL14","v":0},{"$f":"Table_F!AN14","v":0},{"$f":"Table_F!AP14","v":0},{"$f":"Table_F!AR14","v":0},{"$f":"Table_F!AT14","v":0},{"$f":"Table_F!AV14","v":0},{"$f":"Table_F!AX14","v":0},{"$f":"Table_F!AZ14","v":0},{"$f":"Table_F!BB14","v":0},{"$f":"Table_F!BD14","v":0},{"$f":"Table_F!BF14","v":0},{"$f":"Table_F!BH14","v":0},{"$f":"Table_F!BJ14","v":0},{"$f":"Table_F!BL14","v":0},{"$f":"Table_F!BN14","v":0}]
["MF.7.1.A","Sulfur dioxide (SO2)",0.49945372249102549,null,null,null,null,null,null,{"$f":"Table_F!Z16","v":0},{"$f":"Table_F!AB16","v":0},{"$f":"Table_F!AD16","v":0},{"$f":"Table_F!AF16","v":0},{"$f":"Table_F!AH16","v":0},{"$f":"Table_F!AJ16","v":0},{"$f":"Table_F!AL16","v":0},{"$f":"Table_F!AN16","v":0},{"$f":"Table_F!AP16","v":0},{"$f":"Table_F!AR16","v":0},{"$f":"Table_F!AT16","v":0},{"$f":"Table_F!AV16","v":0},{"$f":"Table_F!AX16","v":0},{"$f":"Table_F!AZ16","v":0},{"$f":"Table_F!BB16","v":0},{"$f":"Table_F!BD16","v":0},{"$f":"Table_F!BF16","v":0},{"$f":"Table_F!BH16","v":0},{"$f":"Table_F!BJ16","v":0},{"$f":"Table_F!BL16","v":0},{"$f":"Table_F!BN16","v":0}]
[]
["The estimation of Table G items based on energy carrier from DMC provides only a very rough approximation. Where possible, please perform the calculation based on the PEFA energy use data which may be entered below (J26:Y44) and DMC data are automatically replaced in the 'red' area.\nPlease note that the coefficients highlighted in pink were revised for 2019 data collection."]
["DMC of energy carriers [1000 t], from Tables A, B, and D",null,"oxygen content [%]","hydrogen content [%]","moisture content [%]","other content (C, N, S, ash, etc.)"]
["MF.1.3.2","Wood fuel and other extraction",0.35,0.05,0.15,{"$f":"1-C17-D17-E17","v":0.44999999999999996},null,null,null,{"$f":"Table_A!Z25+Table_B!Z24-Table_D!Z24","v":0},{"$f":"Table_A!AB25+Table_B!AB24-Table_D!AB24","v":0},{"$f":"Table_A!AD25+Table_B!AD24-Table_D!AD24","v":0},{"$f":"Table_A!AF25+Table_B!AF24-Table_D!AF24","v":0},{"$f":"Table_A!AH25+Table_B!AH24-Table_D!AH24","v":0},{"$f":"Table_A!AJ25+Table_B!AJ24-Table_D!AJ24","v":0},{"$f":"Table_A!AL25+Table_B!AL24-Table_D!AL24","v":0},{"$f":"Table_A!AN25+Table_B!AN24-Table_D!AN24","v":0},{"$f":"Table_A!AP25+Table_B!AP24-Table_D!AP24","v":0},{"$f":"Table_A!AR25+Table_B!AR24-Table_D!AR24","v":0},{"$f":"Table_A!AT25+Table_B!AT24-Table_D!AT24","v":0},{"$f":"Table_A!AV25+Table_B!AV24-Table_D!AV24","v":0},{"$f":"Table_A!AX25+Table_B!AX24-Table_D!AX24","v":0},{"$f":"Table_A!AZ25+Table_B!AZ24-Table_D!AZ24","v":0},{"$f":"Table_A!BB25+Table_B!BB24-Table_D!BB24","v":0},{"$f":"IFERROR(Table_A!BD25+Table_B!BD24-Table_D!BD24,\":\")","v":0},{"$f":"IFERROR(Table_A!BF25+Table_B!BF24-Table_D!BF24,\":\")","v":0},{"$f":"IFERROR(Table_A!BH25+Table_B!BH24-Table_D!BH24,\":\")","v":0},{"$f":"IFERROR(Table_A!BJ25+Table_B!BJ24-Table_D!BJ24,\":\")","v":0},{"$f":"IFERROR(Table_A!BL25+Table_B!BL24-Table_D!BL24,\":\")","v":0},{"$f":"IFERROR(Table_A!BN25+Table_B!BN24-Table_D!BN24,\":\")","v":0}]
["MF.4.1.1","Lignite (brown coal)",0.1,0.03,0.5,{"$f":"1-C18-D18-E18","v":0.37},null,null,null,{"$f":"Table_A!Z61+Table_B!Z61-Table_D!Z61","v":0},{"$f":"Table_A!AB61+Table_B!AB61-Table_D!AB61","v":0},{"$f":"Table_A!AD61+Table_B!AD61-Table_D!AD61","v":0},{"$f":"Table_A!AF61+Table_B!AF61-Table_D!AF61","v":0},{"$f":"Table_A!AH61+Table_B!AH61-Table_D!AH61","v":0},{"$f":"Table_A!AJ61+Table_B!AJ61-Table_D!AJ61","v":0},{"$f":"Table_A!AL61+Table_B!AL61-Table_D!AL61","v":0},{"$f":"Table_A!AN61+Table_B!AN61-Table_D!AN61","v":0},{"$f":"Table_A!AP61+Table_B!AP61-Table_D!AP61","v":0},{"$f":"Table_A!AR61+Table_B!AR61-Table_D!AR61","v":0},{"$f":"Table_A!AT61+Table_B!AT61-Table_D!AT61","v":0},{"$f":"Table_A!AV61+Table_B!AV61-Table_D!AV61","v":0},{"$f":"Table_A!AX61+Table_B!AX61-Table_D!AX61","v":0},{"$f":"Table_A!AZ61+Table_B!AZ61-Table_D!AZ61","v":0},{"$f":"Table_A!BB61+Table_B!BB61-Table_D!BB61","v":0},{"$f":"IFERROR(Table_A!BD61+Table_B!BD61-Table_D!BD61,\":\")","v":0},{"$f":"IFERROR(Table_A!BF61+Table_B!BF61-Table_D!BF61,\":\")","v":0},{"$f":"IFERROR(Table_A!BH61+Table_B!BH61-Table_D!BH61,\":\")","v":0},{"$f":"IFERROR(Table_A!BJ61+Table_B!BJ61-Table_D!BJ61,\":\")","v":0},{"$f":"IFERROR(Table_A!BL61+Table_B!BL61-Table_D!BL61,\":\")","v":0},{"$f":"IFERROR(Table_A!BN61+Table_B!BN61-Table_D!BN61,\":\")","v":0}]
["MF.4.1.2","Hard coal",0.04,0.05,0.15,0.7599999999999999,null,null,null,{"$f":"Table_A!Z62+Table_B!Z62-Table_D!Z62","v":0},{"$f":"Table_A!AB62+Table_B!AB62-Table_D!AB62","v":0},{"$f":"Table_A!AD62+Table_B!AD62-Table_D!AD62","v":0},{"$f":"Table_A!AF62+Table_B!AF62-Table_D!AF62","v":0},{"$f":"Table_A!AH62+Table_B!AH62-Table_D!AH62","v":0},{"$f":"Table_A!AJ62+Table_B!AJ62-Table_D!AJ62","v":0},{"$f":"Table_A!AL62+Table_B!AL62-Table_D!AL62","v":0},{"$f":"Table_A!AN62+Table_B!AN62-Table_D!AN62","v":0},{"$f":"Table_A!AP62+Table_B!AP62-Table_D!AP62","v":0},{"$f":"Table_A!AR62+Table_B!AR62-Table_D!AR62","v":0},{"$f":"Table_A!AT62+Table_B!AT62-Table_D!AT62","v":0},{"$f":"Table_A!AV62+Table_B!AV62-Table_D!AV62","v":0},{"$f":"Table_A!AX62+Table_B!AX62-Table_D!AX62","v":0},{"$f":"Table_A!AZ62+Table_B!AZ62-Table_D!AZ62","v":0},{"$f":"Table_A!BB62+Table_B!BB62-Table_D!BB62","v":0},{"$f":"IFERROR(Table_A!BD62+Table_B!BD62-Table_D!BD62,\":\")","v":0},{"$f":"IFERROR(Table_A!BF62+Table_B!BF62-Table_D!BF62,\":\")","v":0},{"$f":"IFERROR(Table_A!BH62+Table_B!BH62-Table_D!BH62,\":\")","v":0},{"$f":"IFERROR(Table_A!BJ62+Table_B!BJ62-Table_D!BJ62,\":\")","v":0},{"$f":"IFERROR(Table_A!BL62+Table_B!BL62-Table_D!BL62,\":\")","v":0},{"$f":"IFERROR(Table_A!BN62+Table_B!BN62-Table_D!BN62,\":\")","v":0}]
["MF.4.1.3","Oil shale and tar sands",8.9999999999999998E-4,1.4999999999999999E-2,7.0000000000000007E-2,0.91409999999999991,null,null,null,{"$f":"Table_A!Z63+Table_B!Z63-Table_D!Z63","v":0},{"$f":"Table_A!AB63+Table_B!AB63-Table_D!AB63","v":0},{"$f":"Table_A!AD63+Table_B!AD63-Table_D!AD63","v":0},{"$f":"Table_A!AF63+Table_B!AF63-Table_D!AF63","v":0},{"$f":"Table_A!AH63+Table_B!AH63-Table_D!AH63","v":0},{"$f":"Table_A!AJ63+Table_B!AJ63-Table_D!AJ63","v":0},{"$f":"Table_A!AL63+Table_B!AL63-Table_D!AL63","v":0},{"$f":"Table_A!AN63+Table_B!AN63-Table_D!AN63","v":0},{"$f":"Table_A!AP63+Table_B!AP63-Table_D!AP63","v":0},{"$f":"Table_A!AR63+Table_B!AR63-Table_D!AR63","v":0},{"$f":"Table_A!AT63+Table_B!AT63-Table_D!AT63","v":0},{"$f":"Table_A!AV63+Table_B!AV63-Table_D!AV63","v":0},{"$f":"Table_A!AX63+Table_B!AX63-Table_D!AX63","v":0},{"$f":"Table_A!AZ63+Table_B!AZ63-Table_D!AZ63","v":0},{"$f":"Table_A!BB63+Table_B!BB63-Table_D!BB63","v":0},{"$f":"IFERROR(Table_A!BD63+Table_B!BD63-Table_D!BD63,\":\")","v":0},{"$f":"IFERROR(Table_A!BF63+Table_B!BF63-Table_D!BF63,\":\")","v":0},{"$f":"IFERROR(Table_A!BH63+Table_B!BH63-Table_D!BH63,\":\")","v":0},{"$f":"IFERROR(Table_A!BJ63+Table_B!BJ63-Table_D!BJ63,\":\")","v":0},{"$f":"IFERROR(Table_A!BL63+Table_B!BL63-Table_D!BL63,\":\")","v":0},{"$f":"IFERROR(Table_A!BN63+Table_B!BN63-Table_D!BN63,\":\")","v":0}]
["MF.4.1.4","Peat",0.24499999999999997,7.0000000000000007E-2,0.35,0.33500000000000008,null,null,null,{"$f":"Table_A!Z64+Table_B!Z64-Table_D!Z64","v":0},{"$f":"Table_A!AB64+Table_B!AB64-Table_D!AB64","v":0},{"$f":"Table_A!AD64+Table_B!AD64-Table_D!AD64","v":0},{"$f":"Table_A!AF64+Table_B!AF64-Table_D!AF64","v":0},{"$f":"Table_A!AH64+Table_B!AH64-Table_D!AH64","v":0},{"$f":"Table_A!AJ64+Table_B!AJ64-Table_D!AJ64","v":0},{"$f":"Table_A!AL64+Table_B!AL64-Table_D!AL64","v":0},{"$f":"Table_A!AN64+Table_B!AN64-Table_D!AN64","v":0},{"$f":"Table_A!AP64+Table_B!AP64-Table_D!AP64","v":0},{"$f":"Table_A!AR64+Table_B!AR64-Table_D!AR64","v":0},{"$f":"Table_A!AT64+Table_B!AT64-Table_D!AT64","v":0},{"$f":"Table_A!AV64+Table_B!AV64-Table_D!AV64","v":0},{"$f":"Table_A!AX64+Table_B!AX64-Table_D!AX64","v":0},{"$f":"Table_A!AZ64+Table_B!AZ64-Table_D!AZ64","v":0},{"$f":"Table_A!BB64+Table_B!BB64-Table_D!BB64","v":0},{"$f":"IFERROR(Table_A!BD64+Table_B!BD64-Table_D!BD64,\":\")","v":0},{"$f":"IFERROR(Table_A!BF64+Table_B!BF64-Table_D!BF64,\":\")","v":0},{"$f":"IFERROR(Table_A!BH64+Table_B!BH64-Table_D!BH64,\":\")","v":0},{"$f":"IFERROR(Table_A!BJ64+Table_B!BJ64-Table_D!BJ64,\":\")","v":0},{"$f":"IFERROR(Table_A!BL64+Table_B!BL64-Table_D!BL64,\":\")","v":0},{"$f":"IFERROR(Table_A!BN64+Table_B!BN64-Table_D!BN64,\":\")","v":0}]
["MF.4.2.1","Crude oil, condensate and natural gas liquids (NGL)",0,0.12,0.01,0.87,null,null,null,{"$f":"Table_A!Z66+Table_B!Z66-Table_D!Z66","v":0},{"$f":"Table_A!AB66+Table_B!AB66-Table_D!AB66","v":0},{"$f":"Table_A!AD66+Table_B!AD66-Table_D!AD66","v":0},{"$f":"Table_A!AF66+Table_B!AF66-Table_D!AF66","v":0},{"$f":"Table_A!AH66+Table_B!AH66-Table_D!AH66","v":0},{"$f":"Table_A!AJ66+Table_B!AJ66-Table_D!AJ66","v":0},{"$f":"Table_A!AL66+Table_B!AL66-Table_D!AL66","v":0},{"$f":"Table_A!AN66+Table_B!AN66-Table_D!AN66","v":0},{"$f":"Table_A!AP66+Table_B!AP66-Table_D!AP66","v":0},{"$f":"Table_A!AR66+Table_B!AR66-Table_D!AR66","v":0},{"$f":"Table_A!AT66+Table_B!AT66-Table_D!AT66","v":0},{"$f":"Table_A!AV66+Table_B!AV66-Table_D!AV66","v":0},{"$f":"Table_A!AX66+Table_B!AX66-Table_D!AX66","v":0},{"$f":"Table_A!AZ66+Table_B!AZ66-Table_D!AZ66","v":0},{"$f":"Table_A!BB66+Table_B!BB66-Table_D!BB66","v":0},{"$f":"IFERROR(Table_A!BD66+Table_B!BD66-Table_D!BD66,\":\")","v":0},{"$f":"IFERROR(Table_A!BF66+Table_B!BF66-Table_D!BF66,\":\")","v":0},{"$f":"IFERROR(Table_A!BH66+Table_B!BH66-Table_D!BH66,\":\")","v":0},{"$f":"IFERROR(Table_A!BJ66+Table_B!BJ66-Table_D!BJ66,\":\")","v":0},{"$f":"IFERROR(Table_A!BL66+Table_B!BL66-Table_D!BL66,\":\")","v":0},{"$f":"IFERROR(Table_A!BN66+Table_B!BN66-Table_D!BN66,\":\")","v":0}]
["MF.4.2.2","Natural gas",0,0.249,4.0000000000000036E-3,0.747,null,null,null,{"$f":"Table_A!Z67+Table_B!Z67-Table_D!Z67","v":0},{"$f":"Table_A!AB67+Table_B!AB67-Table_D!AB67","v":0},{"$f":"Table_A!AD67+Table_B!AD67-Table_D!AD67","v":0},{"$f":"Table_A!AF67+Table_B!AF67-Table_D!AF67","v":0},{"$f":"Table_A!AH67+Table_B!AH67-Table_D!AH67","v":0},{"$f":"Table_A!AJ67+Table_B!AJ67-Table_D!AJ67","v":0},{"$f":"Table_A!AL67+Table_B!AL67-Table_D!AL67","v":0},{"$f":"Table_A!AN67+Table_B!AN67-Table_D!AN67","v":0},{"$f":"Table_A!AP67+Table_B!AP67-Table_D!AP67","v":0},{"$f":"Table_A!AR67+Table_B!AR67-Table_D!AR67","v":0},{"$f":"Table_A!AT67+Table_B!AT67-Table_D!AT67","v":0},{"$f":"Table_A!AV67+Table_B!AV67-Table_D!AV67","v":0},{"$f":"Table_A!AX67+Table_B!AX67-Table_D!AX67","v":0},{"$f":"Table_A!AZ67+Table_B!AZ67-Table_D!AZ67","v":0},{"$f":"Table_A!BB67+Table_B!BB67-Table_D!BB67","v":0},{"$f":"IFERROR(Table_A!BD67+Table_B!BD67-Table_D!BD67,\":\")","v":0},{"$f":"IFERROR(Table_A!BF67+Table_B!BF67-Table_D!BF67,\":\")","v":0},{"$f":"IFERROR(Table_A!BH67+Table_B!BH67-Table_D!BH67,\":\")","v":0},{"$f":"IFERROR(Table_A!BJ67+Table_B!BJ67-Table_D!BJ67,\":\")","v":0},{"$f":"IFERROR(Table_A!BL67+Table_B!BL67-Table_D!BL67,\":\")","v":0},{"$f":"IFERROR(Table_A!BN67+Table_B!BN67-Table_D!BN67,\":\")","v":0}]
[]
["Energy use (emission-relevant) [TJ], from Physical Energy Flow Accounts - Table C: Physical use table of emission-relevant use of energy flows (related to fuel combustion)",null,"oxygen content [%]","hydrogen content [%]","moisture content [%]","other content (C, N, S, ash, etc.)","calorific value [TJ/1000t]","1 divided by calorific value [1000t/TJ]"]
["P08","Hard coal",0.04,0.05,0.15,{"$f":"1-C26-D26-E26","v":0.7599999999999999},25.682843384611584,{"$f":"1/G26","v":3.8936498775644562E-2}]
["P09","Brown coal and peat",0.12,0.05,0.35,{"$f":"1-C27-D27-E27","v":0.48},8.724652064875416,0.11461775123685457]
["P10","Derived gases (= manufactured gases excl. biogas) ",0.15,0.2,0,0.64999999999999991,46.528063596113554,2.1492405286420067E-2]
["P11","Secondary coal products (coke, coal tar, patent fuel, BKB and peat products)",0.12,0.09,0.02,0.77,28.967350202862217,3.4521624967312044E-2]
["P12","Crude oil, NGL, and other hydrocarbons (excl. bio)",0,0.12,0.01,0.87,42.074429372174585,2.3767404927928455E-2]
["P13","Natural gas (without bio)",0,0.249,4.0000000000000036E-3,0.747,46.519998552829982,2.1496131365188239E-2]
["P14","Motor spirit (without bio)",0.01,0.14000000000000001,0,0.85,44.301102574777602,2.2572801620728514E-2]
["P15","Kerosenes and jet fuels (without bio)",0.01,0.16,0,0.83,43.325000545079718,2.3081361509955406E-2]
["P16","Naphtha",0.01,0.14000000000000001,0,0.85,43.918540233151646,2.2769427095966091E-2]
["P17","Transport diesel (without bio)",0.01,0.13,0,0.86,43.197385340509314,2.3149549263627021E-2]
["P18","Heating and other gasoil (without bio)",0.01,0.13,0,0.86,43.197385340509314,2.3149549263627021E-2]
["P19","Residual fuel oil",0.01,0.1,0,0.89,40,2.5000000000000001E-2]
["P20","Refinery gas, ethane and LPG",1.4999999999999999E-2,0.24,0,0.745,45.950714847592998,2.1762447076541666E-2]
["P21","Other petroleum products incl. additives/oxygenates and refinery feedstocks",5.0000000000000001E-3,0.1,0,0.89500000000000002,32.252027744124526,3.1005802423761521E-2]
["P23","Wood, wood waste and other solid biomass, charcoal",0.25,0.1,0.35,0.30000000000000004,16,6.25E-2]
["P24","Liquid biofuels",0.36,0.11,0,0.53,34.605829898895507,2.8896865150224771E-2]
["P25","Biogas",0.4,0.12,0.08,0.39999999999999997,20,0.05]
["R28","Renewable waste",0.15200000000000002,0.06,0.6,0.18800000000000006,14,7.1428571428571425E-2]
["R29","Non-renewable waste",0.15,0.06,0.05,0.74,14,7.1428571428571425E-2]
[]
["Extraction of biomass products [1000 t], from Table A",null,"moisture content at harvest [%]"]
["MF.1.1.1","Cereals",0.14000000000000001,null,null,null,null,null,null,{"$f":"Table_A!Z6","v":0},{"$f":"Table_A!AB6","v":0},{"$f":"Table_A!AD6","v":0},{"$f":"Table_A!AF6","v":0},{"$f":"Table_A!AH6","v":0},{"$f":"Table_A!AJ6","v":0},{"$f":"Table_A!AL6","v":0},{"$f":"Table_A!AN6","v":0},{"$f":"Table_A!AP6","v":0},{"$f":"Table_A!AR6","v":0},{"$f":"Table_A!AT6","v":0},{"$f":"Table_A!AV6","v":0},{"$f":"Table_A!AX6","v":0},{"$f":"Table_A!AZ6","v":0},{"$f":"Table_A!BB6","v":0},{"$f":"Table_A!BD6","v":0},{"$f":"Table_A!BF6","v":0},{"$f":"Table_A!BH6","v":0},{"$f":"Table_A!BJ6","v":0},{"$f":"Table_A!BL6","v":0},{"$f":"Table_A!BN6","v":0}]
["MF.1.1.2","Roots, tubers",0.77,null,null,null,null,null,null,{"$f":"Table_A!Z7","v":0},{"$f":"Table_A!AB7","v":0},{"$f":"Table_A!AD7","v":0},{"$f":"Table_A!AF7","v":0},{"$f":"Table_A!AH7","v":0},{"$f":"Table_A!AJ7","v":0},{"$f":"Table_A!AL7","v":0},{"$f":"Table_A!AN7","v":0},{"$f":"Table_A!AP7","v":0},{"$f":"Table_A!AR7","v":0},{"$f":"Table_A!AT7","v":0},{"$f":"Table_A!AV7","v":0},{"$f":"Table_A!AX7","v":0},{"$f":"Table_A!AZ7","v":0},{"$f":"Table_A!BB7","v":0},{"$f":"Table_A!BD7","v":0},{"$f":"Table_A!BF7","v":0},{"$f":"Table_A!BH7","v":0},{"$f":"Table_A!BJ7","v":0},{"$f":"Table_A!BL7","v":0},{"$f":"Table_A!BN7","v":0}]
["MF.1.1.3","Sugar crops",0.77,null,null,null,null,null,null,{"$f":"Table_A!Z8","v":0},{"$f":"Table_A!AB8","v":0},{"$f":"Table_A!AD8","v":0},{"$f":"Table_A!AF8","v":0},{"$f":"Table_A!AH8","v":0},{"$f":"Table_A!AJ8","v":0},{"$f":"Table_A!AL8","v":0},{"$f":"Table_A!AN8","v":0},{"$f":"Table_A!AP8","v":0},{"$f":"Table_A!AR8","v":0},{"$f":"Table_A!AT8","v":0},{"$f":"Table_A!AV8","v":0},{"$f":"Table_A!AX8","v":0},{"$f":"Table_A!AZ8","v":0},{"$f":"Table_A!BB8","v":0},{"$f":"Table_A!BD8","v":0},{"$f":"Table_A!BF8","v":0},{"$f":"Table_A!BH8","v":0},{"$f":"Table_A!BJ8","v":0},{"$f":"Table_A!BL8","v":0},{"$f":"Table_A!BN8","v":0}]
["MF.1.1.4","Pulses",0.10000000000000002,null,null,null,null,null,null,{"$f":"Table_A!Z9","v":0},{"$f":"Table_A!AB9","v":0},{"$f":"Table_A!AD9","v":0},{"$f":"Table_A!AF9","v":0},{"$f":"Table_A!AH9","v":0},{"$f":"Table_A!AJ9","v":0},{"$f":"Table_A!AL9","v":0},{"$f":"Table_A!AN9","v":0},{"$f":"Table_A!AP9","v":0},{"$f":"Table_A!AR9","v":0},{"$f":"Table_A!AT9","v":0},{"$f":"Table_A!AV9","v":0},{"$f":"Table_A!AX9","v":0},{"$f":"Table_A!AZ9","v":0},{"$f":"Table_A!BB9","v":0},{"$f":"Table_A!BD9","v":0},{"$f":"Table_A!BF9","v":0},{"$f":"Table_A!BH9","v":0},{"$f":"Table_A!BJ9","v":0},{"$f":"Table_A!BL9","v":0},{"$f":"Table_A!BN9","v":0}]
["MF.1.1.5","Nuts",0.05,null,null,null,null,null,null,{"$f":"Table_A!Z10","v":0},{"$f":"Table_A!AB10","v":0},{"$f":"Table_A!AD10","v":0},{"$f":"Table_A!AF10","v":0},{"$f":"Table_A!AH10","v":0},{"$f":"Table_A!AJ10","v":0},{"$f":"Table_A!AL10","v":0},{"$f":"Table_A!AN10","v":0},{"$f":"Table_A!AP10","v":0},{"$f":"Table_A!AR10","v":0},{"$f":"Table_A!AT10","v":0},{"$f":"Table_A!AV10","v":0},{"$f":"Table_A!AX10","v":0},{"$f":"Table_A!AZ10","v":0},{"$f":"Table_A!BB10","v":0},{"$f":"Table_A!BD10","v":0},{"$f":"Table_A!BF10","v":0},{"$f":"Table_A!BH10","v":0},{"$f":"Table_A!BJ10","v":0},{"$f":"Table_A!BL10","v":0},{"$f":"Table_A!BN10","v":0}]
["MF.1.1.6","Oil-bearing crops",0.221,null,null,null,null,null,null,{"$f":"Table_A!Z11","v":0},{"$f":"Table_A!AB11","v":0},{"$f":"Table_A!AD11","v":0},{"$f":"Table_A!AF11","v":0},{"$f":"Table_A!AH11","v":0},{"$f":"Table_A!AJ11","v":0},{"$f":"Table_A!AL11","v":0},{"$f":"Table_A!AN11","v":0},{"$f":"Table_A!AP11","v":0},{"$f":"Table_A!AR11","v":0},{"$f":"Table_A!AT11","v":0},{"$f":"Table_A!AV11","v":0},{"$f":"Table_A!AX11","v":0},{"$f":"Table_A!AZ11","v":0},{"$f":"Table_A!BB11","v":0},{"$f":"Table_A!BD11","v":0},{"$f":"Table_A!BF11","v":0},{"$f":"Table_A!BH11","v":0},{"$f":"Table_A!BJ11","v":0},{"$f":"Table_A!BL11","v":0},{"$f":"Table_A!BN11","v":0}]
["MF.1.1.7","Vegetables",0.92666666666666675,null,null,null,null,null,null,{"$f":"Table_A!Z12","v":0},{"$f":"Table_A!AB12","v":0},{"$f":"Table_A!AD12","v":0},{"$f":"Table_A!AF12","v":0},{"$f":"Table_A!AH12","v":0},{"$f":"Table_A!AJ12","v":0},{"$f":"Table_A!AL12","v":0},{"$f":"Table_A!AN12","v":0},{"$f":"Table_A!AP12","v":0},{"$f":"Table_A!AR12","v":0},{"$f":"Table_A!AT12","v":0},{"$f":"Table_A!AV12","v":0},{"$f":"Table_A!AX12","v":0},{"$f":"Table_A!AZ12","v":0},{"$f":"Table_A!BB12","v":0},{"$f":"Table_A!BD12","v":0},{"$f":"Table_A!BF12","v":0},{"$f":"Table_A!BH12","v":0},{"$f":"Table_A!BJ12","v":0},{"$f":"Table_A!BL12","v":0},{"$f":"Table_A!BN12","v":0}]
["MF.1.1.8","Fruits",0.77583333333333337,null,null,null,null,null,null,{"$f":"Table_A!Z13","v":0},{"$f":"Table_A!AB13","v":0},{"$f":"Table_A!AD13","v":0},{"$f":"Table_A!AF13","v":0},{"$f":"Table_A!AH13","v":0},{"$f":"Table_A!AJ13","v":0},{"$f":"Table_A!AL13","v":0},{"$f":"Table_A!AN13","v":0},{"$f":"Table_A!AP13","v":0},{"$f":"Table_A!AR13","v":0},{"$f":"Table_A!AT13","v":0},{"$f":"Table_A!AV13","v":0},{"$f":"Table_A!AX13","v":0},{"$f":"Table_A!AZ13","v":0},{"$f":"Table_A!BB13","v":0},{"$f":"Table_A!BD13","v":0},{"$f":"Table_A!BF13","v":0},{"$f":"Table_A!BH13","v":0},{"$f":"Table_A!BJ13","v":0},{"$f":"Table_A!BL13","v":0},{"$f":"Table_A!BN13","v":0}]
["MF.1.1.9","Fibres",0.105,null,null,null,null,null,null,{"$f":"Table_A!Z14","v":0},{"$f":"Table_A!AB14","v":0},{"$f":"Table_A!AD14","v":0},{"$f":"Table_A!AF14","v":0},{"$f":"Table_A!AH14","v":0},{"$f":"Table_A!AJ14","v":0},{"$f":"Table_A!AL14","v":0},{"$f":"Table_A!AN14","v":0},{"$f":"Table_A!AP14","v":0},{"$f":"Table_A!AR14","v":0},{"$f":"Table_A!AT14","v":0},{"$f":"Table_A!AV14","v":0},{"$f":"Table_A!AX14","v":0},{"$f":"Table_A!AZ14","v":0},{"$f":"Table_A!BB14","v":0},{"$f":"Table_A!BD14","v":0},{"$f":"Table_A!BF14","v":0},{"$f":"Table_A!BH14","v":0},{"$f":"Table_A!BJ14","v":0},{"$f":"Table_A!BL14","v":0},{"$f":"Table_A!BN14","v":0}]
["MF.1.1.A","Other crops n.e.c.",8.2857142857142865E-2,null,null,null,null,null,null,{"$f":"Table_A!Z15","v":0},{"$f":"Table_A!AB15","v":0},{"$f":"Table_A!AD15","v":0},{"$f":"Table_A!AF15","v":0},{"$f":"Table_A!AH15","v":0},{"$f":"Table_A!AJ15","v":0},{"$f":"Table_A!AL15","v":0},{"$f":"Table_A!AN15","v":0},{"$f":"Table_A!AP15","v":0},{"$f":"Table_A!AR15","v":0},{"$f":"Table_A!AT15","v":0},{"$f":"Table_A!AV15","v":0},{"$f":"Table_A!AX15","v":0},{"$f":"Table_A!AZ15","v":0},{"$f":"Table_A!BB15","v":0},{"$f":"Table_A!BD15","v":0},{"$f":"Table_A!BF15","v":0},{"$f":"Table_A!BH15","v":0},{"$f":"Table_A!BJ15","v":0},{"$f":"Table_A!BL15","v":0},{"$f":"Table_A!BM15","v":0}]
[]
["Population [1000 cap]",null,"oxygen requirement [t/cap]","CO2 from respiration [t/cap]","H2O from respiration [t/cap]"]
[null,"Humans",0.25,0.3,0.35]
[null,"Cattle",2.4500000000000002,2.92,3.38]
[null,"Sheep",0.2,0.24,0.27]
[null,"Horses",1.84,2.19,2.5299999999999998]
[null,"Pigs",0.25,0.3,0.35]
[null,"Poultry",0.01,0.01,0.01]
[]
["UNFCCC biogenic CO2 emissions [1000 t]"]
["5A","Solid waste disposal on land"]
["5B","Biological treatment of solid waste"]
["5D","Wastewater handling"]
[]
["Production of nitrogen [1000 t]"]
[null," N content of ammonia"]
[]
["Export flows [kg] by combined nomenclature (CN)",null,"Water content [%]"]
[20.09,"Fruit and vegetable juices",0.85]
[22,"Beverages",0.9]
[]
["Import flows [kg] by combined nomenclature (CN)",null,"Water content [%]"]
[20.09,"Fruit and vegetable juices",0.85]
[22,"Beverages",0.9]
[]
["MF.8.1  Balancing items: input side [1000 tonnes]"]
[null,"MF.8.1.1   Oxygen for combustion processes",null,null,null,null,null,null,null,{"$f":"IFERROR(J84+J85-J86,\":\")","v":0},0,0,0,0,0,0,0,0,0,0,0,0,0,0,0,{"$f":"IFERROR(Z84+Z85-Z86,\":\")","v":0},0,{"$f":"IFERROR(AB84+AB85-AB86,\":\")","v":0},0,{"$f":"IFERROR(AD84+AD85-AD86,\":\")","v":0}]
[null,"Step 1: Oxygen for combustion processes",null,null,null,null,null,null,null,{"$f":"IFERROR($C9*J9+$C10*J10+$C11*J11+$C12*J12+$C13*J13,\":\")","v":0},0,0,0,0,0,0,0,0,0,0,0,0,0,0,0,{"$f":"IFERROR($C9*Z9+$C10*Z10+$C11*Z11+$C12*Z12+$C13*Z13,\":\")","v":0},0,{"$f":"IFERROR($C9*AB9+$C10*AB10+$C11*AB11+$C12*AB12+$C13*AB13,\":\")","v":0},0,{"$f":"IFERROR($C9*AD9+$C10*AD10+$C11*AD11+$C12*AD12+$C13*AD13,\":\")","v":0}]
[{"$f":"'Annex to Table G tool'!B12/(2*'Annex to Table G tool'!B9)","v":7.9207920792079207},"Step 2: Oxygen for combustion of hydrogen",null,null,null,null,null,null,null,{"$f":"IF(COUNTBLANK(J26:J44)=19,($D17*J17+$D18*J18+$D19*J19+$D20*J20+$D21*J21+$D22*J22+$D23*J23)*$A$85,($D26*J26*$H26+$D27*J27*$H27+$D28*J28*$H28+$D29*J29*$H29+$D30*J30*$H30+$D31*J31*$H31+$D32*J32*$H32+$D33*J33*$H33+$D34*J34*$H34+$D35*J35*$H35+$D36*J36*$H36+$D37*J37*$H37+$D38*J38*$H38+$D39*J39*$H39+$D40*J40*$H40+$D41*J41*$H41+$D42*J42*$H42+$D43*J43*$H43+$D44*J44*$H44)*$A$85)","v":0},{"$f":"IF(COUNTBLANK(K26:K44)=19,($D17*K17+$D18*K18+$D19*K19+$D20*K20+$D21*K21+$D22*K22+$D23*K23)*$A$85,($D26*K26*$H26+$D27*K27*$H27+$D28*K28*$H28+$D29*K29*$H29+$D30*K30*$H30+$D31*K31*$H31+$D32*K32*$H32+$D33*K33*$H33+$D34*K34*$H34+$D35*K35*$H35+$D36*K36*$H36+$D37*K37*$H37+$D38*K38*$H38+$D39*K39*$H39+$D40*K40*$H40+$D41*K41*$H41+$D42*K42*$H42+$D43*K43*$H43+$D44*K44*$H44)*$A$85)","v":0},0,0,0,0,0,0,0,0,0,0,0,0,0,{"$f":"IFERROR(IF(COUNTBLANK(Y26:Y44)=19,($D17*Y17+$D18*Y18+$D19*Y19+$D20*Y20+$D21*Y21+$D22*Y22+$D23*Y23)*$A$85,($D26*Y26*$H26+$D27*Y27*$H27+$D28*Y28*$H28+$D29*Y29*$H29+$D30*Y30*$H30+$D31*Y31*$H31+$D32*Y32*$H32+$D33*Y33*$H33+$D34*Y34*$H34+$D35*Y35*$H35+$D36*Y36*$H36+$D37*Y37*$H37+$D38*Y38*$H38+$D39*Y39*$H39+$D40*Y40*$H40+$D41*Y41*$H41+$D42*Y42*$H42+$D43*Y43*$H43+$D44*Y44*$H44)*$A$85),\":\")","v":0},0,0,0,0,0]
[null,"Step 3: Oxygen content",null,null,null,null,null,null,null,{"$f":"IF(COUNTBLANK(J26:J44)=19,($C17*J17+$C18*J18+$C19*J19+$C20*J20+$C21*J21+$C22*J22+$C23*J23),($C26*J26*$H26+$C27*J27*$H27+$C28*J28*$H28+$C29*J29*$H29+$C30*J30*$H30+$C31*J31*$H31+$C32*J32*$H32+$C33*J33*$H33+$C34*J34*$H34+$C35*J35*$H35+$C36*J36*$H36+$C37*J37*$H37+$C38*J38*$H38+$C39*J39*$H39+$C40*J40*$H40+$C41*J41*$H41+$C42*J42*$H42+$C43*J43*$H43+$C44*J44*$H44))","v":0},{"$f":"IF(COUNTBLANK(K26:K44)=19,($C17*K17+$C18*K18+$C19*K19+$C20*K20+$C21*K21+$C22*K22+$C23*K23),($C26*K26*$H26+$C27*K27*$H27+$C28*K28*$H28+$C29*K29*$H29+$C30*K30*$H30+$C31*K31*$H31+$C32*K32*$H32+$C33*K33*$H33+$C34*K34*$H34+$C35*K35*$H35+$C36*K36*$H36+$C37*K37*$H37+$C38*K38*$H38+$C39*K39*$H39+$C40*K40*$H40+$C41*K41*$H41+$C42*K42*$H42+$C43*K43*$H43+$C44*K44*$H44))","v":0},0,0,0,0,0,0,0,0,0,0,0,0,0,{"$f":"IFERROR(IF(COUNTBLANK(Y26:Y44)=19,($C17*Y17+$C18*Y18+$C19*Y19+$C20*Y20+$C21*Y21+$C22*Y22+$C23*Y23),($C26*Y26*$H26+$C27*Y27*$H27+$C28*Y28*$H28+$C29*Y29*$H29+$C30*Y30*$H30+$C31*Y31*$H31+$C32*Y32*$H32+$C33*Y33*$H33+$C34*Y34*$H34+$C35*Y35*$H35+$C36*Y36*$H36+$C37*Y37*$H37+$C38*Y38*$H38+$C39*Y39*$H39+$C40*Y40*$H40+$C41*Y41*$H41+$C42*Y42*$H42+$C43*Y43*$H43+$C44*Y44*$H44)),\":\")","v":0},0,0,0,0,0]
[null,"MF.8.1.2   Oxygen for respiration of humans and livestock; bacterial respiration from solid waste and wastewater",null,null,null,null,null,null,null,{"$f":"J88+J89","v":0},{"$f":"K88+K89","v":0},0,0,0,0,0,0,0,0,0,0,0,0,0,0,{"$f":"Z88+Z89","v":0},0,{"$f":"AB88+AB89","v":0},0,{"$f":"AD88+AD89","v":0}]
[null,"Step 1: Oxygen for human and livestock respiration",null,null,null,null,null,null,null,{"$f":"$C59*J59+$C60*J60+$C61*J61+$C62*J62+$C63*J63+$C64*J64","v":0},{"$f":"$C59*K59+$C60*K60+$C61*K61+$C62*K62+$C63*K63+$C64*K64","v":0},0,0,0,0,0,0,0,0,0,0,0,0,0,0,{"$f":"$C59*Z59+$C60*Z60+$C61*Z61+$C62*Z62+$C63*Z63+$C64*Z64","v":0},0,{"$f":"$C59*AB59+$C60*AB60+$C61*AB61+$C62*AB62+$C63*AB63+$C64*AB64","v":0},0,{"$f":"$C59*AD59+$C60*AD60+$C61*AD61+$C62*AD62+$C63*AD63+$C64*AD64","v":0}]
[{"$f":"(2*'Annex to Table G tool'!B12)/'Annex to Table G tool'!B16","v":0.72710747557373323},"Step 2: Oxygen for bacterial respiration",null,null,null,null,null,null,null,{"$f":"SUM(J67:J69)*$A$89","v":0},{"$f":"SUM(K67:K69)*$A$89","v":0},0,0,0,0,0,0,0,0,0,0,0,0,0,0,{"$f":"SUM(Z67:Z69)*$A$89","v":0},0,{"$f":"SUM(AB67:AB69)*$A$89","v":0},0,{"$f":"SUM(AD67:AD69)*$A$89","v":0}]
[null,"MF.8.1.3   Nitrogen for Haber-Bosch process",null,null,null,null,null,null,null,{"$f":"J72","v":0},{"$f":"K72","v":0},0,0,0,0,0,0,0,0,0,0,0,0,0,0,{"$f":"Z72","v":0},0,{"$f":"AB72","v":0},0,{"$f":"AD72","v":0}]
[null,"MF.8.1.4   Water requirements for the domestic production of exported beverages",null,null,null,null,null,null,null,{"$f":"($C75*J75+$C76*J76)/10^6","v":0},{"$f":"($C75*K75+$C76*K76)/10^6","v":0},0,0,0,0,0,0,0,0,0,0,0,0,0,0,{"$f":"($C75*Z75+$C76*Z76)/10^6","v":0},0,{"$f":"($C75*AB75+$C76*AB76)/10^6","v":0},0,{"$f":"($C75*AD75+$C76*AD76)/10^6","v":0}]
[]
["MF.8.2  Balancing items: output side [1000 tonnes]"]
[null,"MF.8.2.1  Water vapour from combustion",null,null,null,null,null,null,null,{"$f":"J95+J96","v":0},{"$f":"K95+K96","v":0},0,0,0,0,0,0,0,0,0,0,0,0,0,{"$f":"IFERROR(Y95+Y96,\":\")","v":0},0,0,0,0,0]
[null,"MF.8.2.1.1   Water vapour from moisture content of fuels",null,null,null,null,null,null,null,{"$f":"IF(COUNTBLANK(J26:J44)=19,($E17*J17+$E18*J18+$E19*J19+$E20*J20+$E21*J21+$E22*J22+$E23*J23),($E26*J26*$H26+$E27*J27*$H27+$E28*J28*$H28+$E29*J29*$H29+$E30*J30*$H30+$E31*J31*$H31+$E32*J32*$H32+$E33*J33*$H33+$E34*J34*$H34+$E35*J35*$H35+$E36*J36*$H36+$E37*J37*$H37+$E38*J38*$H38+$E39*J39*$H39+$E40*J40*$H40+$E41*J41*$H41+$E42*J42*$H42+$E43*J43*$H43+$E44*J44*$H44))","v":0},{"$f":"IF(COUNTBLANK(K26:K44)=19,($E17*K17+$E18*K18+$E19*K19+$E20*K20+$E21*K21+$E22*K22+$E23*K23),($E26*K26*$H26+$E27*K27*$H27+$E28*K28*$H28+$E29*K29*$H29+$E30*K30*$H30+$E31*K31*$H31+$E32*K32*$H32+$E33*K33*$H33+$E34*K34*$H34+$E35*K35*$H35+$E36*K36*$H36+$E37*K37*$H37+$E38*K38*$H38+$E39*K39*$H39+$E40*K40*$H40+$E41*K41*$H41+$E42*K42*$H42+$E43*K43*$H43+$E44*K44*$H44))","v":0},0,0,0,0,0,0,0,0,0,0,0,0,0,{"$f":"IFERROR(IF(COUNTBLANK(Y26:Y44)=19,($E17*Y17+$E18*Y18+$E19*Y19+$E20*Y20+$E21*Y21+$E22*Y22+$E23*Y23),($E26*Y26*$H26+$E27*Y27*$H27+$E28*Y28*$H28+$E29*Y29*$H29+$E30*Y30*$H30+$E31*Y31*$H31+$E32*Y32*$H32+$E33*Y33*$H33+$E34*Y34*$H34+$E35*Y35*$H35+$E36*Y36*$H36+$E37*Y37*$H37+$E38*Y38*$H38+$E39*Y39*$H39+$E40*Y40*$H40+$E41*Y41*$H41+$E42*Y42*$H42+$E43*Y43*$H43+$E44*Y44*$H44)),\":\")","v":0},0,0,0,0,0]
[{"$f":"'Annex to Table G tool'!B25/(2*'Annex to Table G tool'!B9)","v":8.9207920792079207},"MF.8.2.1.2  Water vapour from the oxidised hydrogen components of fuels",null,null,null,null,null,null,null,{"$f":"IF(COUNTBLANK(J26:J44)=19,($D17*J17+$D18*J18+$D19*J19+$D20*J20+$D21*J21+$D22*J22+$D23*J23)*$A$96,($D26*J26*$H26+$D27*J27*$H27+$D28*J28*$H28+$D29*J29*$H29+$D30*J30*$H30+$D31*J31*$H31+$D32*J32*$H32+$D33*J33*$H33+$D34*J34*$H34+$D35*J35*$H35+$D36*J36*$H36+$D37*J37*$H37+$D38*J38*$H38+$D39*J39*$H39+$D40*J40*$H40+$D41*J41*$H41+$D42*J42*$H42+$D43*J43*$H43+$D44*J44*$H44)*$A$96)","v":0},{"$f":"IF(COUNTBLANK(K26:K44)=19,($D17*K17+$D18*K18+$D19*K19+$D20*K20+$D21*K21+$D22*K22+$D23*K23)*$A$96,($D26*K26*$H26+$D27*K27*$H27+$D28*K28*$H28+$D29*K29*$H29+$D30*K30*$H30+$D31*K31*$H31+$D32*K32*$H32+$D33*K33*$H33+$D34*K34*$H34+$D35*K35*$H35+$D36*K36*$H36+$D37*K37*$H37+$D38*K38*$H38+$D39*K39*$H39+$D40*K40*$H40+$D41*K41*$H41+$D42*K42*$H42+$D43*K43*$H43+$D44*K44*$H44)*$A$96)","v":0},0,0,0,0,0,0,0,0,0,0,0,0,0,{"$f":"IFERROR(IF(COUNTBLANK(Y26:Y44)=19,($D17*Y17+$D18*Y18+$D19*Y19+$D20*Y20+$D21*Y21+$D22*Y22+$D23*Y23)*$A$96,($D26*Y26*$H26+$D27*Y27*$H27+$D28*Y28*$H28+$D29*Y29*$H29+$D30*Y30*$H30+$D31*Y31*$H31+$D32*Y32*$H32+$D33*Y33*$H33+$D34*Y34*$H34+$D35*Y35*$H35+$D36*Y36*$H36+$D37*Y37*$H37+$D38*Y38*$H38+$D39*Y39*$H39+$D40*Y40*$H40+$D41*Y41*$H41+$D42*Y42*$H42+$D43*Y43*$H43+$D44*Y44*$H44)*$A$96),\":\")","v":0},0,0,0,0,0]
[null,"MF.8.2.2  Gases from respiration of humans and livestock (CO2 and H2O), and from bacterial respiration from solid waste and wastewater (H2O)",null,null,null,null,null,null,null,{"$f":"J98+J99","v":0},{"$f":"K98+K99","v":0},0,0,0,0,0,0,0,0,0,0,0,0,0,0,{"$f":"Z98+Z99","v":0},0,{"$f":"AB98+AB99","v":0},0,{"$f":"AD98+AD99","v":0}]
[null,"MF.8.2.2.1   Carbon dioxide (CO2)",null,null,null,null,null,null,null,{"$f":"$D59*J59+$D60*J60+$D61*J61+$D62*J62+$D63*J63+$D64*J64","v":0},{"$f":"$D59*K59+$D60*K60+$D61*K61+$D62*K62+$D63*K63+$D64*K64","v":0},0,0,0,0,0,0,0,0,0,0,0,0,0,{"$f":"$D59*Y59+$D60*Y60+$D61*Y61+$D62*Y62+$D63*Y63+$D64*Y64","v":0},0,0,0,0,0]
[{"$f":"'Annex to Table G tool'!B25/'Annex to Table G tool'!B16","v":0.40945239718245852},"MF.8.2.2.2   Water vapour (H2O)",null,null,null,null,null,null,null,{"$f":"$E59*J59+$E60*J60+$E61*J61+$E62*J62+$E63*J63+$E64*J64+(J68+J69)*$A$99","v":0},{"$f":"$E59*K59+$E60*K60+$E61*K61+$E62*K62+$E63*K63+$E64*K64+(K68+K69)*$A$99","v":0},0,0,0,0,0,0,0,0,0,0,0,0,0,{"$f":"$E59*Y59+$E60*Y60+$E61*Y61+$E62*Y62+$E63*Y63+$E64*Y64+(Y68+Y69)*$A$99","v":0},0,0,0,0,0]
[null,"MF.8.2.3  Excorporated water from biomass products",null,null,null,null,null,null,null,{"$f":"J101+J102","v":0},{"$f":"K101+K102","v":0},0,0,0,0,0,0,0,0,0,0,0,0,0,{"$f":"IFERROR(Y101+Y102,\":\")","v":0},0,0,0,0,0]
[null,"Step 1: Bulk water from beverage imports",null,null,null,null,null,null,null,{"$f":"($C79*J79+$C80*J80)/10^6","v":0},{"$f":"($C79*K79+$C80*K80)/10^6","v":0},0,0,0,0,0,0,0,0,0,0,0,0,0,0,{"$f":"($C79*Z79+$C80*Z80)/10^6","v":0},0,{"$f":"($C79*AB79+$C80*AB80)/10^6","v":0},0,{"$f":"($C79*AD79+$C80*AD80)/10^6","v":0}]
[null,"Step 2: Water content of biomass products",null,null,null,null,null,null,null,{"$f":"$C47*J47+$C48*J48+$C49*J49+$C50*J50+$C51*J51+$C52*J52+$C53*J53+$C54*J54+$C55*J55+$C56*J56","v":0},{"$f":"$C47*K47+$C48*K48+$C49*K49+$C50*K50+$C51*K51+$C52*K52+$C53*K53+$C54*K54+$C55*K55+$C56*K56","v":0},0,0,0,0,0,0,0,0,0,0,0,0,0,{"$f":"IFERROR($C47*Y47+$C48*Y48+$C49*Y49+$C50*Y50+$C51*Y51+$C52*Y52+$C53*Y53+$C54*Y54+$C55*Y55+$C56*Y56,\":\")","v":0},0,0,0,0,0]
[]
[]
[]
[]
[]
[]
["MF.8.1  Balancing items: input side",null,null,null,null,null,null,null,null,{"$f":"SUM(J110:J113)","v":0},{"$f":"SUM(K110:K113)","v":0},0,0,0,0,0,0,0,0,0,0,0,0,0,0,0,0,{"$f":"SUM(AB110:AB113)","v":0},0,0]
["MF.8.1.1 Oxygen for combustion processes",null,null,null,null,null,null,null,null,{"$f":"J83","v":0},{"$f":"K83","v":0},0,0,0,0,0,0,0,0,0,0,0,0,0,0,0,0,{"$f":"AB83","v":0},0,0]
["MF.8.1.2 Oxygen for respiration of humans and livestock; bacterial respiration from solid waste and wastewater",null,null,null,null,null,null,null,null,{"$f":"J87","v":0},{"$f":"K87","v":0},0,0,0,0,0,0,0,0,0,0,0,0,0,0,0,0,{"$f":"AB87","v":0},0,0]
["MF.8.1.3 Nitrogen for Haber-Bosch process",null,null,null,null,null,null,null,null,{"$f":"J90","v":0},{"$f":"K90","v":0},0,0,0,0,0,0,0,0,0,0,0,0,0,0,0,0,{"$f":"AB90","v":0},0,0]
["MF.8.1.4 Water requirements for the domestic production of exported beverages",null,null,null,null,null,null,null,null,{"$f":"J91","v":0},{"$f":"K91","v":0},0,0,0,0,0,0,0,0,0,0,0,0,0,0,0,0,{"$f":"AB91","v":0},0,0]
["MF.8.2  Balancing items: output side",null,null,null,null,null,null,null,null,{"$f":"SUM(J115,J118,J121)","v":0},{"$f":"SUM(K115,K118,K121)","v":0},0,0,0,0,0,0,0,0,0,0,0,0,0,0,0,0,{"$f":"SUM(AB115,AB118,AB121)","v":0},0,0]
["MF.8.2.1 Water vapour from combustion",null,null,null,null,null,null,null,null,{"$f":"J94","v":0},{"$f":"K94","v":0},0,0,0,0,0,0,0,0,0,0,0,0,0,0,0,0,{"$f":"AB94","v":0},0,0]
["MF.8.2.1.1 Water vapour from moisture content of fuels",null,null,null,null,null,null,null,null,{"$f":"J95","v":0},0,0,0,0,0,0,0,0,0,0,0,0,0,0,0,0,0,{"$f":"AB95","v":0},0,0]
["MF.8.2.1.2 Water vapour from the oxidised hydrogen components of fuels",null,null,null,null,null,null,null,null,0,0,0,0,0,0,0,0,0,0,0,0,0,0,0,0,0,0,{"$f":"AB96","v":0},0,0]
["MF.8.2.2 Gases from respiration of humans and livestock (CO2 and H2O), and from bacterial respiration from solid waste and wastewater (H2O)",null,null,null,null,null,null,null,null,{"$f":"J97","v":0},{"$f":"K97","v":0},0,0,0,0,0,0,0,0,0,0,0,0,0,0,0,0,{"$f":"AB97","v":0},0,0]
["MF.8.2.2.1 Carbon dioxide (CO2)",null,null,null,null,null,null,null,null,{"$f":"J98","v":0},0,0,0,0,0,0,0,0,0,0,0,0,0,0,0,0,0,{"$f":"AB98","v":0},0,0]
["MF.8.2.2.2 Water vapour (H2O)",null,null,null,null,null,null,null,null,{"$f":"J99","v":0},0,0,0,0,0,0,0,0,0,0,0,0,0,0,0,0,0,{"$f":"AB99","v":0},0,0]
["MF.8.2.3  Excorporated water from biomass products",null,null,null,null,null,null,null,null,0,0,0,0,0,0,0,0,0,0,0,0,0,0,0,0,0,0,{"$f":"AB100","v":0},0,0]

{"sheet":"Annex to Table G tool","index":24,"n_rows":92,"n_cols":4,"rows_kept":92,"cut":false,"hidden":false,"merged":[[0,0,0,7],[1,0,1,7]]}
["Tool for the estimation of balancing items (Table G)"]
["Annex"]
[]
[]
[]
[]
["Molar masses, composition of compounds"]
["Element","[g/mol]"]
["H",1.01]
["C",12.01]
["N",14.01]
["O",16]
["S",32.07]
[]
["Gases","[g/mol]","oxygen (%)","nitrogen %"]
["CO2",{"$f":"'Annex to Table G tool'!B10+2*'Annex to Table G tool'!B12","v":44.01},{"$f":"2*$B$12/B16","v":0.72710747557373323},"n.a."]
["CH4",{"$f":"B10+4*B9","v":16.05},"n.a.","n.a."]
["N2O",{"$f":"2*'Annex to Table G tool'!B11+'Annex to Table G tool'!B12","v":44.019999999999996},{"$f":"$B$12/B18","v":0.36347114947751025},{"$f":"2*B11/B18","v":0.63652885052248986}]
["NO2",{"$f":"'Annex to Table G tool'!B11+2*'Annex to Table G tool'!B12","v":46.01},{"$f":"2*$B$12/B19","v":0.6955009780482504},{"$f":"B11/B19","v":0.3044990219517496}]
["CO",{"$f":"'Annex to Table G tool'!B10+'Annex to Table G tool'!B12","v":28.009999999999998},{"$f":"$B$12/B20","v":0.57122456265619426},"n.a."]
["SO2",{"$f":"'Annex to Table G tool'!B13+2*'Annex to Table G tool'!B12","v":64.069999999999993},{"$f":"2*$B$12/B21","v":0.49945372249102549},"n.a."]
["NH3",{"$f":"B11+3*B9","v":17.04},"n.a.",{"$f":"B11/B22","v":0.82218309859154937}]
[]
["Water (vapor)","[g/mol]","oxygen (%)","Ratio of oxygen to hydrogen content"]
["H2O",{"$f":"2*B9+B12","v":18.02},{"$f":"B12/B25","v":0.88790233074361824},{"$f":"B12/(2*B9)","v":7.9207920792079207}]
[]
[]
[]
["Moisture content of crops"]
["Crop","Moisture content [%]","EW-MFA Parent Code","Assumed European averages"]
["Barley",0.14000000000000001,"MF.1.1.1"]
["Brans",0.12,"MF.1.1.1"]
["Cereals, Other",0.1,"MF.1.1.1"]
["Maize",0.14000000000000001,"MF.1.1.1"]
["Millet",0.12,"MF.1.1.1"]
["Oats",0.14000000000000001,"MF.1.1.1"]
["Rice (Paddy Equivalent)",0.14000000000000001,"MF.1.1.1"]
["Rye",0.14000000000000001,"MF.1.1.1"]
["Sorghum",0.14000000000000001,"MF.1.1.1"]
["Wheat",0.14000000000000001,"MF.1.1.1",{"$f":"B40","v":0.14000000000000001}]
["Cassava",0.7,"MF.1.1.2"]
["Potatoes",0.78,"MF.1.1.2"]
["Roots, Other",0.75,"MF.1.1.2"]
["Sweet Potatoes",0.7,"MF.1.1.2"]
["Yams",0.74,"MF.1.1.2",0.77]
["Molasses",0.24,"MF.1.1.3"]
["Sugar Beet",0.77,"MF.1.1.3"]
["Sugar Cane",0.83,"MF.1.1.3",{"$f":"B47","v":0.77}]
["Beans",0.1,"MF.1.1.4"]
["Peas",0.1,"MF.1.1.4"]
["Pulses, Other",0.1,"MF.1.1.4",{"$f":"B51","v":0.1}]
["Nuts",0.05,"MF.1.1.5",{"$f":"B52","v":0.05}]
["Coconuts - Incl Copra",0.4,"MF.1.1.6"]
["Groundnut Cake",0.1,"MF.1.1.6"]
["Groundnuts (Shelled Eq)",0.06,"MF.1.1.6"]
["Oilcrops, Other",0.1,"MF.1.1.6"]
["Olives",0.6,"MF.1.1.6"]
["Palmkernels",0.6,"MF.1.1.6"]
["Rape and Mustardseed",0.12,"MF.1.1.6"]
["Sesameseed",0.06,"MF.1.1.6"]
["Soyabeans",0.1,"MF.1.1.6"]
["Sunflowerseed",7.0000000000000007E-2,"MF.1.1.6",0.22]
["Onions",0.89,"MF.1.1.7"]
["Tomatoes",0.94,"MF.1.1.7"]
["Vegetables, Other",0.95,"MF.1.1.7",0.93]
["Apples",0.85,"MF.1.1.8"]
["Bananas",0.75,"MF.1.1.8"]
["Citrus, Other",0.86,"MF.1.1.8"]
["Dates",0.22,"MF.1.1.8"]
["Fruits, Other",0.85,"MF.1.1.8"]
["Grapefruit",0.88,"MF.1.1.8"]
["Grapes",0.81,"MF.1.1.8"]
["Lemons, Limes",0.87,"MF.1.1.8"]
["Oranges, Mandarines",0.86,"MF.1.1.8"]
["Pineapples",0.85,"MF.1.1.8"]
["Plantains",0.66,"MF.1.1.8"]
["Wine",0.85,"MF.1.1.8",0.78]
["Cottonseed",0.1,"MF.1.1.9"]
["Abaca",0.1,"MF.1.1.9"]
["Cotton Lint",0.1,"MF.1.1.9"]
["Hard Fibres, Other",0.1,"MF.1.1.9"]
["Jute",0.13,"MF.1.1.9"]
["Jute-Like Fibres",0.13,"MF.1.1.9"]
["Sisal",0.08,"MF.1.1.9"]
["Soft-Fibres, Other",0.1,"MF.1.1.9",0.11]
["Cloves",0.05,"MF.1.1.A"]
["Pepper",0.1,"MF.1.1.A"]
["Pimento",0.2,"MF.1.1.A"]
["Spices, Other",0.05,"MF.1.1.A"]
["Cocoa Beans",0.1,"MF.1.1.A"]
["Coffee",0.03,"MF.1.1.A"]
["Tea",0.05,"MF.1.1.A"]

{"sheet":"Check Report","index":25,"n_rows":1,"n_cols":5,"rows_kept":1,"cut":false,"hidden":false,"merged":[]}
["Table","Error type","Cells","Correct total of parts or Error Message","Click on a cell address to be directed to the detected error"]